Workbook

Sheet Instructions
B2: Show summer times as | C2: BST
B49: Version Control: | C49: Ver | D49: Date | E49: Change | F49: Author / Contributor
C51: 1.00 | D51: 01/03/2010 | E51: Initial Release | F51: P.Orr
C52: 1.01 | D52: 26/04/2010 | E52: Add BST view option, and Liverpool and Dover times. | F52: P. Orr / N. Hackney
C53: 1.02 | D53: 12/01/2011 | E53: 2011 data inserted | F53: P.Orr
C54: 1.03 | D54: 29/10/2010 | E54: 2012 data inserted | F54: P.Orr
C55: 1.04 | D55: 09/03/2012 | E55: Victoria Dock gate operation times added | F55: P.Orr
C56: 1.05 | D56: 2012-02-03 | E56: 2013 data inserted REPLACED with 2014 data 09/02/2014 | F56: P. Orr

Sheet 4 day view
D1: 10 | E1: 11 | F1: 12 | G1: 13 | H1: 14 | I1: 15 | J1: 16 | K1: 17 | L1: 18 | M1: 19 | N1: 20 | O1: 21 | P1: 22 | Q1: 23 | R1: 24 | S1: 25
A2: =MATCH(B3,Tides!D11:D1420,0) -> 59 | B2: 9 | C2: 10 | D2: =$A$2+D1 -> 69 | E2: 70 | F2: 71 | G2: 72 | H2: 73 | I2: 74 | J2: 75 | K2: 76 | L2: 77 | M2: 78 | N2: 79 | O2: 80 | P2: 81 | Q2: 82 | R2: 83 | S2: 84
A3: 5 | B3: =TODAY()+ C3 - 366 -> 2024-01-16 | C3: 1905-01-01 | D3: =INDIRECT("'Tides'!"&ADDRESS(D$2,$A3)) -> 2024-01-16 | E3: Tue | H3: 2024-01-17 | I3: Wed | L3: 2024-01-18 | M3: Thu | P3: 2024-01-19 | Q3: Fri
A4: 3 | D4: 2024-01-16T01:32:00 | E4: 2024-01-16T07:32:00 | F4: 2024-01-16T13:48:00 | G4: 2024-01-16T20:06:00 | H4: 2024-01-17T02:22:00 | I4: 2024-01-17T08:24:00 | J4: 2024-01-17T14:40:00 | K4: 2024-01-17T21:00:00 | L4: 2024-01-18T03:17:00 | M4: 2024-01-18T09:21:00 | N4: 2024-01-18T15:37:00 | O4: 2024-01-18T22:01:00 | P4: 2024-01-19T04:20:00 | Q4: 2024-01-19T10:26:00 | R4: 2024-01-19T16:44:00 | S4: 2024-01-19T23:09:00
A5: 13 | B5: =IF(Instructions!C2="BST","All Times Local","All Times UTC") -> All Times Local | C5: =INDIRECT("'Tides'!"&ADDRESS(C$2,$A5)) -> State | D5: HW | E5: LW | F5: HW | G5: LW | H5: HW | I5: LW | J5: HW | K5: LW | L5: HW | M5: LW | N5: HW | O5: LW | P5: HW | Q5: LW | R5: HW | S5: LW
A6: 11 | B6: =INDIRECT("'Tides'!"&ADDRESS(B$2,$A6)) -> HOLYHEAD | C6: Time | D6: 43845.06389 | E6: 43845.31389 | F6: 43845.575 | G6: 43845.8375 | H6: 43846.09861 | I6: 43846.35 | J6: 43846.61111 | K6: 43846.875 | L6: 43847.13681 | M6: 43847.38958 | N6: 43847.65069 | O6: 43847.91736 | P6: 43848.18056 | Q6: 43848.43472 | R6: 43848.69722 | S6: 43848.96458
A7: 12 | B7: =INDIRECT("'Tides 2010'!"&ADDRESS(B$2,$A7)) ->  | C7: Ht | D7: 5.37 | E7: 1.08 | F7: 5.77 | G7: 0.84 | H7: 5.17 | I7: 1.28 | J7: 5.53 | K7: 1.11 | L7: 4.93 | M7: 1.54 | N7: 5.25 | O7: 1.41 | P7: 4.72 | Q7: 1.78 | R7: 4.97 | S7: 1.68
A8: 19 | B8: =INDIRECT("'Tides'!"&ADDRESS(B$2,$A8)) -> Beaumaris | C8: Time | D8: 43845.07859 | E8: 43845.34622 | F8: 43845.58924 | G8: 43845.86852 | H8: 43846.11186 | I8: 43846.38032 | J8: 43846.62384 | K8: 43846.90394 | L8: 43847.14847 | M8: 43847.41771 | N8: 43847.66178 | O8: 43847.94394 | P8: 43848.19039 | Q8: 43848.46034 | R8: 43848.70637 | S8: 43848.98924
A9: 20 | B9: =INDIRECT("'Tides 2010'!"&ADDRESS(B$2,$A9)) ->  | C9: Ht | D9: 7.224347826 | E9: 1.280152672 | F9: 7.780869565 | G9: 0.9687022901 | H9: 6.946086957 | I9: 1.539694656 | J9: 7.446956522 | K9: 1.319083969 | L9: 6.612173913 | M9: 1.877099237 | N9: 7.057391304 | O9: 1.708396947 | P9: 6.32 | Q9: 2.188549618 | R9: 6.667826087 | S9: 2.058778626
A10: 21 | B10: =INDIRECT("'Tides'!"&ADDRESS(B$2,$A10)) -> SLACK | C10: Time | D10: 43845.14456 | E10: 43845.41219 | F10: 43845.65521 | G10: 43845.93449 | H10: 43846.17784 | I10: 43846.4463 | J10: 43846.68981 | K10: 43846.96991 | L10: 43847.21444 | M10: 43847.48368 | N10: 43847.72775 | O10: 43848.00992 | P10: 43848.25637 | Q10: 43848.52631 | R10: 43848.77234 | S10: 43849.05521
A11: 22 | B11: =INDIRECT("'Tides'!"&ADDRESS(B$2,$A11)) -> Menai Bridge | C11: Time | D11: 43845.08117 | E11: 43845.32816 | F11: 43845.59167 | G11: 43845.85341 | H11: 43846.11397 | I11: 43846.36678 | J11: 43846.62577 | K11: 43846.89352 | L11: 43847.15004 | M11: 43847.40911 | N11: 43847.66316 | O11: 43847.93882 | P11: 43848.19136 | Q11: 43848.45739 | R11: 43848.7071 | S11: 43848.98845
A12: 23 | B12: =INDIRECT("'Tides 2010'!"&ADDRESS(B$2,$A12)) ->  | C12: Ht | D12: 6.947826087 | E12: 1.151908397 | F12: 7.469565217 | G12: 0.858778626 | H12: 6.686956522 | I12: 1.396183206 | J12: 7.156521739 | K12: 1.188549618 | L12: 6.373913043 | M12: 1.713740458 | N12: 6.791304348 | O12: 1.554961832 | P12: 6.1 | Q12: 2.006870229 | R12: 6.426086957 | S12: 1.884732824
A13: 24 | B13: =INDIRECT("'Tides'!"&ADDRESS(B$2,$A13)) -> Swellies SLACK | C13: Time | D13: =INDIRECT("'Tides'!"&ADDRESS(D$2,$A13)) -> 43845.0125 | E13: 43845.2625 | F13: 43845.52361 | G13: 43845.77361 | H13: 43846.04653 | I13: 43846.29653 | J13: 43846.55833 | K13: 43846.80833 | L13: 43847.08194 | M13: 43847.33194 | N13: 43847.59653 | O13: 43847.84653 | P13: 43848.12222 | Q13: 43848.37222 | R13: 43848.64028 | S13: 43848.89028
A14: 25 | B14: =INDIRECT("'Tides'!"&ADDRESS(B$2,$A14)) -> P'dinorwic | C14: Time | D14: 43845.0517 | E14: 43845.32593 | F14: 43845.5625 | G14: 43845.84757 | H14: 43846.08546 | I14: 43846.35903 | J14: 43846.59761 | K14: 43846.88194 | L14: 43847.12259 | M14: 43847.39531 | N14: 43847.63609 | O14: 43847.92078 | P14: 43848.16512 | Q14: 43848.43669 | R14: 43848.68133 | S14: 43848.9651
A15: 26 | B15: =INDIRECT("'Tides 2010'!"&ADDRESS(B$2,$A15)) ->  | C15: Ht | D15: 5.31826087 | E15: 1.138931298 | F15: 5.735652174 | G15: 0.9190839695 | H15: 5.109565217 | I15: 1.322137405 | J15: 5.485217391 | K15: 1.166412214 | L15: 4.859130435 | M15: 1.560305344 | N15: 5.193043478 | O15: 1.441221374 | P15: 4.64 | Q15: 1.780152672 | R15: 4.900869565 | S15: 1.688549618
A16: 27 | B16: =INDIRECT("'Tides'!"&ADDRESS(B$2,$A16)) -> P.D. SLACK | C16: Time | D16: 43845.04128 | E16: 43845.29144 | F16: 43845.55208 | G16: 43845.81701 | H16: 43846.07504 | I16: 43846.33056 | J16: 43846.58719 | K16: 43846.85764 | L16: 43847.11217 | M16: 43847.37344 | N16: 43847.62568 | O16: 43847.90353 | P16: 43848.15471 | Q16: 43848.42234 | R16: 43848.67091 | S16: 43848.95365
A17: 28 | B17: =INDIRECT("'Tides'!"&ADDRESS(B$2,$A17)) -> Caern'fon | C17: Time | D17: 43845.04306 | E17: 43845.31844 | F17: 43845.55417 | G17: 43845.84074 | H17: 43846.07778 | I17: 43846.35255 | J17: 43846.59028 | K17: 43846.87616 | L17: 43847.11597 | M17: 43847.38993 | N17: 43847.62986 | O17: 43847.91617 | P17: 43848.15972 | Q17: 43848.43256 | R17: 43848.67639 | S17: 43848.96146
A18: 29 | B18: =INDIRECT("'Tides 2010'!"&ADDRESS(B$2,$A18)) ->  | C18: Ht | D18: 4.91826087 | E18: 0.9671755725 | F18: 5.335652174 | G18: 0.7290076336 | H18: 4.709565217 | I18: 1.165648855 | J18: 5.085217391 | K18: 0.9969465649 | L18: 4.459130435 | M18: 1.423664122 | N18: 4.793043478 | O18: 1.294656489 | P18: 4.24 | Q18: 1.661832061 | R18: 4.500869565 | S18: 1.56259542
A19: 30 | B19: =INDIRECT("'Tides'!"&ADDRESS(B$2,$A19)) -> Victoria Dock Gt | C19: Gate | D19: =INDIRECT("'Tides'!"&ADDRESS(D$2,$A19)) -> Opn | E19: Cls | F19: Opn | G19: Cls | H19: Opn | I19: Cls | J19: Opn | K19: Cls | L19: Opn | M19: Cls | N19: Opn | O19: Cls | P19: Opn | Q19: Cls | R19: Opn | S19: Cls
A20: 31 | B20: =INDIRECT("'Tides 2010'!"&ADDRESS(B$2,$A20)) ->  | C20: =INDIRECT("'Tides'!"&ADDRESS(C$2,$A20)) -> Time | D20: 43844.92847 | E20: 43845.15764 | F20: 43845.43958 | G20: 43845.66875 | H20: 43845.96319 | I20: 43846.19236 | J20: 43846.47569 | K20: 43846.70486 | L20: 43847.00139 | M20: 43847.23056 | N20: 43847.51528 | O20: 43847.74444 | P20: 43848.04514 | Q20: 43848.27431 | R20: 43848.56181 | S20: 43848.79097
A21: 32 | B21: =INDIRECT("'Tides'!"&ADDRESS(B$2,$A21)) -> Ft Belan | C21: Time | D21: 43845.04055 | E21: 43845.30239 | F21: 43845.55243 | G21: 43845.82731 | H21: 43846.07768 | I21: 43846.34051 | J21: 43846.59105 | K21: 43846.8669 | L21: 43847.11853 | M21: 43847.38229 | N21: 43847.63338 | O21: 43847.91161 | P21: 43848.16532 | Q21: 43848.42994 | R21: 43848.68314 | S21: 43848.96076
A22: 33 | B22: =INDIRECT("'Tides 2010'!"&ADDRESS(B$2,$A22)) ->  | C22: Ht | D22: 4.34173913 | E22: 0.9389312977 | F22: 4.724347826 | G22: 0.7190839695 | H22: 4.150434783 | I22: 1.122137405 | J22: 4.494782609 | K22: 0.9664122137 | L22: 3.920869565 | M22: 1.360305344 | N22: 4.226956522 | O22: 1.241221374 | P22: 3.72 | Q22: 1.580152672 | R22: 3.959130435 | S22: 1.488549618
A23: 34 | B23: =INDIRECT("'Tides'!"&ADDRESS(B$2,$A23)) -> Llanddwyn | C23: Time | D23: 43845.01535 | E23: 43845.29599 | F23: 43845.52708 | G23: 43845.82025 | H23: 43846.05201 | I23: 43846.3331 | J23: 43846.5652 | K23: 43846.8588 | L23: 43847.09232 | M23: 43847.37378 | N23: 43847.60698 | O23: 43847.90233 | P23: 43848.1385 | Q23: 43848.42018 | R23: 43848.6561 | S23: 43848.95052
A24: 35 | B24: =INDIRECT("'Tides 2010'!"&ADDRESS(B$2,$A24)) ->  | C24: Ht | D24: 4.665217391 | E24: 1.038931298 | F24: 5.013043478 | G24: 0.8190839695 | H24: 4.491304348 | I24: 1.222137405 | J24: 4.804347826 | K24: 1.066412214 | L24: 4.282608696 | M24: 1.460305344 | N24: 4.560869565 | O24: 1.341221374 | P24: 4.1 | Q24: 1.680152672 | R24: 4.317391304 | S24: 1.588549618
A25: 36 | B25: =INDIRECT("'Tides'!"&ADDRESS(B$2,$A25)) -> Trwyn Dimnor | C25: Time | D25: 43845.07948 | E25: 43845.34421 | F25: 43845.59028 | G25: 43845.86684 | H25: 43846.11323 | I25: 43846.37882 | J25: 43846.62539 | K25: 43846.90278 | L25: 43847.15037 | M25: 43847.41675 | N25: 43847.66387 | O25: 43847.94337 | P25: 43848.1929 | Q25: 43848.46001 | R25: 43848.7091 | S25: 43848.98915
A26: 37 | B26: =INDIRECT("'Tides 2010'!"&ADDRESS(B$2,$A26)) ->  | C26: Ht | D26: 7.124347826 | E26: 1.351908397 | F26: 7.680869565 | G26: 1.058778626 | H26: 6.846086957 | I26: 1.596183206 | J26: 7.346956522 | K26: 1.388549618 | L26: 6.512173913 | M26: 1.913740458 | N26: 6.957391304 | O26: 1.754961832 | P26: 6.22 | Q26: 2.206870229 | R26: 6.567826087 | S26: 2.084732824
A27: 38 | B27: =INDIRECT("'Tides'!"&ADDRESS(B$2,$A27)) -> Moelfre | C27: Time | D27: 43845.08036 | E27: 43845.34421 | F27: 43845.59132 | G27: 43845.86684 | H27: 43846.1146 | I27: 43846.37882 | J27: 43846.62693 | K27: 43846.90278 | L27: 43847.15227 | M27: 43847.41675 | N27: 43847.66596 | O27: 43847.94337 | P27: 43848.19541 | Q27: 43848.46001 | R27: 43848.71184 | S27: 43848.98915
A28: 39 | B28: =INDIRECT("'Tides 2010'!"&ADDRESS(B$2,$A28)) ->  | C28: Ht | D28: 7.100869565 | E28: 1.351908397 | F28: 7.692173913 | G28: 1.058778626 | H28: 6.805217391 | I28: 1.596183206 | J28: 7.337391304 | K28: 1.388549618 | L28: 6.450434783 | M28: 1.913740458 | N28: 6.923478261 | O28: 1.754961832 | P28: 6.14 | Q28: 2.206870229 | R28: 6.509565217 | S28: 2.084732824
A29: 40 | B29: =INDIRECT("'Tides'!"&ADDRESS(B$2,$A29)) -> Amlwch | C29: Time | D29: 43845.076 | E29: 43845.33526 | F29: 43845.58681 | G29: 43845.85822 | H29: 43846.10976 | I29: 43846.37037 | J29: 43846.62191 | K29: 43846.89468 | L29: 43847.14689 | M29: 43847.40885 | N29: 43847.6604 | O29: 43847.93586 | P29: 43848.18943 | Q29: 43848.45274 | R29: 43848.70563 | S29: 43848.98212
A30: 41 | B30: =INDIRECT("'Tides 2010'!"&ADDRESS(B$2,$A30)) ->  | C30: Ht | D30: 6.847826087 | E30: 1.351908397 | F30: 7.369565217 | G30: 1.058778626 | H30: 6.586956522 | I30: 1.596183206 | J30: 7.056521739 | K30: 1.388549618 | L30: 6.273913043 | M30: 1.913740458 | N30: 6.691304348 | O30: 1.754961832 | P30: 6 | Q30: 2.206870229 | R30: 6.326086957 | S30: 2.084732824
A31: 42 | B31: =INDIRECT("'Tides'!"&ADDRESS(B$2,$A31)) -> Cemaes | C31: Time | D31: 43845.07867 | E31: 43845.3402 | F31: 43845.58993 | G31: 43845.86348 | H31: 43846.11387 | I31: 43846.37581 | J31: 43846.62654 | K31: 43846.90046 | L31: 43847.15259 | M31: 43847.41484 | N31: 43847.66668 | O31: 43847.94224 | P31: 43848.19695 | Q31: 43848.45936 | R31: 43848.71385 | S31: 43848.98898
A32: 43 | B32: =INDIRECT("'Tides 2010'!"&ADDRESS(B$2,$A32)) ->  | C32: Ht | D32: 6.247826087 | E32: 1.223664122 | F32: 6.769565217 | G32: 0.9488549618 | H32: 5.986956522 | I32: 1.452671756 | J32: 6.456521739 | K32: 1.258015267 | L32: 5.673913043 | M32: 1.750381679 | N32: 6.091304348 | O32: 1.601526718 | P32: 5.4 | Q32: 2.02519084 | R32: 5.726086957 | S32: 1.910687023
A33: 44 | B33: =INDIRECT("'Tides'!"&ADDRESS(B$2,$A33)) -> Skrries SLACK | C33: Time | D33: 43845.05347 | E33: 43845.30347 | F33: 43845.56458 | G33: 43845.82708 | H33: 43846.08819 | I33: 43846.33958 | J33: 43846.60069 | K33: 43846.86458 | L33: 43847.12639 | M33: 43847.37917 | N33: 43847.64028 | O33: 43847.90694 | P33: 43848.17014 | Q33: 43848.42431 | R33: 43848.68681 | S33: 43848.95417
A34: 45 | B34: =INDIRECT("'Tides'!"&ADDRESS(B$2,$A34)) -> Sth.Stck SLACK | C34: Time | D34: 43845.07431 | E34: 43845.32778 | F34: 43845.58542 | G34: 43845.85139 | H34: 43846.10903 | I34: 43846.36389 | J34: 43846.62153 | K34: 43846.88889 | L34: 43847.14722 | M34: 43847.40347 | N34: 43847.66111 | O34: 43847.93125 | P34: 43848.19097 | Q34: 43848.44861 | R34: 43848.70764 | S34: 43848.97847
A35: 46 | B35: =INDIRECT("'Tides'!"&ADDRESS(B$2,$A35)) -> Tr'ddr Bay | C35: Time | D35: 43845.03619 | E35: 43845.30347 | F35: 43845.54792 | G35: 43845.82708 | H35: 43846.07284 | I35: 43846.33958 | J35: 43846.58603 | K35: 43846.86458 | L35: 43847.11316 | M35: 43847.37917 | N35: 43847.62782 | O35: 43847.90694 | P35: 43848.15934 | Q35: 43848.42431 | R35: 43848.67693 | S35: =INDIRECT("'Tides'!"&ADDRESS(S$2,$A35)) -> 43848.95417
A36: 47 | B36: =INDIRECT("'Tides 2010'!"&ADDRESS(B$2,$A36)) ->  | C36: Ht | D36: 4.91826087 | E36: 1.138931298 | F36: 5.335652174 | G36: 0.9190839695 | H36: 4.709565217 | I36: 1.322137405 | J36: 5.085217391 | K36: 1.166412214 | L36: 4.459130435 | M36: 1.560305344 | N36: 4.793043478 | O36: 1.441221374 | P36: 4.24 | Q36: 1.780152672 | R36: 4.500869565 | S36: 1.688549618
A37: 48 | B37: =INDIRECT("'Tides'!"&ADDRESS(B$2,$A37)) -> Porth T'castell | C37: Time | D37: 43845.03619 | E37: 43845.30748 | F37: 43845.54792 | G37: 43845.83044 | H37: 43846.07284 | I37: 43846.34259 | J37: 43846.58603 | K37: 43846.8669 | L37: 43847.11316 | M37: 43847.38108 | N37: 43847.62782 | O37: 43847.90808 | P37: 43848.15934 | Q37: 43848.42496 | R37: 43848.67693 | S37: 43848.95434
A38: 49 | B38: =INDIRECT("'Tides 2010'!"&ADDRESS(B$2,$A38)) ->  | C38: Ht | D38: 4.71826087 | E38: 1.067175573 | F38: 5.135652174 | G38: 0.8290076336 | H38: 4.509565217 | I38: 1.265648855 | J38: 4.885217391 | K38: 1.096946565 | L38: 4.259130435 | M38: 1.523664122 | N38: 4.593043478 | O38: 1.394656489 | P38: 4.04 | Q38: 1.761832061 | R38: 4.300869565 | S38: 1.66259542
A39: 50 | B39: =INDIRECT("'Tides'!"&ADDRESS(B$2,$A39)) -> Trefor | C39: Time | D39: 43845.01447 | E39: 43845.29599 | F39: 43845.52604 | G39: 43845.82025 | H39: 43846.05064 | I39: 43846.3331 | J39: 43846.56366 | K39: 43846.8588 | L39: 43847.09042 | M39: 43847.37378 | N39: 43847.60489 | O39: 43847.90233 | P39: 43848.136 | Q39: 43848.42018 | R39: 43848.65336 | S39: 43848.95052
A40: 51 | B40: =INDIRECT("'Tides 2010'!"&ADDRESS(B$2,$A40)) ->  | C40: Ht | D40: 4.494782609 | E40: 0.9389312977 | F40: 4.946956522 | G40: 0.7190839695 | H40: 4.268695652 | I40: 1.122137405 | J40: 4.675652174 | K40: 0.9664122137 | L40: 3.997391304 | M40: 1.360305344 | N40: 4.359130435 | O40: 1.241221374 | P40: 3.76 | Q40: 1.580152672 | R40: 4.042608696 | S40: 1.488549618
A41: 52 | B41: =INDIRECT("'Tides'!"&ADDRESS(B$2,$A41)) -> Porth Dinllaen | C41: Time | D41: 43845.011 | E41: 43845.29252 | F41: 43845.52257 | G41: 43845.81678 | H41: 43846.04716 | I41: 43846.32963 | J41: 43846.56019 | K41: 43846.85532 | L41: 43847.08695 | M41: 43847.37031 | N41: 43847.60142 | O41: 43847.89886 | P41: 43848.13252 | Q41: 43848.41671 | R41: 43848.64988 | S41: 43848.94705
A42: 53 | B42: =INDIRECT("'Tides 2010'!"&ADDRESS(B$2,$A42)) ->  | C42: Ht | D42: 4.31826087 | E42: 0.8671755725 | F42: 4.735652174 | G42: 0.6290076336 | H42: 4.109565217 | I42: 1.065648855 | J42: 4.485217391 | K42: 0.8969465649 | L42: 3.859130435 | M42: 1.323664122 | N42: 4.193043478 | O42: 1.194656489 | P42: 3.64 | Q42: 1.561832061 | R42: 3.900869565 | S42: 1.46259542
A43: 54 | B43: =INDIRECT("'Tides'!"&ADDRESS(B$2,$A43)) -> Port Ysgaden | C43: Time | D43: 43845.00752 | E43: 43845.28758 | F43: 43845.5191 | G43: 43845.81152 | H43: 43846.04369 | I43: 43846.32419 | J43: 43846.55671 | K43: 43846.84954 | L43: 43847.08348 | M43: 43847.36432 | N43: 43847.59795 | O43: 43847.89249 | P43: 43848.12905 | Q43: 43848.41009 | R43: 43848.64641 | S43: 43848.94019
A44: 55 | B44: =INDIRECT("'Tides 2010'!"&ADDRESS(B$2,$A44)) ->  | C44: Ht | D44: 4.24173913 | E44: 0.9671755725 | F44: 4.624347826 | G44: 0.7290076336 | H44: 4.050434783 | I44: 1.165648855 | J44: 4.394782609 | K44: 0.9969465649 | L44: 3.820869565 | M44: 1.423664122 | N44: 4.126956522 | O44: 1.294656489 | P44: 3.62 | Q44: 1.661832061 | R44: 3.859130435 | S44: 1.56259542
A45: 56 | B45: =INDIRECT("'Tides'!"&ADDRESS(B$2,$A45)) -> Bardsey Is | C45: Time | D45: 43844.96312 | E45: 43845.24244 | F45: 43845.47361 | G45: 43845.76638 | H45: 43845.99591 | I45: 43846.27905 | J45: 43846.50772 | K45: 43846.8044 | L45: 43847.03198 | M45: 43847.31918 | N45: 43847.5451 | O45: 43847.84735 | P45: 43848.0733 | Q45: 43848.36495 | R45: 43848.58904 | S45: 43848.89505
A46: 57 | B46: =INDIRECT("'Tides 2010'!"&ADDRESS(B$2,$A46)) ->  | C46: Ht | D46: 4.11826087 | E46: 0.8541984733 | F46: 4.535652174 | G46: 0.6893129771 | H46: 3.909565217 | I46: 0.9916030534 | J46: 4.285217391 | K46: 0.8748091603 | L46: 3.659130435 | M46: 1.170229008 | N46: 3.993043478 | O46: 1.080916031 | P46: 3.44 | Q46: 1.335114504 | R46: 3.700869565 | S46: 1.266412214
A47: 58 | B47: =INDIRECT("'Tides'!"&ADDRESS(B$2,$A47)) -> Sound SLACK | C47: Time | D47: 43845.05347 | E47: 43845.33819 | F47: 43845.56458 | G47: 43845.86181 | H47: 43846.08819 | I47: 43846.37431 | J47: 43846.60069 | K47: 43846.89931 | L47: 43847.12639 | M47: 43847.41389 | N47: 43847.64028 | O47: 43847.94167 | P47: 43848.17014 | Q47: 43848.45903 | R47: 43848.68681 | S47: 43848.98889
A48: 3
A49: 60 | B49: =INDIRECT("'Tides'!"&ADDRESS(B$2,$A49)) -> L'pool G'stone | C49: Time | D49: 43845.09583 | E49: 43845.37639 | F49: 43845.60694 | G49: 43845.89653 | H49: 43846.12986 | I49: 43846.40833 | J49: 43846.64167 | K49: 43846.93056 | L49: 43847.16528 | M49: 43847.44375 | N49: 43847.67986 | O49: 43847.96875 | P49: 43848.20556 | Q49: 43848.48542 | R49: =INDIRECT("'Tides'!"&ADDRESS(R$2,$A49)) -> 43848.72361 | S49: =INDIRECT("'Tides'!"&ADDRESS(S$2,$A49)) -> 43849.0125
A50: 61 | B50: Dover (approx) | C50: Time | D50: 43845.09514 | E50: 43845.34514 | F50: 43845.60625 | G50: 43845.86875 | H50: 43846.12986 | I50: 43846.38125 | J50: 43846.64236 | K50: 43846.90625 | L50: 43847.16806 | M50: 43847.42083 | N50: 43847.68194 | O50: 43847.94861 | P50: 43848.21181 | Q50: 43848.46597 | R50: =INDIRECT("'Tides'!"&ADDRESS(R$2,$A50)) -> 43848.72847 | S50: =INDIRECT("'Tides'!"&ADDRESS(S$2,$A50)) -> 43848.99583

Sheet Tides
A1: Time | B1: Adjustment to apply | C1: Raw HOLYHEAD DateTime | G1: MHWS | K1: 5.64 | S1: 7.6 | V1: 7.3 | Y1: 5.6 | AB1: 5.2 | AF1: 4.6 | AH1: 4.9 | AJ1: 7.5 | AL1: 7.5 | AN1: 7.2 | AP1: 6.6 | AT1: 5.2 | AV1: 5 | AX1: 4.8 | AZ1: 4.6 | BB1: 4.5 | BD1: 4.4 | BK1: Raw Lpl DateTime | BL1: Lpl Time (local)
G2: MHWN | K2: 4.49 | S2: 6 | V2: 5.8 | X2: vs Lpl | Y2: 4.4 | AB2: 4 | AF2: 3.5 | AH2: 3.9 | AJ2: 5.9 | AL2: 5.8 | AN2: 5.7 | AP2: 5.1 | AT2: 4 | AV2: 3.8 | AX2: 3.5 | AZ2: 3.4 | BB2: 3.4 | BD2: 3.2
A3: BST Offset | G3: MLWN | K3: 2.02 | S3: 2.5 | V3: 2.3 | X3: HW time | Y3: 2 | AB3: 1.9 | AF3: 1.8 | AH3: 1.9 | AJ3: 2.5 | AL3: 2.5 | AN3: 2.5 | AP3: 2.3 | AT3: 2 | AV3: 2 | AX3: 1.8 | AZ3: 1.8 | BB3: 1.9 | BD3: 1.5
G4: MLWS | K4: 0.71 | S4: 0.8 | V4: 0.7 | Y4: 0.8 | AB4: 0.6 | AF4: 0.6 | AH4: 0.7 | AJ4: 0.9 | AL4: 0.9 | AN4: 0.9 | AP4: 0.8 | AT4: 0.8 | AV4: 0.7 | AX4: 0.6 | AZ4: 0.5 | BB4: 0.6 | BD4: 0.6
G5: T Diff HW Sp | K5: @ | L5: 00:00:00 | M5: 12:00:00 | S5: 00:25:00 | U5: 02:00:00 | V5: 00:30:00 | X5: HW slk:- | Y5: -0.01041666667 | AA5: -0.02083333333 | AB5: -0.02083333333 | AF5: -0.02777777778 | AH5: -0.05208333333 | AJ5: 00:25:00 | AL5: 00:25:00 | AN5: 00:20:00 | AP5: 00:20:00 | AR5: -0.01041666667 | AS5: 00:15:00 | AT5: -0.03125 | AV5: -0.03125 | AX5: -0.05208333333 | AZ5: -0.05555555556 | BB5: -0.05902777778 | BD5: -0.09722222222 | BF5: -0.01041666667 | BI5: 00:45:00
G6: T Diff HW Np | K6: @ | L6: 06:00:00 | M6: 18:00:00 | S6: 00:10:00 | U6: 01:45:00 | V6: 00:10:00 | X6: =-0.0416666666666667*2 -> -0.08333333333 | Y6: -0.01736111111 | AA6: -0.02777777778 | AB6: -0.02083333333 | AF6: -0.01041666667 | AH6: -0.03819444444 | AJ6: 00:15:00 | AL6: 00:20:00 | AN6: 00:10:00 | AP6: 00:25:00 | AR6: -0.01041666667 | AS6: 00:15:00 | AT6: -0.01736111111 | AV6: -0.01736111111 | AX6: -0.04166666667 | AZ6: -0.04513888889 | BB6: -0.04861111111 | BD6: -0.1111111111 | BF6: -0.01041666667 | BI6: 00:45:00
G7: T Diff LW Sp | K7: @ | L7: 05:00:00 | M7: 17:00:00 | S7: 00:55:00 | U7: 02:30:00 | V7: 00:10:00 | X7: LW slk:- | Y7: 00:30:00 | AA7: -0.03125 | AB7: 00:15:00 | AD7: +/- HW | AF7: -0.01736111111 | AH7: -0.02083333333 | AJ7: 00:50:00 | AL7: 00:50:00 | AN7: 00:35:00 | AP7: 00:40:00 | AR7: -0.01041666667 | AS7: 00:20:00 | AT7: -0.01041666667 | AV7: -0.003472222222 | AX7: -0.02083333333 | AZ7: -0.02430555556 | BB7: -0.02777777778 | BD7: -0.07291666667 | BF7: 00:35:00 | BI7: 00:45:00
G8: T Diff LW Np | K8: @ | L8: 11:00:00 | M8: 23:00:00 | S8: 00:35:00 | U8: 02:10:00 | V8: 00:35:00 | X8: =0.0416666666666667*4 -> 04:00:00 | Y8: 00:00:00 | AA8: -0.01041666667 | AB8: -0.003472222222 | AD8: 02:45:00 | AF8: -0.003472222222 | AH8: -0.01388888889 | AJ8: 00:35:00 | AL8: 00:35:00 | AN8: 00:25:00 | AP8: 00:35:00 | AR8: -0.01041666667 | AS8: 00:20:00 | AT8: -0.01041666667 | AV8: -0.01041666667 | AX8: -0.01388888889 | AZ8: -0.01736111111 | BB8: -0.02430555556 | BD8: -0.06944444444 | BF8: 00:35:00 | BI8: 00:45:00
G9: Place | K9: HOLYHEAD | S9: Beaumaris | U9: SLACK | V9: Menai Bridge | X9: Swellies SLACK | Y9: P'dinorwic | AA9: P.D. SLACK | AB9: Caern'fon | AD9: Victoria Dock Gt | AF9: Ft Belan | AH9: Llanddwyn | AJ9: Trwyn Dimnor | AL9: Moelfre | AN9: Amlwch | AP9: Cemaes | AR9: Skrries SLACK | AS9: Sth.Stck SLACK | AT9: Tr'ddr Bay | AV9: Porth T'castell | AX9: Trefor | AZ9: Porth Dinllaen | BB9: Port Ysgaden | BD9: Bardsey Is | BF9: Sound SLACK | BH9: L'pool G'stone | BI9: Dover (approx)
K10: =$A$1 -> Time | L10: Ht | M10: State | N10: %SpHt | O10: Time | P10: SpTm | Q10: NpTm | R10: %SpTm | S10: Time | T10: Ht | U10: Time | V10: Time | W10: Ht | X10: Time | Y10: Time | Z10: Ht | AA10: Time | AB10: Time | AC10: Ht | AD10: Gate | AE10: Time | AF10: Time | AG10: Ht | AH10: Time | AI10: Ht | AJ10: Time | AK10: Ht | AL10: Time | AM10: Ht | AN10: Time | AO10: Ht | AP10: Time | AQ10: Ht | AR10: Time | AS10: Time | AT10: Time | AU10: Ht | AV10: Time | AW10: Ht | AX10: Time | AY10: Ht | AZ10: Time | BA10: Ht | BB10: Time | BC10: Ht | BD10: Time | BE10: Ht | BF10: Time | BH10: Time | BI10: Time
A11: 0 | B11: =IF(Instructions!$C$2="BST",A11,0) -> 0 | C11: 2024-01-01T01:16:00 | D11: =DATE(YEAR(K11),MONTH(K11),DAY(K11)) -> 2024-01-01 | E11: =IF(D11=D10,IF(J10="","",J10),D11) -> 2024-01-01 | F11: =MONTH(K11) -> 1 | G11: =IF(H11="","",TEXT(F11*29,"mmm")) -> Jan | H11: =IF(I11=I10,"",DAY(K11)) -> 1 | I11: =WEEKDAY(K11,2) -> 1 | J11: =IF(I11=I10,"",TEXT(I11+2,"ddd")) -> Mon | K11: =C11+B11/24 -> 43830.05278 | L11: 4.86 | M11: HW | N11: =IF(M11="HW",(L11-K$2)/(K$1-K$2),(L11-K$3)/(K$4-K$3)) -> 0.3217391304 | O11: =C11-INT(C11) -> 01:16:00 | P11: =IF(M11="HW",IF(AND(O11>=L$5,O11<L$6),L$5,IF(AND(O11>=L$6,O11<M$5),M$5,IF(AND(O11>=M$5,O11<M$6),M$5,IF(O11>=M$6,L$5+1,L$5)))),IF(AND(O11>=L$7,O11<L$8),L$7,IF(AND(O11>=L$8,O11<M$7),M$7,IF(AND(O11>=M$7,O11<M$8),M$7,IF(O11>=M$8,L$7+1,L$7))))) -> 00:00:00 | Q11: =IF(M11="HW",IF(AND(O11>=L$5,O11<L$6),L$6,IF(AND(O11>=L$6,O11<M$5),L$6,IF(AND(O11>=M$5,O11<M$6),M$6,IF(O11>=M$6,M$6,M$6-1)))),IF(AND(O11>=L$7,O11<L$8),L$8,IF(AND(O11>=L$8,O11<M$7),L$8,IF(AND(O11>=M$7,O11<M$8),M$8,IF(O11>=M$8,M$8,M$8-1))))) -> 06:00:00 | R11: =ABS((O11-Q11)/(P11-Q11)) -> 0.7888888889 | S11: =IF($M11="HW",$K11+S$6+(S$5-S$6)*$R11,$K11+S$8+(S$7-S$8)*$R11) -> 43830.06794 | T11: =IF($M11="HW",S$2+(S$1-S$2)*$N11,S$3+(S$4-S$3)*$N11) -> 6.514782609 | U11: 43830.13391 | V11: 43830.07068 | W11: =IF($M11="HW",V$2+(V$1-V$2)*$N11,V$3+(V$4-V$3)*$N11) -> 6.282608696 | X11: =IF($M11="HW",$BL11+X$6,$K11-1/24) -> 43830.00278 | Y11: =IF($M11="HW",$K11+Y$6+(Y$5-Y$6)*$R11,$K11+Y$8+(Y$7-Y$8)*$R11) -> 43830.0409 | Z11: =IF($M11="HW",Y$2+(Y$1-Y$2)*$N11,Y$3+(Y$4-Y$3)*$N11) -> 4.786086957 | AA11: =IF($M11="HW",$K11+AA$6+(AA$5-AA$6)*$R11,$K11+AA$8+(AA$7-AA$8)*$R11) -> 43830.03048 | AB11: =IF($M11="HW",$K11+AB$6+(AB$5-AB$6)*$R11,$K11+AB$8+(AB$7-AB$8)*$R11) -> 43830.03194 | AC11: =IF($M11="HW",AB$2+(AB$1-AB$2)*$N11,AB$3+(AB$4-AB$3)*$N11) -> 4.386086957 | AD11: =IF($M11="HW","Opn","Cls") -> Opn | AE11: =IF($M11="HW",$AB11-AD$8,IF($AB10="HW",$AB11+AD$8,"?")) -> 43829.91736 | AF11: =IF($M11="HW",$K11+AF$6+(AF$5-AF$6)*$R11,$K11+AF$8+(AF$7-AF$8)*$R11) -> 43830.02867 | AG11: =IF($M11="HW",AF$2+(AF$1-AF$2)*$N11,AF$3+(AF$4-AF$3)*$N11) -> 3.853913043 | AH11: =IF($M11="HW",$K11+AH$6+(AH$5-AH$6)*$R11,$K11+AH$8+(AH$7-AH$8)*$R11) -> 43830.00363 | AI11: =IF($M11="HW",AH$2+(AH$1-AH$2)*$N11,AH$3+(AH$4-AH$3)*$N11) -> 4.22173913 | AJ11: =IF($M11="HW",$K11+AJ$6+(AJ$5-AJ$6)*$R11,$K11+AJ$8+(AJ$7-AJ$8)*$R11) -> 43830.06867 | AK11: =IF($M11="HW",AJ$2+(AJ$1-AJ$2)*$N11,AJ$3+(AJ$4-AJ$3)*$N11) -> 6.414782609 | AL11: =IF($M11="HW",$K11+AL$6+(AL$5-AL$6)*$R11,$K11+AL$8+(AL$7-AL$8)*$R11) -> 43830.06941 | AM11: =IF($M11="HW",AL$2+(AL$1-AL$2)*$N11,AL$3+(AL$4-AL$3)*$N11) -> 6.346956522 | AN11: =IF($M11="HW",$K11+AN$6+(AN$5-AN$6)*$R11,$K11+AN$8+(AN$7-AN$8)*$R11) -> 43830.0652 | AO11: =IF($M11="HW",AN$2+(AN$1-AN$2)*$N11,AN$3+(AN$4-AN$3)*$N11) -> 6.182608696 | AP11: =IF($M11="HW",$K11+AP$6+(AP$5-AP$6)*$R11,$K11+AP$8+(AP$7-AP$8)*$R11) -> 43830.0674 | AQ11: =IF($M11="HW",AP$2+(AP$1-AP$2)*$N11,AP$3+(AP$4-AP$3)*$N11) -> 5.582608696 | AR11: =IF($M11="HW",$K11+AR$6+(AR$5-AR$6)*$R11,$K11+AR$8+(AR$7-AR$8)*$R11) -> 43830.04236 | AS11: 43830.06319 | AT11: =IF($M11="HW",$K11+AT$6+(AT$5-AT$6)*$R11,$K11+AT$8+(AT$7-AT$8)*$R11) -> 43830.02446 | AU11: =IF($M11="HW",AT$2+(AT$1-AT$2)*$N11,AT$3+(AT$4-AT$3)*$N11) -> 4.386086957 | AV11: =IF($M11="HW",$K11+AV$6+(AV$5-AV$6)*$R11,$K11+AV$8+(AV$7-AV$8)*$R11) -> 43830.02446 | AW11: =IF($M11="HW",AV$2+(AV$1-AV$2)*$N11,AV$3+(AV$4-AV$3)*$N11) -> 4.186086957 | AX11: =IF($M11="HW",$K11+AX$6+(AX$5-AX$6)*$R11,$K11+AX$8+(AX$7-AX$8)*$R11) -> 43830.00289 | AY11: =IF($M11="HW",AX$2+(AX$1-AX$2)*$N11,AX$3+(AX$4-AX$3)*$N11) -> 3.91826087 | AZ11: =IF($M11="HW",$K11+AZ$6+(AZ$5-AZ$6)*$R11,$K11+AZ$8+(AZ$7-AZ$8)*$R11) -> 43829.99942 | BA11: =IF($M11="HW",AZ$2+(AZ$1-AZ$2)*$N11,AZ$3+(AZ$4-AZ$3)*$N11) -> 3.786086957 | BB11: =IF($M11="HW",$K11+BB$6+(BB$5-BB$6)*$R11,$K11+BB$8+(BB$7-BB$8)*$R11) -> 43829.99595 | BC11: =IF($M11="HW",BB$2+(BB$1-BB$2)*$N11,BB$3+(BB$4-BB$3)*$N11) -> 3.753913043 | BD11: =IF($M11="HW",$K11+BD$6+(BD$5-BD$6)*$R11,$K11+BD$8+(BD$7-BD$8)*$R11) -> 43829.95262 | BE11: =IF($M11="HW",BD$2+(BD$1-BD$2)*$N11,BD$3+(BD$4-BD$3)*$N11) -> 3.586086957 | BF11: =IF($M11="HW",$K11+BF$6+(BF$5-BF$6)*$R11,$K11+BF$8+(BF$7-BF$8)*$R11) -> 43830.04236 | BH11: =BL11 -> 43830.08611 | BI11: 43830.08403 | BK11: 2024-01-01T02:04:00 | BL11: =BK11+B11/24 -> 43830.08611
A12: 0 | B12: =IF(Instructions!$C$2="BST",A12,0) -> 0 | C12: 2024-01-01T07:12:00 | D12: 2024-01-01 | E12: Mon | F12: =MONTH(K12) -> 1 | G12: =IF(H12="","",TEXT(F12*29,"mmm")) ->  | H12: =IF(I12=I11,"",DAY(K12)) ->  | I12: 1 | J12: =IF(I12=I11,"",TEXT(I12+2,"ddd")) ->  | K12: 43830.3 | L12: 1.77 | M12: LW | N12: 0.1908396947 | O12: 07:12:00 | P12: 05:00:00 | Q12: 11:00:00 | R12: =ABS((O12-Q12)/(P12-Q12)) -> 0.6333333333 | S12: 43830.3331 | T12: 2.175572519 | U12: 43830.39907 | V12: 43830.31331 | W12: 1.994656489 | X12: =IF($M12="HW",$BK12+X$6+$B12/24,$BK11+4/24+$B12/24) -> 43830.25278 | Y12: 43830.31319 | Z12: =IF($M12="HW",Y$2+(Y$1-Y$2)*$N12,Y$3+(Y$4-Y$3)*$N12) -> 1.770992366 | AA12: 43830.27639 | AB12: 43830.30532 | AC12: =IF($M12="HW",AB$2+(AB$1-AB$2)*$N12,AB$3+(AB$4-AB$3)*$N12) -> 1.651908397 | AD12: Cls | AE12: =IF($M12="HW",$AB12-AD$8,$AB11+AD$8) -> 43830.14653 | AF12: 43830.28773 | AG12: =IF($M12="HW",AF$2+(AF$1-AF$2)*$N12,AF$3+(AF$4-AF$3)*$N12) -> 1.570992366 | AH12: 43830.28171 | AI12: =IF($M12="HW",AH$2+(AH$1-AH$2)*$N12,AH$3+(AH$4-AH$3)*$N12) -> 1.670992366 | AJ12: 43830.3309 | AK12: =IF($M12="HW",AJ$2+(AJ$1-AJ$2)*$N12,AJ$3+(AJ$4-AJ$3)*$N12) -> 2.194656489 | AL12: 43830.3309 | AM12: =IF($M12="HW",AL$2+(AL$1-AL$2)*$N12,AL$3+(AL$4-AL$3)*$N12) -> 2.194656489 | AN12: 43830.32176 | AO12: =IF($M12="HW",AN$2+(AN$1-AN$2)*$N12,AN$3+(AN$4-AN$3)*$N12) -> 2.194656489 | AP12: 43830.3265 | AQ12: =IF($M12="HW",AP$2+(AP$1-AP$2)*$N12,AP$3+(AP$4-AP$3)*$N12) -> 2.013740458 | AR12: 43830.28958 | AS12: 43830.31389 | AT12: 43830.28958 | AU12: =IF($M12="HW",AT$2+(AT$1-AT$2)*$N12,AT$3+(AT$4-AT$3)*$N12) -> 1.770992366 | AV12: 43830.29398 | AW12: =IF($M12="HW",AV$2+(AV$1-AV$2)*$N12,AV$3+(AV$4-AV$3)*$N12) -> 1.751908397 | AX12: 43830.28171 | AY12: =IF($M12="HW",AX$2+(AX$1-AX$2)*$N12,AX$3+(AX$4-AX$3)*$N12) -> 1.570992366 | AZ12: 43830.27824 | BA12: =IF($M12="HW",AZ$2+(AZ$1-AZ$2)*$N12,AZ$3+(AZ$4-AZ$3)*$N12) -> 1.551908397 | BB12: 43830.2735 | BC12: =IF($M12="HW",BB$2+(BB$1-BB$2)*$N12,BB$3+(BB$4-BB$3)*$N12) -> 1.651908397 | BD12: 43830.22836 | BE12: =IF($M12="HW",BD$2+(BD$1-BD$2)*$N12,BD$3+(BD$4-BD$3)*$N12) -> 1.328244275 | BF12: 43830.32431 | BH12: =BL12 -> 43830.35139 | BI12: 43830.33125 | BK12: 2024-01-01T08:26:00 | BL12: 43830.35139
A13: 0 | B13: =IF(Instructions!$C$2="BST",A13,0) -> 0 | C13: 2024-01-01T13:27:00 | D13: 2024-01-01 | F13: 1 | I13: 1 | K13: 43830.56042 | L13: 5.17 | M13: HW | N13: 0.5913043478 | O13: 13:27:00 | P13: 12:00:00 | Q13: 18:00:00 | R13: 0.7583333333 | S13: 43830.57526 | T13: 6.946086957 | U13: 43830.64123 | V13: 43830.57789 | W13: 6.686956522 | X13: 43830.50764 | Y13: 43830.54832 | Z13: 5.109565217 | AA13: 43830.53791 | AB13: 43830.53958 | AC13: 4.709565217 | AD13: Opn | AE13: 43830.425 | AF13: 43830.53683 | AG13: 4.150434783 | AH13: 43830.51169 | AI13: 4.491304348 | AJ13: 43830.5761 | AK13: 6.846086957 | AL13: 43830.57694 | AM13: 6.805217391 | AN13: 43830.57263 | AO13: 6.586956522 | AP13: 43830.57514 | AQ13: 5.986956522 | AR13: 43830.55 | AS13: 43830.57083 | AT13: 43830.53252 | AU13: 4.709565217 | AV13: 43830.53252 | AW13: 4.509565217 | AX13: 43830.51085 | AY13: 4.268695652 | AZ13: 43830.50738 | BA13: 4.109565217 | BB13: 43830.50391 | BC13: 4.050434783 | BD13: 43830.45984 | BE13: 3.909565217 | BF13: 43830.55 | BH13: 43830.59097 | BI13: 43830.59167 | BK13: 2024-01-01T14:11:00 | BL13: 43830.59097
A14: 0 | B14: =IF(Instructions!$C$2="BST",A14,0) -> 0 | C14: 2024-01-01T19:49:00 | D14: 2024-01-01 | F14: 1 | I14: 1 | J14: =IF(I14=I13,"",TEXT(I14+2,"ddd")) ->  | K14: 43830.82569 | L14: 1.61 | M14: LW | N14: 0.3129770992 | O14: 19:49:00 | P14: 17:00:00 | Q14: 23:00:00 | R14: 0.5305555556 | S14: 43830.85737 | T14: 1.967938931 | U14: 43830.92334 | V14: 43830.84079 | W14: 1.799236641 | X14: 43830.75764 | Y14: 43830.83675 | Z14: =IF($M14="HW",Y$2+(Y$1-Y$2)*$N14,Y$3+(Y$4-Y$3)*$N14) -> 1.624427481 | AA14: 43830.80422 | AB14: 43830.82959 | AC14: =IF($M14="HW",AB$2+(AB$1-AB$2)*$N14,AB$3+(AB$4-AB$3)*$N14) -> 1.493129771 | AD14: Cls | AE14: 43830.65417 | AF14: 43830.81485 | AG14: =IF($M14="HW",AF$2+(AF$1-AF$2)*$N14,AF$3+(AF$4-AF$3)*$N14) -> 1.424427481 | AH14: 43830.80812 | AI14: =IF($M14="HW",AH$2+(AH$1-AH$2)*$N14,AH$3+(AH$4-AH$3)*$N14) -> 1.524427481 | AJ14: 43830.85553 | AK14: =IF($M14="HW",AJ$2+(AJ$1-AJ$2)*$N14,AJ$3+(AJ$4-AJ$3)*$N14) -> 1.999236641 | AL14: 43830.85553 | AM14: =IF($M14="HW",AL$2+(AL$1-AL$2)*$N14,AL$3+(AL$4-AL$3)*$N14) -> 1.999236641 | AN14: 43830.84674 | AO14: =IF($M14="HW",AN$2+(AN$1-AN$2)*$N14,AN$3+(AN$4-AN$3)*$N14) -> 1.999236641 | AP14: 43830.85184 | AQ14: =IF($M14="HW",AP$2+(AP$1-AP$2)*$N14,AP$3+(AP$4-AP$3)*$N14) -> 1.830534351 | AR14: 43830.81528 | AS14: 43830.83958 | AT14: 43830.81528 | AU14: =IF($M14="HW",AT$2+(AT$1-AT$2)*$N14,AT$3+(AT$4-AT$3)*$N14) -> 1.624427481 | AV14: 43830.81896 | AW14: =IF($M14="HW",AV$2+(AV$1-AV$2)*$N14,AV$3+(AV$4-AV$3)*$N14) -> 1.593129771 | AX14: 43830.80812 | AY14: =IF($M14="HW",AX$2+(AX$1-AX$2)*$N14,AX$3+(AX$4-AX$3)*$N14) -> 1.424427481 | AZ14: 43830.80465 | BA14: =IF($M14="HW",AZ$2+(AZ$1-AZ$2)*$N14,AZ$3+(AZ$4-AZ$3)*$N14) -> 1.393129771 | BB14: 43830.79955 | BC14: =IF($M14="HW",BB$2+(BB$1-BB$2)*$N14,BB$3+(BB$4-BB$3)*$N14) -> 1.493129771 | BD14: 43830.75441 | BE14: =IF($M14="HW",BD$2+(BD$1-BD$2)*$N14,BD$3+(BD$4-BD$3)*$N14) -> 1.218320611 | BF14: 43830.85 | BH14: 43830.87639 | BI14: 43830.85694 | BK14: 2024-01-01T21:02:00 | BL14: 43830.87639
A15: 0 | B15: =IF(Instructions!$C$2="BST",A15,0) -> 0 | C15: 2024-01-02T01:56:00 | D15: 2024-01-02 | E15: 2024-01-02 | F15: 1 | G15: Jan | H15: 2 | I15: 2 | J15: Tue | K15: 43831.08056 | L15: 4.72 | M15: HW | N15: 0.2 | O15: 01:56:00 | P15: 00:00:00 | Q15: 06:00:00 | R15: 0.6777777778 | S15: 43831.09456 | T15: 6.32 | U15: 43831.16053 | V15: 43831.09691 | W15: 6.1 | X15: 43831.02986 | Y15: 43831.0679 | Z15: 4.64 | AA15: 43831.05748 | AB15: 43831.05972 | AC15: 4.24 | AD15: Opn | AE15: 43830.94514 | AF15: 43831.05837 | AG15: 3.72 | AH15: 43831.03295 | AI15: 4.1 | AJ15: 43831.09568 | AK15: 6.22 | AL15: 43831.0968 | AM15: 6.14 | AN15: 43831.09221 | AO15: 6 | AP15: 43831.09556 | AQ15: 5.4 | AR15: 43831.07014 | AS15: 43831.09097 | AT15: 43831.05378 | AU15: 4.24 | AV15: 43831.05378 | AW15: 4.04 | AX15: 43831.03183 | AY15: 3.76 | AZ15: 43831.02836 | BA15: 3.64 | BB15: 43831.02488 | BC15: 3.62 | BD15: 43830.97886 | BE15: 3.44 | BF15: 43831.07014 | BH15: 43831.11319 | BI15: 43831.11181 | BK15: 2024-01-02T02:43:00 | BL15: 43831.11319
A16: 0 | B16: =IF(Instructions!$C$2="BST",A16,0) -> 0 | C16: 2024-01-02T07:51:00 | D16: 2024-01-02 | E16: Tue | F16: 1 | I16: 2 | K16: 43831.32708 | L16: 1.93 | M16: LW | N16: 0.06870229008 | O16: 07:51:00 | P16: 05:00:00 | Q16: 11:00:00 | R16: 0.525 | S16: 43831.35868 | T16: 2.383206107 | U16: 43831.42465 | V16: 43831.34227 | W16: 2.190076336 | X16: 43831.27986 | Y16: 43831.33802 | Z16: 1.917557252 | AA16: 43831.30573 | AB16: 43831.3309 | AC16: 1.810687023 | AD16: Cls | AE16: 43831.17431 | AF16: 43831.31632 | AG16: 1.717557252 | AH16: 43831.30955 | AI16: 1.817557252 | AJ16: 43831.35686 | AK16: 2.390076336 | AL16: 43831.35686 | AM16: 2.390076336 | AN16: 43831.34809 | AO16: 2.390076336 | AP16: 43831.35321 | AQ16: 2.196946565 | AR16: 43831.31667 | AS16: 43831.34097 | AT16: 43831.31667 | AU16: 1.917557252 | AV16: 43831.32031 | AW16: 1.910687023 | AX16: 43831.30955 | AY16: 1.717557252 | AZ16: 43831.30608 | BA16: 1.710687023 | BB16: 43831.30095 | BC16: 1.810687023 | BD16: 43831.25582 | BE16: 1.438167939 | BF16: 43831.35139 | BH16: 43831.37569 | BI16: 43831.35833 | BK16: 2024-01-02T09:01:00 | BL16: 43831.37569
A17: 0 | B17: =IF(Instructions!$C$2="BST",A17,0) -> 0 | C17: 2024-01-02T14:07:00 | D17: 2024-01-02 | F17: 1 | I17: 2 | K17: 43831.58819 | L17: 5.01 | M17: HW | N17: 0.452173913 | O17: 14:07:00 | P17: 12:00:00 | Q17: 18:00:00 | R17: 0.6472222222 | S17: 43831.60188 | T17: 6.723478261 | U17: 43831.66785 | V17: 43831.60413 | W17: 6.47826087 | X17: 43831.53472 | Y17: 43831.57533 | Z17: 4.942608696 | AA17: 43831.56491 | AB17: 43831.56736 | AC17: 4.542608696 | AD17: Opn | AE17: 43831.45278 | AF17: 43831.56654 | AG17: 3.997391304 | AH17: 43831.54101 | AI17: 4.352173913 | AJ17: 43831.60311 | AK17: 6.623478261 | AL17: 43831.60433 | AM17: 6.568695652 | AN17: 43831.59963 | AO17: 6.37826087 | AP17: 43831.60331 | AQ17: 5.77826087 | AR17: 43831.57778 | AS17: 43831.59861 | AT17: 43831.56184 | AU17: 4.542608696 | AV17: 43831.56184 | AW17: 4.342608696 | AX17: 43831.53979 | AY17: 4.087826087 | AZ17: 43831.53631 | BA17: 3.942608696 | BB17: 43831.53284 | BC17: 3.897391304 | BD17: 43831.48607 | BE17: 3.742608696 | BF17: 43831.57778 | BH17: 43831.61806 | BI17: 43831.61944 | BK17: 2024-01-02T14:50:00 | BL17: 43831.61806
A18: 0 | B18: =IF(Instructions!$C$2="BST",A18,0) -> 0 | C18: 2024-01-02T20:31:00 | D18: 2024-01-02 | F18: 1 | I18: 2 | K18: 43831.85486 | L18: 1.76 | M18: LW | N18: 0.1984732824 | O18: 20:31:00 | P18: 17:00:00 | Q18: 23:00:00 | R18: 0.4138888889 | S18: 43831.88492 | T18: 2.16259542 | U18: 43831.95089 | V18: 43831.87198 | W18: 1.982442748 | X18: 43831.78472 | Y18: 43831.86348 | Z18: =IF($M18="HW",Y$2+(Y$1-Y$2)*$N18,Y$3+(Y$4-Y$3)*$N18) -> 1.761832061 | AA18: 43831.83582 | AB18: 43831.85714 | AC18: =IF($M18="HW",AB$2+(AB$1-AB$2)*$N18,AB$3+(AB$4-AB$3)*$N18) -> 1.641984733 | AD18: Cls | AE18: 43831.68194 | AF18: 43831.84564 | AG18: =IF($M18="HW",AF$2+(AF$1-AF$2)*$N18,AF$3+(AF$4-AF$3)*$N18) -> 1.561832061 | AH18: 43831.8381 | AI18: =IF($M18="HW",AH$2+(AH$1-AH$2)*$N18,AH$3+(AH$4-AH$3)*$N18) -> 1.661832061 | AJ18: 43831.88348 | AK18: =IF($M18="HW",AJ$2+(AJ$1-AJ$2)*$N18,AJ$3+(AJ$4-AJ$3)*$N18) -> 2.182442748 | AL18: 43831.88348 | AM18: =IF($M18="HW",AL$2+(AL$1-AL$2)*$N18,AL$3+(AL$4-AL$3)*$N18) -> 2.182442748 | AN18: 43831.8751 | AO18: =IF($M18="HW",AN$2+(AN$1-AN$2)*$N18,AN$3+(AN$4-AN$3)*$N18) -> 2.182442748 | AP18: 43831.8806 | AQ18: =IF($M18="HW",AP$2+(AP$1-AP$2)*$N18,AP$3+(AP$4-AP$3)*$N18) -> 2.002290076 | AR18: 43831.84444 | AS18: 43831.86875 | AT18: 43831.84444 | AU18: =IF($M18="HW",AT$2+(AT$1-AT$2)*$N18,AT$3+(AT$4-AT$3)*$N18) -> 1.761832061 | AV18: 43831.84732 | AW18: =IF($M18="HW",AV$2+(AV$1-AV$2)*$N18,AV$3+(AV$4-AV$3)*$N18) -> 1.741984733 | AX18: 43831.8381 | AY18: =IF($M18="HW",AX$2+(AX$1-AX$2)*$N18,AX$3+(AX$4-AX$3)*$N18) -> 1.561832061 | AZ18: 43831.83463 | BA18: =IF($M18="HW",AZ$2+(AZ$1-AZ$2)*$N18,AZ$3+(AZ$4-AZ$3)*$N18) -> 1.541984733 | BB18: 43831.82912 | BC18: =IF($M18="HW",BB$2+(BB$1-BB$2)*$N18,BB$3+(BB$4-BB$3)*$N18) -> 1.641984733 | BD18: 43831.78398 | BE18: =IF($M18="HW",BD$2+(BD$1-BD$2)*$N18,BD$3+(BD$4-BD$3)*$N18) -> 1.321374046 | BF18: 43831.87917 | BH18: 43831.90278 | BI18: 43831.88611 | BK18: 2024-01-02T21:40:00 | BL18: 43831.90278
A19: 0 | B19: =IF(Instructions!$C$2="BST",A19,0) -> 0 | C19: 2024-01-03T02:40:00 | D19: 2024-01-03 | E19: 2024-01-03 | F19: 1 | G19: Jan | H19: 3 | I19: 3 | J19: Wed | K19: 43832.11111 | L19: 4.59 | M19: HW | N19: 0.08695652174 | O19: 02:40:00 | P19: 00:00:00 | Q19: 06:00:00 | R19: 0.5555555556 | S19: 43832.12384 | T19: 6.139130435 | U19: 43832.18981 | V19: 43832.12577 | W19: 5.930434783 | X19: 43832.05903 | Y19: 43832.09761 | Z19: 4.504347826 | AA19: 43832.08719 | AB19: 43832.09028 | AC19: 4.104347826 | AD19: Opn | AE19: 43831.97569 | AF19: 43832.09105 | AG19: 3.595652174 | AH19: 43832.0652 | AI19: 3.986956522 | AJ19: 43832.12539 | AK19: 6.039130435 | AL19: 43832.12693 | AM19: 5.947826087 | AN19: 43832.12191 | AO19: 5.830434783 | AP19: 43832.12654 | AQ19: 5.230434783 | AR19: 43832.10069 | AS19: 43832.12153 | AT19: 43832.08603 | AU19: 4.104347826 | AV19: 43832.08603 | AW19: 3.904347826 | AX19: 43832.06366 | AY19: 3.613043478 | AZ19: 43832.06019 | BA19: 3.504347826 | BB19: 43832.05671 | BC19: 3.495652174 | BD19: 43832.00772 | BE19: 3.304347826 | BF19: 43832.10069 | BH19: 43832.14236 | BI19: 43832.14236 | BK19: 2024-01-03T03:25:00 | BL19: 43832.14236
A20: 0 | B20: =IF(Instructions!$C$2="BST",A20,0) -> 0 | C20: 2024-01-03T08:35:00 | D20: 2024-01-03 | E20: Wed | F20: 1 | I20: 3 | K20: 43832.35764 | L20: 2.09 | M20: LW | N20: -0.0534351145 | O20: 08:35:00 | P20: 05:00:00 | Q20: 11:00:00 | R20: 0.4027777778 | S20: 43832.38754 | T20: 2.590839695 | U20: 43832.45351 | V20: 43832.37495 | W20: 2.385496183 | X20: 43832.30903 | Y20: 43832.36603 | Z20: 2.064122137 | AA20: 43832.33883 | AB20: 43832.35976 | AC20: 1.969465649 | AD20: Cls | AE20: 43832.20486 | AF20: 43832.34857 | AG20: 1.864122137 | AH20: 43832.34095 | AI20: 1.964122137 | AJ20: 43832.38614 | AK20: 2.585496183 | AL20: 43832.38614 | AM20: 2.585496183 | AN20: 43832.3778 | AO20: 2.585496183 | AP20: 43832.38334 | AQ20: 2.380152672 | AR20: 43832.34722 | AS20: 43832.37153 | AT20: 43832.34722 | AU20: 2.064122137 | AV20: 43832.35002 | AW20: 2.069465649 | AX20: 43832.34095 | AY20: 1.864122137 | AZ20: 43832.33748 | BA20: 1.869465649 | BB20: 43832.33193 | BC20: 1.969465649 | BD20: 43832.2868 | BE20: 1.548091603 | BF20: 43832.38194 | BH20: 43832.40486 | BI20: 43832.38889 | BK20: 2024-01-03T09:43:00 | BL20: 43832.40486
A21: 0 | B21: =IF(Instructions!$C$2="BST",A21,0) -> 0 | C21: 2024-01-03T14:51:00 | D21: 2024-01-03 | F21: 1 | I21: 3 | K21: 43832.61875 | L21: 4.84 | M21: HW | N21: 0.3043478261 | O21: 14:51:00 | P21: 12:00:00 | Q21: 18:00:00 | R21: 0.525 | S21: 43832.63116 | T21: 6.486956522 | U21: 43832.69714 | V21: 43832.63299 | W21: 6.256521739 | X21: 43832.56458 | Y21: 43832.60503 | Z21: 4.765217391 | AA21: 43832.59462 | AB21: 43832.59792 | AC21: 4.365217391 | AD21: Opn | AE21: 43832.48333 | AF21: 43832.59922 | AG21: 3.834782609 | AH21: 43832.57326 | AI21: 4.204347826 | AJ21: 43832.63281 | AK21: 6.386956522 | AL21: 43832.63446 | AM21: 6.317391304 | AN21: 43832.62934 | AO21: 6.156521739 | AP21: 43832.63429 | AQ21: 5.556521739 | AR21: 43832.60833 | AS21: 43832.62917 | AT21: 43832.5941 | AU21: 4.365217391 | AV21: 43832.5941 | AW21: 4.165217391 | AX21: 43832.57161 | AY21: 3.895652174 | AZ21: 43832.56814 | BA21: 3.765217391 | BB21: 43832.56467 | BC21: 3.734782609 | BD21: 43832.51493 | BE21: 3.565217391 | BF21: 43832.60833 | BH21: 43832.64792 | BI21: 43832.65 | BK21: 2024-01-03T15:33:00 | BL21: 43832.64792
A22: 0 | B22: =IF(Instructions!$C$2="BST",A22,0) -> 0 | C22: 2024-01-03T21:18:00 | D22: 2024-01-03 | F22: 1 | I22: 3 | K22: 43832.8875 | L22: 1.91 | M22: LW | N22: 0.08396946565 | O22: 21:18:00 | P22: 17:00:00 | Q22: 23:00:00 | R22: 0.2833333333 | S22: 43832.91574 | T22: 2.357251908 | U22: 43832.98171 | V22: 43832.90689 | W22: 2.165648855 | X22: 43832.81458 | Y22: 43832.8934 | Z22: 1.899236641 | AA22: 43832.87118 | AB22: 43832.88796 | AC22: 1.790839695 | AD22: Cls | AE22: 43832.7125 | AF22: 43832.88009 | AG22: 1.699236641 | AH22: 43832.87164 | AI22: 1.799236641 | AJ22: 43832.91476 | AK22: 2.365648855 | AL22: 43832.91476 | AM22: 2.365648855 | AN22: 43832.90683 | AO22: 2.365648855 | AP22: 43832.91279 | AQ22: 2.174045802 | AR22: 43832.87708 | AS22: 43832.90139 | AT22: 43832.87708 | AU22: 1.899236641 | AV22: 43832.87905 | AW22: 1.890839695 | AX22: 43832.87164 | AY22: 1.699236641 | AZ22: 43832.86817 | BA22: 1.690839695 | BB22: 43832.86221 | BC22: 1.790839695 | BD22: 43832.81707 | BE22: 1.424427481 | BF22: 43832.91181 | BH22: 43832.93403 | BI22: 43832.91875 | BK22: 2024-01-03T22:25:00 | BL22: 43832.93403
A23: 0 | B23: =IF(Instructions!$C$2="BST",A23,0) -> 0 | C23: 2024-01-04T03:30:00 | D23: 2024-01-04 | E23: 2024-01-04 | F23: 1 | G23: Jan | H23: 4 | I23: 4 | J23: Thu | K23: 43833.14583 | L23: 4.47 | M23: HW | N23: -0.01739130435 | O23: 03:30:00 | P23: 00:00:00 | Q23: 06:00:00 | R23: 0.4166666667 | S23: 43833.15712 | T23: 5.972173913 | U23: 43833.22309 | V23: 43833.15856 | W23: 5.773913043 | X23: 43833.09167 | Y23: 43833.13137 | Z23: 4.379130435 | AA23: 43833.12095 | AB23: 43833.125 | AC23: 3.979130435 | AD23: Opn | AE23: 43833.01042 | AF23: 43833.12818 | AG23: 3.480869565 | AH23: 43833.10185 | AI23: 3.882608696 | AJ23: 43833.15914 | AK23: 5.872173913 | AL23: 43833.16117 | AM23: 5.770434783 | AN23: 43833.15567 | AO23: 5.673913043 | AP23: 43833.16175 | AQ23: 5.073913043 | AR23: 43833.13542 | AS23: 43833.15625 | AT23: 43833.12269 | AU23: 3.979130435 | AV23: 43833.12269 | AW23: 3.779130435 | AX23: 43833.09983 | AY23: 3.477391304 | AZ23: 43833.09635 | BA23: 3.379130435 | BB23: 43833.09288 | BC23: 3.380869565 | BD23: 43833.04051 | BE23: 3.179130435 | BF23: 43833.13542 | BH23: 43833.175 | BI23: 43833.17708 | BK23: 2024-01-04T04:12:00 | BL23: 43833.175
A24: 0 | B24: =IF(Instructions!$C$2="BST",A24,0) -> 0 | C24: 2024-01-04T09:27:00 | D24: 2024-01-04 | E24: Thu | F24: 1 | I24: 4 | K24: 43833.39375 | L24: 2.25 | M24: LW | N24: -0.1755725191 | O24: 09:27:00 | P24: 05:00:00 | Q24: 11:00:00 | R24: 0.2583333333 | S24: 43833.42164 | T24: 2.798473282 | U24: 43833.48762 | V24: 43833.41357 | W24: 2.580916031 | X24: 43833.34167 | Y24: 43833.39913 | Z24: 2.210687023 | AA24: 43833.37795 | AB24: 43833.39387 | AC24: 2.128244275 | AD24: Cls | AE24: 43833.23958 | AF24: 43833.38669 | AG24: 2.010687023 | AH24: 43833.37807 | AI24: 2.110687023 | AJ24: 43833.42075 | AK24: 2.780916031 | AL24: 43833.42075 | AM24: 2.780916031 | AN24: 43833.41291 | AO24: 2.780916031 | AP24: 43833.41895 | AQ24: 2.563358779 | AR24: 43833.38333 | AS24: 43833.40764 | AT24: 43833.38333 | AU24: 2.210687023 | AV24: 43833.38513 | AW24: 2.228244275 | AX24: 43833.37807 | AY24: 2.010687023 | AZ24: 43833.37459 | BA24: 2.028244275 | BB24: 43833.36855 | BC24: 2.128244275 | BD24: 43833.32341 | BE24: 1.658015267 | BF24: 43833.41806 | BH24: 43833.44028 | BI24: 43833.425 | BK24: 2024-01-04T10:34:00 | BL24: 43833.44028
A25: 0 | B25: =IF(Instructions!$C$2="BST",A25,0) -> 0 | C25: 2024-01-04T15:43:00 | D25: 2024-01-04 | F25: 1 | I25: 4 | K25: 43833.65486 | L25: 4.69 | M25: HW | N25: 0.1739130435 | O25: 15:43:00 | P25: 12:00:00 | Q25: 18:00:00 | R25: 0.3805555555 | S25: 43833.66577 | T25: 6.27826087 | U25: 43833.73174 | V25: 43833.66709 | W25: 6.060869565 | X25: 43833.59931 | Y25: 43833.64014 | Z25: 4.608695652 | AA25: 43833.62973 | AB25: 43833.63403 | AC25: 4.208695652 | AD25: Opn | AE25: 43833.51944 | AF25: 43833.63784 | AG25: 3.691304348 | AH25: 43833.61138 | AI25: 4.073913043 | AJ25: 43833.66792 | AK25: 6.17826087 | AL25: 43833.67007 | AM25: 6.095652174 | AN25: 43833.66445 | AO25: 5.960869565 | AP25: 43833.6709 | AQ25: 5.360869565 | AR25: 43833.64444 | AS25: 43833.66528 | AT25: 43833.63221 | AU25: 4.208695652 | AV25: 43833.63221 | AW25: 4.008695652 | AX25: 43833.60923 | AY25: 3.726086957 | AZ25: 43833.60576 | BA25: 3.608695652 | BB25: 43833.60229 | BC25: 3.591304348 | BD25: 43833.54904 | BE25: 3.408695652 | BF25: 43833.64444 | BH25: 43833.68264 | BI25: 43833.68611 | BK25: 2024-01-04T16:23:00 | BL25: 43833.68264
A26: 0 | B26: =IF(Instructions!$C$2="BST",A26,0) -> 0 | C26: 2024-01-04T22:13:00 | D26: 2024-01-04 | F26: 1 | I26: 4 | K26: 43833.92569 | L26: 2.03 | M26: LW | N26: -0.007633587786 | O26: 22:13:00 | P26: 17:00:00 | Q26: 23:00:00 | R26: 0.1305555556 | S26: 43833.95181 | T26: 2.512977099 | U26: 43834.01779 | V26: 43833.94773 | W26: 2.31221374 | X26: 43833.84931 | Y26: 43833.92841 | Z26: =IF($M26="HW",Y$2+(Y$1-Y$2)*$N26,Y$3+(Y$4-Y$3)*$N26) -> 2.009160305 | AA26: 43833.91256 | AB26: 43833.92404 | AC26: =IF($M26="HW",AB$2+(AB$1-AB$2)*$N26,AB$3+(AB$4-AB$3)*$N26) -> 1.909923664 | AD26: Cls | AE26: 43833.74861 | AF26: 43833.92041 | AG26: =IF($M26="HW",AF$2+(AF$1-AF$2)*$N26,AF$3+(AF$4-AF$3)*$N26) -> 1.809160305 | AH26: 43833.9109 | AI26: =IF($M26="HW",AH$2+(AH$1-AH$2)*$N26,AH$3+(AH$4-AH$3)*$N26) -> 1.909160305 | AJ26: 43833.95136 | AK26: =IF($M26="HW",AJ$2+(AJ$1-AJ$2)*$N26,AJ$3+(AJ$4-AJ$3)*$N26) -> 2.51221374 | AL26: 43833.95136 | AM26: =IF($M26="HW",AL$2+(AL$1-AL$2)*$N26,AL$3+(AL$4-AL$3)*$N26) -> 2.51221374 | AN26: 43833.94396 | AO26: =IF($M26="HW",AN$2+(AN$1-AN$2)*$N26,AN$3+(AN$4-AN$3)*$N26) -> 2.51221374 | AP26: 43833.95045 | AQ26: =IF($M26="HW",AP$2+(AP$1-AP$2)*$N26,AP$3+(AP$4-AP$3)*$N26) -> 2.311450382 | AR26: 43833.91528 | AS26: 43833.93958 | AT26: 43833.91528 | AU26: =IF($M26="HW",AT$2+(AT$1-AT$2)*$N26,AT$3+(AT$4-AT$3)*$N26) -> 2.009160305 | AV26: 43833.91618 | AW26: =IF($M26="HW",AV$2+(AV$1-AV$2)*$N26,AV$3+(AV$4-AV$3)*$N26) -> 2.009923664 | AX26: 43833.9109 | AY26: =IF($M26="HW",AX$2+(AX$1-AX$2)*$N26,AX$3+(AX$4-AX$3)*$N26) -> 1.809160305 | AZ26: 43833.90743 | BA26: =IF($M26="HW",AZ$2+(AZ$1-AZ$2)*$N26,AZ$3+(AZ$4-AZ$3)*$N26) -> 1.809923664 | BB26: 43833.90094 | BC26: =IF($M26="HW",BB$2+(BB$1-BB$2)*$N26,BB$3+(BB$4-BB$3)*$N26) -> 1.909923664 | BD26: 43833.8558 | BE26: =IF($M26="HW",BD$2+(BD$1-BD$2)*$N26,BD$3+(BD$4-BD$3)*$N26) -> 1.506870229 | BF26: 43833.95 | BH26: 43833.97222 | BI26: 43833.95694 | BK26: 2024-01-04T23:20:00 | BL26: 43833.97222
A27: 0 | B27: =IF(Instructions!$C$2="BST",A27,0) -> 0 | C27: 2024-01-05T04:28:00 | D27: 2024-01-05 | E27: 2024-01-05 | F27: 1 | G27: Jan | H27: 5 | I27: 5 | J27: Fri | K27: 43834.18611 | L27: 4.40 | M27: HW | N27: -0.07826086957 | O27: 04:28:00 | P27: 00:00:00 | Q27: 06:00:00 | R27: 0.2555555555 | S27: 43834.19572 | T27: 5.874782609 | U27: 43834.26169 | V27: 43834.1966 | W27: 5.682608696 | X27: 43834.12986 | Y27: 43834.17052 | Z27: 4.306086957 | AA27: 43834.16011 | AB27: 43834.16528 | AC27: 3.906086957 | AD27: Opn | AE27: 43834.05069 | AF27: 43834.17126 | AG27: 3.413913043 | AH27: 43834.14437 | AI27: 3.82173913 | AJ27: 43834.1983 | AK27: 5.774782609 | AL27: 43834.20089 | AM27: 5.666956522 | AN27: 43834.19483 | AO27: 5.582608696 | AP27: 43834.20258 | AQ27: 4.982608696 | AR27: 43834.17569 | AS27: 43834.19653 | AT27: 43834.1652 | AU27: 3.906086957 | AV27: 43834.1652 | AW27: 3.706086957 | AX27: 43834.14178 | AY27: 3.39826087 | AZ27: 43834.13831 | BA27: 3.306086957 | BB27: 43834.13484 | BC27: 3.313913043 | BD27: 43834.07855 | BE27: 3.106086957 | BF27: 43834.17569 | BH27: 43834.21319 | BI27: 43834.21736 | BK27: 2024-01-05T05:07:00 | BL27: 43834.21319
A28: 0 | B28: =IF(Instructions!$C$2="BST",A28,0) -> 0 | C28: 2024-01-05T10:27:00 | D28: 2024-01-05 | E28: Fri | F28: 1 | I28: 5 | K28: 43834.43542 | L28: 2.36 | M28: LW | N28: -0.2595419847 | O28: 10:27:00 | P28: 05:00:00 | Q28: 11:00:00 | R28: 0.09166666666 | S28: =IF($M28="HW",$K28+S$6+(S$5-S$6)*$R28,$K28+S$8+(S$7-S$8)*$R28) -> 43834.461 | T28: 2.941221374 | U28: 43834.52697 | V28: 43834.45813 | W28: 2.715267176 | X28: 43834.37986 | Y28: =IF($M28="HW",$K28+Y$6+(Y$5-Y$6)*$R28,$K28+Y$8+(Y$7-Y$8)*$R28) -> 43834.43733 | Z28: 2.311450382 | AA28: 43834.42309 | AB28: 43834.43322 | AC28: 2.23740458 | AD28: Cls | AE28: 43834.27986 | AF28: 43834.43067 | AG28: 2.111450382 | AH28: 43834.42089 | AI28: 2.211450382 | AJ28: 43834.46068 | AK28: 2.915267176 | AL28: 43834.46068 | AM28: 2.915267176 | AN28: 43834.45341 | AO28: 2.915267176 | AP28: 43834.46004 | AQ28: 2.689312977 | AR28: =IF($M28="HW",$K28+AR$6+(AR$5-AR$6)*$R28,$K28+AR$8+(AR$7-AR$8)*$R28) -> 43834.425 | AS28: 43834.44931 | AT28: 43834.425 | AU28: 2.311450382 | AV28: 43834.42564 | AW28: 2.33740458 | AX28: 43834.42089 | AY28: 2.111450382 | AZ28: 43834.41742 | BA28: 2.13740458 | BB28: 43834.41079 | BC28: 2.23740458 | BD28: 43834.36565 | BE28: 1.733587786 | BF28: =IF($M28="HW",$K28+BF$6+(BF$5-BF$6)*$R28,$K28+BF$8+(BF$7-BF$8)*$R28) -> 43834.45972 | BH28: 43834.48264 | BI28: 43834.46667 | BK28: 2024-01-05T11:35:00 | BL28: 43834.48264
A29: 0 | B29: =IF(Instructions!$C$2="BST",A29,0) -> 0 | C29: 2024-01-05T16:44:00 | D29: 2024-01-05 | F29: 1 | I29: 5 | K29: 43834.69722 | L29: 4.58 | M29: HW | N29: 0.07826086957 | O29: 16:44:00 | P29: 12:00:00 | Q29: 18:00:00 | R29: 0.2111111111 | S29: 43834.70637 | T29: 6.125217391 | U29: 43834.77234 | V29: 43834.7071 | W29: 5.917391304 | X29: 43834.63958 | Y29: 43834.68133 | Z29: 4.493913043 | AA29: 43834.67091 | AB29: 43834.67639 | AC29: 4.093913043 | AD29: Opn | AE29: 43834.56181 | AF29: 43834.68314 | AG29: 3.586086957 | AH29: 43834.6561 | AI29: 3.97826087 | AJ29: 43834.7091 | AK29: 6.025217391 | AL29: 43834.71184 | AM29: 5.933043478 | AN29: 43834.70563 | AO29: 5.817391304 | AP29: 43834.71385 | AQ29: 5.217391304 | AR29: 43834.68681 | AS29: 43834.70764 | AT29: 43834.67693 | AU29: 4.093913043 | AV29: 43834.67693 | AW29: 3.893913043 | AX29: 43834.65336 | AY29: 3.60173913 | AZ29: 43834.64988 | BA29: 3.493913043 | BB29: 43834.64641 | BC29: 3.486086957 | BD29: 43834.58904 | BE29: 3.293913043 | BF29: 43834.68681 | BH29: 43834.72292 | BI29: 43834.72847 | BK29: 2024-01-05T17:21:00 | BL29: 43834.72292
A30: 0 | B30: =IF(Instructions!$C$2="BST",A30,0) -> 0 | C30: 2024-01-05T23:16:00 | D30: 2024-01-05 | F30: 1 | I30: 5 | K30: 43834.96944 | L30: 2.09 | M30: LW | N30: -0.0534351145 | O30: 23:16:00 | P30: 1.208333333 | Q30: 23:00:00 | R30: 0.04444444445 | S30: 43834.99437 | T30: 2.590839695 | U30: 43835.06034 | V30: 43834.99298 | W30: 2.385496183 | X30: 43834.88958 | Y30: 43834.97037 | Z30: 2.064122137 | AA30: 43834.9581 | AB30: 43834.96659 | AC30: 1.969465649 | AD30: Cls | AE30: 43834.79097 | AF30: 43834.96535 | AG30: 1.864122137 | AH30: 43834.95525 | AI30: 1.964122137 | AJ30: 43834.99421 | AK30: 2.585496183 | AL30: 43834.99421 | AM30: 2.585496183 | AN30: 43834.98711 | AO30: 2.585496183 | AP30: 43834.9939 | AQ30: 2.380152672 | AR30: 43834.95903 | AS30: 43834.98333 | AT30: 43834.95903 | AU30: 2.064122137 | AV30: 43834.95934 | AW30: 2.069465649 | AX30: 43834.95525 | AY30: 1.864122137 | AZ30: 43834.95177 | BA30: 1.869465649 | BB30: 43834.94498 | BC30: 1.969465649 | BD30: 43834.89985 | BE30: 1.548091603 | BF30: 43834.99375 | BH30: 43835.01667 | BI30: 43835.00069 | BK30: 2024-01-06T00:24:00 | BL30: 43835.01667
A31: 0 | B31: =IF(Instructions!$C$2="BST",A31,0) -> 0 | C31: 2024-01-06T05:35:00 | D31: 2024-01-06 | E31: 2024-01-06 | F31: 1 | G31: Jan | H31: 6 | I31: 6 | J31: Sat | K31: 43835.23264 | L31: 4.42 | M31: HW | N31: -0.06086956522 | O31: 05:35:00 | P31: 00:00:00 | Q31: 06:00:00 | R31: 0.06944444444 | S31: 43835.24031 | T31: 5.902608696 | U31: 43835.30628 | V31: 43835.24055 | W31: 5.708695652 | X31: 43835.17431 | Y31: 43835.21576 | Z31: 4.326956522 | AA31: 43835.20534 | AB31: 43835.21181 | AC31: 3.926956522 | AD31: Opn | AE31: 43835.09722 | AF31: 43835.22102 | AG31: 3.433043478 | AH31: 43835.19348 | AI31: 3.839130435 | AJ31: 43835.24354 | AK31: 5.802608696 | AL31: 43835.24677 | AM31: 5.696521739 | AN31: 43835.24007 | AO31: 5.608695652 | AP31: 43835.24976 | AQ31: 5.008695652 | AR31: 43835.22222 | AS31: 43835.24306 | AT31: 43835.21431 | AU31: 3.926956522 | AV31: 43835.21431 | AW31: 3.726956522 | AX31: 43835.19025 | AY31: 3.420869565 | AZ31: 43835.18678 | BA31: 3.326956522 | BB31: 43835.1833 | BC31: 3.333043478 | BD31: 43835.12249 | BE31: 3.126956522 | BF31: 43835.22222 | BH31: 43835.25764 | BI31: 43835.26389 | BK31: 2024-01-06T06:11:00 | BL31: 43835.25764
A32: 0 | B32: =IF(Instructions!$C$2="BST",A32,0) -> 0 | C32: 2024-01-06T11:36:00 | D32: 2024-01-06 | E32: Sat | F32: 1 | I32: 6 | K32: 43835.48333 | L32: 2.37 | M32: LW | N32: -0.2671755725 | O32: 11:36:00 | P32: 17:00:00 | Q32: 11:00:00 | R32: 0.09999999999 | S32: 43835.50903 | T32: 2.954198473 | U32: 43835.575 | V32: 43835.5059 | W32: 2.727480916 | X32: 43835.42431 | Y32: 43835.48542 | Z32: 2.320610687 | AA32: 43835.47083 | AB32: 43835.48125 | AC32: 2.247328244 | AD32: Cls | AE32: 43835.32639 | AF32: 43835.47847 | AG32: 2.120610687 | AH32: 43835.46875 | AI32: 2.220610687 | AJ32: 43835.50868 | AK32: 2.927480916 | AL32: 43835.50868 | AM32: 2.927480916 | AN32: 43835.50139 | AO32: 2.927480916 | AP32: 43835.50799 | AQ32: 2.700763359 | AR32: 43835.47292 | AS32: 43835.49722 | AT32: 43835.47292 | AU32: 2.320610687 | AV32: 43835.47361 | AW32: 2.347328244 | AX32: 43835.46875 | AY32: 2.120610687 | AZ32: 43835.46528 | BA32: 2.147328244 | BB32: 43835.45868 | BC32: 2.247328244 | BD32: 43835.41354 | BE32: 1.740458015 | BF32: 43835.50764 | BH32: 43835.53125 | BI32: 43835.51458 | BK32: 2024-01-06T12:45:00 | BL32: 43835.53125
A33: 0 | B33: =IF(Instructions!$C$2="BST",A33,0) -> 0 | C33: 2024-01-06T17:53:00 | D33: 2024-01-06 | F33: 1 | I33: 6 | K33: 43835.74514 | L33: 4.56 | M33: HW | N33: 0.06086956522 | O33: 17:53:00 | P33: 12:00:00 | Q33: 18:00:00 | R33: 0.01944444445 | S33: 43835.75229 | T33: 6.097391304 | U33: 43835.81826 | V33: 43835.75235 | W33: 5.891304348 | X33: 43835.68681 | Y33: 43835.72791 | Z33: 4.473043478 | AA33: 43835.7175 | AB33: 43835.72431 | AC33: 4.073043478 | AD33: Opn | AE33: 43835.60972 | AF33: 43835.73438 | AG33: 3.566956522 | AH33: 43835.70667 | AI33: 3.960869565 | AJ33: 43835.75569 | AK33: 5.997391304 | AL33: 43835.7591 | AM33: 5.903478261 | AN33: 43835.75222 | AO33: 5.791304348 | AP33: 43835.76243 | AQ33: 5.191304348 | AR33: 43835.73472 | AS33: 43835.75556 | AT33: 43835.72751 | AU33: 4.073043478 | AV33: 43835.72751 | AW33: 3.873043478 | AX33: 43835.70327 | AY33: 3.579130435 | AZ33: 43835.6998 | BA33: 3.473043478 | BB33: 43835.69633 | BC33: 3.466956522 | BD33: 43835.6343 | BE33: 3.273043478 | BF33: 43835.73472 | BH33: 43835.77014 | BI33: 43835.77639 | BK33: 2024-01-06T18:29:00 | BL33: 43835.77014
A34: 0 | B34: =IF(Instructions!$C$2="BST",A34,0) -> 0 | C34: 2024-01-07T00:22:00 | D34: 2024-01-07 | E34: 2024-01-07 | F34: 1 | G34: Jan | H34: 7 | I34: 7 | J34: Sun | K34: 43836.01528 | L34: 2.05 | M34: LW | N34: -0.02290076336 | O34: 00:22:00 | P34: 05:00:00 | Q34: -0.04166666667 | R34: 0.2277777778 | S34: 43836.04275 | T34: 2.538931298 | U34: 43836.10872 | V34: 43836.03563 | W34: 2.336641221 | X34: 43835.93681 | Y34: 43836.02002 | Z34: 2.027480916 | AA34: 43836.00012 | AB34: 43836.01497 | AC34: 1.929770992 | AD34: Cls | AE34: 43835.83889 | AF34: 43836.00864 | AG34: 1.827480916 | AH34: 43835.99981 | AI34: 1.927480916 | AJ34: 43836.04196 | AK34: 2.536641221 | AL34: 43836.04196 | AM34: 2.536641221 | AN34: 43836.03422 | AO34: 2.536641221 | AP34: 43836.04037 | AQ34: 2.334351145 | AR34: 43836.00486 | AS34: 43836.02917 | AT34: 43836.00486 | AU34: 2.027480916 | AV34: 43836.00644 | AW34: 2.029770992 | AX34: 43835.99981 | AY34: 1.827480916 | AZ34: 43835.99633 | BA34: 1.829770992 | BB34: 43835.99018 | BC34: 1.929770992 | BD34: 43835.94504 | BE34: 1.520610687 | BF34: 43836.03958 | BH34: 43836.06319 | BI34: 43836.04653 | BK34: 2024-01-07T01:31:00 | BL34: 43836.06319
A35: 0 | B35: =IF(Instructions!$C$2="BST",A35,0) -> 0 | C35: 2024-01-07T06:42:00 | D35: 2024-01-07 | E35: Sun | F35: 1 | I35: 7 | K35: 43836.27917 | L35: 4.55 | M35: HW | N35: 0.05217391304 | O35: 06:42:00 | P35: 12:00:00 | Q35: 06:00:00 | R35: 0.1166666667 | S35: 43836.28733 | T35: 6.083478261 | U35: 43836.3533 | V35: 43836.28773 | W35: 5.87826087 | X35: 43836.22153 | Y35: 43836.26262 | Z35: 4.462608696 | AA35: 43836.2522 | AB35: 43836.25833 | AC35: 4.062608696 | AD35: Opn | AE35: 43836.14375 | AF35: 43836.26672 | AG35: 3.557391304 | AH35: 43836.23935 | AI35: 3.952173913 | AJ35: 43836.29039 | AK35: 5.983478261 | AL35: 43836.29346 | AM35: 5.888695652 | AN35: 43836.28692 | AO35: 5.77826087 | AP35: 43836.29612 | AQ35: 5.17826087 | AR35: 43836.26875 | AS35: 43836.28958 | AT35: 43836.26019 | AU35: 4.062608696 | AV35: 43836.26019 | AW35: 3.862608696 | AX35: 43836.23628 | AY35: 3.567826087 | AZ35: 43836.23281 | BA35: 3.462608696 | BB35: 43836.22934 | BC35: 3.457391304 | BD35: 43836.16968 | BE35: 3.262608696 | BF35: 43836.26875 | BH35: 43836.30486 | BI35: 43836.31042 | BK35: 2024-01-07T07:19:00 | BL35: 43836.30486
A36: 0 | B36: =IF(Instructions!$C$2="BST",A36,0) -> 0 | C36: 2024-01-07T12:45:00 | D36: 2024-01-07 | F36: 1 | I36: 7 | K36: 43836.53125 | L36: 2.25 | M36: LW | N36: -0.1755725191 | O36: 12:45:00 | P36: 17:00:00 | Q36: 11:00:00 | R36: 0.2916666667 | S36: 43836.55961 | T36: 2.798473282 | U36: 43836.62558 | V36: 43836.55049 | W36: 2.580916031 | X36: 43836.47153 | Y36: 43836.53733 | Z36: 2.210687023 | AA36: 43836.51476 | AB36: 43836.53183 | AC36: 2.128244275 | AD36: Cls | AE36: 43836.37292 | AF36: 43836.52373 | AG36: 2.010687023 | AH36: 43836.51534 | AI36: 2.110687023 | AJ36: 43836.55859 | AK36: 2.780916031 | AL36: 43836.55859 | AM36: 2.780916031 | AN36: 43836.55064 | AO36: 2.780916031 | AP36: 43836.55657 | AQ36: 2.563358779 | AR36: 43836.52083 | AS36: 43836.54514 | AT36: 43836.52083 | AU36: 2.210687023 | AV36: 43836.52286 | AW36: 2.228244275 | AX36: 43836.51534 | AY36: 2.010687023 | AZ36: 43836.51186 | BA36: 2.028244275 | BB36: 43836.50593 | BC36: 2.128244275 | BD36: 43836.46079 | BE36: 1.658015267 | BF36: 43836.55556 | BH36: 43836.58056 | BI36: 43836.5625 | BK36: 2024-01-07T13:56:00 | BL36: 43836.58056
A37: 0 | B37: =IF(Instructions!$C$2="BST",A37,0) -> 0 | C37: 2024-01-07T19:02:00 | D37: 2024-01-07 | F37: 1 | I37: 7 | K37: 43836.79306 | L37: 4.67 | M37: HW | N37: 0.1565217391 | O37: 19:02:00 | P37: 1 | Q37: 18:00:00 | R37: 0.1722222222 | S37: 43836.80179 | T37: 6.250434783 | U37: 43836.86777 | V37: 43836.80239 | W37: 6.034782609 | X37: 43836.73681 | Y37: 43836.77689 | Z37: 4.587826087 | AA37: 43836.76647 | AB37: 43836.77222 | AC37: 4.187826087 | AD37: Opn | AE37: 43836.65764 | AF37: 43836.77965 | AG37: 3.672173913 | AH37: 43836.75247 | AI37: 4.056521739 | AJ37: 43836.80467 | AK37: 6.150434783 | AL37: 43836.80754 | AM37: 6.066086957 | AN37: 43836.8012 | AO37: 5.934782609 | AP37: 43836.80982 | AQ37: 5.334782609 | AR37: 43836.78264 | AS37: 43836.80347 | AT37: 43836.7733 | AU37: 4.187826087 | AV37: 43836.7733 | AW37: 3.987826087 | AX37: 43836.74959 | AY37: 3.703478261 | AZ37: 43836.74612 | BA37: 3.587826087 | BB37: 43836.74265 | BC37: 3.572173913 | BD37: 43836.68434 | BE37: 3.387826087 | BF37: 43836.78264 | BH37: 43836.82014 | BI37: 43836.82431 | BK37: 2024-01-07T19:41:00 | BL37: 43836.82014
A38: 0 | B38: =IF(Instructions!$C$2="BST",A38,0) -> 0 | C38: 2024-01-08T01:22:00 | D38: 2024-01-08 | E38: 2024-01-08 | F38: 1 | G38: Jan | H38: 8 | I38: 1 | J38: Mon | K38: 43837.05694 | L38: 1.91 | M38: LW | N38: 0.08396946565 | O38: 01:22:00 | P38: 05:00:00 | Q38: -0.04166666667 | R38: 0.3944444444 | S38: 43837.08673 | T38: 2.357251908 | U38: 43837.1527 | V38: 43837.0744 | W38: 2.165648855 | X38: 43836.98681 | Y38: 43837.06516 | Z38: 1.899236641 | AA38: 43837.03831 | AB38: 43837.05895 | AC38: 1.790839695 | AD38: Cls | AE38: 43836.88681 | AF38: 43837.04799 | AG38: 1.699236641 | AH38: 43837.04032 | AI38: 1.799236641 | AJ38: 43837.08536 | AK38: 2.365648855 | AL38: 43837.08536 | AM38: 2.365648855 | AN38: 43837.07704 | AO38: 2.365648855 | AP38: 43837.08262 | AQ38: 2.174045802 | AR38: 43837.04653 | AS38: 43837.07083 | AT38: 43837.04653 | AU38: 1.899236641 | AV38: 43837.04927 | AW38: 1.890839695 | AX38: 43837.04032 | AY38: 1.699236641 | AZ38: 43837.03684 | BA38: 1.690839695 | BB38: 43837.03127 | BC38: 1.790839695 | BD38: 43836.98613 | BE38: 1.424427481 | BF38: 43837.08125 | BH38: 43837.10764 | BI38: 43837.08819 | BK38: 2024-01-08T02:35:00 | BL38: 43837.10764
A39: 0 | B39: =IF(Instructions!$C$2="BST",A39,0) -> 0 | C39: 2024-01-08T07:41:00 | D39: 2024-01-08 | E39: Mon | F39: 1 | I39: 1 | K39: 43837.32014 | L39: 4.77 | M39: HW | N39: 0.2434782609 | O39: 07:41:00 | P39: 12:00:00 | Q39: 06:00:00 | R39: 0.2805555556 | S39: 43837.33001 | T39: 6.389565217 | U39: 43837.39598 | V39: 43837.33098 | W39: 6.165217391 | X39: 43837.26528 | Y39: 43837.30473 | Z39: 4.692173913 | AA39: 43837.29431 | AB39: 43837.29931 | AC39: 4.292173913 | AD39: Opn | AE39: 43837.18472 | AF39: 43837.30485 | AG39: 3.767826087 | AH39: 43837.27805 | AI39: 4.143478261 | AJ39: 43837.3325 | AK39: 6.289565217 | AL39: 43837.335 | AM39: 6.213913043 | AN39: 43837.32903 | AO39: 6.065217391 | AP39: 43837.33653 | AQ39: 5.465217391 | AR39: 43837.30972 | AS39: 43837.33056 | AT39: 43837.29888 | AU39: 4.292173913 | AV39: 43837.29888 | AW39: 4.092173913 | AX39: 43837.27555 | AY39: 3.816521739 | AZ39: 43837.27208 | BA39: 3.692173913 | BB39: 43837.26861 | BC39: 3.667826087 | BD39: 43837.21292 | BE39: 3.492173913 | BF39: 43837.30972 | BH39: 43837.34861 | BI39: 43837.35139 | BK39: 2024-01-08T08:22:00 | BL39: 43837.34861
A40: 0 | B40: =IF(Instructions!$C$2="BST",A40,0) -> 0 | C40: 2024-01-08T13:45:00 | D40: 2024-01-08 | F40: 1 | I40: 1 | K40: 43837.57292 | L40: 2.01 | M40: LW | N40: 0.007633587786 | O40: 13:45:00 | P40: 17:00:00 | Q40: 11:00:00 | R40: 0.4583333333 | S40: 43837.60359 | T40: 2.487022901 | U40: 43837.66956 | V40: 43837.58927 | W40: 2.28778626 | X40: 43837.51528 | Y40: 43837.58247 | Z40: 1.990839695 | AA40: 43837.55295 | AB40: 43837.57581 | AC40: 1.890076336 | AD40: Cls | AE40: 43837.41389 | AF40: 43837.56308 | AG40: 1.790839695 | AH40: 43837.55584 | AI40: 1.890839695 | AJ40: 43837.602 | AK40: 2.48778626 | AL40: 43837.602 | AM40: 2.48778626 | AN40: 43837.59346 | AO40: 2.48778626 | AP40: 43837.59881 | AQ40: 2.288549618 | AR40: 43837.5625 | AS40: 43837.58681 | AT40: 43837.5625 | AU40: 1.990839695 | AV40: 43837.56568 | AW40: 1.990076336 | AX40: 43837.55584 | AY40: 1.790839695 | AZ40: 43837.55237 | BA40: 1.790076336 | BB40: 43837.54702 | BC40: 1.890076336 | BD40: 43837.50188 | BE40: 1.493129771 | BF40: 43837.59722 | BH40: 43837.62569 | BI40: 43837.60417 | BK40: 2024-01-08T15:01:00 | BL40: 43837.62569
A41: 0 | B41: =IF(Instructions!$C$2="BST",A41,0) -> 0 | C41: 2024-01-08T20:02:00 | D41: 2024-01-08 | F41: 1 | I41: 1 | K41: 43837.83472 | L41: 4.86 | M41: HW | N41: 0.3217391304 | O41: 20:02:00 | P41: 1 | Q41: 18:00:00 | R41: 0.3388888889 | S41: 43837.8452 | T41: 6.514782609 | U41: 43837.91117 | V41: 43837.84637 | W41: 6.282608696 | X41: 43837.78056 | Y41: 43837.81971 | Z41: 4.786086957 | AA41: 43837.8093 | AB41: 43837.81389 | AC41: 4.386086957 | AD41: Opn | AE41: 43837.69931 | AF41: 43837.81842 | AG41: 3.853913043 | AH41: 43837.79182 | AI41: 4.22173913 | AJ41: 43837.84749 | AK41: 6.414782609 | AL41: 43837.84979 | AM41: 6.346956522 | AN41: 43837.84402 | AO41: 6.182608696 | AP41: 43837.85091 | AQ41: 5.582608696 | AR41: 43837.82431 | AS41: 43837.84514 | AT41: 43837.81265 | AU41: 4.386086957 | AV41: 43837.81265 | AW41: 4.186086957 | AX41: 43837.78953 | AY41: 3.91826087 | AZ41: 43837.78605 | BA41: 3.786086957 | BB41: 43837.78258 | BC41: 3.753913043 | BD41: 43837.72832 | BE41: 3.586086957 | BF41: 43837.82431 | BH41: 43837.86389 | BI41: 43837.86597 | BK41: 2024-01-08T20:44:00 | BL41: 43837.86389
A42: 0 | B42: =IF(Instructions!$C$2="BST",A42,0) -> 0 | C42: 2024-01-09T02:14:00 | D42: 2024-01-09 | E42: 2024-01-09 | F42: 1 | G42: Jan | H42: 9 | I42: 2 | J42: Tue | K42: 43838.09306 | L42: 1.71 | M42: LW | N42: 0.2366412214 | O42: 02:14:00 | P42: 05:00:00 | Q42: -0.04166666667 | R42: 0.5388888889 | S42: 43838.12485 | T42: 2.097709924 | U42: 43838.19082 | V42: 43838.10801 | W42: 1.921374046 | X42: 43838.03056 | Y42: 43838.10428 | Z42: =IF($M42="HW",Y$2+(Y$1-Y$2)*$N42,Y$3+(Y$4-Y$3)*$N42) -> 1.716030534 | AA42: 43838.07141 | AB42: 43838.09707 | AC42: =IF($M42="HW",AB$2+(AB$1-AB$2)*$N42,AB$3+(AB$4-AB$3)*$N42) -> 1.592366412 | AD42: Cls | AE42: 43837.92847 | AF42: 43838.0821 | AG42: =IF($M42="HW",AF$2+(AF$1-AF$2)*$N42,AF$3+(AF$4-AF$3)*$N42) -> 1.516030534 | AH42: 43838.07542 | AI42: =IF($M42="HW",AH$2+(AH$1-AH$2)*$N42,AH$3+(AH$4-AH$3)*$N42) -> 1.616030534 | AJ42: 43838.12297 | AK42: =IF($M42="HW",AJ$2+(AJ$1-AJ$2)*$N42,AJ$3+(AJ$4-AJ$3)*$N42) -> 2.121374046 | AL42: 43838.12297 | AM42: =IF($M42="HW",AL$2+(AL$1-AL$2)*$N42,AL$3+(AL$4-AL$3)*$N42) -> 2.121374046 | AN42: 43838.11416 | AO42: =IF($M42="HW",AN$2+(AN$1-AN$2)*$N42,AN$3+(AN$4-AN$3)*$N42) -> 2.121374046 | AP42: 43838.11923 | AQ42: =IF($M42="HW",AP$2+(AP$1-AP$2)*$N42,AP$3+(AP$4-AP$3)*$N42) -> 1.945038168 | AR42: 43838.08264 | AS42: 43838.10694 | AT42: 43838.08264 | AU42: =IF($M42="HW",AT$2+(AT$1-AT$2)*$N42,AT$3+(AT$4-AT$3)*$N42) -> 1.716030534 | AV42: 43838.08638 | AW42: =IF($M42="HW",AV$2+(AV$1-AV$2)*$N42,AV$3+(AV$4-AV$3)*$N42) -> 1.692366412 | AX42: 43838.07542 | AY42: =IF($M42="HW",AX$2+(AX$1-AX$2)*$N42,AX$3+(AX$4-AX$3)*$N42) -> 1.516030534 | AZ42: 43838.07195 | BA42: =IF($M42="HW",AZ$2+(AZ$1-AZ$2)*$N42,AZ$3+(AZ$4-AZ$3)*$N42) -> 1.492366412 | BB42: 43838.06688 | BC42: =IF($M42="HW",BB$2+(BB$1-BB$2)*$N42,BB$3+(BB$4-BB$3)*$N42) -> 1.592366412 | BD42: 43838.02174 | BE42: =IF($M42="HW",BD$2+(BD$1-BD$2)*$N42,BD$3+(BD$4-BD$3)*$N42) -> 1.287022901 | BF42: 43838.11736 | BH42: 43838.14792 | BI42: 43838.12431 | BK42: 2024-01-09T03:33:00 | BL42: 43838.14792
A43: 0 | B43: =IF(Instructions!$C$2="BST",A43,0) -> 0 | C43: 2024-01-09T08:32:00 | D43: 2024-01-09 | E43: Tue | F43: 1 | I43: 2 | K43: 43838.35556 | L43: 5.04 | M43: HW | N43: 0.4782608696 | O43: 08:32:00 | P43: 12:00:00 | Q43: 06:00:00 | R43: 0.4222222222 | S43: 43838.3669 | T43: 6.765217391 | U43: 43838.43287 | V43: 43838.36836 | W43: 6.517391304 | X43: 43838.30208 | Y43: 43838.34113 | Z43: 4.973913043 | AA43: 43838.33071 | AB43: 43838.33472 | AC43: 4.573913043 | AD43: Opn | AE43: 43838.22014 | AF43: 43838.33781 | AG43: 4.026086957 | AH43: 43838.3115 | AI43: 4.37826087 | AJ43: 43838.3689 | AK43: 6.665217391 | AL43: 43838.37091 | AM43: 6.613043478 | AN43: 43838.36543 | AO43: 6.417391304 | AP43: 43838.37145 | AQ43: 5.817391304 | AR43: 43838.34514 | AS43: 43838.36597 | AT43: 43838.33233 | AU43: 4.573913043 | AV43: 43838.33233 | AW43: 4.373913043 | AX43: 43838.30949 | AY43: 4.12173913 | AZ43: 43838.30602 | BA43: 3.973913043 | BB43: 43838.30255 | BC43: 3.926086957 | BD43: 43838.25031 | BE43: 3.773913043 | BF43: 43838.34514 | BH43: 43838.38542 | BI43: 43838.38681 | BK43: 2024-01-09T09:15:00 | BL43: 43838.38542
A44: 0 | B44: =IF(Instructions!$C$2="BST",A44,0) -> 0 | C44: 2024-01-09T14:37:00 | D44: 2024-01-09 | F44: 1 | I44: 2 | K44: 43838.60903 | L44: 1.69 | M44: LW | N44: 0.2519083969 | O44: 14:37:00 | P44: 17:00:00 | Q44: 11:00:00 | R44: 0.6027777778 | S44: =IF($M44="HW",$K44+S$6+(S$5-S$6)*$R44,$K44+S$8+(S$7-S$8)*$R44) -> 43838.64171 | T44: 2.071755725 | U44: 43838.70768 | V44: 43838.62287 | W44: 1.896946565 | X44: 43838.55208 | Y44: =IF($M44="HW",$K44+Y$6+(Y$5-Y$6)*$R44,$K44+Y$8+(Y$7-Y$8)*$R44) -> 43838.62159 | Z44: 1.697709924 | AA44: 43838.58605 | AB44: 43838.61393 | AC44: 1.572519084 | AD44: Cls | AE44: 43838.44931 | AF44: 43838.59718 | AG44: 1.497709924 | AH44: 43838.59095 | AI44: 1.597709924 | AJ44: 43838.63961 | AK44: 2.096946565 | AL44: 43838.63961 | AM44: 2.096946565 | AN44: 43838.63057 | AO44: 2.096946565 | AP44: 43838.63543 | AQ44: 1.922137405 | AR44: =IF($M44="HW",$K44+AR$6+(AR$5-AR$6)*$R44,$K44+AR$8+(AR$7-AR$8)*$R44) -> 43838.59861 | AS44: 43838.62292 | AT44: 43838.59861 | AU44: 1.697709924 | AV44: 43838.6028 | AW44: 1.672519084 | AX44: 43838.59095 | AY44: 1.497709924 | AZ44: 43838.58748 | BA44: 1.472519084 | BB44: 43838.58263 | BC44: 1.572519084 | BD44: 43838.53749 | BE44: 1.273282443 | BF44: =IF($M44="HW",$K44+BF$6+(BF$5-BF$6)*$R44,$K44+BF$8+(BF$7-BF$8)*$R44) -> 43838.63333 | BH44: 43838.66597 | BI44: 43838.64028 | BK44: 2024-01-09T15:59:00 | BL44: 43838.66597
A45: 0 | B45: =IF(Instructions!$C$2="BST",A45,0) -> 0 | C45: 2024-01-09T20:54:00 | D45: 2024-01-09 | F45: 1 | I45: 2 | K45: 43838.87083 | L45: 5.09 | M45: HW | N45: 0.5217391304 | O45: 20:54:00 | P45: 1 | Q45: 18:00:00 | R45: 0.4833333333 | S45: 43838.88281 | T45: 6.834782609 | U45: 43838.94878 | V45: 43838.88449 | W45: 6.582608696 | X45: 43838.81806 | Y45: 43838.85683 | Z45: 5.026086957 | AA45: 43838.84641 | AB45: 43838.85 | AC45: 4.626086957 | AD45: Opn | AE45: 43838.73542 | AF45: 43838.85203 | AG45: 4.073913043 | AH45: 43838.82593 | AI45: 4.42173913 | AJ45: 43838.88461 | AK45: 6.734782609 | AL45: 43838.8864 | AM45: 6.686956522 | AN45: 43838.88113 | AO45: 6.482608696 | AP45: 43838.88652 | AQ45: 5.882608696 | AR45: 43838.86042 | AS45: 43838.88125 | AT45: 43838.84676 | AU45: 4.626086957 | AV45: 43838.84676 | AW45: 4.426086957 | AX45: 43838.82413 | AY45: 4.17826087 | AZ45: 43838.82066 | BA45: 4.026086957 | BB45: 43838.81719 | BC45: 3.973913043 | BD45: 43838.76644 | BE45: 3.826086957 | BF45: 43838.86042 | BH45: 43838.90139 | BI45: 43838.90208 | BK45: 2024-01-09T21:38:00 | BL45: 43838.90139
A46: 0 | B46: =IF(Instructions!$C$2="BST",A46,0) -> 0 | C46: 2024-01-10T03:01:00 | D46: 2024-01-10 | E46: 2024-01-10 | F46: 1 | G46: Jan | H46: 10 | I46: 3 | J46: Wed | K46: 43839.12569 | L46: 1.49 | M46: LW | N46: 0.4045801527 | O46: 03:01:00 | P46: 05:00:00 | Q46: -0.04166666667 | R46: 0.6694444445 | S46: 43839.1593 | T46: 1.81221374 | U46: 43839.22527 | V46: 43839.13838 | W46: 1.652671756 | X46: 43839.06806 | Y46: 43839.13964 | Z46: 1.514503817 | AA46: 43839.10133 | AB46: 43839.13152 | AC46: 1.374045802 | AD46: Cls | AE46: 43838.96458 | AF46: 43839.11292 | AG46: 1.314503817 | AH46: 43839.10716 | AI46: 1.414503817 | AJ46: 43839.15697 | AK46: 1.852671756 | AL46: 43839.15697 | AM46: 1.852671756 | AN46: 43839.1477 | AO46: 1.852671756 | AP46: 43839.15232 | AQ46: 1.693129771 | AR46: 43839.11528 | AS46: 43839.13958 | AT46: 43839.11528 | AU46: 1.514503817 | AV46: 43839.11993 | AW46: 1.474045802 | AX46: 43839.10716 | AY46: 1.314503817 | AZ46: 43839.10368 | BA46: 1.274045802 | BB46: 43839.09906 | BC46: 1.374045802 | BD46: 43839.05393 | BE46: 1.135877863 | BF46: 43839.15 | BH46: 43839.18472 | BI46: 43839.15694 | BK46: 2024-01-10T04:26:00 | BL46: 43839.18472
A47: 0 | B47: =IF(Instructions!$C$2="BST",A47,0) -> 0 | C47: 2024-01-10T09:18:00 | D47: 2024-01-10 | E47: Wed | F47: 1 | I47: 3 | K47: 43839.3875 | L47: 5.33 | M47: HW | N47: 0.7304347826 | O47: 09:18:00 | P47: 12:00:00 | Q47: 06:00:00 | R47: 0.55 | S47: 43839.40017 | T47: 7.168695652 | U47: 43839.46615 | V47: 43839.40208 | W47: 6.895652174 | X47: 43839.33472 | Y47: 43839.37396 | Z47: 5.276521739 | AA47: 43839.36354 | AB47: 43839.36667 | AC47: 4.876521739 | AD47: Opn | AE47: 43839.25208 | AF47: 43839.36753 | AG47: 4.303478261 | AH47: 43839.34167 | AI47: 4.630434783 | AJ47: 43839.40174 | AK47: 7.068695652 | AL47: 43839.4033 | AM47: 7.04173913 | AN47: 43839.39826 | AO47: 6.795652174 | AP47: 43839.40295 | AQ47: 6.195652174 | AR47: 43839.37708 | AS47: 43839.39792 | AT47: 43839.3625 | AU47: 4.876521739 | AV47: 43839.3625 | AW47: 4.676521739 | AX47: 43839.3401 | AY47: 4.449565217 | AZ47: 43839.33663 | BA47: 4.276521739 | BB47: 43839.33316 | BC47: 4.203478261 | BD47: 43839.28403 | BE47: 4.076521739 | BF47: 43839.37708 | BH47: 43839.41806 | BI47: 43839.41875 | BK47: 2024-01-10T10:02:00 | BL47: 43839.41806
A48: 0 | B48: =IF(Instructions!$C$2="BST",A48,0) -> 0 | C48: 2024-01-10T15:24:00 | D48: 2024-01-10 | F48: 1 | I48: 3 | K48: 43839.64167 | L48: 1.36 | M48: LW | N48: 0.5038167939 | O48: 15:24:00 | P48: 17:00:00 | Q48: 11:00:00 | R48: 0.7333333333 | S48: 43839.67616 | T48: 1.64351145 | U48: 43839.74213 | V48: 43839.65324 | W48: 1.49389313 | X48: 43839.58472 | Y48: 43839.65694 | Z48: 1.395419847 | AA48: 43839.61597 | AB48: 43839.64838 | AC48: 1.245038168 | AD48: Cls | AE48: 43839.48125 | AF48: 43839.62801 | AG48: 1.195419847 | AH48: 43839.62269 | AI48: 1.295419847 | AJ48: 43839.67361 | AK48: 1.69389313 | AL48: 43839.67361 | AM48: 1.69389313 | AN48: 43839.66412 | AO48: 1.69389313 | AP48: 43839.66852 | AQ48: 1.544274809 | AR48: 43839.63125 | AS48: 43839.65556 | AT48: 43839.63125 | AU48: 1.395419847 | AV48: 43839.63634 | AW48: 1.345038168 | AX48: 43839.62269 | AY48: 1.195419847 | AZ48: 43839.61921 | BA48: 1.145038168 | BB48: 43839.61481 | BC48: 1.245038168 | BD48: 43839.56968 | BE48: 1.046564885 | BF48: 43839.66597 | BH48: 43839.70278 | BI48: 43839.67292 | BK48: 2024-01-10T16:52:00 | BL48: 43839.70278
A49: 0 | B49: =IF(Instructions!$C$2="BST",A49,0) -> 0 | C49: 2024-01-10T21:41:00 | D49: 2024-01-10 | F49: 1 | I49: 3 | K49: 43839.90347 | L49: 5.31 | M49: HW | N49: 0.7130434783 | O49: 21:41:00 | P49: 1 | Q49: 18:00:00 | R49: 0.6138888889 | S49: 43839.91681 | T49: 7.140869565 | U49: 43839.98278 | V49: 43839.91894 | W49: 6.869565217 | X49: 43839.85139 | Y49: 43839.89037 | Z49: 5.255652174 | AA49: 43839.87996 | AB49: 43839.88264 | AC49: 4.855652174 | AD49: Opn | AE49: 43839.76806 | AF49: 43839.8824 | AG49: 4.284347826 | AH49: 43839.85675 | AI49: 4.613043478 | AJ49: 43839.91815 | AK49: 7.040869565 | AL49: 43839.91949 | AM49: 7.012173913 | AN49: 43839.91468 | AO49: 6.769565217 | AP49: 43839.9187 | AQ49: 6.169565217 | AR49: 43839.89306 | AS49: 43839.91389 | AT49: 43839.87758 | AU49: 4.855652174 | AV49: 43839.87758 | AW49: 4.655652174 | AX49: 43839.85541 | AY49: 4.426956522 | AZ49: 43839.85194 | BA49: 4.255652174 | BB49: 43839.84847 | BC49: 4.184347826 | BD49: 43839.80089 | BE49: 4.055652174 | BF49: 43839.89306 | BH49: 43839.93472 | BI49: 43839.93472 | BK49: 2024-01-10T22:26:00 | BL49: 43839.93472
A50: 0 | B50: =IF(Instructions!$C$2="BST",A50,0) -> 0 | C50: 2024-01-11T03:45:00 | D50: 2024-01-11 | E50: 2024-01-11 | F50: 1 | G50: Jan | H50: 11 | I50: 4 | J50: Thu | K50: 43840.15625 | L50: 1.26 | M50: LW | N50: 0.5801526718 | O50: 03:45:00 | P50: 05:00:00 | Q50: -0.04166666667 | R50: 0.7916666667 | S50: 43840.19155 | T50: 1.513740458 | U50: 43840.25752 | V50: 43840.16681 | W50: 1.371755725 | X50: 43840.10139 | Y50: 43840.17274 | Z50: 1.303816794 | AA50: 43840.12934 | AB50: 43840.16377 | AC50: 1.145801527 | AD50: Cls | AE50: 43839.99722 | AF50: 43840.14178 | AG50: 1.103816794 | AH50: 43840.13686 | AI50: 1.203816794 | AJ50: 43840.1888 | AK50: 1.571755725 | AL50: 43840.1888 | AM50: 1.571755725 | AN50: 43840.17911 | AO50: 1.571755725 | AP50: 43840.1833 | AQ50: 1.429770992 | AR50: 43840.14583 | AS50: 43840.17014 | AT50: 43840.14583 | AU50: 1.303816794 | AV50: 43840.15133 | AW50: 1.245801527 | AX50: 43840.13686 | AY50: 1.103816794 | AZ50: 43840.13339 | BA50: 1.045801527 | BB50: 43840.1292 | BC50: 1.145801527 | BD50: 43840.08406 | BE50: 0.9778625954 | BF50: 43840.18056 | BH50: 43840.21875 | BI50: 43840.1875 | BK50: 2024-01-11T05:15:00 | BL50: 43840.21875
A51: 0 | B51: =IF(Instructions!$C$2="BST",A51,0) -> 0 | C51: 2024-01-11T10:01:00 | D51: 2024-01-11 | E51: Thu | F51: 1 | I51: 4 | K51: 43840.41736 | L51: 5.60 | M51: HW | N51: 0.9652173913 | O51: 10:01:00 | P51: 12:00:00 | Q51: 06:00:00 | R51: 0.6694444444 | S51: 43840.43128 | T51: 7.544347826 | U51: 43840.49725 | V51: 43840.4336 | W51: 7.247826087 | X51: 43840.36597 | Y51: 43840.40465 | Z51: 5.55826087 | AA51: 43840.39423 | AB51: 43840.39653 | AC51: 5.15826087 | AD51: Opn | AE51: 43840.28194 | AF51: 43840.39532 | AG51: 4.56173913 | AH51: 43840.36987 | AI51: 4.865217391 | AJ51: 43840.43243 | AK51: 7.444347826 | AL51: 43840.43357 | AM51: 7.440869565 | AN51: 43840.42895 | AO51: 7.147826087 | AP51: 43840.4324 | AQ51: 6.547826087 | AR51: 43840.40694 | AS51: 43840.42778 | AT51: 43840.3907 | AU51: 5.15826087 | AV51: 43840.3907 | AW51: 4.95826087 | AX51: 43840.36872 | AY51: 4.754782609 | AZ51: 43840.36525 | BA51: 4.55826087 | BB51: 43840.36178 | BC51: 4.46173913 | BD51: 43840.31555 | BE51: 4.35826087 | BF51: 43840.40694 | BH51: 43840.44931 | BI51: 43840.44861 | BK51: 2024-01-11T10:47:00 | BL51: 43840.44931
A52: 0 | B52: =IF(Instructions!$C$2="BST",A52,0) -> 0 | C52: 2024-01-11T16:09:00 | D52: 2024-01-11 | F52: 1 | I52: 4 | K52: 43840.67292 | L52: 1.04 | M52: LW | N52: 0.7480916031 | O52: 16:09:00 | P52: 17:00:00 | Q52: 11:00:00 | R52: 0.8583333333 | S52: 43840.70914 | T52: 1.228244275 | U52: 43840.77512 | V52: 43840.68232 | W52: 1.103053435 | X52: 43840.61597 | Y52: 43840.6908 | Z52: 1.102290076 | AA52: 43840.64462 | AB52: 43840.68137 | AC52: 0.927480916 | AD52: Cls | AE52: 43840.51111 | AF52: 43840.65752 | AG52: 0.9022900763 | AH52: 43840.65307 | AI52: 1.002290076 | AJ52: 43840.70616 | AK52: 1.303053435 | AL52: 43840.70616 | AM52: 1.303053435 | AN52: 43840.69624 | AO52: 1.303053435 | AP52: 43840.7002 | AQ52: 1.177862595 | AR52: 43840.6625 | AS52: 43840.68681 | AT52: 43840.6625 | AU52: 1.102290076 | AV52: 43840.66846 | AW52: 1.027480916 | AX52: 43840.65307 | AY52: 0.9022900763 | AZ52: 43840.64959 | BA52: 0.827480916 | BB52: 43840.64563 | BC52: 0.927480916 | BD52: 43840.60049 | BE52: 0.8267175573 | BF52: 43840.69722 | BH52: 43840.7375 | BI52: 43840.70417 | BK52: 2024-01-11T17:42:00 | BL52: 43840.7375
A53: 0 | B53: =IF(Instructions!$C$2="BST",A53,0) -> 0 | C53: 2024-01-11T22:27:00 | D53: 2024-01-11 | F53: 1 | I53: 4 | K53: 43840.93542 | L53: 5.48 | M53: HW | N53: 0.8608695652 | O53: 22:27:00 | P53: 1 | Q53: 18:00:00 | R53: 0.7416666667 | S53: 43840.95009 | T53: 7.377391304 | U53: 43841.01606 | V53: 43840.95266 | W53: 7.091304348 | X53: 43840.88403 | Y53: 43840.92321 | Z53: 5.433043478 | AA53: 43840.91279 | AB53: 43840.91458 | AC53: 5.033043478 | AD53: Opn | AE53: 43840.8 | AF53: 43840.91212 | AG53: 4.446956522 | AH53: 43840.88692 | AI53: 4.760869565 | AJ53: 43840.95098 | AK53: 7.277391304 | AL53: 43840.95188 | AM53: 7.263478261 | AN53: 43840.94751 | AO53: 6.991304348 | AP53: 43840.9502 | AQ53: 6.391304348 | AR53: 43840.925 | AS53: 43840.94583 | AT53: 43840.90775 | AU53: 5.033043478 | AV53: 43840.90775 | AW53: 4.833043478 | AX53: 43840.88602 | AY53: 4.619130435 | AZ53: 43840.88255 | BA53: 4.433043478 | BB53: 43840.87908 | BC53: 4.346956522 | BD53: 43840.83461 | BE53: 4.233043478 | BF53: 43840.925 | BH53: 43840.96736 | BI53: 43840.96667 | BK53: 2024-01-11T23:13:00 | BL53: 43840.96736
A54: 0 | B54: =IF(Instructions!$C$2="BST",A54,0) -> 0 | C54: 2024-01-12T04:29:00 | D54: 2024-01-12 | E54: 2024-01-12 | F54: 1 | G54: Jan | H54: 12 | I54: 5 | J54: Fri | K54: 43841.18681 | L54: 1.07 | M54: LW | N54: 0.7251908397 | O54: 04:29:00 | P54: 05:00:00 | Q54: -0.04166666667 | R54: 0.9138888889 | S54: 43841.2238 | T54: 1.267175573 | U54: 43841.28978 | V54: 43841.19524 | W54: 1.139694656 | X54: 43841.13403 | Y54: 43841.20584 | Z54: 1.129770992 | AA54: 43841.15735 | AB54: 43841.19603 | AC54: 0.9572519084 | AD54: Cls | AE54: 43841.02917 | AF54: 43841.17064 | AG54: 0.9297709924 | AH54: 43841.16657 | AI54: 1.029770992 | AJ54: 43841.22063 | AK54: 1.339694656 | AL54: 43841.22063 | AM54: 1.339694656 | AN54: 43841.21051 | AO54: 1.339694656 | AP54: 43841.21428 | AQ54: 1.21221374 | AR54: 43841.17639 | AS54: 43841.20069 | AT54: 43841.17639 | AU54: 1.129770992 | AV54: 43841.18274 | AW54: 1.057251908 | AX54: 43841.16657 | AY54: 0.9297709924 | AZ54: 43841.1631 | BA54: 0.8572519084 | BB54: 43841.15933 | BC54: 0.9572519084 | BD54: 43841.11419 | BE54: 0.8473282443 | BF54: 43841.21111 | BH54: 43841.25208 | BI54: 43841.21806 | BK54: 2024-01-12T06:03:00 | BL54: 43841.25208
A55: 0 | B55: =IF(Instructions!$C$2="BST",A55,0) -> 0 | C55: 2024-01-12T10:44:00 | D55: 2024-01-12 | E55: Fri | F55: 1 | I55: 5 | K55: 43841.44722 | L55: 5.81 | M55: HW | N55: 1.147826087 | O55: 10:44:00 | P55: 12:00:00 | Q55: 06:00:00 | R55: 0.7888888889 | S55: 43841.46238 | T55: 7.836521739 | U55: 43841.52836 | V55: 43841.46512 | W55: 7.52173913 | X55: 43841.39653 | Y55: 43841.43534 | Z55: 5.777391304 | AA55: 43841.42492 | AB55: 43841.42639 | AC55: 5.377391304 | AD55: Opn | AE55: 43841.31181 | AF55: 43841.42311 | AG55: 4.762608696 | AH55: 43841.39807 | AI55: 5.047826087 | AJ55: 43841.46312 | AK55: 7.736521739 | AL55: 43841.46385 | AM55: 7.751304348 | AN55: 43841.45965 | AO55: 7.42173913 | AP55: 43841.46184 | AQ55: 6.82173913 | AR55: 43841.43681 | AS55: 43841.45764 | AT55: 43841.4189 | AU55: 5.377391304 | AV55: 43841.4189 | AW55: 5.177391304 | AX55: 43841.39734 | AY55: 4.992173913 | AZ55: 43841.39387 | BA55: 4.777391304 | BB55: 43841.39039 | BC55: 4.662608696 | BD55: 43841.34707 | BE55: 4.577391304 | BF55: 43841.43681 | BH55: 43841.47986 | BI55: 43841.47847 | BK55: 2024-01-12T11:31:00 | BL55: 43841.47986
A56: 0 | B56: =IF(Instructions!$C$2="BST",A56,0) -> 0 | C56: 2024-01-12T16:55:00 | D56: 2024-01-12 | F56: 1 | I56: 5 | K56: 43841.70486 | L56: 0.78 | M56: LW | N56: 0.9465648855 | O56: 16:55:00 | P56: 17:00:00 | Q56: 11:00:00 | R56: 0.9861111111 | S56: 43841.74286 | T56: 0.8908396947 | U56: 43841.80883 | V56: 43841.71205 | W56: 0.7854961832 | X56: 43841.64653 | Y56: 43841.72541 | Z56: 0.8641221374 | AA56: 43841.6739 | AB56: 43841.71508 | AC56: 0.6694656489 | AD56: Cls | AE56: 43841.54097 | AF56: 43841.68769 | AG56: 0.6641221374 | AH56: 43841.68412 | AI56: 0.7641221374 | AJ56: 43841.73944 | AK56: 0.9854961832 | AL56: 43841.73944 | AM56: 0.9854961832 | AN56: 43841.72907 | AO56: 0.9854961832 | AP56: 43841.73259 | AQ56: 0.8801526718 | AR56: 43841.69444 | AS56: 43841.71875 | AT56: 43841.69444 | AU56: 0.8641221374 | AV56: 43841.70129 | AW56: 0.7694656489 | AX56: 43841.68412 | AY56: 0.6641221374 | AZ56: 43841.68065 | BA56: 0.5694656489 | BB56: 43841.67713 | BC56: 0.6694656489 | BD56: 43841.63199 | BE56: 0.6480916031 | BF56: 43841.72917 | BH56: 43841.77083 | BI56: 43841.73611 | BK56: 2024-01-12T18:30:00 | BL56: 43841.77083
A57: 0 | B57: =IF(Instructions!$C$2="BST",A57,0) -> 0 | C57: 2024-01-12T23:12:00 | D57: 2024-01-12 | F57: 1 | I57: 5 | K57: 43841.96667 | L57: 5.58 | M57: HW | N57: 0.947826087 | O57: 23:12:00 | P57: 1 | Q57: 18:00:00 | R57: 0.8666666667 | S57: 43841.98264 | T57: 7.516521739 | U57: 43842.04861 | V57: 43841.98565 | W57: 7.22173913 | X57: 43841.91597 | Y57: 43841.95532 | Z57: 5.537391304 | AA57: 43841.94491 | AB57: 43841.94583 | AC57: 5.137391304 | AD57: Opn | AE57: 43841.83125 | AF57: 43841.9412 | AG57: 4.542608696 | AH57: 43841.91644 | AI57: 4.847826087 | AJ57: 43841.9831 | AK57: 7.416521739 | AL57: 43841.98356 | AM57: 7.411304348 | AN57: 43841.97963 | AO57: 7.12173913 | AP57: 43841.98102 | AQ57: 6.52173913 | AR57: 43841.95625 | AS57: 43841.97708 | AT57: 43841.93727 | AU57: 5.137391304 | AV57: 43841.93727 | AW57: 4.937391304 | AX57: 43841.91597 | AY57: 4.732173913 | AZ57: 43841.9125 | BA57: 4.537391304 | BB57: 43841.90903 | BC57: 4.442608696 | BD57: 43841.86759 | BE57: 4.337391304 | BF57: 43841.95625 | BH57: 43841.99931 | BI57: 43841.99792 | BK57: 2024-01-12T23:59:00 | BL57: 43841.99931
A58: 0 | B58: =IF(Instructions!$C$2="BST",A58,0) -> 0 | C58: 2024-01-13T05:13:00 | D58: 2024-01-13 | E58: 2024-01-13 | F58: 1 | G58: Jan | H58: 13 | I58: 6 | J58: Sat | K58: 43842.21736 | L58: 0.94 | M58: LW | N58: 0.8244274809 | O58: 05:13:00 | P58: 05:00:00 | Q58: 11:00:00 | R58: 0.9638888889 | S58: 43842.25505 | T58: 1.098473282 | U58: 43842.32103 | V58: 43842.22493 | W58: 0.9809160305 | X58: 43842.16597 | Y58: 43842.23744 | Z58: 1.010687023 | AA58: 43842.18686 | AB58: 43842.22728 | AC58: 0.8282442748 | AD58: Cls | AE58: 43842.06042 | AF58: 43842.2005 | AG58: 0.8106870229 | AH58: 43842.19678 | AI58: 0.9106870229 | AJ58: 43842.25171 | AK58: 1.180916031 | AL58: 43842.25171 | AM58: 1.180916031 | AN58: 43842.24142 | AO58: 1.180916031 | AP58: 43842.24501 | AQ58: 1.063358779 | AR58: 43842.20694 | AS58: 43842.23125 | AT58: 43842.20694 | AU58: 1.010687023 | AV58: 43842.21364 | AW58: 0.9282442748 | AX58: 43842.19678 | AY58: 0.8106870229 | AZ58: 43842.19331 | BA58: 0.7282442748 | BB58: 43842.18971 | BC58: 0.8282442748 | BD58: 43842.14457 | BE58: 0.7580152672 | BF58: 43842.24167 | BH58: 43842.28403 | BI58: 43842.24861 | BK58: 2024-01-13T06:49:00 | BL58: 43842.28403
A59: 0 | B59: =IF(Instructions!$C$2="BST",A59,0) -> 0 | C59: 2024-01-13T11:28:00 | D59: 2024-01-13 | E59: Sat | F59: 1 | I59: 6 | K59: 43842.47778 | L59: 5.95 | M59: HW | N59: 1.269565217 | O59: 11:28:00 | P59: 12:00:00 | Q59: 06:00:00 | R59: 0.9111111111 | S59: 43842.49421 | T59: 8.031304348 | U59: 43842.56019 | V59: 43842.49738 | W59: 7.704347826 | X59: 43842.42778 | Y59: 43842.46674 | Z59: 5.923478261 | AA59: 43842.45633 | AB59: 43842.45694 | AC59: 5.523478261 | AD59: Opn | AE59: 43842.34236 | AF59: 43842.45154 | AG59: 4.896521739 | AH59: 43842.42693 | AI59: 5.169565217 | AJ59: 43842.49452 | AK59: 7.931304348 | AL59: 43842.49483 | AM59: 7.95826087 | AN59: 43842.49105 | AO59: 7.604347826 | AP59: 43842.49198 | AQ59: 7.004347826 | AR59: 43842.46736 | AS59: 43842.48819 | AT59: 43842.44776 | AU59: 5.523478261 | AV59: 43842.44776 | AW59: 5.323478261 | AX59: 43842.42662 | AY59: 5.150434783 | AZ59: 43842.42315 | BA59: 4.923478261 | BB59: 43842.41968 | BC59: 4.796521739 | BD59: 43842.37932 | BE59: 4.723478261 | BF59: 43842.46736 | BH59: 43842.51111 | BI59: 43842.50903 | BK59: 2024-01-13T12:16:00 | BL59: 43842.51111
A60: 0 | B60: =IF(Instructions!$C$2="BST",A60,0) -> 0 | C60: 2024-01-13T17:41:00 | D60: 2024-01-13 | F60: 1 | I60: 6 | K60: 43842.73681 | L60: 0.62 | M60: LW | N60: 1.06870229 | O60: 17:41:00 | P60: 17:00:00 | Q60: 23:00:00 | R60: 0.8861111111 | S60: 43842.77342 | T60: 0.6832061069 | U60: 43842.83939 | V60: 43842.74573 | W60: 0.5900763359 | X60: 43842.67778 | Y60: 43842.75527 | Z60: 0.7175572519 | AA60: 43842.70793 | AB60: 43842.74564 | AC60: 0.5106870229 | AD60: Cls | AE60: 43842.57153 | AF60: 43842.72103 | AG60: 0.5175572519 | AH60: 43842.71676 | AI60: 0.6175572519 | AJ60: 43842.77034 | AK60: 0.7900763359 | AL60: 43842.77034 | AM60: 0.7900763359 | AN60: 43842.76032 | AO60: 0.7900763359 | AP60: 43842.76419 | AQ60: 0.6969465649 | AR60: 43842.72639 | AS60: 43842.75069 | AT60: 43842.72639 | AU60: 0.7175572519 | AV60: 43842.73254 | AW60: 0.6106870229 | AX60: 43842.71676 | AY60: 0.5175572519 | AZ60: 43842.71329 | BA60: 0.4106870229 | BB60: 43842.70942 | BC60: 0.5106870229 | BD60: 43842.66428 | BE60: 0.5381679389 | BF60: 43842.76111 | BH60: 43842.80208 | BI60: 43842.76806 | BK60: 2024-01-13T19:15:00 | BL60: 43842.80208
A61: 0 | B61: =IF(Instructions!$C$2="BST",A61,0) -> 0 | C61: 2024-01-13T23:57:00 | D61: 2024-01-13 | F61: 1 | I61: 6 | K61: 43842.99792 | L61: 5.60 | M61: HW | N61: 0.9652173913 | O61: 23:57:00 | P61: 1 | Q61: 18:00:00 | R61: 0.9916666667 | S61: =IF($M61="HW",$K61+S$6+(S$5-S$6)*$R61,$K61+S$8+(S$7-S$8)*$R61) -> 43843.01519 | T61: 7.544347826 | U61: 43843.08116 | V61: 43843.01863 | W61: 7.247826087 | X61: 43842.94792 | Y61: =IF($M61="HW",$K61+Y$6+(Y$5-Y$6)*$R61,$K61+Y$8+(Y$7-Y$8)*$R61) -> 43842.98744 | Z61: 5.55826087 | AA61: 43842.97703 | AB61: 43842.97708 | AC61: 5.15826087 | AD61: Opn | AE61: 43842.8625 | AF61: 43842.97028 | AG61: 4.56173913 | AH61: 43842.94595 | AI61: 4.865217391 | AJ61: 43843.01522 | AK61: 7.444347826 | AL61: 43843.01525 | AM61: 7.440869565 | AN61: 43843.01175 | AO61: 7.147826087 | AP61: 43843.01183 | AQ61: 6.547826087 | AR61: =IF($M61="HW",$K61+AR$6+(AR$5-AR$6)*$R61,$K61+AR$8+(AR$7-AR$8)*$R61) -> 43842.9875 | AS61: 43843.00833 | AT61: 43842.96678 | AU61: 5.15826087 | AV61: 43842.96678 | AW61: 4.95826087 | AX61: 43842.94592 | AY61: 4.754782609 | AZ61: 43842.94245 | BA61: 4.55826087 | BB61: 43842.93898 | BC61: 4.46173913 | BD61: 43842.90058 | BE61: 4.35826087 | BF61: =IF($M61="HW",$K61+BF$6+(BF$5-BF$6)*$R61,$K61+BF$8+(BF$7-BF$8)*$R61) -> 43842.9875 | BH61: 43843.03125 | BI61: 43843.02917 | BK61: 2024-01-14T00:45:00 | BL61: 43843.03125
A62: 0 | B62: =IF(Instructions!$C$2="BST",A62,0) -> 0 | C62: 2024-01-14T05:58:00 | D62: 2024-01-14 | E62: 2024-01-14 | F62: 1 | G62: Jan | H62: 14 | I62: 7 | J62: Sun | K62: 43843.24861 | L62: 0.90 | M62: LW | N62: 0.8549618321 | O62: 05:58:00 | P62: 05:00:00 | Q62: 11:00:00 | R62: 0.8388888889 | S62: 43843.28457 | T62: 1.046564885 | U62: 43843.35054 | V62: 43843.25835 | W62: 0.9320610687 | X62: 43843.19792 | Y62: 43843.26609 | Z62: 0.9740458015 | AA62: 43843.22072 | AB62: 43843.25679 | AC62: 0.7885496183 | AD62: Cls | AE62: 43843.09167 | AF62: 43843.23349 | AG62: 0.7740458015 | AH62: 43843.2289 | AI62: 0.8740458015 | AJ62: 43843.28166 | AK62: 1.132061069 | AL62: 43843.28166 | AM62: 1.132061069 | AN62: 43843.2718 | AO62: 1.132061069 | AP62: 43843.27583 | AQ62: 1.017557252 | AR62: 43843.23819 | AS62: 43843.2625 | AT62: 43843.23819 | AU62: 0.9740458015 | AV62: 43843.24402 | AW62: 0.8885496183 | AX62: 43843.2289 | AY62: 0.7740458015 | AZ62: 43843.22542 | BA62: 0.6885496183 | BB62: 43843.22139 | BC62: 0.7885496183 | BD62: 43843.17625 | BE62: 0.7305343511 | BF62: 43843.27292 | BH62: 43843.31458 | BI62: 43843.27986 | BK62: 2024-01-14T07:33:00 | BL62: 43843.31458
A63: 0 | B63: =IF(Instructions!$C$2="BST",A63,0) -> 0 | C63: 2024-01-14T12:13:00 | D63: 2024-01-14 | E63: Sun | F63: 1 | I63: 7 | K63: 43843.50903 | L63: 5.99 | M63: HW | N63: 1.304347826 | O63: 12:13:00 | P63: 12:00:00 | Q63: 18:00:00 | R63: 0.9638888889 | S63: 43843.52601 | T63: 8.086956522 | U63: 43843.59198 | V63: 43843.52936 | W63: 7.756521739 | X63: 43843.45903 | Y63: 43843.49836 | Z63: 5.965217391 | AA63: 43843.48794 | AB63: 43843.48819 | AC63: 5.565217391 | AD63: Opn | AE63: 43843.37361 | AF63: 43843.48188 | AG63: 4.934782609 | AH63: 43843.45745 | AI63: 5.204347826 | AJ63: 43843.52614 | AK63: 7.986956522 | AL63: 43843.52626 | AM63: 8.017391304 | AN63: 43843.52267 | AO63: 7.656521739 | AP63: 43843.52304 | AQ63: 7.056521739 | AR63: 43843.49861 | AS63: 43843.51944 | AT63: 43843.47828 | AU63: 5.565217391 | AV63: 43843.47828 | AW63: 5.365217391 | AX63: 43843.45732 | AY63: 5.195652174 | AZ63: 43843.45385 | BA63: 4.965217391 | BB63: 43843.45038 | BC63: 4.834782609 | BD63: 43843.4113 | BE63: 4.765217391 | BF63: 43843.49861 | BH63: 43843.54236 | BI63: 43843.54028 | BK63: 2024-01-14T13:01:00 | BL63: 43843.54236
A64: 0 | B64: =IF(Instructions!$C$2="BST",A64,0) -> 0 | C64: 2024-01-14T18:28:00 | D64: 2024-01-14 | F64: 1 | I64: 7 | K64: 43843.76944 | L64: 0.58 | M64: LW | N64: 1.099236641 | O64: 18:28:00 | P64: 17:00:00 | Q64: 23:00:00 | R64: 0.7555555556 | S64: 43843.80424 | T64: 0.6312977099 | U64: 43843.87022 | V64: 43843.78063 | W64: 0.541221374 | X64: 43843.70903 | Y64: 43843.78519 | Z64: 0.6809160305 | AA64: 43843.74329 | AB64: 43843.77647 | AC64: 0.4709923664 | AD64: Cls | AE64: 43843.60278 | AF64: 43843.75548 | AG64: 0.4809160305 | AH64: 43843.75031 | AI64: 0.5809160305 | AJ64: 43843.80162 | AK64: 0.741221374 | AL64: 43843.80162 | AM64: 0.741221374 | AN64: 43843.79205 | AO64: 0.741221374 | AP64: 43843.79637 | AQ64: 0.6511450382 | AR64: 43843.75903 | AS64: 43843.78333 | AT64: 43843.75903 | AU64: 0.6809160305 | AV64: 43843.76427 | AW64: 0.5709923664 | AX64: 43843.75031 | AY64: 0.4809160305 | AZ64: 43843.74684 | BA64: 0.3709923664 | BB64: 43843.74252 | BC64: 0.4709923664 | BD64: 43843.69738 | BE64: 0.5106870229 | BF64: 43843.79375 | BH64: 43843.83403 | BI64: 43843.80069 | BK64: 2024-01-14T20:01:00 | BL64: 43843.83403
A65: 0 | B65: =IF(Instructions!$C$2="BST",A65,0) -> 0 | C65: 2024-01-15T00:44:00 | D65: 2024-01-15 | E65: 2024-01-15 | F65: 1 | G65: Jan | H65: 15 | I65: 1 | J65: Mon | K65: 43844.03056 | L65: 5.52 | M65: HW | N65: 0.8956521739 | O65: 00:44:00 | P65: 00:00:00 | Q65: 06:00:00 | R65: 0.8777777778 | S65: 43844.04664 | T65: 7.433043478 | U65: 43844.11262 | V65: 43844.04969 | W65: 7.143478261 | X65: 43843.98056 | Y65: 43844.01929 | Z65: 5.474782609 | AA65: 43844.00887 | AB65: 43844.00972 | AC65: 5.074782609 | AD65: Opn | AE65: 43843.89514 | AF65: 43844.0049 | AG65: 4.485217391 | AH65: 43843.98017 | AI65: 4.795652174 | AJ65: 43844.04707 | AK65: 7.333043478 | AL65: 43844.04749 | AM65: 7.322608696 | AN65: 43844.0436 | AO65: 7.043478261 | AP65: 43844.04487 | AQ65: 6.443478261 | AR65: 43844.02014 | AS65: 43844.04097 | AT65: 43844.001 | AU65: 5.074782609 | AV65: 43844.001 | AW65: 4.874782609 | AX65: 43843.97975 | AY65: 4.664347826 | AZ65: 43843.97627 | BA65: 4.474782609 | BB65: 43843.9728 | BC65: 4.385217391 | BD65: 43843.93164 | BE65: 4.274782609 | BF65: 43844.02014 | BH65: 43844.06389 | BI65: 43844.06181 | BK65: 2024-01-15T01:32:00 | BL65: 43844.06389
A66: 0 | B66: =IF(Instructions!$C$2="BST",A66,0) -> 0 | C66: 2024-01-15T06:44:00 | D66: 2024-01-15 | E66: Mon | F66: 1 | I66: 1 | K66: 43844.28056 | L66: 0.95 | M66: LW | N66: 0.8167938931 | O66: 06:44:00 | P66: 05:00:00 | Q66: 11:00:00 | R66: 0.7111111111 | S66: 43844.31474 | T66: 1.111450382 | U66: 43844.38071 | V66: 43844.29252 | W66: 0.993129771 | X66: 43844.23056 | Y66: 43844.29537 | Z66: 1.019847328 | AA66: 43844.25532 | AB66: 43844.28696 | AC66: 0.8381679389 | AD66: Cls | AE66: 43844.12431 | AF66: 43844.26721 | AG66: 0.8198473282 | AH66: 43844.26173 | AI66: 0.9198473282 | AJ66: 43844.31227 | AK66: 1.193129771 | AL66: 43844.31227 | AM66: 1.193129771 | AN66: 43844.30285 | AO66: 1.193129771 | AP66: 43844.30733 | AQ66: 1.07480916 | AR66: 43844.27014 | AS66: 43844.29444 | AT66: 43844.27014 | AU66: 1.019847328 | AV66: 43844.27508 | AW66: 0.9381679389 | AX66: 43844.26173 | AY66: 0.8198473282 | AZ66: 43844.25826 | BA66: 0.7381679389 | BB66: 43844.25378 | BC66: 0.8381679389 | BD66: 43844.20864 | BE66: 0.7648854962 | BF66: 43844.30486 | BH66: 43844.34514 | BI66: 43844.31181 | BK66: 2024-01-15T08:17:00 | BL66: 43844.34514
A67: 0 | B67: =IF(Instructions!$C$2="BST",A67,0) -> 0 | C67: 2024-01-15T12:59:00 | D67: 2024-01-15 | F67: 1 | I67: 1 | K67: 43844.54097 | L67: 5.93 | M67: HW | N67: 1.252173913 | O67: 12:59:00 | P67: 12:00:00 | Q67: 18:00:00 | R67: 0.8361111111 | S67: 43844.55663 | T67: 8.003478261 | U67: 43844.6226 | V67: 43844.55953 | W67: 7.67826087 | X67: 43844.49097 | Y67: 43844.52942 | Z67: 5.902608696 | AA67: 43844.519 | AB67: 43844.52014 | AC67: 5.502608696 | AD67: Opn | AE67: 43844.40556 | AF67: 43844.51604 | AG67: 4.877391304 | AH67: 43844.49117 | AI67: 5.152173913 | AJ67: 43844.5572 | AK67: 7.903478261 | AL67: 43844.55776 | AM67: 7.928695652 | AN67: 43844.55372 | AO67: 7.57826087 | AP67: 43844.55543 | AQ67: 6.97826087 | AR67: 43844.53056 | AS67: 43844.55139 | AT67: 43844.512 | AU67: 5.502608696 | AV67: 43844.512 | AW67: 5.302608696 | AX67: 43844.4906 | AY67: 5.127826087 | AZ67: 43844.48712 | BA67: 4.902608696 | BB67: 43844.48365 | BC67: 4.777391304 | BD67: 43844.44147 | BE67: 4.702608696 | BF67: 43844.53056 | BH67: 43844.57431 | BI67: 43844.57222 | BK67: 2024-01-15T13:47:00 | BL67: 43844.57431
A68: 0 | B68: =IF(Instructions!$C$2="BST",A68,0) -> 0 | C68: 2024-01-15T19:16:00 | D68: 2024-01-15 | F68: 1 | I68: 1 | K68: 43844.80278 | L68: 0.65 | M68: LW | N68: 1.045801527 | O68: 19:16:00 | P68: 17:00:00 | Q68: 23:00:00 | R68: 0.6222222222 | S68: 43844.83573 | T68: 0.7221374046 | U68: 43844.9017 | V68: 43844.81628 | W68: 0.6267175573 | X68: 43844.74097 | Y68: 43844.81574 | Z68: 0.7450381679 | AA68: 43844.7794 | AB68: 43844.80795 | AC68: 0.5404580153 | AD68: Cls | AE68: 43844.63472 | AF68: 43844.79066 | AG68: 0.5450381679 | AH68: 43844.78457 | AI68: 0.6450381679 | AJ68: 43844.83356 | AK68: 0.8267175573 | AL68: 43844.83356 | AM68: 0.8267175573 | AN68: 43844.82446 | AO68: 0.8267175573 | AP68: 43844.82924 | AQ68: 0.7312977099 | AR68: 43844.79236 | AS68: 43844.81667 | AT68: 43844.79236 | AU68: 0.7450381679 | AV68: 43844.79668 | AW68: 0.6404580153 | AX68: 43844.78457 | AY68: 0.5450381679 | AZ68: 43844.7811 | BA68: 0.4404580153 | BB68: 43844.77631 | BC68: 0.5404580153 | BD68: 43844.73117 | BE68: 0.558778626 | BF68: 43844.82708 | BH68: 43844.86458 | BI68: 43844.83403 | BK68: 2024-01-15T20:45:00 | BL68: 43844.86458
A69: 0 | B69: =IF(Instructions!$C$2="BST",A69,0) -> 0 | C69: 2024-01-16T01:32:00 | D69: 2024-01-16 | E69: 2024-01-16 | F69: 1 | G69: Jan | H69: 16 | I69: 2 | J69: Tue | K69: 43845.06389 | L69: 5.37 | M69: HW | N69: 0.7652173913 | O69: 01:32:00 | P69: 00:00:00 | Q69: 06:00:00 | R69: 0.7444444445 | S69: 43845.07859 | T69: 7.224347826 | U69: 43845.14456 | V69: 43845.08117 | W69: 6.947826087 | X69: 43845.0125 | Y69: 43845.0517 | Z69: 5.31826087 | AA69: 43845.04128 | AB69: 43845.04306 | AC69: 4.91826087 | AD69: Opn | AE69: 43844.92847 | AF69: 43845.04055 | AG69: 4.34173913 | AH69: 43845.01535 | AI69: 4.665217391 | AJ69: 43845.07948 | AK69: 7.124347826 | AL69: 43845.08036 | AM69: 7.100869565 | AN69: 43845.076 | AO69: 6.847826087 | AP69: 43845.07867 | AQ69: 6.247826087 | AR69: 43845.05347 | AS69: 43845.07431 | AT69: 43845.03619 | AU69: 4.91826087 | AV69: 43845.03619 | AW69: 4.71826087 | AX69: 43845.01447 | AY69: 4.494782609 | AZ69: 43845.011 | BA69: 4.31826087 | BB69: 43845.00752 | BC69: 4.24173913 | BD69: 43844.96312 | BE69: 4.11826087 | BF69: 43845.05347 | BH69: 43845.09583 | BI69: 43845.09514 | BK69: 2024-01-16T02:18:00 | BL69: 43845.09583
A70: 0 | B70: =IF(Instructions!$C$2="BST",A70,0) -> 0 | C70: 2024-01-16T07:32:00 | D70: 2024-01-16 | E70: Tue | F70: 1 | I70: 2 | K70: 43845.31389 | L70: 1.08 | M70: LW | N70: 0.7175572519 | O70: 07:32:00 | P70: 05:00:00 | Q70: 11:00:00 | R70: 0.5777777778 | S70: 43845.34622 | T70: 1.280152672 | U70: 43845.41219 | V70: 43845.32816 | W70: 1.151908397 | X70: 43845.2625 | Y70: 43845.32593 | Z70: 1.138931298 | AA70: 43845.29144 | AB70: 43845.31844 | AC70: 0.9671755725 | AD70: Cls | AE70: 43845.15764 | AF70: 43845.30239 | AG70: 0.9389312977 | AH70: 43845.29599 | AI70: 1.038931298 | AJ70: 43845.34421 | AK70: 1.351908397 | AL70: 43845.34421 | AM70: 1.351908397 | AN70: 43845.33526 | AO70: 1.351908397 | AP70: 43845.3402 | AQ70: 1.223664122 | AR70: 43845.30347 | AS70: 43845.32778 | AT70: 43845.30347 | AU70: 1.138931298 | AV70: 43845.30748 | AW70: 1.067175573 | AX70: 43845.29599 | AY70: 0.9389312977 | AZ70: 43845.29252 | BA70: 0.8671755725 | BB70: 43845.28758 | BC70: 0.9671755725 | BD70: 43845.24244 | BE70: 0.8541984733 | BF70: 43845.33819 | BH70: 43845.37639 | BI70: 43845.34514 | BK70: 2024-01-16T09:02:00 | BL70: 43845.37639
A71: 0 | B71: =IF(Instructions!$C$2="BST",A71,0) -> 0 | C71: 2024-01-16T13:48:00 | D71: 2024-01-16 | F71: 1 | I71: 2 | K71: 43845.575 | L71: 5.77 | M71: HW | N71: 1.113043478 | O71: 13:48:00 | P71: 12:00:00 | Q71: 18:00:00 | R71: 0.7 | S71: 43845.58924 | T71: 7.780869565 | U71: 43845.65521 | V71: 43845.59167 | W71: 7.469565217 | X71: 43845.52361 | Y71: 43845.5625 | Z71: 5.735652174 | AA71: 43845.55208 | AB71: 43845.55417 | AC71: 5.335652174 | AD71: Opn | AE71: 43845.43958 | AF71: 43845.55243 | AG71: 4.724347826 | AH71: 43845.52708 | AI71: 5.013043478 | AJ71: 43845.59028 | AK71: 7.680869565 | AL71: 43845.59132 | AM71: 7.692173913 | AN71: 43845.58681 | AO71: 7.369565217 | AP71: 43845.58993 | AQ71: 6.769565217 | AR71: 43845.56458 | AS71: 43845.58542 | AT71: 43845.54792 | AU71: 5.335652174 | AV71: 43845.54792 | AW71: 5.135652174 | AX71: 43845.52604 | AY71: 4.946956522 | AZ71: 43845.52257 | BA71: 4.735652174 | BB71: 43845.5191 | BC71: 4.624347826 | BD71: 43845.47361 | BE71: 4.535652174 | BF71: 43845.56458 | BH71: 43845.60694 | BI71: 43845.60625 | BK71: 2024-01-16T14:34:00 | BL71: 43845.60694
A72: 0 | B72: =IF(Instructions!$C$2="BST",A72,0) -> 0 | C72: 2024-01-16T20:06:00 | D72: 2024-01-16 | F72: 1 | I72: 2 | K72: 43845.8375 | L72: 0.84 | M72: LW | N72: 0.9007633588 | O72: 20:06:00 | P72: 17:00:00 | Q72: 23:00:00 | R72: 0.4833333333 | S72: 43845.86852 | T72: 0.9687022901 | U72: 43845.93449 | V72: 43845.85341 | W72: 0.858778626 | X72: 43845.77361 | Y72: 43845.84757 | Z72: 0.9190839695 | AA72: 43845.81701 | AB72: 43845.84074 | AC72: 0.7290076336 | AD72: Cls | AE72: 43845.66875 | AF72: 43845.82731 | AG72: 0.7190839695 | AH72: 43845.82025 | AI72: 0.8190839695 | AJ72: 43845.86684 | AK72: 1.058778626 | AL72: 43845.86684 | AM72: 1.058778626 | AN72: 43845.85822 | AO72: 1.058778626 | AP72: 43845.86348 | AQ72: 0.9488549618 | AR72: 43845.82708 | AS72: 43845.85139 | AT72: 43845.82708 | AU72: 0.9190839695 | AV72: 43845.83044 | AW72: 0.8290076336 | AX72: 43845.82025 | AY72: 0.7190839695 | AZ72: 43845.81678 | BA72: 0.6290076336 | BB72: 43845.81152 | BC72: 0.7290076336 | BD72: 43845.76638 | BE72: 0.6893129771 | BF72: 43845.86181 | BH72: 43845.89653 | BI72: 43845.86875 | BK72: 2024-01-16T21:31:00 | BL72: 43845.89653
A73: 0 | B73: =IF(Instructions!$C$2="BST",A73,0) -> 0 | C73: 2024-01-17T02:22:00 | D73: 2024-01-17 | E73: 2024-01-17 | F73: 1 | G73: Jan | H73: 17 | I73: 3 | J73: Wed | K73: 43846.09861 | L73: 5.17 | M73: HW | N73: 0.5913043478 | O73: 02:22:00 | P73: 00:00:00 | Q73: 06:00:00 | R73: 0.6055555556 | S73: 43846.11186 | T73: 6.946086957 | U73: 43846.17784 | V73: 43846.11397 | W73: 6.686956522 | X73: 43846.04653 | Y73: 43846.08546 | Z73: 5.109565217 | AA73: 43846.07504 | AB73: 43846.07778 | AC73: 4.709565217 | AD73: Opn | AE73: 43845.96319 | AF73: 43846.07768 | AG73: 4.150434783 | AH73: 43846.05201 | AI73: 4.491304348 | AJ73: 43846.11323 | AK73: 6.846086957 | AL73: 43846.1146 | AM73: 6.805217391 | AN73: 43846.10976 | AO73: 6.586956522 | AP73: 43846.11387 | AQ73: 5.986956522 | AR73: 43846.08819 | AS73: 43846.10903 | AT73: 43846.07284 | AU73: 4.709565217 | AV73: 43846.07284 | AW73: 4.509565217 | AX73: 43846.05064 | AY73: 4.268695652 | AZ73: 43846.04716 | BA73: 4.109565217 | BB73: 43846.04369 | BC73: 4.050434783 | BD73: 43845.99591 | BE73: 3.909565217 | BF73: 43846.08819 | BH73: 43846.12986 | BI73: 43846.12986 | BK73: 2024-01-17T03:07:00 | BL73: 43846.12986
A74: 0 | B74: =IF(Instructions!$C$2="BST",A74,0) -> 0 | C74: 2024-01-17T08:24:00 | D74: 2024-01-17 | E74: Wed | F74: 1 | I74: 3 | K74: 43846.35 | L74: 1.28 | M74: LW | N74: 0.5648854962 | O74: 08:24:00 | P74: 05:00:00 | Q74: 11:00:00 | R74: 0.4333333333 | S74: 43846.38032 | T74: 1.539694656 | U74: 43846.4463 | V74: 43846.36678 | W74: 1.396183206 | X74: 43846.29653 | Y74: 43846.35903 | Z74: =IF($M74="HW",Y$2+(Y$1-Y$2)*$N74,Y$3+(Y$4-Y$3)*$N74) -> 1.322137405 | AA74: 43846.33056 | AB74: 43846.35255 | AC74: =IF($M74="HW",AB$2+(AB$1-AB$2)*$N74,AB$3+(AB$4-AB$3)*$N74) -> 1.165648855 | AD74: Cls | AE74: 43846.19236 | AF74: 43846.34051 | AG74: =IF($M74="HW",AF$2+(AF$1-AF$2)*$N74,AF$3+(AF$4-AF$3)*$N74) -> 1.122137405 | AH74: 43846.3331 | AI74: =IF($M74="HW",AH$2+(AH$1-AH$2)*$N74,AH$3+(AH$4-AH$3)*$N74) -> 1.222137405 | AJ74: 43846.37882 | AK74: =IF($M74="HW",AJ$2+(AJ$1-AJ$2)*$N74,AJ$3+(AJ$4-AJ$3)*$N74) -> 1.596183206 | AL74: 43846.37882 | AM74: =IF($M74="HW",AL$2+(AL$1-AL$2)*$N74,AL$3+(AL$4-AL$3)*$N74) -> 1.596183206 | AN74: 43846.37037 | AO74: =IF($M74="HW",AN$2+(AN$1-AN$2)*$N74,AN$3+(AN$4-AN$3)*$N74) -> 1.596183206 | AP74: 43846.37581 | AQ74: =IF($M74="HW",AP$2+(AP$1-AP$2)*$N74,AP$3+(AP$4-AP$3)*$N74) -> 1.452671756 | AR74: 43846.33958 | AS74: 43846.36389 | AT74: 43846.33958 | AU74: =IF($M74="HW",AT$2+(AT$1-AT$2)*$N74,AT$3+(AT$4-AT$3)*$N74) -> 1.322137405 | AV74: 43846.34259 | AW74: =IF($M74="HW",AV$2+(AV$1-AV$2)*$N74,AV$3+(AV$4-AV$3)*$N74) -> 1.265648855 | AX74: 43846.3331 | AY74: =IF($M74="HW",AX$2+(AX$1-AX$2)*$N74,AX$3+(AX$4-AX$3)*$N74) -> 1.122137405 | AZ74: 43846.32963 | BA74: =IF($M74="HW",AZ$2+(AZ$1-AZ$2)*$N74,AZ$3+(AZ$4-AZ$3)*$N74) -> 1.065648855 | BB74: 43846.32419 | BC74: =IF($M74="HW",BB$2+(BB$1-BB$2)*$N74,BB$3+(BB$4-BB$3)*$N74) -> 1.165648855 | BD74: 43846.27905 | BE74: =IF($M74="HW",BD$2+(BD$1-BD$2)*$N74,BD$3+(BD$4-BD$3)*$N74) -> 0.9916030534 | BF74: 43846.37431 | BH74: 43846.40833 | BI74: 43846.38125 | BK74: 2024-01-17T09:48:00 | BL74: 43846.40833
A75: 0 | B75: =IF(Instructions!$C$2="BST",A75,0) -> 0 | C75: 2024-01-17T14:40:00 | D75: =DATE(YEAR(K75),MONTH(K75),DAY(K75)) -> 2024-01-17 | E75: =IF(D75=D74,IF(J74="","",J74),D75) ->  | F75: 1 | I75: 3 | K75: =C75+B75/24 -> 43846.61111 | L75: 5.53 | M75: HW | N75: =IF(M75="HW",(L75-K$2)/(K$1-K$2),(L75-K$3)/(K$4-K$3)) -> 0.9043478261 | O75: =C75-INT(C75) -> 14:40:00 | P75: =IF(M75="HW",IF(AND(O75>=L$5,O75<L$6),L$5,IF(AND(O75>=L$6,O75<M$5),M$5,IF(AND(O75>=M$5,O75<M$6),M$5,IF(O75>=M$6,L$5+1,L$5)))),IF(AND(O75>=L$7,O75<L$8),L$7,IF(AND(O75>=L$8,O75<M$7),M$7,IF(AND(O75>=M$7,O75<M$8),M$7,IF(O75>=M$8,L$7+1,L$7))))) -> 12:00:00 | Q75: =IF(M75="HW",IF(AND(O75>=L$5,O75<L$6),L$6,IF(AND(O75>=L$6,O75<M$5),L$6,IF(AND(O75>=M$5,O75<M$6),M$6,IF(O75>=M$6,M$6,M$6-1)))),IF(AND(O75>=L$7,O75<L$8),L$8,IF(AND(O75>=L$8,O75<M$7),L$8,IF(AND(O75>=M$7,O75<M$8),M$8,IF(O75>=M$8,M$8,M$8-1))))) -> 18:00:00 | R75: 0.5555555556 | S75: 43846.62384 | T75: =IF($M75="HW",S$2+(S$1-S$2)*$N75,S$3+(S$4-S$3)*$N75) -> 7.446956522 | U75: 43846.68981 | V75: 43846.62577 | W75: =IF($M75="HW",V$2+(V$1-V$2)*$N75,V$3+(V$4-V$3)*$N75) -> 7.156521739 | X75: 43846.55833 | Y75: 43846.59761 | Z75: 5.485217391 | AA75: 43846.58719 | AB75: =IF($M75="HW",$K75+AB$6+(AB$5-AB$6)*$R75,$K75+AB$8+(AB$7-AB$8)*$R75) -> 43846.59028 | AC75: 5.085217391 | AD75: =IF($M75="HW","Opn","Cls") -> Opn | AE75: 43846.47569 | AF75: =IF($M75="HW",$K75+AF$6+(AF$5-AF$6)*$R75,$K75+AF$8+(AF$7-AF$8)*$R75) -> 43846.59105 | AG75: 4.494782609 | AH75: =IF($M75="HW",$K75+AH$6+(AH$5-AH$6)*$R75,$K75+AH$8+(AH$7-AH$8)*$R75) -> 43846.5652 | AI75: 4.804347826 | AJ75: =IF($M75="HW",$K75+AJ$6+(AJ$5-AJ$6)*$R75,$K75+AJ$8+(AJ$7-AJ$8)*$R75) -> 43846.62539 | AK75: 7.346956522 | AL75: =IF($M75="HW",$K75+AL$6+(AL$5-AL$6)*$R75,$K75+AL$8+(AL$7-AL$8)*$R75) -> 43846.62693 | AM75: 7.337391304 | AN75: =IF($M75="HW",$K75+AN$6+(AN$5-AN$6)*$R75,$K75+AN$8+(AN$7-AN$8)*$R75) -> 43846.62191 | AO75: 7.056521739 | AP75: =IF($M75="HW",$K75+AP$6+(AP$5-AP$6)*$R75,$K75+AP$8+(AP$7-AP$8)*$R75) -> 43846.62654 | AQ75: 6.456521739 | AR75: 43846.60069 | AS75: 43846.62153 | AT75: =IF($M75="HW",$K75+AT$6+(AT$5-AT$6)*$R75,$K75+AT$8+(AT$7-AT$8)*$R75) -> 43846.58603 | AU75: 5.085217391 | AV75: =IF($M75="HW",$K75+AV$6+(AV$5-AV$6)*$R75,$K75+AV$8+(AV$7-AV$8)*$R75) -> 43846.58603 | AW75: 4.885217391 | AX75: =IF($M75="HW",$K75+AX$6+(AX$5-AX$6)*$R75,$K75+AX$8+(AX$7-AX$8)*$R75) -> 43846.56366 | AY75: 4.675652174 | AZ75: =IF($M75="HW",$K75+AZ$6+(AZ$5-AZ$6)*$R75,$K75+AZ$8+(AZ$7-AZ$8)*$R75) -> 43846.56019 | BA75: 4.485217391 | BB75: =IF($M75="HW",$K75+BB$6+(BB$5-BB$6)*$R75,$K75+BB$8+(BB$7-BB$8)*$R75) -> 43846.55671 | BC75: 4.394782609 | BD75: =IF($M75="HW",$K75+BD$6+(BD$5-BD$6)*$R75,$K75+BD$8+(BD$7-BD$8)*$R75) -> 43846.50772 | BE75: 4.285217391 | BF75: 43846.60069 | BH75: 43846.64167 | BI75: 43846.64236 | BK75: 2024-01-17T15:24:00 | BL75: =BK75+B75/24 -> 43846.64167
A76: 0 | B76: =IF(Instructions!$C$2="BST",A76,0) -> 0 | C76: 2024-01-17T21:00:00 | D76: 2024-01-17 | F76: =MONTH(K76) -> 1 | G76: =IF(H76="","",TEXT(F76*29,"mmm")) ->  | H76: =IF(I76=I75,"",DAY(K76)) ->  | I76: =WEEKDAY(K76,2) -> 3 | J76: =IF(I76=I75,"",TEXT(I76+2,"ddd")) ->  | K76: 43846.875 | L76: 1.11 | M76: LW | N76: 0.6946564885 | O76: 21:00:00 | P76: 17:00:00 | Q76: 23:00:00 | R76: =ABS((O76-Q76)/(P76-Q76)) -> 0.3333333333 | S76: 43846.90394 | T76: 1.319083969 | U76: 43846.96991 | V76: 43846.89352 | W76: 1.188549618 | X76: =IF($M76="HW",$BK76+X$6+$B76/24,$BK75+4/24+$B76/24) -> 43846.80833 | Y76: 43846.88194 | Z76: 1.166412214 | AA76: =IF($M76="HW",$K76+AA$6+(AA$5-AA$6)*$R76,$K76+AA$8+(AA$7-AA$8)*$R76) -> 43846.85764 | AB76: 43846.87616 | AC76: 0.9969465649 | AD76: Cls | AE76: =IF($M76="HW",$AB76-AD$8,$AB75+AD$8) -> 43846.70486 | AF76: 43846.8669 | AG76: 0.9664122137 | AH76: 43846.8588 | AI76: 1.066412214 | AJ76: 43846.90278 | AK76: 1.388549618 | AL76: 43846.90278 | AM76: 1.388549618 | AN76: 43846.89468 | AO76: 1.388549618 | AP76: 43846.90046 | AQ76: 1.258015267 | AR76: 43846.86458 | AS76: 43846.88889 | AT76: 43846.86458 | AU76: 1.166412214 | AV76: 43846.8669 | AW76: 1.096946565 | AX76: 43846.8588 | AY76: 0.9664122137 | AZ76: 43846.85532 | BA76: 0.8969465649 | BB76: 43846.84954 | BC76: 0.9969465649 | BD76: 43846.8044 | BE76: 0.8748091603 | BF76: 43846.89931 | BH76: =BL76 -> 43846.93056 | BI76: 43846.90625 | BK76: 2024-01-17T22:20:00 | BL76: 43846.93056
A77: 0 | B77: =IF(Instructions!$C$2="BST",A77,0) -> 0 | C77: 2024-01-18T03:17:00 | D77: 2024-01-18 | E77: 2024-01-18 | F77: 1 | G77: Jan | H77: 18 | I77: 4 | J77: Thu | K77: 43847.13681 | L77: 4.93 | M77: HW | N77: 0.3826086957 | O77: 03:17:00 | P77: 00:00:00 | Q77: 06:00:00 | R77: 0.4527777778 | S77: =IF($M77="HW",$K77+S$6+(S$5-S$6)*$R77,$K77+S$8+(S$7-S$8)*$R77) -> 43847.14847 | T77: 6.612173913 | U77: 43847.21444 | V77: 43847.15004 | W77: 6.373913043 | X77: 43847.08194 | Y77: =IF($M77="HW",$K77+Y$6+(Y$5-Y$6)*$R77,$K77+Y$8+(Y$7-Y$8)*$R77) -> 43847.12259 | Z77: 4.859130435 | AA77: 43847.11217 | AB77: 43847.11597 | AC77: 4.459130435 | AD77: Opn | AE77: 43847.00139 | AF77: 43847.11853 | AG77: 3.920869565 | AH77: 43847.09232 | AI77: 4.282608696 | AJ77: 43847.15037 | AK77: 6.512173913 | AL77: 43847.15227 | AM77: 6.450434783 | AN77: 43847.14689 | AO77: 6.273913043 | AP77: 43847.15259 | AQ77: 5.673913043 | AR77: =IF($M77="HW",$K77+AR$6+(AR$5-AR$6)*$R77,$K77+AR$8+(AR$7-AR$8)*$R77) -> 43847.12639 | AS77: 43847.14722 | AT77: 43847.11316 | AU77: 4.459130435 | AV77: 43847.11316 | AW77: 4.259130435 | AX77: 43847.09042 | AY77: 3.997391304 | AZ77: 43847.08695 | BA77: 3.859130435 | BB77: 43847.08348 | BC77: 3.820869565 | BD77: 43847.03198 | BE77: 3.659130435 | BF77: =IF($M77="HW",$K77+BF$6+(BF$5-BF$6)*$R77,$K77+BF$8+(BF$7-BF$8)*$R77) -> 43847.12639 | BH77: 43847.16528 | BI77: 43847.16806 | BK77: 2024-01-18T03:58:00 | BL77: 43847.16528
A78: 0 | B78: =IF(Instructions!$C$2="BST",A78,0) -> 0 | C78: 2024-01-18T09:21:00 | D78: 2024-01-18 | E78: Thu | F78: 1 | I78: 4 | K78: 43847.38958 | L78: 1.54 | M78: LW | N78: 0.3664122137 | O78: 09:21:00 | P78: 05:00:00 | Q78: 11:00:00 | R78: 0.275 | S78: 43847.41771 | T78: 1.877099237 | U78: 43847.48368 | V78: 43847.40911 | W78: 1.713740458 | X78: 43847.33194 | Y78: 43847.39531 | Z78: 1.560305344 | AA78: 43847.37344 | AB78: 43847.38993 | AC78: 1.423664122 | AD78: Cls | AE78: 43847.23056 | AF78: 43847.38229 | AG78: 1.360305344 | AH78: 43847.37378 | AI78: 1.460305344 | AJ78: 43847.41675 | AK78: 1.913740458 | AL78: 43847.41675 | AM78: 1.913740458 | AN78: 43847.40885 | AO78: 1.913740458 | AP78: 43847.41484 | AQ78: 1.750381679 | AR78: 43847.37917 | AS78: 43847.40347 | AT78: 43847.37917 | AU78: 1.560305344 | AV78: 43847.38108 | AW78: 1.523664122 | AX78: 43847.37378 | AY78: 1.360305344 | AZ78: 43847.37031 | BA78: 1.323664122 | BB78: 43847.36432 | BC78: 1.423664122 | BD78: 43847.31918 | BE78: 1.170229008 | BF78: 43847.41389 | BH78: 43847.44375 | BI78: 43847.42083 | BK78: 2024-01-18T10:39:00 | BL78: 43847.44375
A79: 0 | B79: =IF(Instructions!$C$2="BST",A79,0) -> 0 | C79: 2024-01-18T15:37:00 | D79: 2024-01-18 | F79: 1 | I79: 4 | K79: 43847.65069 | L79: 5.25 | M79: HW | N79: 0.6608695652 | O79: 15:37:00 | P79: 12:00:00 | Q79: 18:00:00 | R79: 0.3972222222 | S79: 43847.66178 | T79: 7.057391304 | U79: 43847.72775 | V79: 43847.66316 | W79: 6.791304348 | X79: 43847.59653 | Y79: 43847.63609 | Z79: 5.193043478 | AA79: 43847.62568 | AB79: 43847.62986 | AC79: 4.793043478 | AD79: Opn | AE79: 43847.51528 | AF79: 43847.63338 | AG79: 4.226956522 | AH79: 43847.60698 | AI79: 4.560869565 | AJ79: 43847.66387 | AK79: 6.957391304 | AL79: 43847.66596 | AM79: 6.923478261 | AN79: 43847.6604 | AO79: 6.691304348 | AP79: 43847.66668 | AQ79: 6.091304348 | AR79: 43847.64028 | AS79: 43847.66111 | AT79: 43847.62782 | AU79: 4.793043478 | AV79: 43847.62782 | AW79: 4.593043478 | AX79: 43847.60489 | AY79: 4.359130435 | AZ79: 43847.60142 | BA79: 4.193043478 | BB79: 43847.59795 | BC79: 4.126956522 | BD79: 43847.5451 | BE79: 3.993043478 | BF79: 43847.64028 | BH79: 43847.67986 | BI79: 43847.68194 | BK79: 2024-01-18T16:19:00 | BL79: 43847.67986
A80: 0 | B80: =IF(Instructions!$C$2="BST",A80,0) -> 0 | C80: 2024-01-18T22:01:00 | D80: 2024-01-18 | F80: 1 | I80: 4 | K80: 43847.91736 | L80: 1.41 | M80: LW | N80: 0.465648855 | O80: 22:01:00 | P80: 17:00:00 | Q80: 23:00:00 | R80: 0.1638888889 | S80: 43847.94394 | T80: 1.708396947 | U80: 43848.00992 | V80: 43847.93882 | W80: 1.554961832 | X80: 43847.84653 | Y80: 43847.92078 | Z80: 1.441221374 | AA80: 43847.90353 | AB80: 43847.91617 | AC80: 1.294656489 | AD80: Cls | AE80: 43847.74444 | AF80: 43847.91161 | AG80: 1.241221374 | AH80: 43847.90233 | AI80: 1.341221374 | AJ80: 43847.94337 | AK80: 1.754961832 | AL80: 43847.94337 | AM80: 1.754961832 | AN80: 43847.93586 | AO80: 1.754961832 | AP80: 43847.94224 | AQ80: 1.601526718 | AR80: 43847.90694 | AS80: 43847.93125 | AT80: 43847.90694 | AU80: 1.441221374 | AV80: 43847.90808 | AW80: 1.394656489 | AX80: 43847.90233 | AY80: 1.241221374 | AZ80: 43847.89886 | BA80: 1.194656489 | BB80: 43847.89249 | BC80: 1.294656489 | BD80: 43847.84735 | BE80: 1.080916031 | BF80: 43847.94167 | BH80: 43847.96875 | BI80: 43847.94861 | BK80: 2024-01-18T23:15:00 | BL80: 43847.96875
A81: 0 | B81: =IF(Instructions!$C$2="BST",A81,0) -> 0 | C81: 2024-01-19T04:20:00 | D81: 2024-01-19 | E81: 2024-01-19 | F81: 1 | G81: Jan | H81: 19 | I81: 5 | J81: Fri | K81: 43848.18056 | L81: 4.72 | M81: HW | N81: 0.2 | O81: 04:20:00 | P81: 00:00:00 | Q81: 06:00:00 | R81: 0.2777777778 | S81: 43848.19039 | T81: 6.32 | U81: 43848.25637 | V81: 43848.19136 | W81: 6.1 | X81: 43848.12222 | Y81: 43848.16512 | Z81: 4.64 | AA81: 43848.15471 | AB81: 43848.15972 | AC81: 4.24 | AD81: Opn | AE81: 43848.04514 | AF81: 43848.16532 | AG81: 3.72 | AH81: 43848.1385 | AI81: 4.1 | AJ81: 43848.1929 | AK81: 6.22 | AL81: 43848.19541 | AM81: 6.14 | AN81: 43848.18943 | AO81: 6 | AP81: 43848.19695 | AQ81: 5.4 | AR81: 43848.17014 | AS81: 43848.19097 | AT81: 43848.15934 | AU81: 4.24 | AV81: 43848.15934 | AW81: 4.04 | AX81: 43848.136 | AY81: 3.76 | AZ81: 43848.13252 | BA81: 3.64 | BB81: 43848.12905 | BC81: 3.62 | BD81: 43848.0733 | BE81: 3.44 | BF81: 43848.17014 | BH81: 43848.20556 | BI81: 43848.21181 | BK81: 2024-01-19T04:56:00 | BL81: 43848.20556
A82: 0 | B82: =IF(Instructions!$C$2="BST",A82,0) -> 0 | C82: 2024-01-19T10:26:00 | D82: 2024-01-19 | E82: Fri | F82: 1 | I82: 5 | K82: 43848.43472 | L82: 1.78 | M82: LW | N82: 0.1832061069 | O82: 10:26:00 | P82: 05:00:00 | Q82: 11:00:00 | R82: 0.09444444445 | S82: 43848.46034 | T82: 2.188549618 | U82: 43848.52631 | V82: 43848.45739 | W82: 2.006870229 | X82: 43848.37222 | Y82: 43848.43669 | Z82: 1.780152672 | AA82: 43848.42234 | AB82: 43848.43256 | AC82: 1.661832061 | AD82: Cls | AE82: 43848.27431 | AF82: 43848.42994 | AG82: 1.580152672 | AH82: 43848.42018 | AI82: 1.680152672 | AJ82: 43848.46001 | AK82: 2.206870229 | AL82: 43848.46001 | AM82: 2.206870229 | AN82: 43848.45274 | AO82: 2.206870229 | AP82: 43848.45936 | AQ82: 2.02519084 | AR82: 43848.42431 | AS82: 43848.44861 | AT82: 43848.42431 | AU82: 1.780152672 | AV82: 43848.42496 | AW82: 1.761832061 | AX82: 43848.42018 | AY82: 1.580152672 | AZ82: 43848.41671 | BA82: 1.561832061 | BB82: 43848.41009 | BC82: 1.661832061 | BD82: 43848.36495 | BE82: 1.335114504 | BF82: 43848.45903 | BH82: 43848.48542 | BI82: 43848.46597 | BK82: 2024-01-19T11:39:00 | BL82: 43848.48542
A83: 0 | B83: =IF(Instructions!$C$2="BST",A83,0) -> 0 | C83: 2024-01-19T16:44:00 | D83: 2024-01-19 | F83: 1 | I83: 5 | K83: 43848.69722 | L83: 4.97 | M83: HW | N83: 0.4173913043 | O83: 16:44:00 | P83: 12:00:00 | Q83: 18:00:00 | R83: 0.2111111111 | S83: 43848.70637 | T83: 6.667826087 | U83: 43848.77234 | V83: 43848.7071 | W83: 6.426086957 | X83: 43848.64028 | Y83: 43848.68133 | Z83: 4.900869565 | AA83: 43848.67091 | AB83: 43848.67639 | AC83: 4.500869565 | AD83: Opn | AE83: 43848.56181 | AF83: 43848.68314 | AG83: 3.959130435 | AH83: 43848.6561 | AI83: 4.317391304 | AJ83: 43848.7091 | AK83: 6.567826087 | AL83: 43848.71184 | AM83: 6.509565217 | AN83: 43848.70563 | AO83: 6.326086957 | AP83: 43848.71385 | AQ83: 5.726086957 | AR83: 43848.68681 | AS83: 43848.70764 | AT83: 43848.67693 | AU83: 4.500869565 | AV83: 43848.67693 | AW83: 4.300869565 | AX83: 43848.65336 | AY83: 4.042608696 | AZ83: 43848.64988 | BA83: 3.900869565 | BB83: 43848.64641 | BC83: 3.859130435 | BD83: 43848.58904 | BE83: 3.700869565 | BF83: 43848.68681 | BH83: 43848.72361 | BI83: 43848.72847 | BK83: 2024-01-19T17:22:00 | BL83: 43848.72361
A84: 0 | B84: =IF(Instructions!$C$2="BST",A84,0) -> 0 | C84: 2024-01-19T23:09:00 | D84: 2024-01-19 | F84: 1 | I84: 5 | K84: 43848.96458 | L84: 1.68 | M84: LW | N84: 0.2595419847 | O84: 23:09:00 | P84: 1.208333333 | Q84: 23:00:00 | R84: 0.025 | S84: 43848.98924 | T84: 2.058778626 | U84: 43849.05521 | V84: 43848.98845 | W84: 1.884732824 | X84: 43848.89028 | Y84: 43848.9651 | Z84: 1.688549618 | AA84: 43848.95365 | AB84: 43848.96146 | AC84: 1.56259542 | AD84: Cls | AE84: 43848.79097 | AF84: 43848.96076 | AG84: 1.488549618 | AH84: 43848.95052 | AI84: 1.588549618 | AJ84: 43848.98915 | AK84: 2.084732824 | AL84: 43848.98915 | AM84: 2.084732824 | AN84: 43848.98212 | AO84: 2.084732824 | AP84: 43848.98898 | AQ84: 1.910687023 | AR84: 43848.95417 | AS84: 43848.97847 | AT84: 43848.95417 | AU84: 1.688549618 | AV84: 43848.95434 | AW84: 1.66259542 | AX84: 43848.95052 | AY84: 1.488549618 | AZ84: 43848.94705 | BA84: 1.46259542 | BB84: 43848.94019 | BC84: 1.56259542 | BD84: 43848.89505 | BE84: 1.266412214 | BF84: 43848.98889 | BH84: 43849.0125 | BI84: 43848.99583 | BK84: 2024-01-20T00:18:00 | BL84: 43849.0125
A85: 0 | B85: =IF(Instructions!$C$2="BST",A85,0) -> 0 | C85: 2024-01-20T05:34:00 | D85: 2024-01-20 | E85: 2024-01-20 | F85: 1 | G85: Jan | H85: 20 | I85: 6 | J85: Sat | K85: 43849.23194 | L85: 4.60 | M85: HW | N85: 0.09565217391 | O85: 05:34:00 | P85: 00:00:00 | Q85: 06:00:00 | R85: 0.07222222222 | S85: 43849.23964 | T85: 6.153043478 | U85: 43849.30561 | V85: 43849.23989 | W85: 5.943478261 | X85: 43849.17014 | Y85: 43849.21508 | Z85: 4.514782609 | AA85: 43849.20467 | AB85: 43849.21111 | AC85: 4.114782609 | AD85: Opn | AE85: 43849.09653 | AF85: 43849.22027 | AG85: 3.605217391 | AH85: 43849.19275 | AI85: 3.995652174 | AJ85: 43849.24286 | AK85: 6.053043478 | AL85: 43849.24608 | AM85: 5.962608696 | AN85: 43849.23939 | AO85: 5.843478261 | AP85: 43849.24905 | AQ85: 5.243478261 | AR85: 43849.22153 | AS85: 43849.24236 | AT85: 43849.21358 | AU85: 4.114782609 | AV85: 43849.21358 | AW85: 3.914782609 | AX85: 43849.18953 | AY85: 3.624347826 | AZ85: 43849.18605 | BA85: 3.514782609 | BB85: 43849.18258 | BC85: 3.505217391 | BD85: 43849.12184 | BE85: 3.314782609 | BF85: 43849.22153 | BH85: 43849.25347 | BI85: 43849.26319 | BK85: 2024-01-20T06:05:00 | BL85: 43849.25347
A86: 0 | B86: =IF(Instructions!$C$2="BST",A86,0) -> 0 | C86: 2024-01-20T11:42:00 | D86: 2024-01-20 | E86: Sat | F86: 1 | I86: 6 | K86: 43849.4875 | L86: 1.92 | M86: LW | N86: 0.07633587786 | O86: 11:42:00 | P86: 17:00:00 | Q86: 11:00:00 | R86: 0.1166666667 | S86: 43849.51343 | T86: 2.370229008 | U86: 43849.5794 | V86: 43849.50978 | W86: 2.177862595 | X86: 43849.42014 | Y86: 43849.48993 | Z86: 1.908396947 | AA86: 43849.47465 | AB86: 43849.48565 | AC86: 1.800763359 | AD86: Cls | AE86: 43849.32569 | AF86: 43849.48241 | AG86: 1.708396947 | AH86: 43849.4728 | AI86: 1.808396947 | AJ86: 43849.51302 | AK86: 2.377862595 | AL86: 43849.51302 | AM86: 2.377862595 | AN86: 43849.50567 | AO86: 2.377862595 | AP86: 43849.51221 | AQ86: 2.185496183 | AR86: 43849.47708 | AS86: 43849.50139 | AT86: 43849.47708 | AU86: 1.908396947 | AV86: 43849.47789 | AW86: 1.900763359 | AX86: 43849.4728 | AY86: 1.708396947 | AZ86: 43849.46933 | BA86: 1.700763359 | BB86: 43849.46279 | BC86: 1.800763359 | BD86: 43849.41765 | BE86: 1.43129771 | BF86: 43849.51181 | BH86: 43849.53542 | BI86: 43849.51875 | BK86: 2024-01-20T12:51:00 | BL86: 43849.53542
A87: 0 | B87: =IF(Instructions!$C$2="BST",A87,0) -> 0 | C87: 2024-01-20T18:03:00 | D87: 2024-01-20 | F87: 1 | I87: 6 | K87: 43849.75208 | L87: 4.80 | M87: HW | N87: 0.2695652174 | O87: 18:03:00 | P87: 1 | Q87: 18:00:00 | R87: 0.008333333331 | S87: 43849.75911 | T87: 6.431304348 | U87: 43849.82509 | V87: 43849.75914 | W87: 6.204347826 | X87: 43849.69167 | Y87: 43849.73478 | Z87: 4.723478261 | AA87: 43849.72436 | AB87: 43849.73125 | AC87: 4.323478261 | AD87: Opn | AE87: 43849.61667 | AF87: 43849.74152 | AG87: 3.796521739 | AH87: 43849.71377 | AI87: 4.169565217 | AJ87: 43849.76256 | AK87: 6.331304348 | AL87: 43849.766 | AM87: 6.25826087 | AN87: 43849.75909 | AO87: 6.104347826 | AP87: 43849.76942 | AQ87: 5.504347826 | AR87: 43849.74167 | AS87: 43849.7625 | AT87: 43849.73461 | AU87: 4.323478261 | AV87: 43849.73461 | AW87: 4.123478261 | AX87: 43849.71033 | AY87: 3.850434783 | AZ87: 43849.70686 | BA87: 3.723478261 | BB87: 43849.70339 | BC87: 3.696521739 | BD87: 43849.64109 | BE87: 3.523478261 | BF87: 43849.74167 | BH87: 43849.775 | BI87: 43849.78333 | BK87: 2024-01-20T18:36:00 | BL87: 43849.775
A88: 0 | B88: =IF(Instructions!$C$2="BST",A88,0) -> 0 | C88: 2024-01-21T00:23:00 | D88: 2024-01-21 | E88: 2024-01-21 | F88: 1 | G88: Jan | H88: 21 | I88: 7 | J88: Sun | K88: 43850.01597 | L88: 1.82 | M88: LW | N88: 0.1526717557 | O88: 00:23:00 | P88: 05:00:00 | Q88: -0.04166666667 | R88: 0.2305555556 | S88: 43850.04348 | T88: 2.240458015 | U88: 43850.10945 | V88: 43850.03628 | W88: 2.055725191 | X88: 43849.94167 | Y88: 43850.02078 | Z88: 1.816793893 | AA88: 43850.00075 | AB88: 43850.0157 | AC88: 1.701526718 | AD88: Cls | AE88: 43849.84583 | AF88: 43850.0093 | AG88: 1.616793893 | AH88: 43850.00048 | AI88: 1.716793893 | AJ88: 43850.04268 | AK88: 2.255725191 | AL88: 43850.04268 | AM88: 2.255725191 | AN88: 43850.03493 | AO88: 2.255725191 | AP88: 43850.04108 | AQ88: 2.070992366 | AR88: 43850.00556 | AS88: 43850.02986 | AT88: 43850.00556 | AU88: 1.816793893 | AV88: 43850.00716 | AW88: 1.801526718 | AX88: 43850.00048 | AY88: 1.616793893 | AZ88: 43849.99701 | BA88: 1.601526718 | BB88: 43849.99087 | BC88: 1.701526718 | BD88: 43849.94573 | BE88: 1.36259542 | BF88: 43850.04028 | BH88: 43850.06458 | BI88: 43850.04722 | BK88: 2024-01-21T01:33:00 | BL88: 43850.06458
A89: 0 | B89: =IF(Instructions!$C$2="BST",A89,0) -> 0 | C89: 2024-01-21T06:52:00 | D89: 2024-01-21 | E89: Sun | F89: 1 | I89: 7 | K89: 43850.28611 | L89: 4.64 | M89: HW | N89: 0.1304347826 | O89: 06:52:00 | P89: 12:00:00 | Q89: 06:00:00 | R89: 0.1444444444 | S89: 43850.29456 | T89: 6.208695652 | U89: 43850.36053 | V89: 43850.29506 | W89: 5.995652174 | X89: 43850.225 | Y89: 43850.26975 | Z89: 4.556521739 | AA89: 43850.25934 | AB89: 43850.26528 | AC89: 4.156521739 | AD89: Opn | AE89: 43850.15069 | AF89: 43850.27319 | AG89: 3.643478261 | AH89: 43850.24591 | AI89: 4.030434783 | AJ89: 43850.29753 | AK89: 6.108695652 | AL89: 43850.3005 | AM89: 6.02173913 | AN89: 43850.29406 | AO89: 5.895652174 | AP89: 43850.30297 | AQ89: 5.295652174 | AR89: 43850.27569 | AS89: 43850.29653 | AT89: 43850.26674 | AU89: 4.156521739 | AV89: 43850.26674 | AW89: 3.956521739 | AX89: 43850.24294 | AY89: 3.669565217 | AZ89: 43850.23947 | BA89: 3.556521739 | BB89: 43850.236 | BC89: 3.543478261 | BD89: 43850.17701 | BE89: 3.356521739 | BF89: 43850.27569 | BH89: 43850.30833 | BI89: 43850.31736 | BK89: 2024-01-21T07:24:00 | BL89: 43850.30833
A90: 0 | B90: =IF(Instructions!$C$2="BST",A90,0) -> 0 | C90: 2024-01-21T12:58:00 | D90: 2024-01-21 | F90: 1 | I90: 7 | K90: 43850.54028 | L90: 1.91 | M90: LW | N90: 0.08396946565 | O90: 12:58:00 | P90: 17:00:00 | Q90: 11:00:00 | R90: 0.3277777778 | S90: 43850.56914 | T90: 2.357251908 | U90: 43850.63511 | V90: 43850.55889 | W90: 2.165648855 | X90: 43850.475 | Y90: 43850.54711 | Z90: 1.899236641 | AA90: 43850.52303 | AB90: 43850.54136 | AC90: 1.790839695 | AD90: Cls | AE90: 43850.37986 | AF90: 43850.53225 | AG90: 1.699236641 | AH90: 43850.52411 | AI90: 1.799236641 | AJ90: 43850.568 | AK90: 2.365648855 | AL90: 43850.568 | AM90: 2.365648855 | AN90: 43850.55992 | AO90: 2.365648855 | AP90: 43850.56572 | AQ90: 2.174045802 | AR90: 43850.52986 | AS90: 43850.55417 | AT90: 43850.52986 | AU90: 1.899236641 | AV90: 43850.53214 | AW90: 1.890839695 | AX90: 43850.52411 | AY90: 1.699236641 | AZ90: 43850.52064 | BA90: 1.690839695 | BB90: 43850.51483 | BC90: 1.790839695 | BD90: 43850.4697 | BE90: 1.424427481 | BF90: 43850.56458 | BH90: 43850.59167 | BI90: 43850.57153 | BK90: 2024-01-21T14:12:00 | BL90: 43850.59167
A91: 0 | B91: =IF(Instructions!$C$2="BST",A91,0) -> 0 | C91: 2024-01-21T19:20:00 | D91: 2024-01-21 | F91: 1 | I91: 7 | K91: 43850.80556 | L91: 4.79 | M91: HW | N91: 0.2608695652 | O91: 19:20:00 | P91: 1 | Q91: 18:00:00 | R91: 0.2222222222 | S91: 43850.81481 | T91: 6.417391304 | U91: 43850.88079 | V91: 43850.81559 | W91: 6.191304348 | X91: 43850.74792 | Y91: 43850.78974 | Z91: 4.713043478 | AA91: 43850.77932 | AB91: 43850.78472 | AC91: 4.313043478 | AD91: Opn | AE91: 43850.67014 | AF91: 43850.79128 | AG91: 3.786956522 | AH91: 43850.76427 | AI91: 4.160869565 | AJ91: 43850.81752 | AK91: 6.317391304 | AL91: 43850.82022 | AM91: 6.243478261 | AN91: 43850.81404 | AO91: 6.091304348 | AP91: 43850.82215 | AQ91: 5.491304348 | AR91: 43850.79514 | AS91: 43850.81597 | AT91: 43850.78511 | AU91: 4.313043478 | AV91: 43850.78511 | AW91: 4.113043478 | AX91: 43850.76157 | AY91: 3.839130435 | AZ91: 43850.7581 | BA91: 3.713043478 | BB91: 43850.75463 | BC91: 3.686956522 | BD91: 43850.69753 | BE91: 3.513043478 | BF91: 43850.79514 | BH91: 43850.83125 | BI91: 43850.83681 | BK91: 2024-01-21T19:57:00 | BL91: 43850.83125
A92: 0 | B92: =IF(Instructions!$C$2="BST",A92,0) -> 0 | C92: 2024-01-22T01:31:00 | D92: 2024-01-22 | E92: 2024-01-22 | F92: 1 | G92: Jan | H92: 22 | I92: 1 | J92: Mon | K92: 43851.06319 | L92: 1.82 | M92: LW | N92: 0.1526717557 | O92: 01:31:00 | P92: 05:00:00 | Q92: -0.04166666667 | R92: 0.4194444445 | S92: 43851.09333 | T92: 2.240458015 | U92: 43851.1593 | V92: 43851.08022 | W92: 2.055725191 | X92: 43850.99792 | Y92: 43851.07193 | Z92: 1.816793893 | AA92: 43851.04404 | AB92: 43851.06555 | AC92: 1.701526718 | AD92: Cls | AE92: 43850.89931 | AF92: 43851.0539 | AG92: 1.616793893 | AH92: 43851.04639 | AI92: 1.716793893 | AJ92: 43851.09187 | AK92: 2.255725191 | AL92: 43851.09187 | AM92: 2.255725191 | AN92: 43851.08347 | AO92: 2.255725191 | AP92: 43851.08896 | AQ92: 2.070992366 | AR92: 43851.05278 | AS92: 43851.07708 | AT92: 43851.05278 | AU92: 1.816793893 | AV92: 43851.05569 | AW92: 1.801526718 | AX92: 43851.04639 | AY92: 1.616793893 | AZ92: 43851.04292 | BA92: 1.601526718 | BB92: 43851.03743 | BC92: 1.701526718 | BD92: 43850.99229 | BE92: 1.36259542 | BF92: 43851.0875 | BH92: 43851.11667 | BI92: 43851.09444 | BK92: 2024-01-22T02:48:00 | BL92: 43851.11667
A93: 0 | B93: =IF(Instructions!$C$2="BST",A93,0) -> 0 | C93: 2024-01-22T07:59:00 | D93: 2024-01-22 | E93: Mon | F93: 1 | I93: 1 | K93: 43851.33264 | L93: 4.81 | M93: HW | N93: 0.2782608696 | O93: 07:59:00 | P93: 12:00:00 | Q93: 06:00:00 | R93: 0.3305555556 | S93: 43851.34303 | T93: 6.445217391 | U93: 43851.409 | V93: 43851.34417 | W93: 6.217391304 | X93: 43851.27569 | Y93: 43851.31757 | Z93: 4.733913043 | AA93: 43851.30716 | AB93: 43851.31181 | AC93: 4.333913043 | AD93: Opn | AE93: 43851.19722 | AF93: 43851.31648 | AG93: 3.806086957 | AH93: 43851.28985 | AI93: 4.17826087 | AJ93: 43851.34535 | AK93: 6.345217391 | AL93: 43851.34768 | AM93: 6.273043478 | AN93: 43851.34188 | AO93: 6.117391304 | AP93: 43851.34885 | AQ93: 5.517391304 | AR93: 43851.32222 | AS93: 43851.34306 | AT93: 43851.31069 | AU93: 4.333913043 | AV93: 43851.31069 | AW93: 4.133913043 | AX93: 43851.28753 | AY93: 3.86173913 | AZ93: 43851.28406 | BA93: 3.733913043 | BB93: 43851.28058 | BC93: 3.706086957 | BD93: 43851.22612 | BE93: 3.533913043 | BF93: 43851.32222 | BH93: 43851.35903 | BI93: 43851.36389 | BK93: 2024-01-22T08:37:00 | BL93: 43851.35903
A94: 0 | B94: =IF(Instructions!$C$2="BST",A94,0) -> 0 | C94: 2024-01-22T14:04:00 | D94: 2024-01-22 | F94: 1 | I94: 1 | K94: 43851.58611 | L94: 1.76 | M94: LW | N94: 0.1984732824 | O94: 14:04:00 | P94: 17:00:00 | Q94: 11:00:00 | R94: 0.5111111111 | S94: =IF($M94="HW",$K94+S$6+(S$5-S$6)*$R94,$K94+S$8+(S$7-S$8)*$R94) -> 43851.61752 | T94: 2.16259542 | U94: 43851.68349 | V94: 43851.60154 | W94: 1.982442748 | X94: 43851.52569 | Y94: =IF($M94="HW",$K94+Y$6+(Y$5-Y$6)*$R94,$K94+Y$8+(Y$7-Y$8)*$R94) -> 43851.59676 | Z94: 1.761832061 | AA94: 43851.56505 | AB94: 43851.58974 | AC94: 1.641984733 | AD94: Cls | AE94: 43851.42639 | AF94: 43851.57554 | AG94: 1.561832061 | AH94: 43851.56867 | AI94: 1.661832061 | AJ94: 43851.61574 | AK94: 2.182442748 | AL94: 43851.61574 | AM94: 2.182442748 | AN94: 43851.60702 | AO94: 2.182442748 | AP94: 43851.61219 | AQ94: 2.002290076 | AR94: =IF($M94="HW",$K94+AR$6+(AR$5-AR$6)*$R94,$K94+AR$8+(AR$7-AR$8)*$R94) -> 43851.57569 | AS94: 43851.6 | AT94: 43851.57569 | AU94: 1.761832061 | AV94: 43851.57924 | AW94: 1.741984733 | AX94: 43851.56867 | AY94: 1.561832061 | AZ94: 43851.5652 | BA94: 1.541984733 | BB94: 43851.56003 | BC94: 1.641984733 | BD94: 43851.51489 | BE94: 1.321374046 | BF94: =IF($M94="HW",$K94+BF$6+(BF$5-BF$6)*$R94,$K94+BF$8+(BF$7-BF$8)*$R94) -> 43851.61042 | BH94: 43851.64167 | BI94: 43851.61736 | BK94: 2024-01-22T15:24:00 | BL94: 43851.64167
A95: 0 | B95: =IF(Instructions!$C$2="BST",A95,0) -> 0 | C95: 2024-01-22T20:24:00 | D95: 2024-01-22 | F95: 1 | I95: 1 | K95: 43851.85 | L95: 4.88 | M95: HW | N95: 0.3391304348 | O95: 20:24:00 | P95: 1 | Q95: 18:00:00 | R95: 0.4 | S95: 43851.86111 | T95: 6.542608696 | U95: 43851.92708 | V95: 43851.8625 | W95: 6.308695652 | X95: 43851.79514 | Y95: 43851.83542 | Z95: 4.806956522 | AA95: 43851.825 | AB95: 43851.82917 | AC95: 4.406956522 | AD95: Opn | AE95: 43851.71458 | AF95: 43851.83264 | AG95: 3.873043478 | AH95: 43851.80625 | AI95: 4.239130435 | AJ95: 43851.86319 | AK95: 6.442608696 | AL95: 43851.86528 | AM95: 6.376521739 | AN95: 43851.85972 | AO95: 6.208695652 | AP95: 43851.86597 | AQ95: 5.608695652 | AR95: 43851.83958 | AS95: 43851.86042 | AT95: 43851.82708 | AU95: 4.406956522 | AV95: 43851.82708 | AW95: 4.206956522 | AX95: 43851.80417 | AY95: 3.940869565 | AZ95: 43851.80069 | BA95: 3.806956522 | BB95: 43851.79722 | BC95: 3.773043478 | BD95: 43851.74444 | BE95: 3.606956522 | BF95: 43851.83958 | BH95: 43851.87847 | BI95: 43851.88125 | BK95: 2024-01-22T21:05:00 | BL95: 43851.87847
A96: 0 | B96: =IF(Instructions!$C$2="BST",A96,0) -> 0 | C96: 2024-01-23T02:28:00 | D96: 2024-01-23 | E96: 2024-01-23 | F96: 1 | G96: Jan | H96: 23 | I96: 2 | J96: Tue | K96: 43852.10278 | L96: 1.73 | M96: LW | N96: 0.2213740458 | O96: 02:28:00 | P96: 05:00:00 | Q96: -0.04166666667 | R96: 0.5777777778 | S96: 43852.13511 | T96: 2.123664122 | U96: 43852.20108 | V96: 43852.11705 | W96: 1.945801527 | X96: 43852.04514 | Y96: 43852.11481 | Z96: 1.734351145 | AA96: 43852.08032 | AB96: 43852.10733 | AC96: 1.61221374 | AD96: Cls | AE96: 43851.94375 | AF96: 43852.09128 | AG96: 1.534351145 | AH96: 43852.08488 | AI96: 1.634351145 | AJ96: 43852.1331 | AK96: 2.145801527 | AL96: 43852.1331 | AM96: 2.145801527 | AN96: 43852.12415 | AO96: 2.145801527 | AP96: 43852.12909 | AQ96: 1.967938931 | AR96: 43852.09236 | AS96: 43852.11667 | AT96: 43852.09236 | AU96: 1.734351145 | AV96: 43852.09637 | AW96: 1.71221374 | AX96: 43852.08488 | AY96: 1.534351145 | AZ96: 43852.0814 | BA96: 1.51221374 | BB96: 43852.07647 | BC96: 1.61221374 | BD96: 43852.03133 | BE96: 1.300763359 | BF96: 43852.12708 | BH96: 43852.15972 | BI96: 43852.13403 | BK96: 2024-01-23T03:50:00 | BL96: 43852.15972
A97: 0 | B97: =IF(Instructions!$C$2="BST",A97,0) -> 0 | C97: 2024-01-23T08:52:00 | D97: 2024-01-23 | E97: Tue | F97: 1 | I97: 2 | K97: 43852.36944 | L97: 5.03 | M97: HW | N97: 0.4695652174 | O97: 08:52:00 | P97: 12:00:00 | Q97: 06:00:00 | R97: 0.4777777778 | S97: 43852.38137 | T97: 6.751304348 | U97: 43852.44734 | V97: 43852.38302 | W97: 6.504347826 | X97: 43852.31528 | Y97: 43852.3554 | Z97: 4.963478261 | AA97: 43852.34498 | AB97: 43852.34861 | AC97: 4.563478261 | AD97: Opn | AE97: 43852.23403 | AF97: 43852.35073 | AG97: 4.016521739 | AH97: 43852.32461 | AI97: 4.369565217 | AJ97: 43852.38318 | AK97: 6.651304348 | AL97: 43852.38499 | AM97: 6.59826087 | AN97: 43852.37971 | AO97: 6.404347826 | AP97: 43852.38515 | AQ97: 5.804347826 | AR97: 43852.35903 | AS97: 43852.37986 | AT97: 43852.34545 | AU97: 4.563478261 | AV97: 43852.34545 | AW97: 4.363478261 | AX97: 43852.3228 | AY97: 4.110434783 | AZ97: 43852.31933 | BA97: 3.963478261 | BB97: 43852.31586 | BC97: 3.916521739 | BD97: 43852.26497 | BE97: 3.763478261 | BF97: 43852.35903 | BH97: 43852.39861 | BI97: 43852.40069 | BK97: 2024-01-23T09:34:00 | BL97: 43852.39861
A98: 0 | B98: =IF(Instructions!$C$2="BST",A98,0) -> 0 | C98: 2024-01-23T14:58:00 | D98: 2024-01-23 | F98: 1 | I98: 2 | K98: 43852.62361 | L98: 1.56 | M98: LW | N98: 0.3511450382 | O98: 14:58:00 | P98: 17:00:00 | Q98: 11:00:00 | R98: 0.6611111111 | S98: 43852.6571 | T98: 1.903053435 | U98: 43852.72307 | V98: 43852.63644 | W98: 1.738167939 | X98: 43852.56528 | Y98: 43852.63738 | Z98: 1.578625954 | AA98: 43852.59942 | AB98: 43852.62932 | AC98: 1.44351145 | AD98: Cls | AE98: 43852.46319 | AF98: 43852.61096 | AG98: 1.378625954 | AH98: 43852.60513 | AI98: 1.478625954 | AJ98: 43852.6548 | AK98: 1.938167939 | AL98: 43852.6548 | AM98: 1.938167939 | AN98: 43852.64556 | AO98: 1.938167939 | AP98: 43852.65021 | AQ98: 1.773282443 | AR98: 43852.61319 | AS98: 43852.6375 | AT98: 43852.61319 | AU98: 1.578625954 | AV98: 43852.61779 | AW98: 1.54351145 | AX98: 43852.60513 | AY98: 1.378625954 | AZ98: 43852.60166 | BA98: 1.34351145 | BB98: 43852.59701 | BC98: 1.44351145 | BD98: 43852.55187 | BE98: 1.183969466 | BF98: 43852.64792 | BH98: 43852.68264 | BI98: 43852.65486 | BK98: 2024-01-23T16:23:00 | BL98: 43852.68264
A99: 0 | B99: =IF(Instructions!$C$2="BST",A99,0) -> 0 | C99: 2024-01-23T21:15:00 | D99: 2024-01-23 | F99: 1 | I99: 2 | K99: 43852.88542 | L99: 5.00 | M99: HW | N99: 0.4434782609 | O99: 21:15:00 | P99: 1 | Q99: 18:00:00 | R99: 0.5416666667 | S99: 43852.898 | T99: 6.709565217 | U99: 43852.96398 | V99: 43852.89988 | W99: 6.465217391 | X99: 43852.83125 | Y99: 43852.87182 | Z99: 4.932173913 | AA99: 43852.8614 | AB99: 43852.86458 | AC99: 4.532173913 | AD99: Opn | AE99: 43852.75 | AF99: 43852.8656 | AG99: 3.987826087 | AH99: 43852.8397 | AI99: 4.343478261 | AJ99: 43852.89959 | AK99: 6.609565217 | AL99: 43852.90119 | AM99: 6.553913043 | AN99: 43852.89612 | AO99: 6.365217391 | AP99: 43852.9009 | AQ99: 5.765217391 | AR99: 43852.875 | AS99: 43852.89583 | AT99: 43852.86053 | AU99: 4.532173913 | AV99: 43852.86053 | AW99: 4.332173913 | AX99: 43852.83811 | AY99: 4.076521739 | AZ99: 43852.83464 | BA99: 3.932173913 | BB99: 43852.83116 | BC99: 3.887826087 | BD99: 43852.78183 | BE99: 3.732173913 | BF99: 43852.875 | BH99: 43852.91458 | BI99: 43852.91667 | BK99: 2024-01-23T21:57:00 | BL99: 43852.91458
A100: 0 | B100: =IF(Instructions!$C$2="BST",A100,0) -> 0 | C100: 2024-01-24T03:15:00 | D100: 2024-01-24 | E100: 2024-01-24 | F100: 1 | G100: Jan | H100: 24 | I100: 3 | J100: Wed | K100: 43853.13542 | L100: 1.61 | M100: LW | N100: 0.3129770992 | O100: 03:15:00 | P100: 05:00:00 | Q100: -0.04166666667 | R100: 0.7083333333 | S100: 43853.16956 | T100: 1.967938931 | U100: 43853.23553 | V100: 43853.14742 | W100: 1.799236641 | X100: 43853.08125 | Y100: 43853.15017 | Z100: 1.624427481 | AA100: 43853.11024 | AB100: 43853.14178 | AC100: 1.493129771 | AD100: Cls | AE100: 43852.97917 | AF100: 43853.12211 | AG100: 1.424427481 | AH100: 43853.11661 | AI100: 1.524427481 | AJ100: 43853.1671 | AK100: 1.999236641 | AL100: 43853.1671 | AM100: 1.999236641 | AN100: 43853.1577 | AO100: 1.999236641 | AP100: 43853.16218 | AQ100: 1.830534351 | AR100: 43853.125 | AS100: 43853.14931 | AT100: 43853.125 | AU100: 1.624427481 | AV100: 43853.12992 | AW100: 1.593129771 | AX100: 43853.11661 | AY100: 1.424427481 | AZ100: 43853.11314 | BA100: 1.393129771 | BB100: 43853.10865 | BC100: 1.493129771 | BD100: 43853.06351 | BE100: 1.218320611 | BF100: 43853.15972 | BH100: 43853.19583 | BI100: 43853.16667 | BK100: 2024-01-24T04:42:00 | BL100: 43853.19583
A101: 0 | B101: =IF(Instructions!$C$2="BST",A101,0) -> 0 | C101: 2024-01-24T09:36:00 | D101: 2024-01-24 | E101: Wed | F101: 1 | I101: 3 | K101: 43853.4 | L101: 5.23 | M101: HW | N101: 0.6434782609 | O101: 09:36:00 | P101: 12:00:00 | Q101: 06:00:00 | R101: 0.6 | S101: 43853.41319 | T101: 7.029565217 | U101: 43853.47917 | V101: 43853.41528 | W101: 6.765217391 | X101: 43853.34722 | Y101: 43853.38681 | Z101: 5.172173913 | AA101: 43853.37639 | AB101: 43853.37917 | AC101: 4.772173913 | AD101: Opn | AE101: 43853.26458 | AF101: 43853.37917 | AG101: 4.207826087 | AH101: 43853.35347 | AI101: 4.543478261 | AJ101: 43853.41458 | AK101: 6.929565217 | AL101: 43853.41597 | AM101: 6.893913043 | AN101: 43853.41111 | AO101: 6.665217391 | AP101: 43853.41528 | AQ101: 6.065217391 | AR101: 43853.38958 | AS101: 43853.41042 | AT101: 43853.37431 | AU101: 4.772173913 | AV101: 43853.37431 | AW101: 4.572173913 | AX101: 43853.35208 | AY101: 4.336521739 | AZ101: 43853.34861 | BA101: 4.172173913 | BB101: 43853.34514 | BC101: 4.107826087 | BD101: 43853.29722 | BE101: 3.972173913 | BF101: 43853.38958 | BH101: 43853.43056 | BI101: 43853.43125 | BK101: 2024-01-24T10:20:00 | BL101: 43853.43056
A102: 0 | B102: =IF(Instructions!$C$2="BST",A102,0) -> 0 | C102: 2024-01-24T15:43:00 | D102: 2024-01-24 | F102: 1 | I102: 3 | K102: 43853.65486 | L102: 1.37 | M102: LW | N102: 0.4961832061 | O102: 15:43:00 | P102: 17:00:00 | Q102: 11:00:00 | R102: 0.7861111111 | S102: 43853.69008 | T102: 1.65648855 | U102: 43853.75606 | V102: 43853.66552 | W102: 1.50610687 | X102: 43853.59722 | Y102: 43853.67124 | Z102: 1.404580153 | AA102: 43853.62807 | AB102: 43853.66231 | AC102: 1.254961832 | AD102: Cls | AE102: 43853.49375 | AF102: 43853.64047 | AG102: 1.204580153 | AH102: 43853.63551 | AI102: 1.304580153 | AJ102: 43853.68736 | AK102: 1.70610687 | AL102: 43853.68736 | AM102: 1.70610687 | AN102: 43853.67768 | AO102: 1.70610687 | AP102: 43853.6819 | AQ102: 1.555725191 | AR102: 43853.64444 | AS102: 43853.66875 | AT102: 43853.64444 | AU102: 1.404580153 | AV102: 43853.6499 | AW102: 1.354961832 | AX102: 43853.63551 | AY102: 1.204580153 | AZ102: 43853.63204 | BA102: 1.154961832 | BB102: 43853.62783 | BC102: 1.254961832 | BD102: 43853.58269 | BE102: 1.053435115 | BF102: 43853.67917 | BH102: 43853.71597 | BI102: 43853.68611 | BK102: 2024-01-24T17:11:00 | BL102: 43853.71597
A103: 0 | B103: =IF(Instructions!$C$2="BST",A103,0) -> 0 | C103: 2024-01-24T21:58:00 | D103: 2024-01-24 | F103: 1 | I103: 3 | K103: 43853.91528 | L103: 5.10 | M103: HW | N103: 0.5304347826 | O103: 21:58:00 | P103: 1 | Q103: 18:00:00 | R103: 0.6611111111 | S103: 43853.92911 | T103: 6.848695652 | U103: 43853.99508 | V103: 43853.9314 | W103: 6.595652174 | X103: 43853.86181 | Y103: 43853.90251 | Z103: 5.036521739 | AA103: 43853.89209 | AB103: 43853.89444 | AC103: 4.636521739 | AD103: Opn | AE103: 43853.77986 | AF103: 43853.89338 | AG103: 4.083478261 | AH103: 43853.8679 | AI103: 4.430434783 | AJ103: 43853.93029 | AK103: 6.748695652 | AL103: 43853.93146 | AM103: 6.70173913 | AN103: 43853.92681 | AO103: 6.495652174 | AP103: 43853.93034 | AQ103: 5.895652174 | AR103: 43853.90486 | AS103: 43853.92569 | AT103: 43853.88873 | AU103: 4.636521739 | AV103: 43853.88873 | AW103: 4.436521739 | AX103: 43853.86672 | AY103: 4.189565217 | AZ103: 43853.86325 | BA103: 4.036521739 | BB103: 43853.85978 | BC103: 3.983478261 | BD103: 43853.81335 | BE103: 3.836521739 | BF103: 43853.90486 | BH103: 43853.94514 | BI103: 43853.94653 | BK103: 2024-01-24T22:41:00 | BL103: 43853.94514
A104: 0 | B104: =IF(Instructions!$C$2="BST",A104,0) -> 0 | C104: 2024-01-25T03:56:00 | D104: 2024-01-25 | E104: 2024-01-25 | F104: 1 | G104: Jan | H104: 25 | I104: 4 | J104: Thu | K104: 43854.16389 | L104: 1.47 | M104: LW | N104: 0.4198473282 | O104: 03:56:00 | P104: 05:00:00 | Q104: -0.04166666667 | R104: 0.8222222222 | S104: 43854.19961 | T104: 1.786259542 | U104: 43854.26559 | V104: 43854.17392 | W104: 1.628244275 | X104: 43854.11181 | Y104: 43854.18102 | Z104: 1.496183206 | AA104: 43854.13634 | AB104: 43854.17184 | AC104: 1.354198473 | AD104: Cls | AE104: 43854.00903 | AF104: 43854.149 | AG104: 1.296183206 | AH104: 43854.14429 | AI104: 1.396183206 | AJ104: 43854.19676 | AK104: 1.828244275 | AL104: 43854.19676 | AM104: 1.828244275 | AN104: 43854.18696 | AO104: 1.828244275 | AP104: 43854.19105 | AQ104: 1.670229008 | AR104: 43854.15347 | AS104: 43854.17778 | AT104: 43854.15347 | AU104: 1.496183206 | AV104: 43854.15918 | AW104: 1.454198473 | AX104: 43854.14429 | AY104: 1.296183206 | AZ104: 43854.14082 | BA104: 1.254198473 | BB104: 43854.13673 | BC104: 1.354198473 | BD104: 43854.09159 | BE104: 1.122137405 | BF104: 43854.18819 | BH104: 43854.22569 | BI104: 43854.19514 | BK104: 2024-01-25T05:25:00 | BL104: 43854.22569
A105: 0 | B105: =IF(Instructions!$C$2="BST",A105,0) -> 0 | C105: 2024-01-25T10:14:00 | D105: 2024-01-25 | E105: Thu | F105: 1 | I105: 4 | K105: 43854.42639 | L105: 5.40 | M105: HW | N105: 0.7913043478 | O105: 10:14:00 | P105: 12:00:00 | Q105: 06:00:00 | R105: 0.7055555556 | S105: 43854.44068 | T105: 7.266086957 | U105: 43854.50666 | V105: 43854.44313 | W105: 6.986956522 | X105: 43854.37431 | Y105: 43854.41393 | Z105: 5.349565217 | AA105: 43854.40351 | AB105: 43854.40556 | AC105: 4.949565217 | AD105: Opn | AE105: 43854.29097 | AF105: 43854.40372 | AG105: 4.370434783 | AH105: 43854.3784 | AI105: 4.691304348 | AJ105: 43854.44171 | AK105: 7.166086957 | AL105: 43854.44273 | AM105: 7.145217391 | AN105: 43854.43823 | AO105: 6.886956522 | AP105: 43854.4413 | AQ105: 6.286956522 | AR105: 43854.41597 | AS105: 43854.43681 | AT105: 43854.39923 | AU105: 4.949565217 | AV105: 43854.39923 | AW105: 4.749565217 | AX105: 43854.37737 | AY105: 4.528695652 | AZ105: 43854.3739 | BA105: 4.349565217 | BB105: 43854.37043 | BC105: 4.270434783 | BD105: 43854.32508 | BE105: 4.149565217 | BF105: 43854.41597 | BH105: 43854.45764 | BI105: 43854.45764 | BK105: 2024-01-25T10:59:00 | BL105: 43854.45764
A106: 0 | B106: =IF(Instructions!$C$2="BST",A106,0) -> 0 | C106: 2024-01-25T16:24:00 | D106: 2024-01-25 | F106: 1 | I106: 4 | K106: 43854.68333 | L106: 1.21 | M106: LW | N106: 0.6183206107 | O106: 16:24:00 | P106: 17:00:00 | Q106: 11:00:00 | R106: 0.9 | S106: 43854.72014 | T106: 1.448854962 | U106: 43854.78611 | V106: 43854.69201 | W106: 1.310687023 | X106: 43854.62431 | Y106: 43854.70208 | Z106: 1.258015267 | AA106: 43854.65417 | AB106: 43854.69236 | AC106: 1.096183206 | AD106: Cls | AE106: 43854.52014 | AF106: 43854.66736 | AG106: 1.058015267 | AH106: 43854.66319 | AI106: 1.158015267 | AJ106: 43854.71701 | AK106: 1.510687023 | AL106: 43854.71701 | AM106: 1.510687023 | AN106: 43854.70694 | AO106: 1.510687023 | AP106: 43854.71076 | AQ106: 1.372519084 | AR106: 43854.67292 | AS106: 43854.69722 | AT106: 43854.67292 | AU106: 1.258015267 | AV106: 43854.67917 | AW106: 1.196183206 | AX106: 43854.66319 | AY106: 1.058015267 | AZ106: 43854.65972 | BA106: 0.9961832061 | BB106: 43854.6559 | BC106: 1.096183206 | BD106: 43854.61076 | BE106: 0.9435114504 | BF106: 43854.70764 | BH106: 43854.74514 | BI106: 43854.71458 | BK106: 2024-01-25T17:53:00 | BL106: 43854.74514
A107: 0 | B107: =IF(Instructions!$C$2="BST",A107,0) -> 0 | C107: 2024-01-25T22:35:00 | D107: 2024-01-25 | F107: 1 | I107: 4 | K107: 43854.94097 | L107: 5.17 | M107: HW | N107: 0.5913043478 | O107: 22:35:00 | P107: 1 | Q107: 18:00:00 | R107: 0.7638888889 | S107: 43854.95587 | T107: 6.946086957 | U107: 43855.02185 | V107: 43854.95853 | W107: 6.686956522 | X107: 43854.88889 | Y107: 43854.92892 | Z107: 5.109565217 | AA107: 43854.9185 | AB107: 43854.92014 | AC107: 4.709565217 | AD107: Opn | AE107: 43854.80556 | AF107: 43854.91729 | AG107: 4.150434783 | AH107: 43854.89217 | AI107: 4.491304348 | AJ107: 43854.95669 | AK107: 6.846086957 | AL107: 43854.95751 | AM107: 6.805217391 | AN107: 43854.95322 | AO107: 6.586956522 | AP107: 43854.95568 | AQ107: 5.986956522 | AR107: 43854.93056 | AS107: 43854.95139 | AT107: 43854.913 | AU107: 4.709565217 | AV107: 43854.913 | AW107: 4.509565217 | AX107: 43854.89135 | AY107: 4.268695652 | AZ107: 43854.88788 | BA107: 4.109565217 | BB107: 43854.8844 | BC107: 4.050434783 | BD107: 43854.84047 | BE107: 3.909565217 | BF107: 43854.93056 | BH107: 43854.97222 | BI107: 43854.97222 | BK107: 2024-01-25T23:20:00 | BL107: 43854.97222
A108: 0 | B108: =IF(Instructions!$C$2="BST",A108,0) -> 0 | C108: 2024-01-26T04:32:00 | D108: 2024-01-26 | E108: 2024-01-26 | F108: 1 | G108: Jan | H108: 26 | I108: 5 | J108: Fri | K108: 43855.18889 | L108: 1.36 | M108: LW | N108: 0.5038167939 | O108: 04:32:00 | P108: 05:00:00 | Q108: -0.04166666667 | R108: 0.9222222222 | S108: 43855.226 | T108: 1.64351145 | U108: 43855.29198 | V108: 43855.19718 | W108: 1.49389313 | X108: 43855.13889 | Y108: 43855.2081 | Z108: 1.395419847 | AA108: 43855.15926 | AB108: 43855.19823 | AC108: 1.245038168 | AD108: Cls | AE108: 43855.03472 | AF108: 43855.17261 | AG108: 1.195419847 | AH108: 43855.1686 | AI108: 1.295419847 | AJ108: 43855.2228 | AK108: 1.69389313 | AL108: 43855.2228 | AM108: 1.69389313 | AN108: 43855.21265 | AO108: 1.69389313 | AP108: 43855.2164 | AQ108: 1.544274809 | AR108: 43855.17847 | AS108: 43855.20278 | AT108: 43855.17847 | AU108: 1.395419847 | AV108: 43855.18488 | AW108: 1.345038168 | AX108: 43855.1686 | AY108: 1.195419847 | AZ108: 43855.16512 | BA108: 1.145038168 | BB108: 43855.16138 | BC108: 1.245038168 | BD108: 43855.11624 | BE108: 1.046564885 | BF108: 43855.21319 | BH108: 43855.25139 | BI108: 43855.22014 | BK108: 2024-01-26T06:02:00 | BL108: 43855.25139
A109: 0 | B109: =IF(Instructions!$C$2="BST",A109,0) -> 0 | C109: 2024-01-26T10:49:00 | D109: 2024-01-26 | E109: Fri | F109: 1 | I109: 5 | K109: 43855.45069 | L109: 5.51 | M109: HW | N109: 0.8869565217 | O109: 10:49:00 | P109: 12:00:00 | Q109: 06:00:00 | R109: 0.8027777778 | S109: 43855.466 | T109: 7.419130435 | U109: 43855.53197 | V109: 43855.46879 | W109: 7.130434783 | X109: 43855.39931 | Y109: 43855.43891 | Z109: 5.464347826 | AA109: 43855.42849 | AB109: 43855.42986 | AC109: 5.064347826 | AD109: Opn | AE109: 43855.31528 | AF109: 43855.42634 | AG109: 4.475652174 | AH109: 43855.40135 | AI109: 4.786956522 | AJ109: 43855.46669 | AK109: 7.319130435 | AL109: 43855.46737 | AM109: 7.307826087 | AN109: 43855.46321 | AO109: 7.030434783 | AP109: 43855.46527 | AQ109: 6.430434783 | AR109: 43855.44028 | AS109: 43855.46111 | AT109: 43855.42218 | AU109: 5.064347826 | AV109: 43855.42218 | AW109: 4.864347826 | AX109: 43855.40067 | AY109: 4.653043478 | AZ109: 43855.39719 | BA109: 4.464347826 | BB109: 43855.39372 | BC109: 4.375652174 | BD109: 43855.35073 | BE109: 4.264347826 | BF109: 43855.44028 | BH109: 43855.48264 | BI109: 43855.48194 | BK109: 2024-01-26T11:35:00 | BL109: 43855.48264
A110: 0 | B110: =IF(Instructions!$C$2="BST",A110,0) -> 0 | C110: 2024-01-26T17:00:00 | D110: 2024-01-26 | F110: 1 | I110: 5 | K110: 43855.70833 | L110: 1.11 | M110: LW | N110: 0.6946564885 | O110: 17:00:00 | P110: 17:00:00 | Q110: 23:00:00 | R110: 1 | S110: =IF($M110="HW",$K110+S$6+(S$5-S$6)*$R110,$K110+S$8+(S$7-S$8)*$R110) -> 43855.74653 | T110: 1.319083969 | U110: 43855.8125 | V110: 43855.71528 | W110: 1.188549618 | X110: 43855.64931 | Y110: =IF($M110="HW",$K110+Y$6+(Y$5-Y$6)*$R110,$K110+Y$8+(Y$7-Y$8)*$R110) -> 43855.72917 | Z110: 1.166412214 | AA110: 43855.67708 | AB110: 43855.71875 | AC110: 0.9969465649 | AD110: Cls | AE110: 43855.54444 | AF110: 43855.69097 | AG110: 0.9664122137 | AH110: 43855.6875 | AI110: 1.066412214 | AJ110: 43855.74306 | AK110: 1.388549618 | AL110: 43855.74306 | AM110: 1.388549618 | AN110: 43855.73264 | AO110: 1.388549618 | AP110: 43855.73611 | AQ110: 1.258015267 | AR110: =IF($M110="HW",$K110+AR$6+(AR$5-AR$6)*$R110,$K110+AR$8+(AR$7-AR$8)*$R110) -> 43855.69792 | AS110: 43855.72222 | AT110: 43855.69792 | AU110: 1.166412214 | AV110: 43855.70486 | AW110: 1.096946565 | AX110: 43855.6875 | AY110: 0.9664122137 | AZ110: 43855.68403 | BA110: 0.8969465649 | BB110: 43855.68056 | BC110: 0.9969465649 | BD110: 43855.63542 | BE110: 0.8748091603 | BF110: =IF($M110="HW",$K110+BF$6+(BF$5-BF$6)*$R110,$K110+BF$8+(BF$7-BF$8)*$R110) -> 43855.73264 | BH110: 43855.77083 | BI110: 43855.73958 | BK110: 2024-01-26T18:30:00 | BL110: 43855.77083
A111: 0 | B111: =IF(Instructions!$C$2="BST",A111,0) -> 0 | C111: 2024-01-26T23:09:00 | D111: 2024-01-26 | F111: 1 | I111: 5 | K111: 43855.96458 | L111: 5.21 | M111: HW | N111: 0.6260869565 | O111: 23:09:00 | P111: 1 | Q111: 18:00:00 | R111: 0.8583333333 | S111: 43855.98047 | T111: 7.00173913 | U111: 43856.04644 | V111: 43855.98345 | W111: 6.739130435 | X111: 43855.91389 | Y111: 43855.95318 | Z111: 5.151304348 | AA111: 43855.94277 | AB111: 43855.94375 | AC111: 4.751304348 | AD111: Opn | AE111: 43855.82917 | AF111: 43855.93927 | AG111: 4.188695652 | AH111: 43855.91447 | AI111: 4.526086957 | AJ111: 43855.98096 | AK111: 6.90173913 | AL111: 43855.98145 | AM111: 6.864347826 | AN111: 43855.97749 | AO111: 6.639130435 | AP111: 43855.97896 | AQ111: 6.039130435 | AR111: 43855.95417 | AS111: 43855.975 | AT111: 43855.9353 | AU111: 4.751304348 | AV111: 43855.9353 | AW111: 4.551304348 | AX111: 43855.91398 | AY111: 4.313913043 | AZ111: 43855.9105 | BA111: 4.151304348 | BB111: 43855.90703 | BC111: 4.088695652 | BD111: 43855.86539 | BE111: 3.951304348 | BF111: 43855.95417 | BH111: 43855.99722 | BI111: 43855.99583 | BK111: 2024-01-26T23:56:00 | BL111: 43855.99722
A112: 0 | B112: =IF(Instructions!$C$2="BST",A112,0) -> 0 | C112: 2024-01-27T05:06:00 | D112: 2024-01-27 | E112: 2024-01-27 | F112: 1 | G112: Jan | H112: 27 | I112: 6 | J112: Sat | K112: 43856.2125 | L112: 1.28 | M112: LW | N112: 0.5648854962 | O112: 05:06:00 | P112: 05:00:00 | Q112: 11:00:00 | R112: 0.9833333333 | S112: 43856.25046 | T112: 1.539694656 | U112: 43856.31644 | V112: 43856.21973 | W112: 1.396183206 | X112: 43856.16389 | Y112: 43856.23299 | Z112: 1.322137405 | AA112: 43856.1816 | AB112: 43856.22269 | AC112: 1.165648855 | AD112: Cls | AE112: 43856.05833 | AF112: 43856.19537 | AG112: 1.122137405 | AH112: 43856.19178 | AI112: 1.222137405 | AJ112: 43856.24705 | AK112: 1.596183206 | AL112: 43856.24705 | AM112: 1.596183206 | AN112: 43856.23669 | AO112: 1.596183206 | AP112: 43856.24022 | AQ112: 1.452671756 | AR112: 43856.20208 | AS112: 43856.22639 | AT112: 43856.20208 | AU112: 1.322137405 | AV112: 43856.20891 | AW112: 1.265648855 | AX112: 43856.19178 | AY112: 1.122137405 | AZ112: 43856.18831 | BA112: 1.065648855 | BB112: 43856.18478 | BC112: 1.165648855 | BD112: 43856.13964 | BE112: 0.9916030534 | BF112: 43856.23681 | BH112: 43856.27431 | BI112: 43856.24375 | BK112: 2024-01-27T06:35:00 | BL112: 43856.27431
A113: 0 | B113: =IF(Instructions!$C$2="BST",A113,0) -> 0 | C113: 2024-01-27T11:22:00 | D113: 2024-01-27 | E113: Sat | F113: 1 | I113: 6 | K113: 43856.47361 | L113: 5.56 | M113: HW | N113: 0.9304347826 | O113: 11:22:00 | P113: 12:00:00 | Q113: 06:00:00 | R113: 0.8944444444 | S113: 43856.48987 | T113: 7.488695652 | U113: 43856.55584 | V113: 43856.49298 | W113: 7.195652174 | X113: 43856.42222 | Y113: 43856.46246 | Z113: 5.516521739 | AA113: 43856.45204 | AB113: 43856.45278 | AC113: 5.116521739 | AD113: Opn | AE113: 43856.33819 | AF113: 43856.44767 | AG113: 4.523478261 | AH113: 43856.42299 | AI113: 4.830434783 | AJ113: 43856.49024 | AK113: 7.388695652 | AL113: 43856.49061 | AM113: 7.38173913 | AN113: 43856.48677 | AO113: 7.095652174 | AP113: 43856.48787 | AQ113: 6.495652174 | AR113: 43856.46319 | AS113: 43856.48403 | AT113: 43856.44383 | AU113: 5.116521739 | AV113: 43856.44383 | AW113: 4.916521739 | AX113: 43856.42263 | AY113: 4.709565217 | AZ113: 43856.41916 | BA113: 4.516521739 | BB113: 43856.41568 | BC113: 4.423478261 | BD113: 43856.37492 | BE113: 4.316521739 | BF113: 43856.46319 | BH113: 43856.50556 | BI113: 43856.50486 | BK113: 2024-01-27T12:08:00 | BL113: 43856.50556
A114: 0 | B114: =IF(Instructions!$C$2="BST",A114,0) -> 0 | C114: 2024-01-27T17:34:00 | D114: 2024-01-27 | F114: 1 | I114: 6 | K114: 43856.73194 | L114: 1.06 | M114: LW | N114: 0.7328244275 | O114: 17:34:00 | P114: 17:00:00 | Q114: 23:00:00 | R114: 0.9055555556 | S114: 43856.76883 | T114: 1.254198473 | U114: 43856.8348 | V114: 43856.74053 | W114: 1.127480916 | X114: 43856.67222 | Y114: 43856.75081 | Z114: 1.120610687 | AA114: 43856.70266 | AB114: 43856.74105 | AC114: 0.9473282443 | AD114: Cls | AE114: 43856.56736 | AF114: 43856.7159 | AG114: 0.920610687 | AH114: 43856.71177 | AI114: 1.020610687 | AJ114: 43856.76568 | AK114: 1.327480916 | AL114: 43856.76568 | AM114: 1.327480916 | AN114: 43856.75559 | AO114: 1.327480916 | AP114: 43856.75939 | AQ114: 1.200763359 | AR114: 43856.72153 | AS114: 43856.74583 | AT114: 43856.72153 | AU114: 1.120610687 | AV114: 43856.72782 | AW114: 1.047328244 | AX114: 43856.71177 | AY114: 0.920610687 | AZ114: 43856.70829 | BA114: 0.8473282443 | BB114: 43856.70449 | BC114: 0.9473282443 | BD114: 43856.65936 | BE114: 0.8404580153 | BF114: 43856.75625 | BH114: 43856.79375 | BI114: 43856.76319 | BK114: 2024-01-27T19:03:00 | BL114: 43856.79375
A115: 0 | B115: =IF(Instructions!$C$2="BST",A115,0) -> 0 | C115: 2024-01-27T23:41:00 | D115: 2024-01-27 | F115: 1 | I115: 6 | K115: 43856.98681 | L115: 5.20 | M115: HW | N115: 0.6173913043 | O115: 23:41:00 | P115: 1 | Q115: 18:00:00 | R115: 0.9472222222 | S115: 43857.00362 | T115: 6.987826087 | U115: 43857.06959 | V115: 43857.00691 | W115: 6.726086957 | X115: 43856.9375 | Y115: 43856.97602 | Z115: 5.140869565 | AA115: 43856.96561 | AB115: 43856.96597 | AC115: 4.740869565 | AD115: Opn | AE115: 43856.85139 | AF115: 43856.95994 | AG115: 4.179130435 | AH115: 43856.93546 | AI115: 4.517391304 | AJ115: 43857.0038 | AK115: 6.887826087 | AL115: 43857.00398 | AM115: 6.849565217 | AN115: 43857.00033 | AO115: 6.626086957 | AP115: 43857.00088 | AQ115: 6.026086957 | AR115: 43856.97639 | AS115: 43856.99722 | AT115: 43856.95629 | AU115: 4.740869565 | AV115: 43856.95629 | AW115: 4.540869565 | AX115: 43856.93527 | AY115: 4.302608696 | AZ115: 43856.9318 | BA115: 4.140869565 | BB115: 43856.92833 | BC115: 4.079130435 | BD115: 43856.88885 | BE115: 3.940869565 | BF115: 43856.97639 | BH115: 43857.02083 | BI115: 43857.01806 | BK115: 2024-01-28T00:30:00 | BL115: 43857.02083
A116: 0 | B116: =IF(Instructions!$C$2="BST",A116,0) -> 0 | C116: 2024-01-28T05:38:00 | D116: 2024-01-28 | E116: 2024-01-28 | F116: 1 | G116: Jan | H116: 28 | I116: 7 | J116: Sun | K116: 43857.23472 | L116: 1.25 | M116: LW | N116: 0.5877862595 | O116: 05:38:00 | P116: 05:00:00 | Q116: 11:00:00 | R116: 0.8944444444 | S116: 43857.27145 | T116: 1.500763359 | U116: 43857.33742 | V116: 43857.2435 | W116: 1.359541985 | X116: 43857.1875 | Y116: 43857.25336 | Z116: 1.294656489 | AA116: 43857.20567 | AB116: 43857.24367 | AC116: 1.135877863 | AD116: Cls | AE116: 43857.08056 | AF116: 43857.21883 | AG116: 1.094656489 | AH116: 43857.21462 | AI116: 1.194656489 | AJ116: 43857.26834 | AK116: 1.559541985 | AL116: 43857.26834 | AM116: 1.559541985 | AN116: 43857.25829 | AO116: 1.559541985 | AP116: 43857.26213 | AQ116: 1.418320611 | AR116: 43857.22431 | AS116: 43857.24861 | AT116: 43857.22431 | AU116: 1.294656489 | AV116: 43857.23052 | AW116: 1.235877863 | AX116: 43857.21462 | AY116: 1.094656489 | AZ116: 43857.21115 | BA116: 1.035877863 | BB116: 43857.20731 | BC116: 1.135877863 | BD116: 43857.16217 | BE116: 0.9709923664 | BF116: 43857.25903 | BH116: 43857.29514 | BI116: 43857.26597 | BK116: 2024-01-28T07:05:00 | BL116: 43857.29514
A117: 0 | B117: =IF(Instructions!$C$2="BST",A117,0) -> 0 | C117: 2024-01-28T11:53:00 | D117: 2024-01-28 | E117: Sun | F117: 1 | I117: 7 | K117: 43857.49514 | L117: 5.54 | M117: HW | N117: 0.9130434783 | O117: 11:53:00 | P117: 12:00:00 | Q117: 06:00:00 | R117: 0.9805555556 | S117: 43857.5123 | T117: 7.460869565 | U117: 43857.57827 | V117: 43857.5157 | W117: 7.169565217 | X117: 43857.44375 | Y117: 43857.48459 | Z117: 5.495652174 | AA117: 43857.47417 | AB117: 43857.47431 | AC117: 5.095652174 | AD117: Opn | AE117: 43857.35972 | AF117: 43857.4677 | AG117: 4.504347826 | AH117: 43857.44333 | AI117: 4.813043478 | AJ117: 43857.51236 | AK117: 7.360869565 | AL117: 43857.51243 | AM117: 7.352173913 | AN117: 43857.50889 | AO117: 7.069565217 | AP117: 43857.5091 | AQ117: 6.469565217 | AR117: 43857.48472 | AS117: 43857.50556 | AT117: 43857.46416 | AU117: 5.095652174 | AV117: 43857.46416 | AW117: 4.895652174 | AX117: 43857.44326 | AY117: 4.686956522 | AZ117: 43857.43979 | BA117: 4.495652174 | BB117: 43857.43631 | BC117: 4.404347826 | BD117: 43857.39765 | BE117: 4.295652174 | BF117: 43857.48472 | BH117: 43857.52708 | BI117: 43857.52639 | BK117: 2024-01-28T12:39:00 | BL117: 43857.52708
A118: 0 | B118: =IF(Instructions!$C$2="BST",A118,0) -> 0 | C118: 2024-01-28T18:06:00 | D118: 2024-01-28 | F118: 1 | I118: 7 | K118: 43857.75417 | L118: 1.08 | M118: LW | N118: 0.7175572519 | O118: 18:06:00 | P118: 17:00:00 | Q118: 23:00:00 | R118: 0.8166666667 | S118: 43857.78981 | T118: 1.280152672 | U118: 43857.85579 | V118: 43857.76429 | W118: 1.151908397 | X118: 43857.69375 | Y118: 43857.77118 | Z118: 1.138931298 | AA118: 43857.72674 | AB118: 43857.76204 | AC118: 0.9671755725 | AD118: Cls | AE118: 43857.58889 | AF118: 43857.73935 | AG118: 0.9389312977 | AH118: 43857.73461 | AI118: 1.038931298 | AJ118: 43857.78698 | AK118: 1.351908397 | AL118: 43857.78698 | AM118: 1.351908397 | AN118: 43857.7772 | AO118: 1.351908397 | AP118: 43857.78131 | AQ118: 1.223664122 | AR118: 43857.74375 | AS118: 43857.76806 | AT118: 43857.74375 | AU118: 1.138931298 | AV118: 43857.74942 | AW118: 1.067175573 | AX118: 43857.73461 | AY118: 0.9389312977 | AZ118: 43857.73113 | BA118: 0.8671755725 | BB118: 43857.72703 | BC118: 0.9671755725 | BD118: 43857.68189 | BE118: 0.8541984733 | BF118: 43857.77847 | BH118: 43857.81458 | BI118: 43857.78542 | BK118: 2024-01-28T19:33:00 | BL118: 43857.81458
A119: 0 | B119: =IF(Instructions!$C$2="BST",A119,0) -> 0 | C119: 2024-01-29T00:13:00 | D119: 2024-01-29 | E119: 2024-01-29 | F119: 1 | G119: Jan | H119: 29 | I119: 1 | J119: Mon | K119: 43858.00903 | L119: 5.16 | M119: HW | N119: 0.5826086957 | O119: 00:13:00 | P119: 00:00:00 | Q119: 06:00:00 | R119: 0.9638888889 | S119: 43858.02601 | T119: 6.932173913 | U119: 43858.09198 | V119: 43858.02936 | W119: 6.673913043 | X119: 43857.95972 | Y119: 43857.99836 | Z119: 5.099130435 | AA119: 43857.98794 | AB119: 43857.98819 | AC119: 4.699130435 | AD119: Opn | AE119: 43857.87361 | AF119: 43857.98188 | AG119: 4.140869565 | AH119: 43857.95745 | AI119: 4.482608696 | AJ119: 43858.02614 | AK119: 6.832173913 | AL119: 43858.02626 | AM119: 6.790434783 | AN119: 43858.02267 | AO119: 6.573913043 | AP119: 43858.02304 | AQ119: 5.973913043 | AR119: 43857.99861 | AS119: 43858.01944 | AT119: 43857.97828 | AU119: 4.699130435 | AV119: 43857.97828 | AW119: 4.499130435 | AX119: 43857.95732 | AY119: 4.257391304 | AZ119: 43857.95385 | BA119: 4.099130435 | BB119: 43857.95038 | BC119: 4.040869565 | BD119: 43857.9113 | BE119: 3.899130435 | BF119: 43857.99861 | BH119: 43858.04306 | BI119: 43858.04028 | BK119: 2024-01-29T01:02:00 | BL119: 43858.04306
A120: 0 | B120: =IF(Instructions!$C$2="BST",A120,0) -> 0 | C120: 2024-01-29T06:10:00 | D120: 2024-01-29 | E120: Mon | F120: 1 | I120: 1 | K120: 43858.25694 | L120: 1.28 | M120: LW | N120: 0.5648854962 | O120: 06:10:00 | P120: 05:00:00 | Q120: 11:00:00 | R120: 0.8055555556 | S120: 43858.29244 | T120: 1.539694656 | U120: 43858.35841 | V120: 43858.26726 | W120: 1.396183206 | X120: 43858.20972 | Y120: 43858.27373 | Z120: 1.322137405 | AA120: 43858.22975 | AB120: 43858.26466 | AC120: 1.165648855 | AD120: Cls | AE120: 43858.10278 | AF120: 43858.24228 | AG120: 1.122137405 | AH120: 43858.23746 | AI120: 1.222137405 | AJ120: 43858.28964 | AK120: 1.596183206 | AL120: 43858.28964 | AM120: 1.596183206 | AN120: 43858.2799 | AO120: 1.596183206 | AP120: 43858.28405 | AQ120: 1.452671756 | AR120: 43858.24653 | AS120: 43858.27083 | AT120: 43858.24653 | AU120: 1.322137405 | AV120: 43858.25212 | AW120: 1.265648855 | AX120: 43858.23746 | AY120: 1.122137405 | AZ120: 43858.23399 | BA120: 1.065648855 | BB120: 43858.22984 | BC120: 1.165648855 | BD120: 43858.1847 | BE120: 0.9916030534 | BF120: 43858.28125 | BH120: 43858.31458 | BI120: 43858.28819 | BK120: 2024-01-29T07:33:00 | BL120: 43858.31458
A121: 0 | B121: =IF(Instructions!$C$2="BST",A121,0) -> 0 | C121: 2024-01-29T12:23:00 | D121: 2024-01-29 | F121: 1 | I121: 1 | K121: 43858.51597 | L121: 5.47 | M121: HW | N121: 0.852173913 | O121: 12:23:00 | P121: 12:00:00 | Q121: 18:00:00 | R121: 0.9361111111 | S121: 43858.53267 | T121: 7.363478261 | U121: 43858.59864 | V121: 43858.53592 | W121: 7.07826087 | X121: 43858.46528 | Y121: 43858.50511 | Z121: 5.422608696 | AA121: 43858.4947 | AB121: 43858.49514 | AC121: 5.022608696 | AD121: Opn | AE121: 43858.38056 | AF121: 43858.4893 | AG121: 4.437391304 | AH121: 43858.46478 | AI121: 4.752173913 | AJ121: 43858.53289 | AK121: 7.263478261 | AL121: 43858.53311 | AM121: 7.248695652 | AN121: 43858.52942 | AO121: 6.97826087 | AP121: 43858.53008 | AQ121: 6.37826087 | AR121: 43858.50556 | AS121: 43858.52639 | AT121: 43858.48561 | AU121: 5.022608696 | AV121: 43858.48561 | AW121: 4.822608696 | AX121: 43858.46455 | AY121: 4.607826087 | AZ121: 43858.46108 | BA121: 4.422608696 | BB121: 43858.45761 | BC121: 4.337391304 | BD121: 43858.41786 | BE121: 4.222608696 | BF121: 43858.50556 | BH121: 43858.54861 | BI121: 43858.54722 | BK121: 2024-01-29T13:10:00 | BL121: 43858.54861
A122: 0 | B122: =IF(Instructions!$C$2="BST",A122,0) -> 0 | C122: 2024-01-29T18:38:00 | D122: 2024-01-29 | F122: 1 | I122: 1 | K122: 43858.77639 | L122: 1.15 | M122: LW | N122: 0.6641221374 | O122: 18:38:00 | P122: 17:00:00 | Q122: 23:00:00 | R122: 0.7277777778 | S122: 43858.8108 | T122: 1.370992366 | U122: 43858.87677 | V122: 43858.78806 | W122: 1.23740458 | X122: 43858.71528 | Y122: 43858.79155 | Z122: 1.203053435 | AA122: 43858.75081 | AB122: 43858.78302 | AC122: 1.036641221 | AD122: Cls | AE122: 43858.60972 | AF122: 43858.76281 | AG122: 1.003053435 | AH122: 43858.75745 | AI122: 1.103053435 | AJ122: 43858.80828 | AK122: 1.43740458 | AL122: 43858.80828 | AM122: 1.43740458 | AN122: 43858.7988 | AO122: 1.43740458 | AP122: 43858.80322 | AQ122: 1.303816794 | AR122: 43858.76597 | AS122: 43858.79028 | AT122: 43858.76597 | AU122: 1.203053435 | AV122: 43858.77103 | AW122: 1.136641221 | AX122: 43858.75745 | AY122: 1.003053435 | AZ122: 43858.75397 | BA122: 0.9366412214 | BB122: 43858.74956 | BC122: 1.036641221 | BD122: 43858.70442 | BE122: 0.9022900763 | BF122: 43858.80069 | BH122: 43858.83403 | BI122: 43858.80764 | BK122: 2024-01-29T20:01:00 | BL122: 43858.83403
A123: 0 | B123: =IF(Instructions!$C$2="BST",A123,0) -> 0 | C123: 2024-01-30T00:44:00 | D123: 2024-01-30 | E123: 2024-01-30 | F123: 1 | G123: Jan | H123: 30 | I123: 2 | J123: Tue | K123: 43859.03056 | L123: 5.08 | M123: HW | N123: 0.5130434783 | O123: 00:44:00 | P123: 00:00:00 | Q123: 06:00:00 | R123: 0.8777777778 | S123: 43859.04664 | T123: 6.820869565 | U123: 43859.11262 | V123: 43859.04969 | W123: 6.569565217 | X123: 43858.98125 | Y123: 43859.01929 | Z123: 5.015652174 | AA123: 43859.00887 | AB123: 43859.00972 | AC123: 4.615652174 | AD123: Opn | AE123: 43858.89514 | AF123: 43859.0049 | AG123: 4.064347826 | AH123: 43858.98017 | AI123: 4.413043478 | AJ123: 43859.04707 | AK123: 6.720869565 | AL123: 43859.04749 | AM123: 6.672173913 | AN123: 43859.0436 | AO123: 6.469565217 | AP123: 43859.04487 | AQ123: 5.869565217 | AR123: 43859.02014 | AS123: 43859.04097 | AT123: 43859.001 | AU123: 4.615652174 | AV123: 43859.001 | AW123: 4.415652174 | AX123: 43858.97975 | AY123: 4.166956522 | AZ123: 43858.97627 | BA123: 4.015652174 | BB123: 43858.9728 | BC123: 3.964347826 | BD123: 43858.93164 | BE123: 3.815652174 | BF123: 43859.02014 | BH123: 43859.06458 | BI123: 43859.06181 | BK123: 2024-01-30T01:33:00 | BL123: 43859.06458
A124: 0 | B124: =IF(Instructions!$C$2="BST",A124,0) -> 0 | C124: 2024-01-30T06:42:00 | D124: 2024-01-30 | E124: Tue | F124: 1 | I124: 2 | K124: 43859.27917 | L124: 1.37 | M124: LW | N124: 0.4961832061 | O124: 06:42:00 | P124: 05:00:00 | Q124: 11:00:00 | R124: 0.7166666667 | S124: 43859.31343 | T124: 1.65648855 | U124: 43859.3794 | V124: 43859.29103 | W124: 1.50610687 | X124: 43859.23125 | Y124: 43859.2941 | Z124: 1.404580153 | AA124: 43859.25382 | AB124: 43859.28565 | AC124: 1.254961832 | AD124: Cls | AE124: 43859.12431 | AF124: 43859.26574 | AG124: 1.204580153 | AH124: 43859.2603 | AI124: 1.304580153 | AJ124: 43859.31094 | AK124: 1.70610687 | AL124: 43859.31094 | AM124: 1.70610687 | AN124: 43859.3015 | AO124: 1.70610687 | AP124: 43859.30596 | AQ124: 1.555725191 | AR124: 43859.26875 | AS124: 43859.29306 | AT124: 43859.26875 | AU124: 1.404580153 | AV124: 43859.27373 | AW124: 1.354961832 | AX124: 43859.2603 | AY124: 1.204580153 | AZ124: 43859.25683 | BA124: 1.154961832 | BB124: 43859.25237 | BC124: 1.254961832 | BD124: 43859.20723 | BE124: 1.053435115 | BF124: 43859.30347 | BH124: 43859.33403 | BI124: 43859.31042 | BK124: 2024-01-30T08:01:00 | BL124: 43859.33403
A125: 0 | B125: =IF(Instructions!$C$2="BST",A125,0) -> 0 | C125: 2024-01-30T12:55:00 | D125: 2024-01-30 | F125: 1 | I125: 2 | K125: 43859.53819 | L125: 5.36 | M125: HW | N125: 0.7565217391 | O125: 12:55:00 | P125: 12:00:00 | Q125: 18:00:00 | R125: 0.8472222222 | S125: 43859.55396 | T125: 7.210434783 | U125: 43859.61994 | V125: 43859.55691 | W125: 6.934782609 | X125: 43859.48542 | Y125: 43859.52672 | Z125: 5.307826087 | AA125: 43859.5163 | AB125: 43859.51736 | AC125: 4.907826087 | AD125: Opn | AE125: 43859.40278 | AF125: 43859.51307 | AG125: 4.332173913 | AH125: 43859.48823 | AI125: 4.656521739 | AJ125: 43859.55449 | AK125: 7.110434783 | AL125: 43859.55503 | AM125: 7.086086957 | AN125: 43859.55102 | AO125: 6.834782609 | AP125: 43859.55261 | AQ125: 6.234782609 | AR125: 43859.52778 | AS125: 43859.54861 | AT125: 43859.50907 | AU125: 4.907826087 | AV125: 43859.50907 | AW125: 4.707826087 | AX125: 43859.4877 | AY125: 4.483478261 | AZ125: 43859.48423 | BA125: 4.307826087 | BB125: 43859.48076 | BC125: 4.232173913 | BD125: 43859.43885 | BE125: 4.107826087 | BF125: 43859.52778 | BH125: 43859.56875 | BI125: 43859.56944 | BK125: 2024-01-30T13:39:00 | BL125: 43859.56875
A126: 0 | B126: =IF(Instructions!$C$2="BST",A126,0) -> 0 | C126: 2024-01-30T19:11:00 | D126: 2024-01-30 | F126: 1 | I126: 2 | K126: 43859.79931 | L126: 1.27 | M126: LW | N126: 0.572519084 | O126: 19:11:00 | P126: 17:00:00 | Q126: 23:00:00 | R126: 0.6361111111 | S126: 43859.83245 | T126: 1.526717557 | U126: 43859.89842 | V126: 43859.81257 | W126: 1.383969466 | X126: 43859.73542 | Y126: 43859.81256 | Z126: 1.312977099 | AA126: 43859.77564 | AB126: 43859.80467 | AC126: 1.155725191 | AD126: Cls | AE126: 43859.63194 | AF126: 43859.787 | AG126: 1.112977099 | AH126: 43859.781 | AI126: 1.212977099 | AJ126: 43859.83024 | AK126: 1.583969466 | AL126: 43859.83024 | AM126: 1.583969466 | AN126: 43859.82108 | AO126: 1.583969466 | AP126: 43859.82582 | AQ126: 1.441221374 | AR126: 43859.78889 | AS126: 43859.81319 | AT126: 43859.78889 | AU126: 1.312977099 | AV126: 43859.79331 | AW126: 1.255725191 | AX126: 43859.781 | AY126: 1.112977099 | AZ126: 43859.77753 | BA126: 1.055725191 | BB126: 43859.77279 | BC126: 1.155725191 | BD126: 43859.72765 | BE126: 0.9847328244 | BF126: 43859.82361 | BH126: 43859.85347 | BI126: 43859.83056 | BK126: 2024-01-30T20:29:00 | BL126: 43859.85347
A127: 0 | B127: =IF(Instructions!$C$2="BST",A127,0) -> 0 | C127: 2024-01-31T01:17:00 | D127: 2024-01-31 | E127: 2024-01-31 | F127: 1 | G127: Jan | H127: 31 | I127: 3 | J127: Wed | K127: 43860.05347 | L127: 4.98 | M127: HW | N127: 0.4260869565 | O127: 01:17:00 | P127: 00:00:00 | Q127: 06:00:00 | R127: 0.7861111111 | S127: =IF($M127="HW",$K127+S$6+(S$5-S$6)*$R127,$K127+S$8+(S$7-S$8)*$R127) -> 43860.06861 | T127: 6.68173913 | U127: 43860.13458 | V127: 43860.07133 | W127: 6.439130435 | X127: 43860.00278 | Y127: =IF($M127="HW",$K127+Y$6+(Y$5-Y$6)*$R127,$K127+Y$8+(Y$7-Y$8)*$R127) -> 43860.04157 | Z127: 4.911304348 | AA127: 43860.03115 | AB127: 43860.03264 | AC127: 4.511304348 | AD127: Opn | AE127: 43859.91806 | AF127: 43860.02941 | AG127: 3.968695652 | AH127: 43860.00436 | AI127: 4.326086957 | AJ127: 43860.06935 | AK127: 6.58173913 | AL127: 43860.07009 | AM127: 6.524347826 | AN127: 43860.06588 | AO127: 6.339130435 | AP127: 43860.0681 | AQ127: 5.739130435 | AR127: =IF($M127="HW",$K127+AR$6+(AR$5-AR$6)*$R127,$K127+AR$8+(AR$7-AR$8)*$R127) -> 43860.04306 | AS127: 43860.06389 | AT127: 43860.02519 | AU127: 4.511304348 | AV127: 43860.02519 | AW127: 4.311304348 | AX127: 43860.00362 | AY127: 4.053913043 | AZ127: 43860.00014 | BA127: 3.911304348 | BB127: 43859.99667 | BC127: 3.868695652 | BD127: 43859.95328 | BE127: 3.711304348 | BF127: =IF($M127="HW",$K127+BF$6+(BF$5-BF$6)*$R127,$K127+BF$8+(BF$7-BF$8)*$R127) -> 43860.04306 | BH127: 43860.08611 | BI127: 43860.08472 | BK127: 2024-01-31T02:04:00 | BL127: 43860.08611
A128: 0 | B128: =IF(Instructions!$C$2="BST",A128,0) -> 0 | C128: 2024-01-31T07:15:00 | D128: 2024-01-31 | E128: Wed | F128: 1 | I128: 3 | K128: 43860.30208 | L128: 1.50 | M128: LW | N128: 0.3969465649 | O128: 07:15:00 | P128: 05:00:00 | Q128: 11:00:00 | R128: 0.625 | S128: 43860.33507 | T128: 1.82519084 | U128: 43860.40104 | V128: 43860.31554 | W128: 1.664885496 | X128: 43860.25278 | Y128: 43860.3151 | Z128: 1.523664122 | AA128: 43860.27865 | AB128: 43860.30729 | AC128: 1.383969466 | AD128: Cls | AE128: 43860.14722 | AF128: 43860.28993 | AG128: 1.323664122 | AH128: 43860.28385 | AI128: 1.423664122 | AJ128: 43860.3329 | AK128: 1.864885496 | AL128: 43860.3329 | AM128: 1.864885496 | AN128: 43860.32378 | AO128: 1.864885496 | AP128: 43860.32856 | AQ128: 1.704580153 | AR128: 43860.29167 | AS128: 43860.31597 | AT128: 43860.29167 | AU128: 1.523664122 | AV128: 43860.29601 | AW128: 1.483969466 | AX128: 43860.28385 | AY128: 1.323664122 | AZ128: 43860.28038 | BA128: 1.283969466 | BB128: 43860.27561 | BC128: 1.383969466 | BD128: 43860.23047 | BE128: 1.142748092 | BF128: 43860.32639 | BH128: 43860.35486 | BI128: 43860.33333 | BK128: 2024-01-31T08:31:00 | BL128: 43860.35486
A129: 0 | B129: =IF(Instructions!$C$2="BST",A129,0) -> 0 | C129: 2024-01-31T13:28:00 | D129: 2024-01-31 | F129: 1 | I129: 3 | K129: 43860.56111 | L129: 5.21 | M129: HW | N129: 0.6260869565 | O129: 13:28:00 | P129: 12:00:00 | Q129: 18:00:00 | R129: 0.7555555555 | S129: 43860.57593 | T129: 7.00173913 | U129: 43860.6419 | V129: 43860.57855 | W129: 6.739130435 | X129: 43860.50694 | Y129: 43860.549 | Z129: 5.151304348 | AA129: 43860.53858 | AB129: 43860.54028 | AC129: 4.751304348 | AD129: Opn | AE129: 43860.42569 | AF129: 43860.53758 | AG129: 4.188695652 | AH129: 43860.51242 | AI129: 4.526086957 | AJ129: 43860.57677 | AK129: 6.90173913 | AL129: 43860.57762 | AM129: 6.864347826 | AN129: 43860.5733 | AO129: 6.639130435 | AP129: 43860.57585 | AQ129: 6.039130435 | AR129: 43860.55069 | AS129: 43860.57153 | AT129: 43860.53326 | AU129: 4.751304348 | AV129: 43860.53326 | AW129: 4.551304348 | AX129: 43860.51157 | AY129: 4.313913043 | AZ129: 43860.5081 | BA129: 4.151304348 | BB129: 43860.50463 | BC129: 4.088695652 | BD129: 43860.46049 | BE129: 3.951304348 | BF129: 43860.55069 | BH129: 43860.59028 | BI129: 43860.59236 | BK129: 2024-01-31T14:10:00 | BL129: 43860.59028
A130: 0 | B130: =IF(Instructions!$C$2="BST",A130,0) -> 0 | C130: 2024-01-31T19:45:00 | D130: 2024-01-31 | F130: 1 | I130: 3 | K130: 43860.82292 | L130: 1.43 | M130: LW | N130: 0.4503816794 | O130: 19:45:00 | P130: 17:00:00 | Q130: 23:00:00 | R130: 0.5416666667 | S130: 43860.85475 | T130: 1.734351145 | U130: 43860.92072 | V130: 43860.83782 | W130: 1.579389313 | X130: 43860.75694 | Y130: 43860.8342 | Z130: 1.459541985 | AA130: 43860.80122 | AB130: 43860.82697 | AC130: 1.314503817 | AD130: Cls | AE130: 43860.65486 | AF130: 43860.81192 | AG130: 1.259541985 | AH130: 43860.80527 | AI130: 1.359541985 | AJ130: 43860.85286 | AK130: 1.779389313 | AL130: 43860.85286 | AM130: 1.779389313 | AN130: 43860.84404 | AO130: 1.779389313 | AP130: 43860.8491 | AQ130: 1.624427481 | AR130: 43860.8125 | AS130: 43860.83681 | AT130: 43860.8125 | AU130: 1.459541985 | AV130: 43860.81626 | AW130: 1.414503817 | AX130: 43860.80527 | AY130: 1.259541985 | AZ130: 43860.80179 | BA130: 1.214503817 | BB130: 43860.79673 | BC130: 1.314503817 | BD130: 43860.75159 | BE130: 1.094656489 | BF130: 43860.84722 | BH130: 43860.875 | BI130: 43860.85417 | BK130: 2024-01-31T21:00:00 | BL130: 43860.875
A131: 0 | B131: =IF(Instructions!$C$2="BST",A131,0) -> 0 | C131: 2024-02-01T01:53:00 | D131: 2024-02-01 | E131: 2024-02-01 | F131: 2 | G131: Feb | H131: 1 | I131: 4 | J131: Thu | K131: 43861.07847 | L131: 4.85 | M131: HW | N131: 0.3130434783 | O131: 01:53:00 | P131: 00:00:00 | Q131: 06:00:00 | R131: 0.6861111111 | S131: 43861.09256 | T131: 6.500869565 | U131: 43861.15854 | V131: 43861.09495 | W131: 6.269565217 | X131: 43861.02569 | Y131: 43861.06588 | Z131: 4.775652174 | AA131: 43861.05546 | AB131: 43861.05764 | AC131: 4.375652174 | AD131: Opn | AE131: 43860.94306 | AF131: 43861.05614 | AG131: 3.844347826 | AH131: 43861.03075 | AI131: 4.213043478 | AJ131: 43861.09365 | AK131: 6.400869565 | AL131: 43861.09474 | AM131: 6.332173913 | AN131: 43861.09018 | AO131: 6.169565217 | AP131: 43861.09345 | AQ131: 5.569565217 | AR131: 43861.06806 | AS131: 43861.08889 | AT131: 43861.05158 | AU131: 4.375652174 | AV131: 43861.05158 | AW131: 4.175652174 | AX131: 43861.02966 | AY131: 3.906956522 | AZ131: 43861.02619 | BA131: 3.775652174 | BB131: 43861.02271 | BC131: 3.744347826 | BD131: 43860.97689 | BE131: 3.575652174 | BF131: 43861.06806 | BH131: 43861.10903 | BI131: 43861.10972 | BK131: 2024-02-01T02:37:00 | BL131: 43861.10903
A132: 0 | B132: =IF(Instructions!$C$2="BST",A132,0) -> 0 | C132: 2024-02-01T07:51:00 | D132: 2024-02-01 | E132: Thu | F132: 2 | I132: 4 | K132: 43861.32708 | L132: 1.69 | M132: LW | N132: 0.2519083969 | O132: 07:51:00 | P132: 05:00:00 | Q132: 11:00:00 | R132: 0.525 | S132: 43861.35868 | T132: 2.071755725 | U132: 43861.42465 | V132: 43861.34227 | W132: 1.896946565 | X132: 43861.27569 | Y132: 43861.33802 | Z132: 1.697709924 | AA132: 43861.30573 | AB132: 43861.3309 | AC132: 1.572519084 | AD132: Cls | AE132: 43861.17222 | AF132: 43861.31632 | AG132: 1.497709924 | AH132: 43861.30955 | AI132: 1.597709924 | AJ132: 43861.35686 | AK132: 2.096946565 | AL132: 43861.35686 | AM132: 2.096946565 | AN132: 43861.34809 | AO132: 2.096946565 | AP132: 43861.35321 | AQ132: 1.922137405 | AR132: 43861.31667 | AS132: 43861.34097 | AT132: 43861.31667 | AU132: 1.697709924 | AV132: 43861.32031 | AW132: 1.672519084 | AX132: 43861.30955 | AY132: 1.497709924 | AZ132: 43861.30608 | BA132: 1.472519084 | BB132: 43861.30095 | BC132: 1.572519084 | BD132: 43861.25582 | BE132: 1.273282443 | BF132: 43861.35139 | BH132: 43861.37847 | BI132: 43861.35833 | BK132: 2024-02-01T09:05:00 | BL132: 43861.37847
A133: 0 | B133: =IF(Instructions!$C$2="BST",A133,0) -> 0 | C133: 2024-02-01T14:04:00 | D133: 2024-02-01 | F133: 2 | I133: 4 | K133: 43861.58611 | L133: 5.03 | M133: HW | N133: 0.4695652174 | O133: 14:04:00 | P133: 12:00:00 | Q133: 18:00:00 | R133: 0.6555555556 | S133: 43861.59988 | T133: 6.751304348 | U133: 43861.66586 | V133: 43861.60216 | W133: 6.504347826 | X133: 43861.53056 | Y133: 43861.5733 | Z133: 4.963478261 | AA133: 43861.56289 | AB133: 43861.56528 | AC133: 4.563478261 | AD133: Opn | AE133: 43861.45069 | AF133: 43861.56431 | AG133: 4.016521739 | AH133: 43861.53881 | AI133: 4.369565217 | AJ133: 43861.60108 | AK133: 6.651304348 | AL133: 43861.60228 | AM133: 6.59826087 | AN133: 43861.59761 | AO133: 6.404347826 | AP133: 43861.6012 | AQ133: 5.804347826 | AR133: 43861.57569 | AS133: 43861.59653 | AT133: 43861.55965 | AU133: 4.563478261 | AV133: 43861.55965 | AW133: 4.363478261 | AX133: 43861.53762 | AY133: 4.110434783 | AZ133: 43861.53414 | BA133: 3.963478261 | BB133: 43861.53067 | BC133: 3.916521739 | BD133: 43861.4841 | BE133: 3.763478261 | BF133: 43861.57569 | BH133: 43861.61389 | BI133: 43861.61736 | BK133: 2024-02-01T14:44:00 | BL133: 43861.61389
A134: 0 | B134: =IF(Instructions!$C$2="BST",A134,0) -> 0 | C134: 2024-02-01T20:23:00 | D134: 2024-02-01 | F134: 2 | I134: 4 | K134: 43861.84931 | L134: 1.64 | M134: LW | N134: 0.2900763359 | O134: 20:23:00 | P134: 17:00:00 | Q134: 23:00:00 | R134: 0.4361111111 | S134: 43861.87967 | T134: 2.006870229 | U134: 43861.94564 | V134: 43861.86604 | W134: 1.835877863 | X134: 43861.78056 | Y134: 43861.85839 | Z134: 1.651908397 | AA134: 43861.8298 | AB134: 43861.85189 | AC134: 1.522900763 | AD134: Cls | AE134: 43861.67986 | AF134: 43861.83978 | AG134: 1.451908397 | AH134: 43861.83239 | AI134: 1.551908397 | AJ134: 43861.87815 | AK134: 2.035877863 | AL134: 43861.87815 | AM134: 2.035877863 | AN134: 43861.8697 | AO134: 2.035877863 | AP134: 43861.87513 | AQ134: 1.864885496 | AR134: 43861.83889 | AS134: 43861.86319 | AT134: 43861.83889 | AU134: 1.651908397 | AV134: 43861.84192 | AW134: 1.622900763 | AX134: 43861.83239 | AY134: 1.451908397 | AZ134: 43861.82892 | BA134: 1.422900763 | BB134: 43861.82349 | BC134: 1.522900763 | BD134: 43861.77835 | BE134: 1.238931298 | BF134: 43861.87361 | BH134: 43861.89931 | BI134: 43861.88056 | BK134: 2024-02-01T21:35:00 | BL134: 43861.89931
A135: 0 | B135: =IF(Instructions!$C$2="BST",A135,0) -> 0 | C135: 2024-02-02T02:34:00 | D135: 2024-02-02 | E135: 2024-02-02 | F135: 2 | G135: Feb | H135: 2 | I135: 5 | J135: Fri | K135: 43862.10694 | L135: 4.69 | M135: HW | N135: 0.1739130435 | O135: 02:34:00 | P135: 00:00:00 | Q135: 06:00:00 | R135: 0.5722222222 | S135: 43862.11985 | T135: 6.27826087 | U135: 43862.18582 | V135: 43862.12184 | W135: 6.060869565 | X135: 43862.05139 | Y135: 43862.09356 | Z135: 4.608695652 | AA135: 43862.08314 | AB135: 43862.08611 | AC135: 4.208695652 | AD135: Opn | AE135: 43861.97153 | AF135: 43862.08659 | AG135: 3.691304348 | AH135: 43862.0608 | AI135: 4.073913043 | AJ135: 43862.12133 | AK135: 6.17826087 | AL135: 43862.12282 | AM135: 6.095652174 | AN135: 43862.11786 | AO135: 5.960869565 | AP135: 43862.12232 | AQ135: 5.360869565 | AR135: 43862.09653 | AS135: 43862.11736 | AT135: 43862.08164 | AU135: 4.208695652 | AV135: 43862.08164 | AW135: 4.008695652 | AX135: 43862.05932 | AY135: 3.726086957 | AZ135: 43862.05584 | BA135: 3.608695652 | BB135: 43862.05237 | BC135: 3.591304348 | BD135: 43862.00378 | BE135: 3.408695652 | BF135: 43862.09653 | BH135: 43862.13472 | BI135: 43862.13819 | BK135: 2024-02-02T03:14:00 | BL135: 43862.13472
A136: 0 | B136: =IF(Instructions!$C$2="BST",A136,0) -> 0 | C136: 2024-02-02T08:33:00 | D136: 2024-02-02 | E136: Fri | F136: 2 | I136: 5 | K136: 43862.35625 | L136: 1.91 | M136: LW | N136: 0.08396946565 | O136: 08:33:00 | P136: 05:00:00 | Q136: 11:00:00 | R136: 0.4083333333 | S136: 43862.38623 | T136: 2.357251908 | U136: 43862.4522 | V136: 43862.37347 | W136: 2.165648855 | X136: 43862.30139 | Y136: 43862.36476 | Z136: 1.899236641 | AA136: 43862.33733 | AB136: 43862.35845 | AC136: 1.790839695 | AD136: Cls | AE136: 43862.20069 | AF136: 43862.34711 | AG136: 1.699236641 | AH136: 43862.33953 | AI136: 1.799236641 | AJ136: 43862.38481 | AK136: 2.365648855 | AL136: 43862.38481 | AM136: 2.365648855 | AN136: 43862.37645 | AO136: 2.365648855 | AP136: 43862.38197 | AQ136: 2.174045802 | AR136: 43862.34583 | AS136: 43862.37014 | AT136: 43862.34583 | AU136: 1.899236641 | AV136: 43862.34867 | AW136: 1.890839695 | AX136: 43862.33953 | AY136: 1.699236641 | AZ136: 43862.33605 | BA136: 1.690839695 | BB136: 43862.33053 | BC136: 1.790839695 | BD136: 43862.28539 | BE136: 1.424427481 | BF136: 43862.38056 | BH136: 43862.40625 | BI136: 43862.3875 | BK136: 2024-02-02T09:45:00 | BL136: 43862.40625
A137: 0 | B137: =IF(Instructions!$C$2="BST",A137,0) -> 0 | C137: 2024-02-02T14:46:00 | D137: 2024-02-02 | F137: 2 | I137: 5 | K137: 43862.61528 | L137: 4.82 | M137: HW | N137: 0.2869565217 | O137: 14:46:00 | P137: 12:00:00 | Q137: 18:00:00 | R137: 0.5388888889 | S137: 43862.62784 | T137: 6.459130435 | U137: 43862.69381 | V137: 43862.62971 | W137: 6.230434783 | X137: 43862.55903 | Y137: 43862.60166 | Z137: 4.744347826 | AA137: 43862.59124 | AB137: 43862.59444 | AC137: 4.344347826 | AD137: Opn | AE137: 43862.47986 | AF137: 43862.59551 | AG137: 3.815652174 | AH137: 43862.5696 | AI137: 4.186956522 | AJ137: 43862.62944 | AK137: 6.359130435 | AL137: 43862.63104 | AM137: 6.287826087 | AN137: 43862.62596 | AO137: 6.130434783 | AP137: 43862.63077 | AQ137: 5.530434783 | AR137: 43862.60486 | AS137: 43862.62569 | AT137: 43862.59043 | AU137: 4.344347826 | AV137: 43862.59043 | AW137: 4.144347826 | AX137: 43862.568 | AY137: 3.873043478 | AZ137: 43862.56453 | BA137: 3.744347826 | BB137: 43862.56105 | BC137: 3.715652174 | BD137: 43862.51165 | BE137: 3.544347826 | BF137: 43862.60486 | BH137: 43862.64236 | BI137: 43862.64653 | BK137: 2024-02-02T15:25:00 | BL137: 43862.64236
A138: 0 | B138: =IF(Instructions!$C$2="BST",A138,0) -> 0 | C138: 2024-02-02T21:10:00 | D138: 2024-02-02 | F138: 2 | I138: 5 | K138: 43862.88194 | L138: 1.88 | M138: LW | N138: 0.106870229 | O138: 21:10:00 | P138: 17:00:00 | Q138: 23:00:00 | R138: 0.3055555556 | S138: 43862.91049 | T138: 2.318320611 | U138: 43862.97647 | V138: 43862.90095 | W138: 2.129007634 | X138: 43862.80903 | Y138: 43862.88831 | Z138: =IF($M138="HW",Y$2+(Y$1-Y$2)*$N138,Y$3+(Y$4-Y$3)*$N138) -> 1.871755725 | AA138: 43862.86516 | AB138: 43862.88272 | AC138: =IF($M138="HW",AB$2+(AB$1-AB$2)*$N138,AB$3+(AB$4-AB$3)*$N138) -> 1.761068702 | AD138: Cls | AE138: 43862.70903 | AF138: 43862.87423 | AG138: =IF($M138="HW",AF$2+(AF$1-AF$2)*$N138,AF$3+(AF$4-AF$3)*$N138) -> 1.671755725 | AH138: 43862.86593 | AI138: =IF($M138="HW",AH$2+(AH$1-AH$2)*$N138,AH$3+(AH$4-AH$3)*$N138) -> 1.771755725 | AJ138: 43862.90943 | AK138: =IF($M138="HW",AJ$2+(AJ$1-AJ$2)*$N138,AJ$3+(AJ$4-AJ$3)*$N138) -> 2.329007634 | AL138: 43862.90943 | AM138: =IF($M138="HW",AL$2+(AL$1-AL$2)*$N138,AL$3+(AL$4-AL$3)*$N138) -> 2.329007634 | AN138: 43862.90143 | AO138: =IF($M138="HW",AN$2+(AN$1-AN$2)*$N138,AN$3+(AN$4-AN$3)*$N138) -> 2.329007634 | AP138: 43862.90731 | AQ138: =IF($M138="HW",AP$2+(AP$1-AP$2)*$N138,AP$3+(AP$4-AP$3)*$N138) -> 2.139694656 | AR138: 43862.87153 | AS138: 43862.89583 | AT138: 43862.87153 | AU138: =IF($M138="HW",AT$2+(AT$1-AT$2)*$N138,AT$3+(AT$4-AT$3)*$N138) -> 1.871755725 | AV138: 43862.87365 | AW138: =IF($M138="HW",AV$2+(AV$1-AV$2)*$N138,AV$3+(AV$4-AV$3)*$N138) -> 1.861068702 | AX138: 43862.86593 | AY138: =IF($M138="HW",AX$2+(AX$1-AX$2)*$N138,AX$3+(AX$4-AX$3)*$N138) -> 1.671755725 | AZ138: 43862.86246 | BA138: =IF($M138="HW",AZ$2+(AZ$1-AZ$2)*$N138,AZ$3+(AZ$4-AZ$3)*$N138) -> 1.661068702 | BB138: 43862.85658 | BC138: =IF($M138="HW",BB$2+(BB$1-BB$2)*$N138,BB$3+(BB$4-BB$3)*$N138) -> 1.761068702 | BD138: 43862.81144 | BE138: =IF($M138="HW",BD$2+(BD$1-BD$2)*$N138,BD$3+(BD$4-BD$3)*$N138) -> 1.403816794 | BF138: 43862.90625 | BH138: 43862.92986 | BI138: 43862.91319 | BK138: 2024-02-02T22:19:00 | BL138: 43862.92986
A139: 0 | B139: =IF(Instructions!$C$2="BST",A139,0) -> 0 | C139: 2024-02-03T03:23:00 | D139: =DATE(YEAR(K139),MONTH(K139),DAY(K139)) -> 2024-02-03 | E139: =IF(D139=D138,IF(J138="","",J138),D139) -> 2024-02-03 | F139: 2 | G139: Feb | H139: 3 | I139: 6 | J139: Sat | K139: =C139+B139/24 -> 43863.14097 | L139: 4.52 | M139: HW | N139: =IF(M139="HW",(L139-K$2)/(K$1-K$2),(L139-K$3)/(K$4-K$3)) -> 0.02608695652 | O139: =C139-INT(C139) -> 03:23:00 | P139: =IF(M139="HW",IF(AND(O139>=L$5,O139<L$6),L$5,IF(AND(O139>=L$6,O139<M$5),M$5,IF(AND(O139>=M$5,O139<M$6),M$5,IF(O139>=M$6,L$5+1,L$5)))),IF(AND(O139>=L$7,O139<L$8),L$7,IF(AND(O139>=L$8,O139<M$7),M$7,IF(AND(O139>=M$7,O139<M$8),M$7,IF(O139>=M$8,L$7+1,L$7))))) -> 00:00:00 | Q139: =IF(M139="HW",IF(AND(O139>=L$5,O139<L$6),L$6,IF(AND(O139>=L$6,O139<M$5),L$6,IF(AND(O139>=M$5,O139<M$6),M$6,IF(O139>=M$6,M$6,M$6-1)))),IF(AND(O139>=L$7,O139<L$8),L$8,IF(AND(O139>=L$8,O139<M$7),L$8,IF(AND(O139>=M$7,O139<M$8),M$8,IF(O139>=M$8,M$8,M$8-1))))) -> 06:00:00 | R139: 0.4361111111 | S139: 43863.15246 | T139: =IF($M139="HW",S$2+(S$1-S$2)*$N139,S$3+(S$4-S$3)*$N139) -> 6.04173913 | U139: 43863.21843 | V139: 43863.15397 | W139: =IF($M139="HW",V$2+(V$1-V$2)*$N139,V$3+(V$4-V$3)*$N139) -> 5.839130435 | X139: 43863.08333 | Y139: 43863.12664 | Z139: 4.431304348 | AA139: 43863.11622 | AB139: =IF($M139="HW",$K139+AB$6+(AB$5-AB$6)*$R139,$K139+AB$8+(AB$7-AB$8)*$R139) -> 43863.12014 | AC139: 4.031304348 | AD139: =IF($M139="HW","Opn","Cls") -> Opn | AE139: 43863.00556 | AF139: =IF($M139="HW",$K139+AF$6+(AF$5-AF$6)*$R139,$K139+AF$8+(AF$7-AF$8)*$R139) -> 43863.12298 | AG139: 3.528695652 | AH139: =IF($M139="HW",$K139+AH$6+(AH$5-AH$6)*$R139,$K139+AH$8+(AH$7-AH$8)*$R139) -> 43863.09672 | AI139: 3.926086957 | AJ139: =IF($M139="HW",$K139+AJ$6+(AJ$5-AJ$6)*$R139,$K139+AJ$8+(AJ$7-AJ$8)*$R139) -> 43863.15442 | AK139: 5.94173913 | AL139: =IF($M139="HW",$K139+AL$6+(AL$5-AL$6)*$R139,$K139+AL$8+(AL$7-AL$8)*$R139) -> 43863.15638 | AM139: 5.844347826 | AN139: =IF($M139="HW",$K139+AN$6+(AN$5-AN$6)*$R139,$K139+AN$8+(AN$7-AN$8)*$R139) -> 43863.15095 | AO139: 5.739130435 | AP139: =IF($M139="HW",$K139+AP$6+(AP$5-AP$6)*$R139,$K139+AP$8+(AP$7-AP$8)*$R139) -> 43863.15682 | AQ139: 5.139130435 | AR139: 43863.13056 | AS139: 43863.15139 | AT139: =IF($M139="HW",$K139+AT$6+(AT$5-AT$6)*$R139,$K139+AT$8+(AT$7-AT$8)*$R139) -> 43863.11755 | AU139: 4.031304348 | AV139: =IF($M139="HW",$K139+AV$6+(AV$5-AV$6)*$R139,$K139+AV$8+(AV$7-AV$8)*$R139) -> 43863.11755 | AW139: 3.831304348 | AX139: =IF($M139="HW",$K139+AX$6+(AX$5-AX$6)*$R139,$K139+AX$8+(AX$7-AX$8)*$R139) -> 43863.09476 | AY139: 3.533913043 | AZ139: =IF($M139="HW",$K139+AZ$6+(AZ$5-AZ$6)*$R139,$K139+AZ$8+(AZ$7-AZ$8)*$R139) -> 43863.09129 | BA139: 3.431304348 | BB139: =IF($M139="HW",$K139+BB$6+(BB$5-BB$6)*$R139,$K139+BB$8+(BB$7-BB$8)*$R139) -> 43863.08782 | BC139: 3.428695652 | BD139: =IF($M139="HW",$K139+BD$6+(BD$5-BD$6)*$R139,$K139+BD$8+(BD$7-BD$8)*$R139) -> 43863.03592 | BE139: 3.231304348 | BF139: 43863.13056 | BH139: 43863.16667 | BI139: 43863.17222 | BK139: 2024-02-03T04:00:00 | BL139: =BK139+B139/24 -> 43863.16667
A140: 0 | B140: =IF(Instructions!$C$2="BST",A140,0) -> 0 | C140: 2024-02-03T09:25:00 | D140: 2024-02-03 | E140: Sat | F140: =MONTH(K140) -> 2 | G140: =IF(H140="","",TEXT(F140*29,"mmm")) ->  | H140: =IF(I140=I139,"",DAY(K140)) ->  | I140: =WEEKDAY(K140,2) -> 6 | J140: =IF(I140=I139,"",TEXT(I140+2,"ddd")) ->  | K140: 43863.39236 | L140: 2.16 | M140: LW | N140: -0.106870229 | O140: 09:25:00 | P140: 05:00:00 | Q140: 11:00:00 | R140: =ABS((O140-Q140)/(P140-Q140)) -> 0.2638888889 | S140: 43863.42033 | T140: 2.681679389 | U140: 43863.4863 | V140: 43863.41209 | W140: 2.470992366 | X140: =IF($M140="HW",$BK140+X$6+$B140/24,$BK139+4/24+$B140/24) -> 43863.33333 | Y140: 43863.39786 | Z140: 2.128244275 | AA140: =IF($M140="HW",$K140+AA$6+(AA$5-AA$6)*$R140,$K140+AA$8+(AA$7-AA$8)*$R140) -> 43863.37645 | AB140: 43863.39255 | AC140: 2.038931298 | AD140: Cls | AE140: =IF($M140="HW",$AB140-AD$8,$AB139+AD$8) -> 43863.23472 | AF140: 43863.38522 | AG140: 1.928244275 | AH140: 43863.37664 | AI140: 2.028244275 | AJ140: 43863.41942 | AK140: 2.670992366 | AL140: 43863.41942 | AM140: 2.670992366 | AN140: 43863.41155 | AO140: 2.670992366 | AP140: 43863.41758 | AQ140: 2.460305344 | AR140: 43863.38194 | AS140: 43863.40625 | AT140: 43863.38194 | AU140: 2.128244275 | AV140: 43863.38378 | AW140: 2.138931298 | AX140: 43863.37664 | AY140: 1.928244275 | AZ140: 43863.37317 | BA140: 1.938931298 | BB140: 43863.36714 | BC140: 2.038931298 | BD140: 43863.322 | BE140: 1.596183206 | BF140: 43863.41667 | BH140: =BL140 -> 43863.44167 | BI140: 43863.42361 | BK140: 2024-02-03T10:36:00 | BL140: 43863.44167
A141: 0 | B141: =IF(Instructions!$C$2="BST",A141,0) -> 0 | C141: 2024-02-03T15:40:00 | D141: 2024-02-03 | F141: 2 | I141: 6 | K141: 43863.65278 | L141: 4.59 | M141: HW | N141: 0.08695652174 | O141: 15:40:00 | P141: 12:00:00 | Q141: 18:00:00 | R141: 0.3888888889 | S141: 43863.66377 | T141: 6.139130435 | U141: 43863.72975 | V141: 43863.66512 | W141: 5.930434783 | X141: 43863.59514 | Y141: 43863.63812 | Z141: 4.504347826 | AA141: 43863.6277 | AB141: 43863.63194 | AC141: 4.104347826 | AD141: Opn | AE141: 43863.51736 | AF141: 43863.63561 | AG141: 3.595652174 | AH141: 43863.60918 | AI141: 3.986956522 | AJ141: 43863.6659 | AK141: 6.039130435 | AL141: 43863.66802 | AM141: 5.947826087 | AN141: 43863.66242 | AO141: 5.830434783 | AP141: 43863.66879 | AQ141: 5.230434783 | AR141: 43863.64236 | AS141: 43863.66319 | AT141: 43863.63002 | AU141: 4.104347826 | AV141: 43863.63002 | AW141: 3.904347826 | AX141: 43863.60706 | AY141: 3.613043478 | AZ141: 43863.60359 | BA141: 3.504347826 | BB141: 43863.60012 | BC141: 3.495652174 | BD141: 43863.54707 | BE141: 3.304347826 | BF141: 43863.64236 | BH141: 43863.67847 | BI141: 43863.68403 | BK141: 2024-02-03T16:17:00 | BL141: 43863.67847
A142: 0 | B142: =IF(Instructions!$C$2="BST",A142,0) -> 0 | C142: 2024-02-03T22:08:00 | D142: 2024-02-03 | F142: 2 | I142: 6 | K142: 43863.92222 | L142: 2.11 | M142: LW | N142: -0.06870229008 | O142: 22:08:00 | P142: 17:00:00 | Q142: 23:00:00 | R142: 0.1444444444 | S142: 43863.94853 | T142: 2.616793893 | U142: 43864.01451 | V142: 43863.94402 | W142: 2.409923664 | X142: 43863.84514 | Y142: 43863.92523 | Z142: 2.082442748 | AA142: 43863.9088 | AB142: 43863.92076 | AC142: 1.989312977 | AD142: Cls | AE142: 43863.74653 | AF142: 43863.91674 | AG142: 1.882442748 | AH142: 43863.90733 | AI142: 1.982442748 | AJ142: 43863.94803 | AK142: 2.609923664 | AL142: 43863.94803 | AM142: 2.609923664 | AN142: 43863.94059 | AO142: 2.609923664 | AP142: 43863.94703 | AQ142: 2.403053435 | AR142: 43863.91181 | AS142: 43863.93611 | AT142: 43863.91181 | AU142: 2.082442748 | AV142: 43863.91281 | AW142: 2.089312977 | AX142: 43863.90733 | AY142: 1.882442748 | AZ142: 43863.90386 | BA142: 1.889312977 | BB142: 43863.89742 | BC142: 1.989312977 | BD142: 43863.85228 | BE142: 1.561832061 | BF142: 43863.94653 | BH142: 43863.96944 | BI142: 43863.95347 | BK142: 2024-02-03T23:16:00 | BL142: 43863.96944
A143: 0 | B143: =IF(Instructions!$C$2="BST",A143,0) -> 0 | C143: 2024-02-04T04:25:00 | D143: 2024-02-04 | E143: 2024-02-04 | F143: 2 | G143: Feb | H143: 4 | I143: 7 | J143: Sun | K143: 43864.18403 | L143: 4.37 | M143: HW | N143: -0.1043478261 | O143: 04:25:00 | P143: 00:00:00 | Q143: 06:00:00 | R143: 0.2638888889 | S143: =IF($M143="HW",$K143+S$6+(S$5-S$6)*$R143,$K143+S$8+(S$7-S$8)*$R143) -> 43864.19372 | T143: 5.833043478 | U143: 43864.25969 | V143: 43864.19464 | W143: 5.643478261 | X143: 43864.125 | Y143: =IF($M143="HW",$K143+Y$6+(Y$5-Y$6)*$R143,$K143+Y$8+(Y$7-Y$8)*$R143) -> 43864.1685 | Z143: 4.274782609 | AA143: 43864.15808 | AB143: 43864.16319 | AC143: 3.874782609 | AD143: Opn | AE143: 43864.04861 | AF143: 43864.16903 | AG143: 3.385217391 | AH143: 43864.14217 | AI143: 3.795652174 | AJ143: 43864.19628 | AK143: 5.733043478 | AL143: 43864.19883 | AM143: 5.622608696 | AN143: 43864.1928 | AO143: 5.543478261 | AP143: 43864.20047 | AQ143: 4.943478261 | AR143: =IF($M143="HW",$K143+AR$6+(AR$5-AR$6)*$R143,$K143+AR$8+(AR$7-AR$8)*$R143) -> 43864.17361 | AS143: 43864.19444 | AT143: 43864.163 | AU143: 3.874782609 | AV143: 43864.163 | AW143: 3.674782609 | AX143: 43864.13961 | AY143: 3.364347826 | AZ143: 43864.13614 | BA143: 3.274782609 | BB143: 43864.13267 | BC143: 3.285217391 | BD143: 43864.07658 | BE143: 3.074782609 | BF143: =IF($M143="HW",$K143+BF$6+(BF$5-BF$6)*$R143,$K143+BF$8+(BF$7-BF$8)*$R143) -> 43864.17361 | BH143: 43864.20833 | BI143: 43864.21528 | BK143: 2024-02-04T05:00:00 | BL143: 43864.20833
A144: 0 | B144: =IF(Instructions!$C$2="BST",A144,0) -> 0 | C144: 2024-02-04T10:34:00 | D144: 2024-02-04 | E144: Sun | F144: 2 | I144: 7 | K144: 43864.44028 | L144: 2.34 | M144: LW | N144: -0.2442748092 | O144: 10:34:00 | P144: 05:00:00 | Q144: 11:00:00 | R144: 0.07222222222 | S144: 43864.46559 | T144: 2.915267176 | U144: 43864.53156 | V144: 43864.46333 | W144: 2.690839695 | X144: 43864.375 | Y144: 43864.44178 | Z144: 2.293129771 | AA144: 43864.42836 | AB144: 43864.43781 | AC144: 2.217557252 | AD144: Cls | AE144: 43864.27778 | AF144: 43864.4358 | AG144: 2.093129771 | AH144: 43864.42589 | AI144: 2.193129771 | AJ144: 43864.46534 | AK144: 2.890839695 | AL144: 43864.46534 | AM144: 2.890839695 | AN144: 43864.45814 | AO144: 2.890839695 | AP144: 43864.46483 | AQ144: 2.666412214 | AR144: 43864.42986 | AS144: 43864.45417 | AT144: 43864.42986 | AU144: 2.293129771 | AV144: 43864.43036 | AW144: 2.317557252 | AX144: 43864.42589 | AY144: 2.093129771 | AZ144: 43864.42242 | BA144: 2.117557252 | BB144: 43864.41572 | BC144: 2.217557252 | BD144: 43864.37058 | BE144: 1.719847328 | BF144: 43864.46458 | BH144: 43864.48681 | BI144: 43864.47153 | BK144: 2024-02-04T11:41:00 | BL144: 43864.48681
A145: 0 | B145: =IF(Instructions!$C$2="BST",A145,0) -> 0 | C145: 2024-02-04T16:52:00 | D145: 2024-02-04 | F145: 2 | I145: 7 | K145: 43864.70278 | L145: 4.41 | M145: HW | N145: -0.06956521739 | O145: 16:52:00 | P145: 12:00:00 | Q145: 18:00:00 | R145: 0.1888888889 | S145: 43864.71169 | T145: 5.888695652 | U145: 43864.77766 | V145: 43864.71235 | W145: 5.695652174 | X145: 43864.64306 | Y145: 43864.68673 | Z145: 4.316521739 | AA145: 43864.67631 | AB145: 43864.68194 | AC145: 3.916521739 | AD145: Opn | AE145: 43864.56736 | AF145: 43864.68908 | AG145: 3.423478261 | AH145: 43864.66196 | AI145: 3.830434783 | AJ145: 43864.71451 | AK145: 5.788695652 | AL145: 43864.71732 | AM145: 5.68173913 | AN145: 43864.71103 | AO145: 5.595652174 | AP145: 43864.71948 | AQ145: 4.995652174 | AR145: 43864.69236 | AS145: 43864.71319 | AT145: 43864.68279 | AU145: 3.916521739 | AV145: 43864.68279 | AW145: 3.716521739 | AX145: 43864.65914 | AY145: 3.409565217 | AZ145: 43864.65567 | BA145: 3.316521739 | BB145: 43864.6522 | BC145: 3.323478261 | BD145: 43864.59429 | BE145: 3.116521739 | BF145: 43864.69236 | BH145: 43864.72639 | BI145: 43864.73403 | BK145: 2024-02-04T17:26:00 | BL145: 43864.72639
A146: 0 | B146: =IF(Instructions!$C$2="BST",A146,0) -> 0 | C146: 2024-02-04T23:24:00 | D146: 2024-02-04 | F146: 2 | I146: 7 | K146: 43864.975 | L146: 2.24 | M146: LW | N146: -0.1679389313 | O146: 23:24:00 | P146: 1.208333333 | Q146: 23:00:00 | R146: 0.06666666666 | S146: 43865.00023 | T146: 2.785496183 | U146: 43865.0662 | V146: 43864.99815 | W146: 2.56870229 | X146: 43864.89306 | Y146: 43864.97639 | Z146: 2.201526718 | AA146: 43864.96319 | AB146: 43864.97245 | AC146: 2.118320611 | AD146: Cls | AE146: 43864.79653 | AF146: 43864.9706 | AG146: 2.001526718 | AH146: 43864.96065 | AI146: 2.101526718 | AJ146: 43865 | AK146: 2.76870229 | AL146: 43865 | AM146: 2.76870229 | AN146: 43864.99282 | AO146: 2.76870229 | AP146: 43864.99954 | AQ146: 2.551908397 | AR146: 43864.96458 | AS146: 43864.98889 | AT146: 43864.96458 | AU146: 2.201526718 | AV146: 43864.96505 | AW146: 2.218320611 | AX146: 43864.96065 | AY146: 2.001526718 | AZ146: 43864.95718 | BA146: 2.018320611 | BB146: 43864.95046 | BC146: 2.118320611 | BD146: 43864.90532 | BE146: 1.651145038 | BF146: 43864.99931 | BH146: 43865.01944 | BI146: 43865.00625 | BK146: 2024-02-05T00:28:00 | BL146: 43865.01944
A147: 0 | B147: =IF(Instructions!$C$2="BST",A147,0) -> 0 | C147: 2024-02-05T05:46:00 | D147: 2024-02-05 | E147: 2024-02-05 | F147: 2 | G147: Feb | H147: 5 | I147: 1 | J147: Mon | K147: 43865.24028 | L147: 4.36 | M147: HW | N147: -0.1130434783 | O147: 05:46:00 | P147: 00:00:00 | Q147: 06:00:00 | R147: 0.0388888889 | S147: 43865.24763 | T147: 5.819130435 | U147: 43865.3136 | V147: 43865.24776 | W147: 5.630434783 | X147: 43865.17847 | Y147: 43865.22319 | Z147: 4.264347826 | AA147: 43865.21277 | AB147: 43865.21944 | AC147: 3.864347826 | AD147: Opn | AE147: 43865.10486 | AF147: 43865.22919 | AG147: 3.375652174 | AH147: 43865.20154 | AI147: 3.786956522 | AJ147: 43865.25096 | AK147: 5.719130435 | AL147: 43865.2543 | AM147: 5.607826087 | AN147: 43865.24749 | AO147: 5.530434783 | AP147: 43865.2575 | AQ147: 4.930434783 | AR147: 43865.22986 | AS147: 43865.25069 | AT147: 43865.22238 | AU147: 3.864347826 | AV147: 43865.22238 | AW147: 3.664347826 | AX147: 43865.19821 | AY147: 3.353043478 | AZ147: 43865.19473 | BA147: 3.264347826 | BB147: 43865.19126 | BC147: 3.275652174 | BD147: 43865.12971 | BE147: 3.064347826 | BF147: 43865.22986 | BH147: 43865.26181 | BI147: 43865.27153 | BK147: 2024-02-05T06:17:00 | BL147: 43865.26181
A148: 0 | B148: =IF(Instructions!$C$2="BST",A148,0) -> 0 | C148: 2024-02-05T11:58:00 | D148: 2024-02-05 | E148: Mon | F148: 2 | I148: 1 | K148: 43865.49861 | L148: 2.34 | M148: LW | N148: -0.2442748092 | O148: 11:58:00 | P148: 17:00:00 | Q148: 11:00:00 | R148: 0.1611111111 | S148: 43865.52515 | T148: 2.915267176 | U148: 43865.59113 | V148: 43865.52012 | W148: 2.690839695 | X148: 43865.42847 | Y148: 43865.50197 | Z148: 2.293129771 | AA148: 43865.48484 | AB148: 43865.49738 | AC148: 2.217557252 | AD148: Cls | AE148: 43865.33403 | AF148: 43865.4929 | AG148: 2.093129771 | AH148: 43865.4836 | AI148: 2.193129771 | AJ148: 43865.52459 | AK148: 2.890839695 | AL148: 43865.52459 | AM148: 2.890839695 | AN148: 43865.51709 | AO148: 2.890839695 | AP148: 43865.52348 | AQ148: 2.666412214 | AR148: 43865.48819 | AS148: 43865.5125 | AT148: 43865.48819 | AU148: 2.293129771 | AV148: 43865.48931 | AW148: 2.317557252 | AX148: 43865.4836 | AY148: 2.093129771 | AZ148: 43865.48013 | BA148: 2.117557252 | BB148: 43865.47375 | BC148: 2.217557252 | BD148: 43865.42861 | BE148: 1.719847328 | BF148: 43865.52292 | BH148: 43865.54375 | BI148: 43865.52986 | BK148: 2024-02-05T13:03:00 | BL148: 43865.54375
A149: 0 | B149: =IF(Instructions!$C$2="BST",A149,0) -> 0 | C149: 2024-02-05T18:23:00 | D149: 2024-02-05 | F149: 2 | I149: 1 | K149: 43865.76597 | L149: 4.42 | M149: HW | N149: -0.06086956522 | O149: 18:23:00 | P149: 1 | Q149: 18:00:00 | R149: 0.06388888889 | S149: 43865.77358 | T149: 5.902608696 | U149: 43865.83955 | V149: 43865.7738 | W149: 5.708695652 | X149: 43865.70486 | Y149: 43865.74905 | Z149: 4.326956522 | AA149: 43865.73864 | AB149: 43865.74514 | AC149: 3.926956522 | AD149: Opn | AE149: 43865.63056 | AF149: 43865.75445 | AG149: 3.433043478 | AH149: 43865.72689 | AI149: 3.839130435 | AJ149: 43865.77683 | AK149: 5.802608696 | AL149: 43865.78008 | AM149: 5.696521739 | AN149: 43865.77336 | AO149: 5.608695652 | AP149: 43865.78311 | AQ149: 5.008695652 | AR149: 43865.75556 | AS149: 43865.77639 | AT149: 43865.74772 | AU149: 3.926956522 | AV149: 43865.74772 | AW149: 3.726956522 | AX149: 43865.72364 | AY149: 3.420869565 | AZ149: 43865.72017 | BA149: 3.326956522 | BB149: 43865.7167 | BC149: 3.333043478 | BD149: 43865.65575 | BE149: 3.126956522 | BF149: 43865.75556 | BH149: 43865.78819 | BI149: 43865.79722 | BK149: 2024-02-05T18:55:00 | BL149: 43865.78819
A150: 0 | B150: =IF(Instructions!$C$2="BST",A150,0) -> 0 | C150: 2024-02-06T00:45:00 | D150: 2024-02-06 | E150: 2024-02-06 | F150: 2 | G150: Feb | H150: 6 | I150: 2 | J150: Tue | K150: 43866.03125 | L150: 2.15 | M150: LW | N150: -0.09923664122 | O150: 00:45:00 | P150: 05:00:00 | Q150: -0.04166666667 | R150: 0.2916666667 | S150: 43866.05961 | T150: 2.66870229 | U150: 43866.12558 | V150: 43866.05049 | W150: 2.458778626 | X150: 43865.95486 | Y150: 43866.03733 | Z150: 2.119083969 | AA150: 43866.01476 | AB150: 43866.03183 | AC150: 2.029007634 | AD150: Cls | AE150: 43865.85972 | AF150: 43866.02373 | AG150: 1.919083969 | AH150: 43866.01534 | AI150: 2.019083969 | AJ150: 43866.05859 | AK150: 2.658778626 | AL150: 43866.05859 | AM150: 2.658778626 | AN150: 43866.05064 | AO150: 2.658778626 | AP150: 43866.05657 | AQ150: 2.448854962 | AR150: 43866.02083 | AS150: 43866.04514 | AT150: 43866.02083 | AU150: 2.119083969 | AV150: 43866.02286 | AW150: 2.129007634 | AX150: 43866.01534 | AY150: 1.919083969 | AZ150: 43866.01186 | BA150: 1.929007634 | BB150: 43866.00593 | BC150: 2.029007634 | BD150: 43865.96079 | BE150: 1.589312977 | BF150: 43866.05556 | BH150: 43866.07778 | BI150: 43866.0625 | BK150: 2024-02-06T01:52:00 | BL150: 43866.07778
A151: 0 | B151: =IF(Instructions!$C$2="BST",A151,0) -> 0 | C151: 2024-02-06T07:08:00 | D151: 2024-02-06 | E151: Tue | F151: 2 | I151: 2 | K151: 43866.29722 | L151: 4.55 | M151: HW | N151: 0.05217391304 | O151: 07:08:00 | P151: 12:00:00 | Q151: 06:00:00 | R151: 0.1888888889 | S151: 43866.30613 | T151: 6.083478261 | U151: 43866.37211 | V151: 43866.30679 | W151: 5.87826087 | X151: 43866.23889 | Y151: 43866.28117 | Z151: 4.462608696 | AA151: 43866.27076 | AB151: 43866.27639 | AC151: 4.062608696 | AD151: Opn | AE151: 43866.16181 | AF151: 43866.28353 | AG151: 3.557391304 | AH151: 43866.2564 | AI151: 3.952173913 | AJ151: 43866.30895 | AK151: 5.983478261 | AL151: 43866.31177 | AM151: 5.888695652 | AN151: 43866.30548 | AO151: 5.77826087 | AP151: 43866.31393 | AQ151: 5.17826087 | AR151: 43866.28681 | AS151: 43866.30764 | AT151: 43866.27724 | AU151: 4.062608696 | AV151: 43866.27724 | AW151: 3.862608696 | AX151: 43866.25359 | AY151: 3.567826087 | AZ151: 43866.25012 | BA151: 3.462608696 | BB151: 43866.24664 | BC151: 3.457391304 | BD151: 43866.18873 | BE151: 3.262608696 | BF151: 43866.28681 | BH151: 43866.32222 | BI151: 43866.32847 | BK151: 2024-02-06T07:44:00 | BL151: 43866.32222
A152: 0 | B152: =IF(Instructions!$C$2="BST",A152,0) -> 0 | C152: 2024-02-06T13:18:00 | D152: 2024-02-06 | F152: 2 | I152: 2 | K152: 43866.55417 | L152: 2.08 | M152: LW | N152: -0.04580152672 | O152: 13:18:00 | P152: 17:00:00 | Q152: 11:00:00 | R152: 0.3833333333 | S152: 43866.5838 | T152: 2.577862595 | U152: 43866.64977 | V152: 43866.57182 | W152: 2.373282443 | X152: 43866.48889 | Y152: 43866.56215 | Z152: 2.054961832 | AA152: 43866.53576 | AB152: 43866.55602 | AC152: 1.959541985 | AD152: Cls | AE152: 43866.39097 | AF152: 43866.54537 | AG152: 1.854961832 | AH152: 43866.53762 | AI152: 1.954961832 | AJ152: 43866.58247 | AK152: 2.573282443 | AL152: 43866.58247 | AM152: 2.573282443 | AN152: 43866.57419 | AO152: 2.573282443 | AP152: 43866.5798 | AQ152: 2.36870229 | AR152: 43866.54375 | AS152: 43866.56806 | AT152: 43866.54375 | AU152: 2.054961832 | AV152: 43866.54641 | AW152: 2.059541985 | AX152: 43866.53762 | AY152: 1.854961832 | AZ152: 43866.53414 | BA152: 1.859541985 | BB152: 43866.52853 | BC152: 1.959541985 | BD152: 43866.48339 | BE152: 1.541221374 | BF152: 43866.57847 | BH152: 43866.60486 | BI152: 43866.58542 | BK152: 2024-02-06T14:31:00 | BL152: 43866.60486
A153: 0 | B153: =IF(Instructions!$C$2="BST",A153,0) -> 0 | C153: 2024-02-06T19:43:00 | D153: 2024-02-06 | F153: 2 | I153: 2 | K153: 43866.82153 | L153: 4.64 | M153: HW | N153: 0.1304347826 | O153: 19:43:00 | P153: 1 | Q153: 18:00:00 | R153: 0.2861111111 | S153: 43866.83145 | T153: 6.208695652 | U153: 43866.89742 | V153: 43866.83245 | W153: 5.995652174 | X153: 43866.76528 | Y153: 43866.80615 | Z153: 4.556521739 | AA153: 43866.79574 | AB153: 43866.80069 | AC153: 4.156521739 | AD153: Opn | AE153: 43866.68611 | AF153: 43866.80614 | AG153: 3.643478261 | AH153: 43866.77936 | AI153: 4.030434783 | AJ153: 43866.83393 | AK153: 6.108695652 | AL153: 43866.83641 | AM153: 6.02173913 | AN153: 43866.83046 | AO153: 5.895652174 | AP153: 43866.8379 | AQ153: 5.295652174 | AR153: 43866.81111 | AS153: 43866.83194 | AT153: 43866.80019 | AU153: 4.156521739 | AV153: 43866.80019 | AW153: 3.956521739 | AX153: 43866.77688 | AY153: 3.669565217 | AZ153: 43866.77341 | BA153: 3.556521739 | BB153: 43866.76994 | BC153: 3.543478261 | BD153: 43866.71439 | BE153: 3.356521739 | BF153: 43866.81111 | BH153: 43866.84861 | BI153: 43866.85278 | BK153: 2024-02-06T20:22:00 | BL153: 43866.84861
A154: 0 | B154: =IF(Instructions!$C$2="BST",A154,0) -> 0 | C154: 2024-02-07T01:52:00 | D154: 2024-02-07 | E154: 2024-02-07 | F154: 2 | G154: Feb | H154: 7 | I154: 3 | J154: Wed | K154: 43867.07778 | L154: 1.88 | M154: LW | N154: 0.106870229 | O154: 01:52:00 | P154: 05:00:00 | Q154: -0.04166666667 | R154: 0.4777777778 | S154: 43867.10872 | T154: 2.318320611 | U154: 43867.17469 | V154: 43867.09379 | W154: 2.129007634 | X154: 43867.01528 | Y154: 43867.08773 | Z154: 1.871755725 | AA154: 43867.05741 | AB154: 43867.08094 | AC154: 1.761068702 | AD154: Cls | AE154: 43866.91528 | AF154: 43867.06767 | AG154: 1.671755725 | AH154: 43867.06057 | AI154: 1.771755725 | AJ154: 43867.10706 | AK154: 2.329007634 | AL154: 43867.10706 | AM154: 2.329007634 | AN154: 43867.09846 | AO154: 2.329007634 | AP154: 43867.10374 | AQ154: 2.139694656 | AR154: 43867.06736 | AS154: 43867.09167 | AT154: 43867.06736 | AU154: 1.871755725 | AV154: 43867.07068 | AW154: 1.861068702 | AX154: 43867.06057 | AY154: 1.671755725 | AZ154: 43867.0571 | BA154: 1.661068702 | BB154: 43867.05181 | BC154: 1.761068702 | BD154: 43867.00667 | BE154: 1.403816794 | BF154: 43867.10208 | BH154: 43867.13056 | BI154: 43867.10903 | BK154: 2024-02-07T03:08:00 | BL154: 43867.13056
A155: 0 | B155: =IF(Instructions!$C$2="BST",A155,0) -> 0 | C155: 2024-02-07T08:11:00 | D155: 2024-02-07 | E155: Wed | F155: 2 | I155: 3 | K155: 43867.34097 | L155: 4.89 | M155: HW | N155: 0.347826087 | O155: 08:11:00 | P155: 12:00:00 | Q155: 06:00:00 | R155: 0.3638888889 | S155: 43867.35171 | T155: 6.556521739 | U155: 43867.41768 | V155: 43867.35297 | W155: 6.32173913 | X155: 43867.2875 | Y155: 43867.32614 | Z155: 4.817391304 | AA155: 43867.31572 | AB155: 43867.32014 | AC155: 4.417391304 | AD155: Opn | AE155: 43867.20556 | AF155: 43867.32424 | AG155: 3.882608696 | AH155: 43867.29772 | AI155: 4.247826087 | AJ155: 43867.35392 | AK155: 6.456521739 | AL155: 43867.35612 | AM155: 6.391304348 | AN155: 43867.35044 | AO155: 6.22173913 | AP155: 43867.35707 | AQ155: 5.62173913 | AR155: 43867.33056 | AS155: 43867.35139 | AT155: 43867.31856 | AU155: 4.417391304 | AV155: 43867.31856 | AW155: 4.217391304 | AX155: 43867.29552 | AY155: 3.952173913 | AZ155: 43867.29204 | BA155: 3.817391304 | BB155: 43867.28857 | BC155: 3.782608696 | BD155: 43867.23492 | BE155: 3.617391304 | BF155: 43867.33056 | BH155: 43867.37083 | BI155: 43867.37222 | BK155: 2024-02-07T08:54:00 | BL155: 43867.37083
A156: 0 | B156: =IF(Instructions!$C$2="BST",A156,0) -> 0 | C156: 2024-02-07T14:20:00 | D156: 2024-02-07 | F156: 2 | I156: 3 | K156: 43867.59722 | L156: 1.66 | M156: LW | N156: 0.2748091603 | O156: 14:20:00 | P156: 17:00:00 | Q156: 11:00:00 | R156: 0.5555555555 | S156: 43867.62924 | T156: 2.032824427 | U156: 43867.69522 | V156: 43867.61188 | W156: 1.860305344 | X156: 43867.5375 | Y156: 43867.6088 | Z156: 1.670229008 | AA156: 43867.57523 | AB156: 43867.60147 | AC156: 1.542748092 | AD156: Cls | AE156: 43867.43472 | AF156: 43867.58603 | AG156: 1.470229008 | AH156: 43867.57948 | AI156: 1.570229008 | AJ156: 43867.62731 | AK156: 2.060305344 | AL156: 43867.62731 | AM156: 2.060305344 | AN156: 43867.61844 | AO156: 2.060305344 | AP156: 43867.62346 | AQ156: 1.88778626 | AR156: 43867.58681 | AS156: 43867.61111 | AT156: 43867.58681 | AU156: 1.670229008 | AV156: 43867.59066 | AW156: 1.642748092 | AX156: 43867.57948 | AY156: 1.470229008 | AZ156: 43867.576 | BA156: 1.442748092 | BB156: 43867.57099 | BC156: 1.542748092 | BD156: 43867.52585 | BE156: 1.252671756 | BF156: 43867.62153 | BH156: 43867.65486 | BI156: 43867.62847 | BK156: 2024-02-07T15:43:00 | BL156: 43867.65486
A157: 0 | B157: =IF(Instructions!$C$2="BST",A157,0) -> 0 | C157: 2024-02-07T20:41:00 | D157: 2024-02-07 | F157: 2 | I157: 3 | K157: 43867.86181 | L157: 4.96 | M157: HW | N157: 0.4086956522 | O157: 20:41:00 | P157: 1 | Q157: 18:00:00 | R157: 0.4472222222 | S157: 43867.87341 | T157: 6.653913043 | U157: 43867.93938 | V157: 43867.87496 | W157: 6.413043478 | X157: 43867.80903 | Y157: 43867.84755 | Z157: 4.890434783 | AA157: 43867.83713 | AB157: 43867.84097 | AC157: 4.490434783 | AD157: Opn | AE157: 43867.72639 | AF157: 43867.84362 | AG157: 3.949565217 | AH157: 43867.8174 | AI157: 4.308695652 | AJ157: 43867.87533 | AK157: 6.553913043 | AL157: 43867.87725 | AM157: 6.494782609 | AN157: 43867.87186 | AO157: 6.313043478 | AP157: 43867.87761 | AQ157: 5.713043478 | AR157: 43867.85139 | AS157: 43867.87222 | AT157: 43867.83823 | AU157: 4.490434783 | AV157: 43867.83823 | AW157: 4.290434783 | AX157: 43867.81548 | AY157: 4.031304348 | AZ157: 43867.81201 | BA157: 3.890434783 | BB157: 43867.80854 | BC157: 3.849565217 | BD157: 43867.75691 | BE157: 3.690434783 | BF157: 43867.85139 | BH157: 43867.89236 | BI157: 43867.89306 | BK157: 2024-02-07T21:25:00 | BL157: 43867.89236
A158: 0 | B158: =IF(Instructions!$C$2="BST",A158,0) -> 0 | C158: 2024-02-08T02:44:00 | D158: 2024-02-08 | E158: 2024-02-08 | F158: 2 | G158: Feb | H158: 8 | I158: 4 | J158: Thu | K158: 43868.11389 | L158: 1.53 | M158: LW | N158: 0.3740458015 | O158: 02:44:00 | P158: 05:00:00 | Q158: -0.04166666667 | R158: 0.6222222222 | S158: 43868.14684 | T158: 1.864122137 | U158: 43868.21281 | V158: 43868.12739 | W158: 1.701526718 | X158: 43868.05903 | Y158: 43868.12685 | Z158: 1.551145038 | AA158: 43868.09051 | AB158: 43868.11906 | AC158: 1.413740458 | AD158: Cls | AE158: 43867.95556 | AF158: 43868.10177 | AG158: 1.351145038 | AH158: 43868.09568 | AI158: 1.451145038 | AJ158: 43868.14468 | AK158: 1.901526718 | AL158: 43868.14468 | AM158: 1.901526718 | AN158: 43868.13557 | AO158: 1.901526718 | AP158: 43868.14035 | AQ158: 1.738931298 | AR158: 43868.10347 | AS158: 43868.12778 | AT158: 43868.10347 | AU158: 1.551145038 | AV158: 43868.10779 | AW158: 1.513740458 | AX158: 43868.09568 | AY158: 1.351145038 | AZ158: 43868.09221 | BA158: 1.313740458 | BB158: 43868.08742 | BC158: 1.413740458 | BD158: 43868.04228 | BE158: 1.163358779 | BF158: 43868.13819 | BH158: 43868.17361 | BI158: 43868.14514 | BK158: 2024-02-08T04:10:00 | BL158: 43868.17361
A159: 0 | B159: =IF(Instructions!$C$2="BST",A159,0) -> 0 | C159: 2024-02-08T09:01:00 | D159: 2024-02-08 | E159: Thu | F159: 2 | I159: 4 | K159: 43868.37569 | L159: 5.28 | M159: HW | N159: 0.6869565217 | O159: 09:01:00 | P159: 12:00:00 | Q159: 06:00:00 | R159: 0.5027777778 | S159: 43868.38788 | T159: 7.099130435 | U159: 43868.45385 | V159: 43868.38962 | W159: 6.830434783 | X159: 43868.32431 | Y159: 43868.36182 | Z159: 5.224347826 | AA159: 43868.35141 | AB159: 43868.35486 | AC159: 4.824347826 | AD159: Opn | AE159: 43868.24028 | AF159: 43868.35655 | AG159: 4.255652174 | AH159: 43868.33052 | AI159: 4.586956522 | AJ159: 43868.3896 | AK159: 6.999130435 | AL159: 43868.39133 | AM159: 6.967826087 | AN159: 43868.38613 | AO159: 6.730434783 | AP159: 43868.39131 | AQ159: 6.130434783 | AR159: 43868.36528 | AS159: 43868.38611 | AT159: 43868.35135 | AU159: 4.824347826 | AV159: 43868.35135 | AW159: 4.624347826 | AX159: 43868.32879 | AY159: 4.393043478 | AZ159: 43868.32532 | BA159: 4.224347826 | BB159: 43868.32185 | BC159: 4.155652174 | BD159: 43868.27157 | BE159: 4.024347826 | BF159: 43868.36528 | BH159: 43868.40764 | BI159: 43868.40694 | BK159: 2024-02-08T09:47:00 | BL159: 43868.40764
A160: 0 | B160: =IF(Instructions!$C$2="BST",A160,0) -> 0 | C160: 2024-02-08T15:10:00 | D160: 2024-02-08 | F160: 2 | I160: 4 | K160: 43868.63194 | L160: 1.19 | M160: LW | N160: 0.6335877863 | O160: 15:10:00 | P160: 17:00:00 | Q160: 11:00:00 | R160: 0.6944444444 | S160: =IF($M160="HW",$K160+S$6+(S$5-S$6)*$R160,$K160+S$8+(S$7-S$8)*$R160) -> 43868.6659 | T160: 1.422900763 | U160: 43868.73187 | V160: 43868.64419 | W160: 1.286259542 | X160: 43868.57431 | Y160: =IF($M160="HW",$K160+Y$6+(Y$5-Y$6)*$R160,$K160+Y$8+(Y$7-Y$8)*$R160) -> 43868.64641 | Z160: 1.239694656 | AA160: 43868.60706 | AB160: 43868.63812 | AC160: 1.076335878 | AD160: Cls | AE160: 43868.46944 | AF160: 43868.61883 | AG160: 1.039694656 | AH160: 43868.61323 | AI160: 1.139694656 | AJ160: 43868.66348 | AK160: 1.486259542 | AL160: 43868.66348 | AM160: 1.486259542 | AN160: 43868.65413 | AO160: 1.486259542 | AP160: 43868.65866 | AQ160: 1.349618321 | AR160: =IF($M160="HW",$K160+AR$6+(AR$5-AR$6)*$R160,$K160+AR$8+(AR$7-AR$8)*$R160) -> 43868.62153 | AS160: 43868.64583 | AT160: 43868.62153 | AU160: 1.239694656 | AV160: 43868.62635 | AW160: 1.176335878 | AX160: 43868.61323 | AY160: 1.039694656 | AZ160: 43868.60976 | BA160: 0.9763358779 | BB160: 43868.60523 | BC160: 1.076335878 | BD160: 43868.56009 | BE160: 0.9297709924 | BF160: =IF($M160="HW",$K160+BF$6+(BF$5-BF$6)*$R160,$K160+BF$8+(BF$7-BF$8)*$R160) -> 43868.65625 | BH160: 43868.69444 | BI160: 43868.66319 | BK160: 2024-02-08T16:40:00 | BL160: 43868.69444
A161: 0 | B161: =IF(Instructions!$C$2="BST",A161,0) -> 0 | C161: 2024-02-08T21:29:00 | D161: 2024-02-08 | F161: 2 | I161: 4 | K161: 43868.89514 | L161: 5.28 | M161: HW | N161: 0.6869565217 | O161: 21:29:00 | P161: 1 | Q161: 18:00:00 | R161: 0.5805555556 | S161: 43868.90813 | T161: 7.099130435 | U161: 43868.9741 | V161: 43868.91015 | W161: 6.830434783 | X161: 43868.84375 | Y161: 43868.88181 | Z161: 5.224347826 | AA161: 43868.87139 | AB161: 43868.87431 | AC161: 4.824347826 | AD161: Opn | AE161: 43868.75972 | AF161: 43868.87464 | AG161: 4.255652174 | AH161: 43868.84888 | AI161: 4.586956522 | AJ161: 43868.90959 | AK161: 6.999130435 | AL161: 43868.91104 | AM161: 6.967826087 | AN161: 43868.90611 | AO161: 6.730434783 | AP161: 43868.91048 | AQ161: 6.130434783 | AR161: 43868.88472 | AS161: 43868.90556 | AT161: 43868.86971 | AU161: 4.824347826 | AV161: 43868.86971 | AW161: 4.624347826 | AX161: 43868.84742 | AY161: 4.393043478 | AZ161: 43868.84395 | BA161: 4.224347826 | BB161: 43868.84048 | BC161: 4.155652174 | BD161: 43868.79209 | BE161: 4.024347826 | BF161: 43868.88472 | BH161: 43868.92708 | BI161: 43868.92639 | BK161: 2024-02-08T22:15:00 | BL161: 43868.92708
A162: 0 | B162: =IF(Instructions!$C$2="BST",A162,0) -> 0 | C162: 2024-02-09T03:30:00 | D162: 2024-02-09 | E162: 2024-02-09 | F162: 2 | G162: Feb | H162: 9 | I162: 5 | J162: Fri | K162: 43869.14583 | L162: 1.16 | M162: LW | N162: 0.6564885496 | O162: 03:30:00 | P162: 05:00:00 | Q162: -0.04166666667 | R162: 0.75 | S162: 43869.18056 | T162: 1.383969466 | U162: 43869.24653 | V162: 43869.15712 | W162: 1.249618321 | X162: 43869.09375 | Y162: 43869.16146 | Z162: 1.21221374 | AA162: 43869.11979 | AB162: 43869.15278 | AC162: 1.046564885 | AD162: Cls | AE162: 43868.98889 | AF162: 43869.13194 | AG162: 1.01221374 | AH162: 43869.12674 | AI162: 1.11221374 | AJ162: 43869.17795 | AK162: 1.449618321 | AL162: 43869.17795 | AM162: 1.449618321 | AN162: 43869.1684 | AO162: 1.449618321 | AP162: 43869.17274 | AQ162: 1.315267176 | AR162: 43869.13542 | AS162: 43869.15972 | AT162: 43869.13542 | AU162: 1.21221374 | AV162: 43869.14063 | AW162: 1.146564885 | AX162: 43869.12674 | AY162: 1.01221374 | AZ162: 43869.12326 | BA162: 0.9465648855 | BB162: 43869.11892 | BC162: 1.046564885 | BD162: 43869.07378 | BE162: 0.9091603053 | BF162: 43869.17014 | BH162: 43869.20972 | BI162: 43869.17708 | BK162: 2024-02-09T05:02:00 | BL162: 43869.20972
A163: 0 | B163: =IF(Instructions!$C$2="BST",A163,0) -> 0 | C163: 2024-02-09T09:45:00 | D163: 2024-02-09 | E163: Fri | F163: 2 | I163: 5 | K163: 43869.40625 | L163: 5.66 | M163: HW | N163: 1.017391304 | O163: 09:45:00 | P163: 12:00:00 | Q163: 06:00:00 | R163: 0.625 | S163: 43869.4197 | T163: 7.627826087 | U163: 43869.48568 | V163: 43869.42188 | W163: 7.326086957 | X163: 43869.35625 | Y163: 43869.39323 | Z163: 5.620869565 | AA163: 43869.38281 | AB163: 43869.38542 | AC163: 5.220869565 | AD163: Opn | AE163: 43869.27083 | AF163: 43869.38498 | AG163: 4.619130435 | AH163: 43869.35938 | AI163: 4.917391304 | AJ163: 43869.42101 | AK163: 7.527826087 | AL163: 43869.42231 | AM163: 7.529565217 | AN163: 43869.41753 | AO163: 7.226086957 | AP163: 43869.42144 | AQ163: 6.626086957 | AR163: 43869.39583 | AS163: 43869.41667 | AT163: 43869.38021 | AU163: 5.220869565 | AV163: 43869.38021 | AW163: 5.020869565 | AX163: 43869.35807 | AY163: 4.822608696 | AZ163: 43869.3546 | BA163: 4.620869565 | BB163: 43869.35113 | BC163: 4.519130435 | BD163: 43869.30382 | BE163: 4.420869565 | BF163: 43869.39583 | BH163: 43869.43958 | BI163: 43869.4375 | BK163: 2024-02-09T10:33:00 | BL163: 43869.43958
A164: 0 | B164: =IF(Instructions!$C$2="BST",A164,0) -> 0 | C164: 2024-02-09T15:55:00 | D164: 2024-02-09 | F164: 2 | I164: 5 | K164: 43869.66319 | L164: 0.76 | M164: LW | N164: 0.9618320611 | O164: 15:55:00 | P164: 17:00:00 | Q164: 11:00:00 | R164: 0.8194444444 | S164: 43869.69888 | T164: 0.8648854962 | U164: 43869.76485 | V164: 43869.67327 | W164: 0.7610687023 | X164: 43869.60625 | Y164: 43869.68027 | Z164: 0.8458015267 | AA164: 43869.63571 | AB164: 43869.6711 | AC164: 0.6496183206 | AD164: Cls | AE164: 43869.5 | AF164: 43869.64834 | AG164: 0.6458015267 | AH164: 43869.64361 | AI164: 0.7458015267 | AJ164: 43869.69604 | AK164: 0.9610687023 | AL164: 43869.69604 | AM164: 0.9610687023 | AN164: 43869.68625 | AO164: 0.9610687023 | AP164: 43869.69035 | AQ164: 0.8572519084 | AR164: 43869.65278 | AS164: 43869.67708 | AT164: 43869.65278 | AU164: 0.8458015267 | AV164: 43869.65847 | AW164: 0.7496183206 | AX164: 43869.64361 | AY164: 0.6458015267 | AZ164: 43869.64014 | BA164: 0.5496183206 | BB164: 43869.63604 | BC164: 0.6496183206 | BD164: 43869.5909 | BE164: 0.634351145 | BF164: 43869.6875 | BH164: 43869.72917 | BI164: 43869.69444 | BK164: 2024-02-09T17:30:00 | BL164: 43869.72917
A165: 0 | B165: =IF(Instructions!$C$2="BST",A165,0) -> 0 | C165: 2024-02-09T22:14:00 | D165: 2024-02-09 | F165: 2 | I165: 5 | K165: 43869.92639 | L165: 5.54 | M165: HW | N165: 0.9130434783 | O165: 22:14:00 | P165: 1 | Q165: 18:00:00 | R165: 0.7055555556 | S165: 43869.94068 | T165: 7.460869565 | U165: 43870.00666 | V165: 43869.94313 | W165: 7.169565217 | X165: 43869.875 | Y165: 43869.91393 | Z165: 5.495652174 | AA165: 43869.90351 | AB165: 43869.90556 | AC165: 5.095652174 | AD165: Opn | AE165: 43869.79097 | AF165: 43869.90372 | AG165: 4.504347826 | AH165: 43869.8784 | AI165: 4.813043478 | AJ165: 43869.94171 | AK165: 7.360869565 | AL165: 43869.94273 | AM165: 7.352173913 | AN165: 43869.93823 | AO165: 7.069565217 | AP165: 43869.9413 | AQ165: 6.469565217 | AR165: 43869.91597 | AS165: 43869.93681 | AT165: 43869.89923 | AU165: 5.095652174 | AV165: 43869.89923 | AW165: 4.895652174 | AX165: 43869.87737 | AY165: 4.686956522 | AZ165: 43869.8739 | BA165: 4.495652174 | BB165: 43869.87043 | BC165: 4.404347826 | BD165: 43869.82508 | BE165: 4.295652174 | BF165: 43869.91597 | BH165: 43869.95833 | BI165: 43869.95764 | BK165: 2024-02-09T23:00:00 | BL165: 43869.95833
A166: 0 | B166: =IF(Instructions!$C$2="BST",A166,0) -> 0 | C166: 2024-02-10T04:14:00 | D166: 2024-02-10 | E166: 2024-02-10 | F166: 2 | G166: Feb | H166: 10 | I166: 6 | J166: Sat | K166: 43870.17639 | L166: 0.83 | M166: LW | N166: 0.9083969466 | O166: 04:14:00 | P166: 05:00:00 | Q166: -0.04166666667 | R166: 0.8722222222 | S166: 43870.21281 | T166: 0.9557251908 | U166: 43870.27878 | V166: 43870.18555 | W166: 0.8465648855 | X166: 43870.125 | Y166: 43870.19456 | Z166: 0.9099236641 | AA166: 43870.1478 | AB166: 43870.18503 | AC166: 0.7190839695 | AD166: Cls | AE166: 43870.02014 | AF166: 43870.1608 | AG166: 0.7099236641 | AH166: 43870.15644 | AI166: 0.8099236641 | AJ166: 43870.20978 | AK166: 1.046564885 | AL166: 43870.20978 | AM166: 1.046564885 | AN166: 43870.19981 | AO166: 1.046564885 | AP166: 43870.20372 | AQ166: 0.9374045802 | AR166: 43870.16597 | AS166: 43870.19028 | AT166: 43870.16597 | AU166: 0.9099236641 | AV166: 43870.17203 | AW166: 0.8190839695 | AX166: 43870.15644 | AY166: 0.7099236641 | AZ166: 43870.15297 | BA166: 0.6190839695 | BB166: 43870.14905 | BC166: 0.7190839695 | BD166: 43870.10392 | BE166: 0.6824427481 | BF166: 43870.20069 | BH166: 43870.24236 | BI166: 43870.20764 | BK166: 2024-02-10T05:49:00 | BL166: 43870.24236
A167: 0 | B167: =IF(Instructions!$C$2="BST",A167,0) -> 0 | C167: 2024-02-10T10:28:00 | D167: 2024-02-10 | E167: Sat | F167: 2 | I167: 6 | K167: 43870.43611 | L167: 5.96 | M167: HW | N167: 1.27826087 | O167: 10:28:00 | P167: 12:00:00 | Q167: 06:00:00 | R167: 0.7444444445 | S167: 43870.45081 | T167: 8.045217391 | U167: 43870.51678 | V167: 43870.4534 | W167: 7.717391304 | X167: 43870.38681 | Y167: 43870.42392 | Z167: 5.933913043 | AA167: 43870.4135 | AB167: 43870.41528 | AC167: 5.533913043 | AD167: Opn | AE167: 43870.30069 | AF167: 43870.41277 | AG167: 4.906086957 | AH167: 43870.38758 | AI167: 5.17826087 | AJ167: 43870.4517 | AK167: 7.945217391 | AL167: 43870.45258 | AM167: 7.973043478 | AN167: 43870.44823 | AO167: 7.617391304 | AP167: 43870.45089 | AQ167: 7.017391304 | AR167: 43870.42569 | AS167: 43870.44653 | AT167: 43870.40841 | AU167: 5.533913043 | AV167: 43870.40841 | AW167: 5.333913043 | AX167: 43870.38669 | AY167: 5.16173913 | AZ167: 43870.38322 | BA167: 4.933913043 | BB167: 43870.37975 | BC167: 4.806086957 | BD167: 43870.33534 | BE167: 4.733913043 | BF167: 43870.42569 | BH167: 43870.47014 | BI167: 43870.46736 | BK167: 2024-02-10T11:17:00 | BL167: 43870.47014
A168: 0 | B168: =IF(Instructions!$C$2="BST",A168,0) -> 0 | C168: 2024-02-10T16:39:00 | D168: 2024-02-10 | F168: 2 | I168: 6 | K168: 43870.69375 | L168: 0.42 | M168: LW | N168: 1.221374046 | O168: 16:39:00 | P168: 17:00:00 | Q168: 11:00:00 | R168: 0.9416666667 | S168: 43870.73113 | T168: 0.4236641221 | U168: 43870.79711 | V168: 43870.70171 | W168: 0.3458015267 | X168: 43870.63681 | Y168: 43870.71337 | Z168: 0.534351145 | AA168: 43870.66372 | AB168: 43870.70336 | AC168: 0.3122137405 | AD168: Cls | AE168: 43870.52986 | AF168: 43870.6772 | AG168: 0.334351145 | AH168: 43870.67332 | AI168: 0.434351145 | AJ168: 43870.72786 | AK168: 0.5458015267 | AL168: 43870.72786 | AM168: 0.5458015267 | AN168: 43870.71765 | AO168: 0.5458015267 | AP168: 43870.72133 | AQ168: 0.4679389313 | AR168: 43870.68333 | AS168: 43870.70764 | AT168: 43870.68333 | AU168: 0.534351145 | AV168: 43870.68987 | AW168: 0.4122137405 | AX168: 43870.67332 | AY168: 0.334351145 | AZ168: 43870.66985 | BA168: 0.2122137405 | BB168: 43870.66617 | BC168: 0.3122137405 | BD168: 43870.62104 | BE168: 0.4007633588 | BF168: 43870.71806 | BH168: 43870.76111 | BI168: 43870.725 | BK168: 2024-02-10T18:16:00 | BL168: 43870.76111
A169: 0 | B169: =IF(Instructions!$C$2="BST",A169,0) -> 0 | C169: 2024-02-10T22:56:00 | D169: 2024-02-10 | F169: 2 | I169: 6 | K169: 43870.95556 | L169: 5.72 | M169: HW | N169: 1.069565217 | O169: 22:56:00 | P169: 1 | Q169: 18:00:00 | R169: 0.8222222222 | S169: 43870.97106 | T169: 7.711304348 | U169: 43871.03704 | V169: 43870.97392 | W169: 7.404347826 | X169: 43870.90556 | Y169: 43870.9439 | Z169: 5.683478261 | AA169: 43870.93349 | AB169: 43870.93472 | AC169: 5.283478261 | AD169: Opn | AE169: 43870.82014 | AF169: 43870.93086 | AG169: 4.676521739 | AH169: 43870.90594 | AI169: 4.969565217 | AJ169: 43870.97168 | AK169: 7.611304348 | AL169: 43870.9723 | AM169: 7.61826087 | AN169: 43870.96821 | AO169: 7.304347826 | AP169: 43870.97006 | AQ169: 6.704347826 | AR169: 43870.94514 | AS169: 43870.96597 | AT169: 43870.92677 | AU169: 5.283478261 | AV169: 43870.92677 | AW169: 5.083478261 | AX169: 43870.90532 | AY169: 4.890434783 | AZ169: 43870.90185 | BA169: 4.683478261 | BB169: 43870.89838 | BC169: 4.576521739 | BD169: 43870.85586 | BE169: 4.483478261 | BF169: 43870.94514 | BH169: 43870.98889 | BI169: 43870.98681 | BK169: 2024-02-10T23:44:00 | BL169: 43870.98889
A170: 0 | B170: =IF(Instructions!$C$2="BST",A170,0) -> 0 | C170: 2024-02-11T04:57:00 | D170: 2024-02-11 | E170: 2024-02-11 | F170: 2 | G170: Feb | H170: 11 | I170: 7 | J170: Sun | K170: 43871.20625 | L170: 0.60 | M170: LW | N170: 1.083969466 | O170: 04:57:00 | P170: 05:00:00 | Q170: -0.04166666667 | R170: 0.9916666667 | S170: 43871.24433 | T170: 0.6572519084 | U170: 43871.3103 | V170: 43871.21334 | W170: 0.565648855 | X170: 43871.15556 | Y170: 43871.22691 | Z170: 0.6992366412 | AA170: 43871.17517 | AB170: 43871.21655 | AC170: 0.4908396947 | AD170: Cls | AE170: 43871.04931 | AF170: 43871.189 | AG170: 0.4992366412 | AH170: 43871.18547 | AI170: 0.5992366412 | AJ170: 43871.24089 | AK170: 0.765648855 | AL170: 43871.24089 | AM170: 0.765648855 | AN170: 43871.2305 | AO170: 0.765648855 | AP170: 43871.234 | AQ170: 0.6740458015 | AR170: 43871.19583 | AS170: 43871.22014 | AT170: 43871.19583 | AU170: 0.6992366412 | AV170: 43871.20272 | AW170: 0.5908396947 | AX170: 43871.18547 | AY170: 0.4992366412 | AZ170: 43871.182 | BA170: 0.3908396947 | BB170: 43871.1785 | BC170: 0.4908396947 | BD170: 43871.13336 | BE170: 0.5244274809 | BF170: 43871.23056 | BH170: 43871.27361 | BI170: 43871.2375 | BK170: 2024-02-11T06:34:00 | BL170: 43871.27361
A171: 0 | B171: =IF(Instructions!$C$2="BST",A171,0) -> 0 | C171: 2024-02-11T11:11:00 | D171: 2024-02-11 | E171: Sun | F171: 2 | I171: 7 | K171: 43871.46597 | L171: 6.15 | M171: HW | N171: 1.443478261 | O171: 11:11:00 | P171: 12:00:00 | Q171: 06:00:00 | R171: 0.8638888889 | S171: 43871.48192 | T171: 8.309565217 | U171: 43871.54789 | V171: 43871.48492 | W171: 7.965217391 | X171: 43871.41597 | Y171: 43871.45461 | Z171: 6.132173913 | AA171: 43871.44419 | AB171: 43871.44514 | AC171: 5.732173913 | AD171: Opn | AE171: 43871.33056 | AF171: 43871.44056 | AG171: 5.087826087 | AH171: 43871.41578 | AI171: 5.343478261 | AJ171: 43871.48239 | AK171: 8.209565217 | AL171: 43871.48286 | AM171: 8.253913043 | AN171: 43871.47892 | AO171: 7.865217391 | AP171: 43871.48033 | AQ171: 7.265217391 | AR171: 43871.45556 | AS171: 43871.47639 | AT171: 43871.43661 | AU171: 5.732173913 | AV171: 43871.43661 | AW171: 5.532173913 | AX171: 43871.41531 | AY171: 5.376521739 | AZ171: 43871.41183 | BA171: 5.132173913 | BB171: 43871.40836 | BC171: 4.987826087 | BD171: 43871.36686 | BE171: 4.932173913 | BF171: 43871.45556 | BH171: 43871.49931 | BI171: 43871.49722 | BK171: 2024-02-11T11:59:00 | BL171: 43871.49931
A172: 0 | B172: =IF(Instructions!$C$2="BST",A172,0) -> 0 | C172: 2024-02-11T17:23:00 | D172: 2024-02-11 | F172: 2 | I172: 7 | K172: 43871.72431 | L172: 0.22 | M172: LW | N172: 1.374045802 | O172: 17:23:00 | P172: 17:00:00 | Q172: 23:00:00 | R172: 0.9361111111 | S172: 43871.76161 | T172: 0.1641221374 | U172: 43871.82758 | V172: 43871.73236 | W172: 0.1015267176 | X172: 43871.66597 | Y172: 43871.74381 | Z172: 0.3511450382 | AA172: 43871.69439 | AB172: 43871.73383 | AC172: 0.113740458 | AD172: Cls | AE172: 43871.55972 | AF172: 43871.70783 | AG172: 0.1511450382 | AH172: 43871.70392 | AI172: 0.2511450382 | AJ172: 43871.75836 | AK172: 0.3015267176 | AL172: 43871.75836 | AM172: 0.3015267176 | AN172: 43871.74817 | AO172: 0.3015267176 | AP172: 43871.75186 | AQ172: 0.2389312977 | AR172: 43871.71389 | AS172: 43871.73819 | AT172: 43871.71389 | AU172: 0.3511450382 | AV172: 43871.72039 | AW172: 0.213740458 | AX172: 43871.70392 | AY172: 0.1511450382 | AZ172: 43871.70044 | BA172: 0.01374045802 | BB172: 43871.69675 | BC172: 0.113740458 | BD172: 43871.65161 | BE172: 0.2633587786 | BF172: 43871.74861 | BH172: 43871.79167 | BI172: 43871.75556 | BK172: 2024-02-11T19:00:00 | BL172: 43871.79167
A173: 0 | B173: =IF(Instructions!$C$2="BST",A173,0) -> 0 | C173: 2024-02-11T23:39:00 | D173: 2024-02-11 | F173: 2 | I173: 7 | K173: 43871.98542 | L173: 5.77 | M173: HW | N173: 1.113043478 | O173: 23:39:00 | P173: 1 | Q173: 18:00:00 | R173: 0.9416666667 | S173: 43872.00217 | T173: 7.780869565 | U173: 43872.06814 | V173: 43872.00544 | W173: 7.469565217 | X173: 43871.93542 | Y173: 43871.97459 | Z173: 5.735652174 | AA173: 43871.96418 | AB173: 43871.96458 | AC173: 5.335652174 | AD173: Opn | AE173: 43871.85 | AF173: 43871.95865 | AG173: 4.724347826 | AH173: 43871.93414 | AI173: 5.013043478 | AJ173: 43872.00237 | AK173: 7.680869565 | AL173: 43872.00258 | AM173: 7.692173913 | AN173: 43871.9989 | AO173: 7.369565217 | AP173: 43871.99951 | AQ173: 6.769565217 | AR173: 43871.975 | AS173: 43871.99583 | AT173: 43871.95498 | AU173: 5.335652174 | AV173: 43871.95498 | AW173: 5.135652174 | AX173: 43871.93394 | AY173: 4.946956522 | AZ173: 43871.93047 | BA173: 4.735652174 | BB173: 43871.927 | BC173: 4.624347826 | BD173: 43871.88738 | BE173: 4.535652174 | BF173: 43871.975 | BH173: 43872.01875 | BI173: 43872.01667 | BK173: 2024-02-12T00:27:00 | BL173: 43872.01875
A174: 0 | B174: =IF(Instructions!$C$2="BST",A174,0) -> 0 | C174: 2024-02-12T05:40:00 | D174: 2024-02-12 | E174: 2024-02-12 | F174: 2 | G174: Feb | H174: 12 | I174: 1 | J174: Mon | K174: 43872.23611 | L174: 0.49 | M174: LW | N174: 1.167938931 | O174: 05:40:00 | P174: 05:00:00 | Q174: 11:00:00 | R174: 0.8888888889 | S174: 43872.27276 | T174: 0.5145038168 | U174: 43872.33873 | V174: 43872.24498 | W174: 0.4312977099 | X174: 43872.18542 | Y174: 43872.25463 | Z174: 0.5984732824 | AA174: 43872.20718 | AB174: 43872.24498 | AC174: 0.3816793893 | AD174: Cls | AE174: 43872.07917 | AF174: 43872.22029 | AG174: 0.3984732824 | AH174: 43872.21605 | AI174: 0.4984732824 | AJ174: 43872.26968 | AK174: 0.6312977099 | AL174: 43872.26968 | AM174: 0.6312977099 | AN174: 43872.25965 | AO174: 0.6312977099 | AP174: 43872.2635 | AQ174: 0.5480916031 | AR174: 43872.22569 | AS174: 43872.25 | AT174: 43872.22569 | AU174: 0.5984732824 | AV174: 43872.23187 | AW174: 0.4816793893 | AX174: 43872.21605 | AY174: 0.3984732824 | AZ174: 43872.21258 | BA174: 0.2816793893 | BB174: 43872.20872 | BC174: 0.3816793893 | BD174: 43872.16358 | BE174: 0.4488549618 | BF174: 43872.26042 | BH174: 43872.30347 | BI174: 43872.26736 | BK174: 2024-02-12T07:17:00 | BL174: 43872.30347
A175: 0 | B175: =IF(Instructions!$C$2="BST",A175,0) -> 0 | C175: 2024-02-12T11:54:00 | D175: 2024-02-12 | E175: Mon | F175: 2 | I175: 1 | K175: 43872.49583 | L175: 6.21 | M175: HW | N175: 1.495652174 | O175: 11:54:00 | P175: 12:00:00 | Q175: 06:00:00 | R175: 0.9833333333 | S175: 43872.51302 | T175: 8.393043478 | U175: 43872.57899 | V175: 43872.51644 | W175: 8.043478261 | X175: 43872.44583 | Y175: 43872.4853 | Z175: 6.194782609 | AA175: 43872.47488 | AB175: 43872.475 | AC175: 5.794782609 | AD175: Opn | AE175: 43872.36042 | AF175: 43872.46834 | AG175: 5.145217391 | AH175: 43872.44398 | AI175: 5.395652174 | AJ175: 43872.51308 | AK175: 8.293043478 | AL175: 43872.51314 | AM175: 8.342608696 | AN175: 43872.50961 | AO175: 7.943478261 | AP175: 43872.50978 | AQ175: 7.343478261 | AR175: 43872.48542 | AS175: 43872.50625 | AT175: 43872.46481 | AU175: 5.794782609 | AV175: 43872.46481 | AW175: 5.594782609 | AX175: 43872.44392 | AY175: 5.444347826 | AZ175: 43872.44045 | BA175: 5.194782609 | BB175: 43872.43698 | BC175: 5.045217391 | BD175: 43872.39838 | BE175: 4.994782609 | BF175: 43872.48542 | BH175: 43872.52917 | BI175: 43872.52708 | BK175: 2024-02-12T12:42:00 | BL175: 43872.52917
A176: 0 | B176: =IF(Instructions!$C$2="BST",A176,0) -> 0 | C176: 2024-02-12T18:07:00 | D176: 2024-02-12 | F176: 2 | I176: 1 | K176: 43872.75486 | L176: 0.20 | M176: LW | N176: 1.389312977 | O176: 18:07:00 | P176: 17:00:00 | Q176: 23:00:00 | R176: 0.8138888889 | S176: =IF($M176="HW",$K176+S$6+(S$5-S$6)*$R176,$K176+S$8+(S$7-S$8)*$R176) -> 43872.79047 | T176: 0.1381679389 | U176: 43872.85644 | V176: 43872.76504 | W176: 0.07709923664 | X176: 43872.69583 | Y176: =IF($M176="HW",$K176+Y$6+(Y$5-Y$6)*$R176,$K176+Y$8+(Y$7-Y$8)*$R176) -> 43872.77182 | Z176: 0.3328244275 | AA176: 43872.72749 | AB176: 43872.76269 | AC176: 0.09389312977 | AD176: Cls | AE176: 43872.58958 | AF176: 43872.74008 | AG176: 0.1328244275 | AH176: 43872.73532 | AI176: 0.2328244275 | AJ176: 43872.78764 | AK176: 0.2770992366 | AL176: 43872.78764 | AM176: 0.2770992366 | AN176: 43872.77787 | AO176: 0.2770992366 | AP176: 43872.78199 | AQ176: 0.2160305344 | AR176: =IF($M176="HW",$K176+AR$6+(AR$5-AR$6)*$R176,$K176+AR$8+(AR$7-AR$8)*$R176) -> 43872.74444 | AS176: 43872.76875 | AT176: 43872.74444 | AU176: 0.3328244275 | AV176: 43872.7501 | AW176: 0.1938931298 | AX176: 43872.73532 | AY176: 0.1328244275 | AZ176: 43872.73185 | BA176: -0.006106870229 | BB176: 43872.72773 | BC176: 0.09389312977 | BD176: 43872.68259 | BE176: 0.2496183206 | BF176: =IF($M176="HW",$K176+BF$6+(BF$5-BF$6)*$R176,$K176+BF$8+(BF$7-BF$8)*$R176) -> 43872.77917 | BH176: 43872.82153 | BI176: 43872.78611 | BK176: 2024-02-12T19:43:00 | BL176: 43872.82153
A177: 0 | B177: =IF(Instructions!$C$2="BST",A177,0) -> 0 | C177: 2024-02-13T00:22:00 | D177: 2024-02-13 | E177: 2024-02-13 | F177: 2 | G177: Feb | H177: 13 | I177: 2 | J177: Tue | K177: 43873.01528 | L177: 5.71 | M177: HW | N177: 1.060869565 | O177: 00:22:00 | P177: 00:00:00 | Q177: 06:00:00 | R177: 0.9388888889 | S177: 43873.032 | T177: 7.697391304 | U177: 43873.09797 | V177: 43873.03526 | W177: 7.391304348 | X177: 43872.96458 | Y177: 43873.00444 | Z177: 5.673043478 | AA177: 43872.99402 | AB177: 43872.99444 | AC177: 5.273043478 | AD177: Opn | AE177: 43872.87986 | AF177: 43872.98856 | AG177: 4.666956522 | AH177: 43872.96404 | AI177: 4.960869565 | AJ177: 43873.03221 | AK177: 7.597391304 | AL177: 43873.03243 | AM177: 7.603478261 | AN177: 43873.02874 | AO177: 7.291304348 | AP177: 43873.02938 | AQ177: 6.691304348 | AR177: 43873.00486 | AS177: 43873.02569 | AT177: 43872.98488 | AU177: 5.273043478 | AV177: 43872.98488 | AW177: 5.073043478 | AX177: 43872.96383 | AY177: 4.879130435 | AZ177: 43872.96036 | BA177: 4.673043478 | BB177: 43872.95689 | BC177: 4.566956522 | BD177: 43872.91721 | BE177: 4.473043478 | BF177: 43873.00486 | BH177: 43873.04792 | BI177: 43873.04653 | BK177: 2024-02-13T01:09:00 | BL177: 43873.04792
A178: 0 | B178: =IF(Instructions!$C$2="BST",A178,0) -> 0 | C178: 2024-02-13T06:23:00 | D178: 2024-02-13 | E178: Tue | F178: 2 | I178: 2 | K178: 43873.26597 | L178: 0.52 | M178: LW | N178: 1.145038168 | O178: 06:23:00 | P178: 05:00:00 | Q178: 11:00:00 | R178: 0.7694444444 | S178: 43873.30096 | T178: 0.5534351145 | U178: 43873.36694 | V178: 43873.27692 | W178: 0.4679389313 | X178: 43873.21458 | Y178: 43873.282 | Z178: 0.6259541985 | AA178: 43873.23953 | AB178: 43873.27319 | AC178: 0.4114503817 | AD178: Cls | AE178: 43873.10903 | AF178: 43873.25181 | AG178: 0.4259541985 | AH178: 43873.24674 | AI178: 0.5259541985 | AJ178: 43873.29829 | AK178: 0.6679389313 | AL178: 43873.29829 | AM178: 0.6679389313 | AN178: 43873.28868 | AO178: 0.6679389313 | AP178: 43873.29295 | AQ178: 0.5824427481 | AR178: 43873.25556 | AS178: 43873.27986 | AT178: 43873.25556 | AU178: 0.6259541985 | AV178: 43873.2609 | AW178: 0.5114503817 | AX178: 43873.24674 | AY178: 0.4259541985 | AZ178: 43873.24327 | BA178: 0.3114503817 | BB178: 43873.23899 | BC178: 0.4114503817 | BD178: 43873.19386 | BE178: 0.4694656489 | BF178: 43873.29028 | BH178: 43873.33264 | BI178: 43873.29722 | BK178: 2024-02-13T07:59:00 | BL178: 43873.33264
A179: 0 | B179: =IF(Instructions!$C$2="BST",A179,0) -> 0 | C179: 2024-02-13T12:38:00 | D179: 2024-02-13 | F179: 2 | I179: 2 | K179: 43873.52639 | L179: 6.12 | M179: HW | N179: 1.417391304 | O179: 12:38:00 | P179: 12:00:00 | Q179: 18:00:00 | R179: 0.8944444444 | S179: 43873.54265 | T179: 8.267826087 | U179: 43873.60862 | V179: 43873.54576 | W179: 7.926086957 | X179: 43873.47569 | Y179: 43873.51524 | Z179: 6.100869565 | AA179: 43873.50482 | AB179: 43873.50556 | AC179: 5.700869565 | AD179: Opn | AE179: 43873.39097 | AF179: 43873.50044 | AG179: 5.059130435 | AH179: 43873.47577 | AI179: 5.317391304 | AJ179: 43873.54302 | AK179: 8.167826087 | AL179: 43873.54338 | AM179: 8.209565217 | AN179: 43873.53954 | AO179: 7.826086957 | AP179: 43873.54064 | AQ179: 7.226086957 | AR179: 43873.51597 | AS179: 43873.53681 | AT179: 43873.4966 | AU179: 5.700869565 | AV179: 43873.4966 | AW179: 5.500869565 | AX179: 43873.47541 | AY179: 5.342608696 | AZ179: 43873.47193 | BA179: 5.100869565 | BB179: 43873.46846 | BC179: 4.959130435 | BD179: 43873.4277 | BE179: 4.900869565 | BF179: 43873.51597 | BH179: 43873.55903 | BI179: 43873.55764 | BK179: 2024-02-13T13:25:00 | BL179: 43873.55903
A180: 0 | B180: =IF(Instructions!$C$2="BST",A180,0) -> 0 | C180: 2024-02-13T18:52:00 | D180: 2024-02-13 | F180: 2 | I180: 2 | K180: 43873.78611 | L180: 0.34 | M180: LW | N180: 1.282442748 | O180: 18:52:00 | P180: 17:00:00 | Q180: 23:00:00 | R180: 0.6888888889 | S180: 43873.81998 | T180: 0.3198473282 | U180: 43873.88596 | V180: 43873.79846 | W180: 0.2480916031 | X180: 43873.72569 | Y180: 43873.80046 | Z180: 0.4610687023 | AA180: 43873.76134 | AB180: 43873.79221 | AC180: 0.2328244275 | AD180: Cls | AE180: 43873.62014 | AF180: 43873.77307 | AG180: 0.2610687023 | AH180: 43873.76744 | AI180: 0.3610687023 | AJ180: 43873.81759 | AK180: 0.4480916031 | AL180: 43873.81759 | AM180: 0.4480916031 | AN180: 43873.80826 | AO180: 0.4480916031 | AP180: 43873.81281 | AQ180: 0.3763358779 | AR180: 43873.77569 | AS180: 43873.8 | AT180: 43873.77569 | AU180: 0.4610687023 | AV180: 43873.78048 | AW180: 0.3328244275 | AX180: 43873.76744 | AY180: 0.2610687023 | AZ180: 43873.76397 | BA180: 0.1328244275 | BB180: 43873.75941 | BC180: 0.2328244275 | BD180: 43873.71427 | BE180: 0.3458015267 | BF180: 43873.81042 | BH180: 43873.85069 | BI180: 43873.81736 | BK180: 2024-02-13T20:25:00 | BL180: 43873.85069
A181: 0 | B181: =IF(Instructions!$C$2="BST",A181,0) -> 0 | C181: 2024-02-14T01:06:00 | D181: 2024-02-14 | E181: 2024-02-14 | F181: 2 | G181: Feb | H181: 14 | I181: 3 | J181: Wed | K181: 43874.04583 | L181: 5.55 | M181: HW | N181: 0.9217391304 | O181: 01:06:00 | P181: 00:00:00 | Q181: 06:00:00 | R181: 0.8166666667 | S181: 43874.06128 | T181: 7.474782609 | U181: 43874.12726 | V181: 43874.06412 | W181: 7.182608696 | X181: 43873.99444 | Y181: 43874.03414 | Z181: 5.506086957 | AA181: 43874.02373 | AB181: 43874.025 | AC181: 5.106086957 | AD181: Opn | AE181: 43873.91042 | AF181: 43874.02124 | AG181: 4.513913043 | AH181: 43873.9963 | AI181: 4.82173913 | AJ181: 43874.06192 | AK181: 7.374782609 | AL181: 43874.06256 | AM181: 7.366956522 | AN181: 43874.05845 | AO181: 7.082608696 | AP181: 43874.06036 | AQ181: 6.482608696 | AR181: 43874.03542 | AS181: 43874.05625 | AT181: 43874.01713 | AU181: 5.106086957 | AV181: 43874.01713 | AW181: 4.906086957 | AX181: 43873.99566 | AY181: 4.69826087 | AZ181: 43873.99219 | BA181: 4.506086957 | BB181: 43873.98872 | BC181: 4.413913043 | BD181: 43873.94606 | BE181: 4.306086957 | BF181: 43874.03542 | BH181: 43874.07778 | BI181: 43874.07708 | BK181: 2024-02-14T01:52:00 | BL181: 43874.07778
A182: 0 | B182: =IF(Instructions!$C$2="BST",A182,0) -> 0 | C182: 2024-02-14T07:08:00 | D182: 2024-02-14 | E182: Wed | F182: 2 | I182: 3 | K182: 43874.29722 | L182: 0.69 | M182: LW | N182: 1.015267176 | O182: 07:08:00 | P182: 05:00:00 | Q182: 11:00:00 | R182: 0.6444444444 | S182: 43874.33048 | T182: 0.7740458015 | U182: 43874.39645 | V182: 43874.31034 | W182: 0.6755725191 | X182: 43874.24444 | Y182: 43874.31065 | Z182: 0.7816793893 | AA182: 43874.27338 | AB182: 43874.3027 | AC182: 0.5801526718 | AD182: Cls | AE182: 43874.13958 | AF182: 43874.2848 | AG182: 0.5816793893 | AH182: 43874.27886 | AI182: 0.6816793893 | AJ182: 43874.32824 | AK182: 0.8755725191 | AL182: 43874.32824 | AM182: 0.8755725191 | AN182: 43874.31906 | AO182: 0.8755725191 | AP182: 43874.32377 | AQ182: 0.7770992366 | AR182: 43874.28681 | AS182: 43874.31111 | AT182: 43874.28681 | AU182: 0.7816793893 | AV182: 43874.29128 | AW182: 0.6801526718 | AX182: 43874.27886 | AY182: 0.5816793893 | AZ182: 43874.27539 | BA182: 0.4801526718 | BB182: 43874.27068 | BC182: 0.5801526718 | BD182: 43874.22554 | BE182: 0.586259542 | BF182: 43874.32153 | BH182: 43874.36111 | BI182: 43874.32847 | BK182: 2024-02-14T08:40:00 | BL182: 43874.36111
A183: 0 | B183: =IF(Instructions!$C$2="BST",A183,0) -> 0 | C183: 2024-02-14T13:23:00 | D183: 2024-02-14 | F183: 2 | I183: 3 | K183: 43874.55764 | L183: 5.90 | M183: HW | N183: 1.226086957 | O183: 13:23:00 | P183: 12:00:00 | Q183: 18:00:00 | R183: 0.7694444444 | S183: 43874.5726 | T183: 7.96173913 | U183: 43874.63857 | V183: 43874.57527 | W183: 7.639130435 | X183: 43874.50625 | Y183: 43874.54562 | Z183: 5.871304348 | AA183: 43874.5352 | AB183: 43874.53681 | AC183: 5.471304348 | AD183: Opn | AE183: 43874.42222 | AF183: 43874.53386 | AG183: 4.848695652 | AH183: 43874.50876 | AI183: 5.126086957 | AJ183: 43874.5734 | AK183: 7.86173913 | AL183: 43874.5742 | AM183: 7.884347826 | AN183: 43874.56993 | AO183: 7.539130435 | AP183: 43874.57233 | AQ183: 6.939130435 | AR183: 43874.54722 | AS183: 43874.56806 | AT183: 43874.52959 | AU183: 5.471304348 | AV183: 43874.52959 | AW183: 5.271304348 | AX183: 43874.50796 | AY183: 5.093913043 | AZ183: 43874.50448 | BA183: 4.871304348 | BB183: 43874.50101 | BC183: 4.748695652 | BD183: 43874.45721 | BE183: 4.671304348 | BF183: 43874.54722 | BH183: 43874.58958 | BI183: 43874.58889 | BK183: 2024-02-14T14:09:00 | BL183: 43874.58958
A184: 0 | B184: =IF(Instructions!$C$2="BST",A184,0) -> 0 | C184: 2024-02-14T19:38:00 | D184: 2024-02-14 | F184: 2 | I184: 3 | K184: 43874.81806 | L184: 0.64 | M184: LW | N184: 1.053435115 | O184: 19:38:00 | P184: 17:00:00 | Q184: 23:00:00 | R184: 0.5611111111 | S184: 43874.85015 | T184: 0.7091603053 | U184: 43874.91613 | V184: 43874.83262 | W184: 0.6145038168 | X184: 43874.75625 | Y184: 43874.82975 | Z184: 0.7358778626 | AA184: 43874.79595 | AB184: 43874.82238 | AC184: 0.5305343511 | AD184: Cls | AE184: 43874.65139 | AF184: 43874.80679 | AG184: 0.5358778626 | AH184: 43874.80027 | AI184: 0.6358778626 | AJ184: 43874.84821 | AK184: 0.8145038168 | AL184: 43874.84821 | AM184: 0.8145038168 | AN184: 43874.83931 | AO184: 0.8145038168 | AP184: 43874.84431 | AQ184: 0.7198473282 | AR184: 43874.80764 | AS184: 43874.83194 | AT184: 43874.80764 | AU184: 0.7358778626 | AV184: 43874.81154 | AW184: 0.6305343511 | AX184: 43874.80027 | AY184: 0.5358778626 | AZ184: 43874.7968 | BA184: 0.4305343511 | BB184: 43874.7918 | BC184: 0.5305343511 | BD184: 43874.74666 | BE184: 0.5519083969 | BF184: 43874.84236 | BH184: 43874.87917 | BI184: 43874.84931 | BK184: 2024-02-14T21:06:00 | BL184: 43874.87917
A185: 0 | B185: =IF(Instructions!$C$2="BST",A185,0) -> 0 | C185: 2024-02-15T01:51:00 | D185: 2024-02-15 | E185: 2024-02-15 | F185: 2 | G185: Feb | H185: 15 | I185: 4 | J185: Thu | K185: 43875.07708 | L185: 5.30 | M185: HW | N185: 0.7043478261 | O185: 01:51:00 | P185: 00:00:00 | Q185: 06:00:00 | R185: 0.6916666667 | S185: 43875.09123 | T185: 7.126956522 | U185: 43875.1572 | V185: 43875.09363 | W185: 6.856521739 | X185: 43875.025 | Y185: 43875.06453 | Z185: 5.245217391 | AA185: 43875.05411 | AB185: 43875.05625 | AC185: 4.845217391 | AD185: Opn | AE185: 43874.94167 | AF185: 43875.05466 | AG185: 4.274782609 | AH185: 43875.02928 | AI185: 4.604347826 | AJ185: 43875.0923 | AK185: 7.026956522 | AL185: 43875.09337 | AM185: 6.997391304 | AN185: 43875.08883 | AO185: 6.756521739 | AP185: 43875.09204 | AQ185: 6.156521739 | AR185: 43875.06667 | AS185: 43875.0875 | AT185: 43875.05012 | AU185: 4.845217391 | AV185: 43875.05012 | AW185: 4.645217391 | AX185: 43875.02821 | AY185: 4.415652174 | AZ185: 43875.02474 | BA185: 4.245217391 | BB185: 43875.02127 | BC185: 4.174782609 | BD185: 43874.97558 | BE185: 4.045217391 | BF185: 43875.06667 | BH185: 43875.10833 | BI185: 43875.10833 | BK185: 2024-02-15T02:36:00 | BL185: 43875.10833
A186: 0 | B186: =IF(Instructions!$C$2="BST",A186,0) -> 0 | C186: 2024-02-15T07:56:00 | D186: 2024-02-15 | E186: Thu | F186: 2 | I186: 4 | K186: 43875.33056 | L186: 0.98 | M186: LW | N186: 0.7938931298 | O186: 07:56:00 | P186: 05:00:00 | Q186: 11:00:00 | R186: 0.5111111111 | S186: 43875.36196 | T186: 1.150381679 | U186: 43875.42793 | V186: 43875.34599 | W186: 1.029770992 | X186: 43875.275 | Y186: 43875.3412 | Z186: 1.047328244 | AA186: 43875.30949 | AB186: 43875.33418 | AC186: 0.8679389313 | AD186: Cls | AE186: 43875.17083 | AF186: 43875.31998 | AG186: 0.8473282443 | AH186: 43875.31312 | AI186: 0.9473282443 | AJ186: 43875.36019 | AK186: 1.229770992 | AL186: 43875.36019 | AM186: 1.229770992 | AN186: 43875.35147 | AO186: 1.229770992 | AP186: 43875.35664 | AQ186: 1.109160305 | AR186: 43875.32014 | AS186: 43875.34444 | AT186: 43875.32014 | AU186: 1.047328244 | AV186: 43875.32369 | AW186: 0.9679389313 | AX186: 43875.31312 | AY186: 0.8473282443 | AZ186: 43875.30965 | BA186: 0.7679389313 | BB186: 43875.30448 | BC186: 0.8679389313 | BD186: 43875.25934 | BE186: 0.7854961832 | BF186: 43875.35486 | BH186: 43875.39028 | BI186: 43875.36181 | BK186: 2024-02-15T09:22:00 | BL186: 43875.39028
A187: 0 | B187: =IF(Instructions!$C$2="BST",A187,0) -> 0 | C187: 2024-02-15T14:11:00 | D187: 2024-02-15 | F187: 2 | I187: 4 | K187: 43875.59097 | L187: 5.56 | M187: HW | N187: 0.9304347826 | O187: 14:11:00 | P187: 12:00:00 | Q187: 18:00:00 | R187: 0.6361111111 | S187: 43875.60454 | T187: 7.488695652 | U187: 43875.67052 | V187: 43875.60675 | W187: 7.195652174 | X187: 43875.53819 | Y187: 43875.57803 | Z187: 5.516521739 | AA187: 43875.56761 | AB187: 43875.57014 | AC187: 5.116521739 | AD187: Opn | AE187: 43875.45556 | AF187: 43875.56951 | AG187: 4.523478261 | AH187: 43875.54394 | AI187: 4.830434783 | AJ187: 43875.60581 | AK187: 7.388695652 | AL187: 43875.60707 | AM187: 7.38173913 | AN187: 43875.60233 | AO187: 7.095652174 | AP187: 43875.60612 | AQ187: 6.495652174 | AR187: 43875.58056 | AS187: 43875.60139 | AT187: 43875.56478 | AU187: 5.116521739 | AV187: 43875.56478 | AW187: 4.916521739 | AX187: 43875.54268 | AY187: 4.709565217 | AZ187: 43875.53921 | BA187: 4.516521739 | BB187: 43875.53573 | BC187: 4.423478261 | BD187: 43875.4887 | BE187: 4.316521739 | BF187: 43875.58056 | BH187: 43875.62153 | BI187: 43875.62222 | BK187: 2024-02-15T14:55:00 | BL187: 43875.62153
A188: 0 | B188: =IF(Instructions!$C$2="BST",A188,0) -> 0 | C188: 2024-02-15T20:28:00 | D188: 2024-02-15 | F188: 2 | I188: 4 | K188: 43875.85278 | L188: 1.06 | M188: LW | N188: 0.7328244275 | O188: 20:28:00 | P188: 17:00:00 | Q188: 23:00:00 | R188: 0.4222222222 | S188: 43875.88295 | T188: 1.254198473 | U188: 43875.94892 | V188: 43875.86975 | W188: 1.127480916 | X188: 43875.78819 | Y188: 43875.86157 | Z188: 1.120610687 | AA188: 43875.83356 | AB188: 43875.85517 | AC188: 0.9473282443 | AD188: Cls | AE188: 43875.68472 | AF188: 43875.84344 | AG188: 0.920610687 | AH188: 43875.83596 | AI188: 1.020610687 | AJ188: 43875.88148 | AK188: 1.327480916 | AL188: 43875.88148 | AM188: 1.327480916 | AN188: 43875.87307 | AO188: 1.327480916 | AP188: 43875.87855 | AQ188: 1.200763359 | AR188: 43875.84236 | AS188: 43875.86667 | AT188: 43875.84236 | AU188: 1.120610687 | AV188: 43875.84529 | AW188: 1.047328244 | AX188: 43875.83596 | AY188: 0.920610687 | AZ188: 43875.83248 | BA188: 0.8473282443 | BB188: 43875.82701 | BC188: 0.9473282443 | BD188: 43875.78187 | BE188: 0.8404580153 | BF188: 43875.87708 | BH188: 43875.90972 | BI188: 43875.88403 | BK188: 2024-02-15T21:50:00 | BL188: 43875.90972
A189: 0 | B189: =IF(Instructions!$C$2="BST",A189,0) -> 0 | C189: 2024-02-16T02:39:00 | D189: 2024-02-16 | E189: 2024-02-16 | F189: 2 | G189: Feb | H189: 16 | I189: 5 | J189: Fri | K189: 43876.11042 | L189: 4.98 | M189: HW | N189: 0.4260869565 | O189: 02:39:00 | P189: 00:00:00 | Q189: 06:00:00 | R189: 0.5583333333 | S189: 43876.12318 | T189: 6.68173913 | U189: 43876.18915 | V189: 43876.12512 | W189: 6.439130435 | X189: 43876.05694 | Y189: 43876.09693 | Z189: 4.911304348 | AA189: 43876.08652 | AB189: 43876.08958 | AC189: 4.511304348 | AD189: Opn | AE189: 43875.975 | AF189: 43876.09031 | AG189: 3.968695652 | AH189: 43876.06447 | AI189: 4.326086957 | AJ189: 43876.12471 | AK189: 6.58173913 | AL189: 43876.12624 | AM189: 6.524347826 | AN189: 43876.12124 | AO189: 6.339130435 | AP189: 43876.12584 | AQ189: 5.739130435 | AR189: 43876.1 | AS189: 43876.12083 | AT189: 43876.0853 | AU189: 4.511304348 | AV189: 43876.0853 | AW189: 4.311304348 | AX189: 43876.06293 | AY189: 4.053913043 | AZ189: 43876.05946 | BA189: 3.911304348 | BB189: 43876.05599 | BC189: 3.868695652 | BD189: 43876.00706 | BE189: 3.711304348 | BF189: 43876.1 | BH189: 43876.14028 | BI189: 43876.14167 | BK189: 2024-02-16T03:22:00 | BL189: 43876.14028
A190: 0 | B190: =IF(Instructions!$C$2="BST",A190,0) -> 0 | C190: 2024-02-16T08:48:00 | D190: 2024-02-16 | E190: Fri | F190: 2 | I190: 5 | K190: 43876.36667 | L190: 1.37 | M190: LW | N190: 0.4961832061 | O190: 08:48:00 | P190: 05:00:00 | Q190: 11:00:00 | R190: 0.3666666667 | S190: 43876.39606 | T190: 1.65648855 | U190: 43876.46204 | V190: 43876.38461 | W190: 1.50610687 | X190: 43876.30694 | Y190: 43876.37431 | Z190: 1.404580153 | AA190: 43876.34861 | AB190: 43876.36829 | AC190: 1.254961832 | AD190: Cls | AE190: 43876.20417 | AF190: 43876.3581 | AG190: 1.204580153 | AH190: 43876.35023 | AI190: 1.304580153 | AJ190: 43876.39479 | AK190: 1.70610687 | AL190: 43876.39479 | AM190: 1.70610687 | AN190: 43876.38657 | AO190: 1.70610687 | AP190: 43876.39225 | AQ190: 1.555725191 | AR190: 43876.35625 | AS190: 43876.38056 | AT190: 43876.35625 | AU190: 1.404580153 | AV190: 43876.3588 | AW190: 1.354961832 | AX190: 43876.35023 | AY190: 1.204580153 | AZ190: 43876.34676 | BA190: 1.154961832 | BB190: 43876.34109 | BC190: 1.254961832 | BD190: 43876.29595 | BE190: 1.053435115 | BF190: 43876.39097 | BH190: 43876.42222 | BI190: 43876.39792 | BK190: 2024-02-16T10:08:00 | BL190: 43876.42222
A191: 0 | B191: =IF(Instructions!$C$2="BST",A191,0) -> 0 | C191: 2024-02-16T15:04:00 | D191: 2024-02-16 | F191: 2 | I191: 5 | K191: 43876.62778 | L191: 5.14 | M191: HW | N191: 0.5652173913 | O191: 15:04:00 | P191: 12:00:00 | Q191: 18:00:00 | R191: 0.4888888889 | S191: 43876.63981 | T191: 6.904347826 | U191: 43876.70579 | V191: 43876.64151 | W191: 6.647826087 | X191: 43876.57361 | Y191: 43876.61381 | Z191: 5.07826087 | AA191: 43876.6034 | AB191: 43876.60694 | AC191: 4.67826087 | AD191: Opn | AE191: 43876.49236 | AF191: 43876.60887 | AG191: 4.12173913 | AH191: 43876.58279 | AI191: 4.465217391 | AJ191: 43876.64159 | AK191: 6.804347826 | AL191: 43876.64336 | AM191: 6.760869565 | AN191: 43876.63812 | AO191: 6.547826087 | AP191: 43876.64344 | AQ191: 5.947826087 | AR191: 43876.61736 | AS191: 43876.63819 | AT191: 43876.60363 | AU191: 4.67826087 | AV191: 43876.60363 | AW191: 4.47826087 | AX191: 43876.58102 | AY191: 4.234782609 | AZ191: 43876.57755 | BA191: 4.07826087 | BB191: 43876.57407 | BC191: 4.02173913 | BD191: 43876.52346 | BE191: 3.87826087 | BF191: 43876.61736 | BH191: 43876.65694 | BI191: 43876.65903 | BK191: 2024-02-16T15:46:00 | BL191: 43876.65694
A192: 0 | B192: =IF(Instructions!$C$2="BST",A192,0) -> 0 | C192: 2024-02-16T21:23:00 | D192: 2024-02-16 | F192: 2 | I192: 5 | K192: 43876.89097 | L192: 1.53 | M192: LW | N192: 0.3740458015 | O192: 21:23:00 | P192: 17:00:00 | Q192: 23:00:00 | R192: 0.2694444444 | S192: 43876.91902 | T192: 1.864122137 | U192: 43876.98499 | V192: 43876.9106 | W192: 1.701526718 | X192: 43876.82361 | Y192: 43876.89659 | Z192: 1.551145038 | AA192: 43876.87494 | AB192: 43876.89124 | AC192: 1.413740458 | AD192: Cls | AE192: 43876.72153 | AF192: 43876.88376 | AG192: 1.351145038 | AH192: 43876.87521 | AI192: 1.451145038 | AJ192: 43876.91808 | AK192: 1.901526718 | AL192: 43876.91808 | AM192: 1.901526718 | AN192: 43876.9102 | AO192: 1.901526718 | AP192: 43876.91621 | AQ192: 1.738931298 | AR192: 43876.88056 | AS192: 43876.90486 | AT192: 43876.88056 | AU192: 1.551145038 | AV192: 43876.88243 | AW192: 1.513740458 | AX192: 43876.87521 | AY192: 1.351145038 | AZ192: 43876.87174 | BA192: 1.313740458 | BB192: 43876.86573 | BC192: 1.413740458 | BD192: 43876.82059 | BE192: 1.163358779 | BF192: 43876.91528 | BH192: 43876.94236 | BI192: 43876.92222 | BK192: 2024-02-16T22:37:00 | BL192: 43876.94236
A193: 0 | B193: =IF(Instructions!$C$2="BST",A193,0) -> 0 | C193: 2024-02-17T03:37:00 | D193: 2024-02-17 | E193: 2024-02-17 | F193: 2 | G193: Feb | H193: 17 | I193: 6 | J193: Sat | K193: 43877.15069 | L193: 4.66 | M193: HW | N193: 0.147826087 | O193: 03:37:00 | P193: 00:00:00 | Q193: 06:00:00 | R193: 0.3972222222 | S193: =IF($M193="HW",$K193+S$6+(S$5-S$6)*$R193,$K193+S$8+(S$7-S$8)*$R193) -> 43877.16178 | T193: 6.236521739 | U193: 43877.22775 | V193: 43877.16316 | W193: 6.02173913 | X193: 43877.09444 | Y193: =IF($M193="HW",$K193+Y$6+(Y$5-Y$6)*$R193,$K193+Y$8+(Y$7-Y$8)*$R193) -> 43877.13609 | Z193: 4.577391304 | AA193: 43877.12568 | AB193: 43877.12986 | AC193: 4.177391304 | AD193: Opn | AE193: 43877.01528 | AF193: 43877.13338 | AG193: 3.662608696 | AH193: 43877.10698 | AI193: 4.047826087 | AJ193: 43877.16387 | AK193: 6.136521739 | AL193: 43877.16596 | AM193: 6.051304348 | AN193: 43877.1604 | AO193: 5.92173913 | AP193: 43877.16668 | AQ193: 5.32173913 | AR193: =IF($M193="HW",$K193+AR$6+(AR$5-AR$6)*$R193,$K193+AR$8+(AR$7-AR$8)*$R193) -> 43877.14028 | AS193: 43877.16111 | AT193: 43877.12782 | AU193: 4.177391304 | AV193: 43877.12782 | AW193: 3.977391304 | AX193: 43877.10489 | AY193: 3.692173913 | AZ193: 43877.10142 | BA193: 3.577391304 | BB193: 43877.09795 | BC193: 3.562608696 | BD193: 43877.0451 | BE193: 3.377391304 | BF193: =IF($M193="HW",$K193+BF$6+(BF$5-BF$6)*$R193,$K193+BF$8+(BF$7-BF$8)*$R193) -> 43877.14028 | BH193: 43877.17778 | BI193: 43877.18194 | BK193: 2024-02-17T04:16:00 | BL193: 43877.17778
A194: 0 | B194: =IF(Instructions!$C$2="BST",A194,0) -> 0 | C194: 2024-02-17T09:51:00 | D194: 2024-02-17 | E194: Sat | F194: 2 | I194: 6 | K194: 43877.41042 | L194: 1.77 | M194: LW | N194: 0.1908396947 | O194: 09:51:00 | P194: 05:00:00 | Q194: 11:00:00 | R194: 0.1916666667 | S194: 43877.43738 | T194: 2.175572519 | U194: 43877.50336 | V194: 43877.43139 | W194: 1.994656489 | X194: 43877.34444 | Y194: 43877.41441 | Z194: 1.770992366 | AA194: 43877.39601 | AB194: 43877.40961 | AC194: 1.651908397 | AD194: Cls | AE194: 43877.24444 | AF194: 43877.40428 | AG194: 1.570992366 | AH194: 43877.3952 | AI194: 1.670992366 | AJ194: 43877.43672 | AK194: 2.194656489 | AL194: 43877.43672 | AM194: 2.194656489 | AN194: 43877.42911 | AO194: 2.194656489 | AP194: 43877.43539 | AQ194: 2.013740458 | AR194: 43877.4 | AS194: 43877.42431 | AT194: 43877.4 | AU194: 1.770992366 | AV194: 43877.40133 | AW194: 1.751908397 | AX194: 43877.3952 | AY194: 1.570992366 | AZ194: 43877.39172 | BA194: 1.551908397 | BB194: 43877.38545 | BC194: 1.651908397 | BD194: 43877.34031 | BE194: 1.328244275 | BF194: 43877.43472 | BH194: 43877.45972 | BI194: 43877.44167 | BK194: 2024-02-17T11:02:00 | BL194: 43877.45972
A195: 0 | B195: =IF(Instructions!$C$2="BST",A195,0) -> 0 | C195: 2024-02-17T16:10:00 | D195: 2024-02-17 | F195: 2 | I195: 6 | K195: 43877.67361 | L195: 4.73 | M195: HW | N195: 0.2086956522 | O195: 16:10:00 | P195: 12:00:00 | Q195: 18:00:00 | R195: 0.3055555556 | S195: 43877.68374 | T195: 6.333913043 | U195: 43877.74971 | V195: 43877.6848 | W195: 6.113043478 | X195: 43877.61667 | Y195: 43877.65837 | Z195: 4.650434783 | AA195: 43877.64796 | AB195: 43877.65278 | AC195: 4.250434783 | AD195: Opn | AE195: 43877.53819 | AF195: 43877.65789 | AG195: 3.729565217 | AH195: 43877.63117 | AI195: 4.108695652 | AJ195: 43877.68615 | AK195: 6.233913043 | AL195: 43877.68856 | AM195: 6.154782609 | AN195: 43877.68268 | AO195: 6.013043478 | AP195: 43877.68991 | AQ195: 5.413043478 | AR195: 43877.66319 | AS195: 43877.68403 | AT195: 43877.65201 | AU195: 4.250434783 | AV195: 43877.65201 | AW195: 4.050434783 | AX195: 43877.62876 | AY195: 3.771304348 | AZ195: 43877.62529 | BA195: 3.650434783 | BB195: 43877.62182 | BC195: 3.629565217 | BD195: 43877.56674 | BE195: 3.450434783 | BF195: 43877.66319 | BH195: 43877.7 | BI195: 43877.70486 | BK195: 2024-02-17T16:48:00 | BL195: 43877.7
A196: 0 | B196: =IF(Instructions!$C$2="BST",A196,0) -> 0 | C196: 2024-02-17T22:31:00 | D196: 2024-02-17 | F196: 2 | I196: 6 | K196: 43877.93819 | L196: 1.96 | M196: LW | N196: 0.04580152672 | O196: 22:31:00 | P196: 17:00:00 | Q196: 23:00:00 | R196: 0.08055555555 | S196: 43877.96362 | T196: 2.422137405 | U196: 43878.02959 | V196: 43877.9611 | W196: 2.226717557 | X196: 43877.86667 | Y196: 43877.93987 | Z196: 1.945038168 | AA196: 43877.9261 | AB196: 43877.93584 | AC196: 1.840458015 | AD196: Cls | AE196: 43877.76736 | AF196: 43877.9336 | AG196: 1.745038168 | AH196: 43877.92375 | AI196: 1.845038168 | AJ196: 43877.96334 | AK196: 2.426717557 | AL196: 43877.96334 | AM196: 2.426717557 | AN196: 43877.95611 | AO196: 2.426717557 | AP196: 43877.96278 | AQ196: 2.23129771 | AR196: 43877.92778 | AS196: 43877.95208 | AT196: 43877.92778 | AU196: 1.945038168 | AV196: 43877.92834 | AW196: 1.940458015 | AX196: 43877.92375 | AY196: 1.745038168 | AZ196: 43877.92027 | BA196: 1.740458015 | BB196: 43877.91361 | BC196: 1.840458015 | BD196: 43877.86847 | BE196: 1.458778626 | BF196: 43877.9625 | BH196: 43877.98333 | BI196: 43877.96944 | BK196: 2024-02-17T23:36:00 | BL196: 43877.98333
A197: 0 | B197: =IF(Instructions!$C$2="BST",A197,0) -> 0 | C197: 2024-02-18T04:53:00 | D197: 2024-02-18 | E197: 2024-02-18 | F197: 2 | G197: Feb | H197: 18 | I197: 7 | J197: Sun | K197: 43878.20347 | L197: 4.41 | M197: HW | N197: -0.06956521739 | O197: 04:53:00 | P197: 00:00:00 | Q197: 06:00:00 | R197: 0.1861111111 | S197: 43878.21236 | T197: 5.888695652 | U197: 43878.27833 | V197: 43878.213 | W197: 5.695652174 | X197: 43878.14306 | Y197: 43878.1874 | Z197: 4.316521739 | AA197: 43878.17699 | AB197: 43878.18264 | AC197: 3.916521739 | AD197: Opn | AE197: 43878.06806 | AF197: 43878.18982 | AG197: 3.423478261 | AH197: 43878.16269 | AI197: 3.830434783 | AJ197: 43878.21518 | AK197: 5.788695652 | AL197: 43878.21801 | AM197: 5.68173913 | AN197: 43878.21171 | AO197: 5.595652174 | AP197: 43878.22019 | AQ197: 4.995652174 | AR197: 43878.19306 | AS197: 43878.21389 | AT197: 43878.18353 | AU197: 3.916521739 | AV197: 43878.18353 | AW197: 3.716521739 | AX197: 43878.15987 | AY197: 3.409565217 | AZ197: 43878.15639 | BA197: 3.316521739 | BB197: 43878.15292 | BC197: 3.323478261 | BD197: 43878.09495 | BE197: 3.116521739 | BF197: 43878.19306 | BH197: 43878.22639 | BI197: 43878.23472 | BK197: 2024-02-18T05:26:00 | BL197: 43878.22639
A198: 0 | B198: =IF(Instructions!$C$2="BST",A198,0) -> 0 | C198: 2024-02-18T11:13:00 | D198: 2024-02-18 | E198: Sun | F198: 2 | I198: 7 | K198: 43878.46736 | L198: 2.06 | M198: LW | N198: -0.03053435115 | O198: 11:13:00 | P198: 17:00:00 | Q198: 11:00:00 | R198: 0.03611111112 | S198: 43878.49217 | T198: 2.551908397 | U198: 43878.55814 | V198: 43878.49104 | W198: 2.348854962 | X198: 43878.39306 | Y198: 43878.46811 | Z198: 2.036641221 | AA198: 43878.45619 | AB198: 43878.46439 | AC198: 1.939694656 | AD198: Cls | AE198: 43878.29722 | AF198: 43878.46339 | AG198: 1.836641221 | AH198: 43878.45322 | AI198: 1.936641221 | AJ198: 43878.49204 | AK198: 2.548854962 | AL198: 43878.49204 | AM198: 2.548854962 | AN198: 43878.48497 | AO198: 2.548854962 | AP198: 43878.49179 | AQ198: 2.345801527 | AR198: 43878.45694 | AS198: 43878.48125 | AT198: 43878.45694 | AU198: 2.036641221 | AV198: 43878.4572 | AW198: 2.039694656 | AX198: 43878.45322 | AY198: 1.836641221 | AZ198: 43878.44975 | BA198: 1.839694656 | BB198: 43878.44293 | BC198: 1.939694656 | BD198: 43878.39779 | BE198: 1.527480916 | BF198: 43878.49167 | BH198: 43878.51042 | BI198: 43878.49861 | BK198: 2024-02-18T12:15:00 | BL198: 43878.51042
A199: 0 | B199: =IF(Instructions!$C$2="BST",A199,0) -> 0 | C199: 2024-02-18T17:39:00 | D199: 2024-02-18 | F199: 2 | I199: 7 | K199: 43878.73542 | L199: 4.45 | M199: HW | N199: -0.0347826087 | O199: 17:39:00 | P199: 12:00:00 | Q199: 18:00:00 | R199: 0.05833333332 | S199: 43878.74297 | T199: 5.944347826 | U199: 43878.80894 | V199: 43878.74317 | W199: 5.747826087 | X199: 43878.67361 | Y199: 43878.71846 | Z199: 4.35826087 | AA199: 43878.70804 | AB199: 43878.71458 | AC199: 3.95826087 | AD199: Opn | AE199: 43878.6 | AF199: 43878.72399 | AG199: 3.46173913 | AH199: 43878.69641 | AI199: 3.865217391 | AJ199: 43878.74624 | AK199: 5.844347826 | AL199: 43878.74951 | AM199: 5.740869565 | AN199: 43878.74277 | AO199: 5.647826087 | AP199: 43878.75258 | AQ199: 5.047826087 | AR199: 43878.725 | AS199: 43878.74583 | AT199: 43878.71725 | AU199: 3.95826087 | AV199: 43878.71725 | AW199: 3.75826087 | AX199: 43878.69314 | AY199: 3.454782609 | AZ199: 43878.68967 | BA199: 3.35826087 | BB199: 43878.6862 | BC199: 3.36173913 | BD199: 43878.62512 | BE199: 3.15826087 | BF199: 43878.725 | BH199: 43878.75694 | BI199: 43878.76667 | BK199: 2024-02-18T18:10:00 | BL199: 43878.75694
A200: 0 | B200: =IF(Instructions!$C$2="BST",A200,0) -> 0 | C200: 2024-02-18T23:57:00 | D200: 2024-02-18 | F200: 2 | I200: 7 | K200: 43878.99792 | L200: 2.19 | M200: LW | N200: -0.1297709924 | O200: 23:57:00 | P200: 1.208333333 | Q200: 23:00:00 | R200: 0.1583333333 | S200: 43879.02442 | T200: 2.720610687 | U200: 43879.09039 | V200: 43879.01947 | W200: 2.507633588 | X200: 43878.92361 | Y200: 43879.00122 | Z200: 2.155725191 | AA200: 43878.9842 | AB200: 43878.99664 | AC200: 2.06870229 | AD200: Cls | AE200: 43878.82917 | AF200: 43878.99225 | AG200: 1.955725191 | AH200: 43878.98293 | AI200: 2.055725191 | AJ200: 43879.02387 | AK200: 2.707633588 | AL200: 43879.02387 | AM200: 2.707633588 | AN200: 43879.01638 | AO200: 2.707633588 | AP200: 43879.02277 | AQ200: 2.494656489 | AR200: 43878.9875 | AS200: 43879.01181 | AT200: 43878.9875 | AU200: 2.155725191 | AV200: 43878.9886 | AW200: 2.16870229 | AX200: 43878.98293 | AY200: 1.955725191 | AZ200: 43878.97946 | BA200: 1.96870229 | BB200: 43878.97306 | BC200: 2.06870229 | BD200: 43878.92792 | BE200: 1.616793893 | BF200: 43879.02222 | BH200: 43879.03958 | BI200: 43879.02917 | BK200: 2024-02-19T00:57:00 | BL200: 43879.03958
... 1226 more rows

Sheet Tides Raw (hidden)
A1: HHD Datetime UTC | C1: Height | E1: H/L | F1: Lpl Datetime UTC | G1: Lpl Datetime UTC | I1: Height | K1: Diff | M1: Check
F2: 2025-01-02T06:49:00 | G2: 2023-01-01T00:43:00 | I2: 2.49 | K2: =(G2-A2)*24*60 -> 62589643
A3: 2023-01-01T05:57:00 | C3: 4.65 | E3: HW | F3: 2025-01-02T12:21:00 | G3: 2023-01-01T06:24:00 | I3: 7.61 | K3: =(G3-A3)*24*60 -> 27 | M3: =(G3-G2)*24 -> 5.683333333
A4: 2023-01-01T11:56:00 | C4: 1.95 | E4: LW | F4: 2025-01-02T19:18:00 | G4: 2023-01-01T13:09:00 | I4: 2.92 | K4: 73.00000001 | M4: =(G4-G3)*24 -> 6.75
A5: 2023-01-01T18:14:00 | C5: 4.93 | E5: HW | F5: 2025-01-03T00:48:00 | G5: 2023-01-01T18:47:00 | I5: 7.92 | K5: 32.99999999 | M5: 5.633333333
A6: 2023-01-02T00:35:00 | C6: 1.69 | E6: LW | F6: 2025-01-03T07:29:00 | G6: 2023-01-02T01:49:00 | I6: 2.58 | K6: 74 | M6: 7.033333333
A7: 2023-01-02T07:02:00 | C7: 4.72 | E7: HW | F7: 2025-01-03T12:58:00 | G7: 2023-01-02T07:33:00 | I7: 7.65 | K7: 31 | M7: 5.733333333
A8: 2023-01-02T13:02:00 | C8: 1.91 | E8: LW | F8: 2025-01-03T19:59:00 | G8: 2023-01-02T14:18:00 | I8: 2.84 | K8: 76 | M8: 6.75
A9: 2023-01-02T19:18:00 | C9: 4.92 | E9: HW | F9: 2025-01-04T01:29:00 | G9: 2023-01-02T19:55:00 | I9: 7.93 | K9: 36.99999999 | M9: 5.616666667
A10: 2023-01-03T01:33:00 | C10: 1.7 | E10: LW | F10: 2025-01-04T08:09:00 | G10: 2023-01-03T02:50:00 | I10: 2.57 | K10: 77 | M10: 6.916666667
A11: 2023-01-03T07:57:00 | C11: 4.84 | E11: HW | F11: 2025-01-04T13:37:00 | G11: 2023-01-03T08:34:00 | I11: 7.85 | K11: 36.99999999 | M11: 5.733333333
A12: 2023-01-03T13:59:00 | C12: 1.8 | E12: LW | F12: 2025-01-04T20:41:00 | G12: 2023-01-03T15:17:00 | I12: 2.67 | K12: 78 | M12: 6.716666667
A13: 2023-01-03T20:14:00 | C13: 4.96 | E13: HW | F13: 2025-01-05T02:12:00 | G13: 2023-01-03T20:54:00 | I13: 8.06 | K13: 40 | M13: 5.616666667
A14: 2023-01-04T02:22:00 | C14: 1.67 | E14: LW | F14: 2025-01-05T08:51:00 | G14: 2023-01-04T03:43:00 | I14: 2.51 | K14: 81 | M14: 6.816666667
A15: 2023-01-04T08:44:00 | C15: 5 | E15: HW | F15: 2025-01-05T14:22:00 | G15: 2023-01-04T09:24:00 | I15: 8.11 | K15: 40 | M15: 5.683333333
A16: 2023-01-04T14:48:00 | C16: 1.67 | E16: LW | F16: 2025-01-05T21:26:00 | G16: 2023-01-04T16:09:00 | I16: 2.48 | K16: 81 | M16: 6.75
A17: 2023-01-04T21:01:00 | C17: 5.02 | E17: HW | F17: 2025-01-06T03:00:00 | G17: 2023-01-04T21:43:00 | I17: 8.22 | K17: 42 | M17: 5.566666667
A18: 2023-01-05T03:05:00 | C18: 1.62 | E18: LW | F18: 2025-01-06T09:36:00 | G18: 2023-01-05T04:28:00 | I18: 2.45 | K18: 83.00000001 | M18: 6.75
A19: 2023-01-05T09:25:00 | C19: 5.16 | E19: HW | F19: 2025-01-06T15:12:00 | G19: 2023-01-05T10:07:00 | I19: 8.35 | K19: 42 | M19: 5.65
A20: 2023-01-05T15:30:00 | C20: 1.54 | E20: LW | F20: 2025-01-06T22:15:00 | G20: 2023-01-05T16:54:00 | I20: 2.32 | K20: 84 | M20: 6.783333333
A21: 2023-01-05T21:42:00 | C21: 5.09 | E21: HW | F21: 2025-01-07T03:54:00 | G21: 2023-01-05T22:25:00 | I21: 8.35 | K21: 43 | M21: 5.516666667
A22: 2023-01-06T03:43:00 | C22: 1.55 | E22: LW | F22: 2025-01-07T10:29:00 | G22: 2023-01-06T05:07:00 | I22: 2.39 | K22: 83.99999999 | M22: 6.7
A23: 2023-01-06T10:01:00 | C23: 5.3 | E23: HW | F23: 2025-01-07T16:09:00 | G23: 2023-01-06T10:45:00 | I23: 8.55 | K23: 44 | M23: 5.633333333
A24: 2023-01-06T16:10:00 | C24: 1.43 | E24: LW | F24: 2025-01-07T23:13:00 | G24: 2023-01-06T17:34:00 | I24: 2.18 | K24: 84 | M24: 6.816666667
A25: 2023-01-06T22:19:00 | C25: 5.14 | E25: HW | F25: 2025-01-08T04:54:00 | G25: 2023-01-06T23:04:00 | I25: 8.45 | K25: 45 | M25: 5.5
A26: 2023-01-07T04:18:00 | C26: 1.49 | E26: LW | F26: 2025-01-08T11:30:00 | G26: 2023-01-07T05:42:00 | I26: 2.33 | K26: 84 | M26: 6.633333333
A27: 2023-01-07T10:36:00 | C27: 5.42 | E27: HW | F27: 2025-01-08T17:13:00 | G27: 2023-01-07T11:20:00 | I27: 8.7 | K27: 44 | M27: 5.633333333
A28: 2023-01-07T16:46:00 | C28: 1.35 | E28: LW | F28: 2025-01-09T00:19:00 | G28: 2023-01-07T18:10:00 | I28: 2.07 | K28: 84 | M28: 6.833333333
A29: 2023-01-07T22:54:00 | C29: 5.17 | E29: HW | F29: 2025-01-09T06:01:00 | G29: 2023-01-07T23:41:00 | I29: 8.49 | K29: 47 | M29: 5.516666667
A30: 2023-01-08T04:53:00 | C30: 1.45 | E30: LW | F30: 2025-01-09T12:41:00 | G30: 2023-01-08T06:14:00 | I30: 2.26 | K30: 81 | M30: 6.55
A31: 2023-01-08T11:09:00 | C31: 5.48 | E31: HW | F31: 2025-01-09T18:25:00 | G31: 2023-01-08T11:54:00 | I31: 8.77 | K31: 45 | M31: 5.666666667
A32: 2023-01-08T17:22:00 | C32: 1.31 | E32: LW | F32: 2025-01-10T01:32:00 | G32: 2023-01-08T18:44:00 | I32: 2 | K32: 81.99999999 | M32: 6.833333333
A33: 2023-01-08T23:29:00 | C33: 5.16 | E33: HW | F33: 2025-01-10T07:13:00 | G33: 2023-01-09T00:17:00 | I33: 8.48 | K33: 48 | M33: 5.55
A34: 2023-01-09T05:27:00 | C34: 1.45 | E34: LW | F34: 2025-01-10T13:58:00 | G34: 2023-01-09T06:46:00 | I34: 2.21 | K34: 79.00000001 | M34: 6.483333333
A35: 2023-01-09T11:42:00 | C35: 5.48 | E35: HW | F35: 2025-01-10T19:41:00 | G35: 2023-01-09T12:27:00 | I35: 8.78 | K35: 45 | M35: 5.683333333
A36: 2023-01-09T17:56:00 | C36: 1.31 | E36: LW | F36: 2025-01-11T02:43:00 | G36: 2023-01-09T19:17:00 | I36: 1.98 | K36: 81 | M36: 6.833333333
A37: 2023-01-10T00:03:00 | C37: 5.12 | E37: HW | F37: 2025-01-11T08:23:00 | G37: 2023-01-10T00:52:00 | I37: 8.41 | K37: 49 | M37: 5.583333333
A38: 2023-01-10T06:00:00 | C38: 1.49 | E38: LW | F38: 2025-01-11T15:11:00 | G38: 2023-01-10T07:19:00 | I38: 2.21 | K38: 79 | M38: 6.45
A39: 2023-01-10T12:16:00 | C39: 5.42 | E39: HW | F39: 2025-01-11T20:51:00 | G39: 2023-01-10T13:00:00 | I39: 8.72 | K39: 44 | M39: 5.683333333
A40: 2023-01-10T18:31:00 | C40: 1.35 | E40: LW | F40: 2025-01-12T03:46:00 | G40: 2023-01-10T19:50:00 | I40: 2.03 | K40: 79.00000001 | M40: 6.833333333
A41: 2023-01-11T00:38:00 | C41: 5.04 | E41: HW | F41: 2025-01-12T09:22:00 | G41: 2023-01-11T01:26:00 | I41: 8.28 | K41: 48 | M41: 5.6
A42: 2023-01-11T06:34:00 | C42: 1.56 | E42: LW | F42: 2025-01-12T16:14:00 | G42: 2023-01-11T07:52:00 | I42: 2.28 | K42: 78 | M42: 6.433333333
A43: 2023-01-11T12:49:00 | C43: 5.33 | E43: HW | F43: 2025-01-12T21:49:00 | G43: 2023-01-11T13:32:00 | I43: 8.61 | K43: 42.99999999 | M43: 5.666666667
A44: 2023-01-11T19:06:00 | C44: 1.41 | E44: LW | F44: 2025-01-13T04:42:00 | G44: 2023-01-11T20:23:00 | I44: 2.15 | K44: 77.00000001 | M44: 6.85
A45: 2023-01-12T01:15:00 | C45: 4.94 | E45: HW | F45: 2025-01-13T10:14:00 | G45: 2023-01-12T02:00:00 | I45: 8.12 | K45: 45 | M45: 5.616666667
A46: 2023-01-12T07:10:00 | C46: 1.66 | E46: LW | F46: 2025-01-13T17:09:00 | G46: 2023-01-12T08:27:00 | I46: 2.43 | K46: 77 | M46: 6.45
A47: 2023-01-12T13:25:00 | C47: 5.22 | E47: HW | F47: 2025-01-13T22:40:00 | G47: 2023-01-12T14:05:00 | I47: 8.46 | K47: 39.99999999 | M47: 5.633333333
A48: 2023-01-12T19:44:00 | C48: 1.5 | E48: LW | F48: 2025-01-14T05:33:00 | G48: 2023-01-12T20:59:00 | I48: 2.32 | K48: 74.99999999 | M48: 6.9
A49: 2023-01-13T01:54:00 | C49: 4.83 | E49: HW | F49: 2025-01-14T11:01:00 | G49: 2023-01-13T02:36:00 | I49: 7.94 | K49: 41.99999999 | M49: 5.616666667
A50: 2023-01-13T07:49:00 | C50: 1.79 | E50: LW | F50: 2025-01-14T17:59:00 | G50: 2023-01-13T09:04:00 | I50: 2.63 | K50: 75 | M50: 6.466666667
A51: 2023-01-13T14:03:00 | C51: 5.09 | E51: HW | F51: 2025-01-14T23:27:00 | G51: 2023-01-13T14:42:00 | I51: 8.29 | K51: 39 | M51: 5.633333333
A52: 2023-01-13T20:26:00 | C52: 1.61 | E52: LW | F52: 2025-01-15T06:19:00 | G52: 2023-01-13T21:39:00 | I52: 2.54 | K52: 73 | M52: 6.95
A53: 2023-01-14T02:37:00 | C53: 4.71 | E53: HW | F53: 2025-01-15T11:45:00 | G53: 2023-01-14T03:17:00 | I53: 7.75 | K53: 40 | M53: 5.633333333
A54: 2023-01-14T08:34:00 | C54: 1.93 | E54: LW | F54: 2025-01-15T18:45:00 | G54: 2023-01-14T09:47:00 | I54: 2.87 | K54: 73 | M54: 6.5
A55: 2023-01-14T14:48:00 | C55: 4.95 | E55: HW | F55: 2025-01-16T00:12:00 | G55: 2023-01-14T15:26:00 | I55: 8.07 | K55: 38 | M55: 5.65
A56: 2023-01-14T21:14:00 | C56: 1.74 | E56: LW | F56: 2025-01-16T07:02:00 | G56: 2023-01-14T22:26:00 | I56: 2.76 | K56: 71.99999999 | M56: 7
A57: 2023-01-15T03:28:00 | C57: 4.6 | E57: HW | F57: 2025-01-16T12:28:00 | G57: 2023-01-15T04:05:00 | I57: 7.56 | K57: 37.00000001 | M57: 5.65
A58: 2023-01-15T09:27:00 | C58: 2.07 | E58: LW | F58: 2025-01-16T19:28:00 | G58: 2023-01-15T10:39:00 | I58: 3.1 | K58: 71.99999999 | M58: 6.566666667
A59: 2023-01-15T15:41:00 | C59: 4.81 | E59: HW | F59: 2025-01-17T00:55:00 | G59: 2023-01-15T16:18:00 | I59: 7.84 | K59: 37.00000001 | M59: 5.65
A60: 2023-01-15T22:12:00 | C60: 1.86 | E60: LW | F60: 2025-01-17T07:43:00 | G60: 2023-01-15T23:23:00 | I60: 2.94 | K60: 71 | M60: 7.083333333
A61: 2023-01-16T04:28:00 | C61: 4.52 | E61: HW | F61: 2025-01-17T13:09:00 | G61: 2023-01-16T05:02:00 | I61: 7.41 | K61: 34 | M61: 5.65
A62: 2023-01-16T10:30:00 | C62: 2.17 | E62: LW | F62: 2025-01-17T20:08:00 | G62: 2023-01-16T11:42:00 | I62: 3.24 | K62: 72 | M62: 6.666666667
A63: 2023-01-16T16:46:00 | C63: 4.71 | E63: HW | F63: 2025-01-18T01:36:00 | G63: 2023-01-16T17:21:00 | I63: 7.65 | K63: 35 | M63: 5.65
A64: 2023-01-16T23:19:00 | C64: 1.91 | E64: LW | F64: 2025-01-18T08:20:00 | G64: 2023-01-17T00:29:00 | I64: 3.01 | K64: 70 | M64: 7.133333333
A65: 2023-01-17T05:38:00 | C65: 4.54 | E65: HW | F65: 2025-01-18T13:48:00 | G65: 2023-01-17T06:10:00 | I65: 7.4 | K65: 32 | M65: 5.683333333
A66: 2023-01-17T11:44:00 | C66: 2.14 | E66: LW | F66: 2025-01-18T20:46:00 | G66: 2023-01-17T12:55:00 | I66: 3.22 | K66: 71 | M66: 6.75
A67: 2023-01-17T18:02:00 | C67: 4.71 | E67: HW | F67: 2025-01-19T02:15:00 | G67: 2023-01-17T18:35:00 | I67: 7.62 | K67: =(G67-A67)*24*60 -> 33 | M67: 5.666666667
A68: 2023-01-18T00:31:00 | C68: 1.85 | E68: LW | F68: 2025-01-19T08:55:00 | G68: 2023-01-18T01:43:00 | I68: 2.9 | K68: 72 | M68: =(G68-G67)*24 -> 7.133333333
A69: 2023-01-18T06:51:00 | C69: 4.7 | E69: HW | F69: 2025-01-19T14:27:00 | G69: 2023-01-18T07:25:00 | I69: 7.62 | K69: 34.00000001 | M69: 5.7
A70: 2023-01-18T12:58:00 | C70: 1.94 | E70: LW | F70: 2025-01-19T21:21:00 | G70: 2023-01-18T14:14:00 | I70: 2.96 | K70: 76 | M70: 6.816666667
A71: 2023-01-18T19:18:00 | C71: 4.86 | E71: HW | F71: 2025-01-20T02:54:00 | G71: 2023-01-18T19:55:00 | I71: 7.84 | K71: 36.99999999 | M71: 5.683333333
A72: 2023-01-19T01:36:00 | C72: 1.65 | E72: LW | F72: 2025-01-20T09:29:00 | G72: 2023-01-19T02:56:00 | I72: 2.61 | K72: 80 | M72: 7.016666667
A73: 2023-01-19T07:55:00 | C73: 4.99 | E73: HW | F73: 2025-01-20T15:08:00 | G73: 2023-01-19T08:35:00 | I73: 8.05 | K73: 40 | M73: 5.65
A74: 2023-01-19T14:02:00 | C74: 1.61 | E74: LW | F74: 2025-01-20T21:57:00 | G74: 2023-01-19T15:27:00 | I74: 2.49 | K74: 85 | M74: 6.866666667
A75: 2023-01-19T20:23:00 | C75: 5.11 | E75: HW | F75: 2025-01-21T03:36:00 | G75: 2023-01-19T21:05:00 | I75: 8.25 | K75: 41.99999999 | M75: 5.633333333
A76: 2023-01-20T02:33:00 | C76: 1.39 | E76: LW | F76: 2025-01-21T10:08:00 | G76: 2023-01-20T04:00:00 | I76: 2.19 | K76: 87 | M76: 6.916666667
A77: 2023-01-20T08:50:00 | C77: 5.33 | E77: HW | F77: 2025-01-21T15:52:00 | G77: 2023-01-20T09:34:00 | I77: 8.6 | K77: 44 | M77: 5.566666667
A78: 2023-01-20T14:58:00 | C78: 1.22 | E78: LW | F78: 2025-01-21T22:38:00 | G78: 2023-01-20T16:29:00 | I78: 1.91 | K78: 90.99999999 | M78: 6.916666667
A79: 2023-01-20T21:18:00 | C79: 5.38 | E79: HW | F79: 2025-01-22T04:25:00 | G79: 2023-01-20T22:03:00 | I79: 8.71 | K79: 45 | M79: 5.566666667
A80: 2023-01-21T03:24:00 | C80: 1.11 | E80: LW | F80: 2025-01-22T10:56:00 | G80: 2023-01-21T04:56:00 | I80: 1.74 | K80: 92 | M80: 6.883333333
A81: 2023-01-21T09:40:00 | C81: 5.65 | E81: HW | F81: 2025-01-22T16:45:00 | G81: 2023-01-21T10:26:00 | I81: 9.12 | K81: 45.99999999 | M81: 5.5
A82: 2023-01-21T15:50:00 | C82: 0.84 | E82: LW | F82: 2025-01-22T23:30:00 | G82: 2023-01-21T17:25:00 | I82: 1.33 | K82: 95.00000001 | M82: 6.983333333
A83: 2023-01-21T22:09:00 | C83: 5.6 | E83: HW | F83: 2025-01-23T05:23:00 | G83: 2023-01-21T22:55:00 | I83: 9.1 | K83: 45.99999999 | M83: 5.5
A84: 2023-01-22T04:12:00 | C84: 0.88 | E84: LW | F84: 2025-01-23T11:58:00 | G84: 2023-01-22T05:48:00 | I84: 1.32 | K84: 96 | M84: 6.883333333
A85: 2023-01-22T10:28:00 | C85: 5.92 | E85: HW | F85: 2025-01-23T17:48:00 | G85: 2023-01-22T11:15:00 | I85: 9.55 | K85: 47 | M85: 5.45
A86: 2023-01-22T16:39:00 | C86: 0.55 | E86: LW | F86: 2025-01-24T00:35:00 | G86: 2023-01-22T18:16:00 | I86: 0.83 | K86: 97 | M86: 7.016666667
A87: 2023-01-22T22:58:00 | C87: 5.72 | E87: HW | F87: 2025-01-24T06:34:00 | G87: 2023-01-22T23:45:00 | I87: 9.37 | K87: 47.00000001 | M87: 5.483333333
A88: 2023-01-23T04:59:00 | C88: 0.73 | E88: LW | F88: 2025-01-24T13:12:00 | G88: 2023-01-23T06:36:00 | I88: 1.01 | K88: 97 | M88: 6.85
A89: 2023-01-23T11:14:00 | C89: 6.08 | E89: HW | F89: 2025-01-24T19:03:00 | G89: 2023-01-23T12:03:00 | I89: 9.83 | K89: 49 | M89: 5.45
A90: 2023-01-23T17:27:00 | C90: 0.38 | E90: LW | F90: 2025-01-25T01:44:00 | G90: 2023-01-23T19:03:00 | I90: 0.52 | K90: 96 | M90: 7
A91: 2023-01-23T23:45:00 | C91: 5.74 | E91: HW | F91: 2025-01-25T07:49:00 | G91: 2023-01-24T00:33:00 | I91: 9.46 | K91: 48 | M91: 5.5
A92: 2023-01-24T05:45:00 | C92: 0.68 | E92: LW | F92: 2025-01-25T14:24:00 | G92: 2023-01-24T07:22:00 | I92: 0.87 | K92: 96.99999999 | M92: 6.816666667
A93: 2023-01-24T12:01:00 | C93: 6.12 | E93: HW | F93: 2025-01-25T20:14:00 | G93: 2023-01-24T12:49:00 | I93: 9.92 | K93: 48 | M93: 5.45
A94: 2023-01-24T18:15:00 | C94: 0.36 | E94: LW | F94: 2025-01-26T02:48:00 | G94: 2023-01-24T19:49:00 | I94: 0.46 | K94: 94 | M94: 7
A95: 2023-01-25T00:32:00 | C95: 5.64 | E95: HW | F95: 2025-01-26T08:49:00 | G95: 2023-01-25T01:19:00 | I95: 9.38 | K95: 47 | M95: 5.5
A96: 2023-01-25T06:32:00 | C96: 0.75 | E96: LW | F96: 2025-01-26T15:25:00 | G96: 2023-01-25T08:07:00 | I96: 0.96 | K96: 95 | M96: 6.8
A97: 2023-01-25T12:47:00 | C97: 6.03 | E97: HW | F97: 2025-01-26T21:10:00 | G97: 2023-01-25T13:35:00 | I97: 9.8 | K97: 48 | M97: 5.466666667
A98: 2023-01-25T19:02:00 | C98: 0.49 | E98: LW | F98: 2025-01-27T03:42:00 | G98: 2023-01-25T20:34:00 | I98: 0.66 | K98: 92 | M98: 6.983333333
A99: 2023-01-26T01:18:00 | C99: 5.45 | E99: HW | F99: 2025-01-27T09:36:00 | G99: 2023-01-26T02:05:00 | I99: 9.12 | K99: 47 | M99: 5.516666667
A100: 2023-01-26T07:19:00 | C100: 0.93 | E100: LW | F100: 2025-01-27T16:15:00 | G100: 2023-01-26T08:50:00 | I100: 1.26 | K100: 91 | M100: 6.75
A101: 2023-01-26T13:34:00 | C101: 5.82 | E101: HW | F101: 2025-01-27T21:56:00 | G101: 2023-01-26T14:20:00 | I101: 9.5 | K101: 45.99999999 | M101: 5.5
A102: 2023-01-26T19:51:00 | C102: 0.75 | E102: LW | F102: 2025-01-28T04:30:00 | G102: 2023-01-26T21:19:00 | I102: 1.09 | K102: 88 | M102: 6.983333333
A103: 2023-01-27T02:06:00 | C103: 5.19 | E103: HW | F103: 2025-01-28T10:16:00 | G103: 2023-01-27T02:50:00 | I103: 8.72 | K103: 44 | M103: 5.516666667
A104: 2023-01-27T08:07:00 | C104: 1.19 | E104: LW | F104: 2025-01-28T17:01:00 | G104: 2023-01-27T09:34:00 | I104: 1.72 | K104: 87 | M104: 6.733333333
A105: 2023-01-27T14:22:00 | C105: 5.53 | E105: HW | F105: 2025-01-28T22:37:00 | G105: 2023-01-27T15:06:00 | I105: 9.04 | K105: 44 | M105: 5.533333333
A106: 2023-01-27T20:41:00 | C106: 1.09 | E106: LW | F106: 2025-01-29T05:14:00 | G106: 2023-01-27T22:03:00 | I106: 1.67 | K106: 81.99999999 | M106: 6.95
A107: 2023-01-28T02:55:00 | C107: 4.9 | E107: HW | F107: 2025-01-29T10:54:00 | G107: 2023-01-28T03:37:00 | I107: 8.24 | K107: 41.99999999 | M107: 5.566666667
A108: 2023-01-28T08:59:00 | C108: 1.51 | E108: LW | F108: 2025-01-29T17:44:00 | G108: 2023-01-28T10:20:00 | I108: 2.27 | K108: 81 | M108: 6.716666667
A109: 2023-01-28T15:13:00 | C109: 5.18 | E109: HW | F109: 2025-01-29T23:16:00 | G109: 2023-01-28T15:55:00 | I109: 8.48 | K109: 42 | M109: 5.583333333
A110: 2023-01-28T21:35:00 | C110: 1.48 | E110: LW | F110: 2025-01-30T05:56:00 | G110: 2023-01-28T22:51:00 | I110: 2.29 | K110: 76 | M110: 6.933333333
A111: 2023-01-29T03:51:00 | C111: 4.62 | E111: HW | F111: 2025-01-30T11:30:00 | G111: 2023-01-29T04:28:00 | I111: 7.74 | K111: 37.00000001 | M111: 5.616666667
A112: 2023-01-29T09:57:00 | C112: 1.84 | E112: LW | F112: 2025-01-30T18:25:00 | G112: 2023-01-29T11:12:00 | I112: 2.81 | K112: 75 | M112: 6.733333333
A113: 2023-01-29T16:13:00 | C113: 4.83 | E113: HW | F113: 2025-01-30T23:55:00 | G113: 2023-01-29T16:51:00 | I113: 7.92 | K113: 38 | M113: 5.65
A114: 2023-01-29T22:38:00 | C114: 1.84 | E114: LW | F114: 2025-01-31T06:37:00 | G114: 2023-01-29T23:47:00 | I114: 2.85 | K114: 68.99999999 | M114: 6.933333333
A115: 2023-01-30T04:58:00 | C115: 4.42 | E115: HW | F115: 2025-01-31T12:07:00 | G115: 2023-01-30T05:29:00 | I115: 7.33 | K115: 31.00000001 | M115: 5.7
A116: 2023-01-30T11:09:00 | C116: 2.08 | E116: LW | F116: 2025-01-31T19:06:00 | G116: 2023-01-30T12:16:00 | I116: 3.22 | K116: 67 | M116: 6.783333333
A117: 2023-01-30T17:27:00 | C117: 4.58 | E117: HW | F117: 2025-02-01T00:34:00 | G117: 2023-01-30T17:59:00 | I117: 7.47 | K117: 32 | M117: 5.716666667
A118: 2023-01-30T23:51:00 | C118: 2.07 | E118: LW | F118: 2025-02-01T07:17:00 | G118: 2023-01-31T00:56:00 | I118: 3.21 | K118: 65 | M118: 6.95
A119: 2023-01-31T06:19:00 | C119: 4.39 | E119: HW | F119: 2025-02-01T12:44:00 | G119: 2023-01-31T06:45:00 | I119: 7.15 | K119: 26 | M119: 5.816666667
A120: 2023-01-31T12:29:00 | C120: 2.16 | E120: LW | F120: 2025-02-01T19:46:00 | G120: 2023-01-31T13:35:00 | I120: 3.36 | K120: 66 | M120: 6.833333333
A121: 2023-01-31T18:50:00 | C121: 4.5 | E121: HW | F121: 2025-02-02T01:13:00 | G121: 2023-01-31T19:21:00 | I121: 7.32 | K121: 31.00000001 | M121: 5.766666667
A122: 2023-02-01T01:05:00 | C122: 2.12 | E122: LW | F122: 2025-02-02T07:56:00 | G122: 2023-02-01T02:13:00 | I122: 3.29 | K122: 68 | M122: 6.866666667
A123: 2023-02-01T07:33:00 | C123: 4.53 | E123: HW | F123: 2025-02-02T13:23:00 | G123: 2023-02-01T08:05:00 | I123: 7.3 | K123: 32 | M123: 5.866666667
A124: 2023-02-01T13:41:00 | C124: 2.05 | E124: LW | F124: 2025-02-02T20:26:00 | G124: 2023-02-01T14:53:00 | I124: 3.19 | K124: 71.99999999 | M124: 6.8
A125: 2023-02-01T19:59:00 | C125: 4.59 | E125: HW | F125: 2025-02-03T01:53:00 | G125: 2023-02-01T20:34:00 | I125: 7.48 | K125: 35 | M125: 5.683333333
A126: 2023-02-02T02:05:00 | C126: 2.02 | E126: LW | F126: 2025-02-03T08:36:00 | G126: 2023-02-02T03:19:00 | I126: 3.12 | K126: 74 | M126: 6.75
A127: 2023-02-02T08:29:00 | C127: 4.76 | E127: HW | F127: 2025-02-03T14:04:00 | G127: 2023-02-02T09:07:00 | I127: 7.67 | K127: 38 | M127: 5.8
A128: 2023-02-02T14:36:00 | C128: 1.85 | E128: LW | F128: 2025-02-03T21:07:00 | G128: 2023-02-02T15:53:00 | I128: 2.84 | K128: 77.00000001 | M128: 6.766666667
A129: 2023-02-02T20:51:00 | C129: 4.75 | E129: HW | F129: 2025-02-04T02:36:00 | G129: 2023-02-02T21:30:00 | I129: 7.79 | K129: 39 | M129: 5.616666667
A130: 2023-02-03T02:52:00 | C130: 1.86 | E130: LW | F130: 2025-02-04T09:17:00 | G130: 2023-02-03T04:11:00 | I130: 2.85 | K130: 79.00000001 | M130: 6.683333333
A131: 2023-02-03T09:13:00 | C131: 5.01 | E131: HW | F131: 2025-02-04T14:49:00 | G131: 2023-02-03T09:54:00 | I131: 8.07 | K131: =(G131-A131)*24*60 -> 41 | M131: 5.716666667
A132: 2023-02-03T15:20:00 | C132: 1.62 | E132: LW | F132: 2025-02-04T21:51:00 | G132: 2023-02-03T16:41:00 | I132: 2.48 | K132: 81 | M132: =(G132-G131)*24 -> 6.783333333
A133: 2023-02-03T21:32:00 | C133: 4.91 | E133: HW | F133: 2025-02-05T03:24:00 | G133: 2023-02-03T22:13:00 | I133: 8.11 | K133: 41 | M133: 5.533333333
A134: 2023-02-04T03:31:00 | C134: 1.66 | E134: LW | F134: 2025-02-05T10:03:00 | G134: 2023-02-04T04:52:00 | I134: 2.56 | K134: 81 | M134: 6.65
A135: 2023-02-04T09:49:00 | C135: 5.23 | E135: HW | F135: 2025-02-05T15:41:00 | G135: 2023-02-04T10:33:00 | I135: 8.42 | K135: 44 | M135: 5.683333333
A136: 2023-02-04T15:58:00 | C136: 1.41 | E136: LW | F136: 2025-02-05T22:42:00 | G136: 2023-02-04T17:20:00 | I136: 2.15 | K136: 81.99999999 | M136: 6.783333333
A137: 2023-02-04T22:08:00 | C137: 5.06 | E137: HW | F137: 2025-02-06T04:21:00 | G137: 2023-02-04T22:52:00 | I137: 8.38 | K137: 44 | M137: 5.533333333
A138: 2023-02-05T04:05:00 | C138: 1.48 | E138: LW | F138: 2025-02-06T10:59:00 | G138: 2023-02-05T05:28:00 | I138: 2.29 | K138: 83 | M138: 6.6
A139: 2023-02-05T10:22:00 | C139: 5.4 | E139: HW | F139: 2025-02-06T16:44:00 | G139: 2023-02-05T11:07:00 | I139: 8.7 | K139: 45 | M139: 5.65
A140: 2023-02-05T16:31:00 | C140: 1.23 | E140: LW | F140: 2025-02-06T23:44:00 | G140: 2023-02-05T17:55:00 | I140: 1.88 | K140: 84 | M140: 6.8
A141: 2023-02-05T22:40:00 | C141: 5.17 | E141: HW | F141: 2025-02-07T05:28:00 | G141: 2023-02-05T23:27:00 | I141: 8.58 | K141: 47 | M141: 5.533333333
A142: 2023-02-06T04:37:00 | C142: 1.32 | E142: LW | F142: 2025-02-07T12:08:00 | G142: 2023-02-06T06:00:00 | I142: 2.05 | K142: 83 | M142: 6.55
A143: 2023-02-06T10:53:00 | C143: 5.51 | E143: HW | F143: 2025-02-07T18:01:00 | G143: 2023-02-06T11:39:00 | I143: 8.89 | K143: 46 | M143: 5.65
A144: 2023-02-06T17:03:00 | C144: 1.11 | E144: LW | F144: 2025-02-08T01:00:00 | G144: 2023-02-06T18:28:00 | I144: 1.68 | K144: 84.99999999 | M144: 6.816666667
A145: 2023-02-06T23:11:00 | C145: 5.24 | E145: HW | F145: 2025-02-08T06:50:00 | G145: 2023-02-06T23:59:00 | I145: 8.7 | K145: 48 | M145: 5.516666667
A146: 2023-02-07T05:08:00 | C146: 1.22 | E146: LW | F146: 2025-02-08T13:35:00 | G146: 2023-02-07T06:31:00 | I146: 1.86 | K146: 83 | M146: 6.533333333
A147: 2023-02-07T11:23:00 | C147: 5.56 | E147: HW | F147: 2025-02-08T19:31:00 | G147: 2023-02-07T12:10:00 | I147: 9 | K147: 47 | M147: 5.65
A148: 2023-02-07T17:34:00 | C148: 1.04 | E148: LW | F148: 2025-02-09T02:25:00 | G148: 2023-02-07T18:59:00 | I148: 1.56 | K148: 85 | M148: 6.816666667
A149: 2023-02-07T23:42:00 | C149: 5.26 | E149: HW | F149: 2025-02-09T08:12:00 | G149: 2023-02-08T00:31:00 | I149: 8.73 | K149: 48.99999999 | M149: 5.533333333
A150: 2023-02-08T05:38:00 | C150: 1.18 | E150: LW | F150: 2025-02-09T15:01:00 | G150: 2023-02-08T07:02:00 | I150: 1.77 | K150: 84 | M150: 6.516666667
A151: 2023-02-08T11:53:00 | C151: 5.55 | E151: HW | F151: 2025-02-09T20:50:00 | G151: 2023-02-08T12:39:00 | I151: 9.02 | K151: 46 | M151: 5.616666667
A152: 2023-02-08T18:05:00 | C152: 1.02 | E152: LW | F152: 2025-02-10T03:36:00 | G152: 2023-02-08T19:30:00 | I152: 1.55 | K152: 85 | M152: 6.85
A153: 2023-02-09T00:12:00 | C153: 5.24 | E153: HW | F153: 2025-02-10T09:17:00 | G153: 2023-02-09T01:01:00 | I153: 8.68 | K153: 49 | M153: 5.516666667
A154: 2023-02-09T06:09:00 | C154: 1.19 | E154: LW | F154: 2025-02-10T16:08:00 | G154: 2023-02-09T07:34:00 | I154: 1.79 | K154: 85 | M154: 6.55
A155: 2023-02-09T12:23:00 | C155: 5.5 | E155: HW | F155: 2025-02-10T21:48:00 | G155: 2023-02-09T13:07:00 | I155: 8.99 | K155: 44 | M155: 5.55
A156: 2023-02-09T18:36:00 | C156: 1.06 | E156: LW | F156: 2025-02-11T04:34:00 | G156: 2023-02-09T20:00:00 | I156: 1.64 | K156: 84 | M156: 6.883333333
A157: 2023-02-10T00:44:00 | C157: 5.18 | E157: HW | F157: 2025-02-11T10:09:00 | G157: 2023-02-10T01:31:00 | I157: 8.58 | K157: 47.00000001 | M157: 5.516666667
A158: 2023-02-10T06:42:00 | C158: 1.26 | E158: LW | F158: 2025-02-11T17:02:00 | G158: 2023-02-10T08:05:00 | I158: 1.9 | K158: 83 | M158: 6.566666667
A159: 2023-02-10T12:54:00 | C159: 5.41 | E159: HW | F159: 2025-02-11T22:36:00 | G159: 2023-02-10T13:36:00 | I159: 8.9 | K159: 42 | M159: 5.516666667
A160: 2023-02-10T19:10:00 | C160: 1.15 | E160: LW | F160: 2025-02-12T05:23:00 | G160: 2023-02-10T20:32:00 | I160: 1.83 | K160: 82.00000001 | M160: 6.933333333
A161: 2023-02-11T01:18:00 | C161: 5.09 | E161: HW | F161: 2025-02-12T10:53:00 | G161: 2023-02-11T02:01:00 | I161: 8.44 | K161: 42.99999999 | M161: 5.483333333
A162: 2023-02-11T07:17:00 | C162: 1.38 | E162: LW | F162: 2025-02-12T17:49:00 | G162: 2023-02-11T08:37:00 | I162: 2.11 | K162: 80 | M162: 6.6
A163: 2023-02-11T13:28:00 | C163: 5.29 | E163: HW | F163: 2025-02-12T23:18:00 | G163: 2023-02-11T14:08:00 | I163: 8.74 | K163: 39.99999999 | M163: 5.516666667
A164: 2023-02-11T19:46:00 | C164: 1.31 | E164: LW | F164: 2025-02-13T06:06:00 | G164: 2023-02-11T21:05:00 | I164: 2.1 | K164: 79 | M164: 6.95
A165: 2023-02-12T01:55:00 | C165: 4.95 | E165: HW | F165: 2025-02-13T11:33:00 | G165: 2023-02-12T02:36:00 | I165: 8.23 | K165: 41 | M165: 5.516666667
A166: 2023-02-12T07:56:00 | C166: 1.55 | E166: LW | F166: 2025-02-13T18:31:00 | G166: 2023-02-12T09:14:00 | I166: 2.39 | K166: 78 | M166: 6.633333333
A167: 2023-02-12T14:07:00 | C167: 5.11 | E167: HW | F167: 2025-02-13T23:57:00 | G167: 2023-02-12T14:47:00 | I167: 8.48 | K167: 40 | M167: 5.55
A168: 2023-02-12T20:30:00 | C168: 1.53 | E168: LW | F168: 2025-02-14T06:45:00 | G168: 2023-02-12T21:45:00 | I168: 2.44 | K168: 75 | M168: 6.966666667
A169: 2023-02-13T02:40:00 | C169: 4.78 | E169: HW | F169: 2025-02-14T12:10:00 | G169: 2023-02-13T03:18:00 | I169: 7.95 | K169: 38 | M169: 5.55
A170: 2023-02-13T08:44:00 | C170: 1.78 | E170: LW | F170: 2025-02-14T19:08:00 | G170: 2023-02-13T09:58:00 | I170: 2.72 | K170: 74 | M170: 6.666666667
A171: 2023-02-13T14:56:00 | C171: 4.88 | E171: HW | F171: 2025-02-15T00:33:00 | G171: 2023-02-13T15:36:00 | I171: 8.09 | K171: 40 | M171: 5.633333333
A172: 2023-02-13T21:24:00 | C172: 1.79 | E172: LW | F172: 2025-02-15T07:20:00 | G172: 2023-02-13T22:35:00 | I172: 2.8 | K172: 70.99999999 | M172: 6.983333333
A173: 2023-02-14T03:36:00 | C173: 4.59 | E173: HW | F173: 2025-02-15T12:44:00 | G173: 2023-02-14T04:13:00 | I173: 7.61 | K173: 36.99999999 | M173: 5.633333333
A174: 2023-02-14T09:46:00 | C174: 2.02 | E174: LW | F174: 2025-02-15T19:42:00 | G174: 2023-02-14T10:56:00 | I174: 3.04 | K174: 70 | M174: 6.716666667
A175: 2023-02-14T16:02:00 | C175: 4.64 | E175: HW | F175: 2025-02-16T01:06:00 | G175: 2023-02-14T16:39:00 | I175: 7.65 | K175: 36.99999999 | M175: 5.716666667
A176: 2023-02-14T22:35:00 | C176: 2.01 | E176: LW | F176: 2025-02-16T07:52:00 | G176: 2023-02-14T23:40:00 | I176: 3.11 | K176: 65 | M176: 7.016666667
A177: 2023-02-15T04:52:00 | C177: 4.47 | E177: HW | F177: 2025-02-16T13:17:00 | G177: 2023-02-15T05:25:00 | I177: 7.33 | K177: 33 | M177: 5.75
A178: 2023-02-15T11:08:00 | C178: 2.13 | E178: LW | F178: 2025-02-16T20:13:00 | G178: 2023-02-15T12:11:00 | I178: 3.24 | K178: 63.00000001 | M178: 6.766666667
A179: 2023-02-15T17:32:00 | C179: 4.52 | E179: HW | F179: 2025-02-17T01:38:00 | G179: 2023-02-15T18:04:00 | I179: 7.37 | K179: 32 | M179: 5.883333333
A180: 2023-02-16 | C180: 2.05 | E180: LW | F180: 2025-02-17T08:20:00 | G180: 2023-02-16T01:03:00 | I180: 3.19 | K180: 63 | M180: 6.983333333
A181: 2023-02-16T06:22:00 | C181: 4.55 | E181: HW | F181: 2025-02-17T13:50:00 | G181: 2023-02-16T06:55:00 | I181: 7.37 | K181: 33 | M181: 5.866666667
A182: 2023-02-16T12:38:00 | C182: 1.97 | E182: LW | F182: 2025-02-17T20:40:00 | G182: 2023-02-16T13:47:00 | I182: 3.09 | K182: 69 | M182: 6.866666667
A183: 2023-02-16T19:07:00 | C183: 4.65 | E183: HW | F183: 2025-02-18T02:10:00 | G183: 2023-02-16T19:43:00 | I183: 7.53 | K183: 36 | M183: 5.933333333
A184: 2023-02-17T01:20:00 | C184: 1.84 | E184: LW | F184: 2025-02-18T08:47:00 | G184: 2023-02-17T02:35:00 | I184: 2.9 | K184: 75 | M184: 6.866666667
A185: 2023-02-17T07:40:00 | C185: 4.86 | E185: HW | F185: 2025-02-18T14:24:00 | G185: 2023-02-17T08:22:00 | I185: 7.83 | K185: 42 | M185: 5.783333333
A186: 2023-02-17T13:52:00 | C186: 1.58 | E186: LW | F186: 2025-02-18T21:07:00 | G186: 2023-02-17T15:15:00 | I186: 2.51 | K186: 83 | M186: 6.883333333
A187: 2023-02-17T20:18:00 | C187: 4.97 | E187: HW | F187: 2025-02-19T02:44:00 | G187: 2023-02-17T21:01:00 | I187: 8.06 | K187: 43 | M187: 5.766666667
A188: 2023-02-18T02:22:00 | C188: 1.48 | E188: LW | F188: 2025-02-19T09:18:00 | G188: 2023-02-18T03:48:00 | I188: 2.31 | K188: 86 | M188: 6.783333333
A189: 2023-02-18T08:40:00 | C189: 5.27 | E189: HW | F189: 2025-02-19T15:01:00 | G189: 2023-02-18T09:25:00 | I189: 8.5 | K189: 45 | M189: 5.616666667
A190: 2023-02-18T14:49:00 | C190: 1.1 | E190: LW | F190: 2025-02-19T21:40:00 | G190: 2023-02-18T16:20:00 | I190: 1.74 | K190: 91 | M190: 6.916666667
A191: 2023-02-18T21:12:00 | C191: 5.31 | E191: HW | F191: 2025-02-20T03:23:00 | G191: 2023-02-18T21:58:00 | I191: 8.66 | K191: 46 | M191: 5.633333333
A192: 2023-02-19T03:13:00 | C192: 1.09 | E192: LW | F192: 2025-02-20T09:58:00 | G192: 2023-02-19T04:45:00 | I192: 1.65 | K192: 92 | M192: 6.783333333
A193: 2023-02-19T09:29:00 | C193: 5.66 | E193: HW | F193: 2025-02-20T15:45:00 | G193: 2023-02-19T10:17:00 | I193: 9.16 | K193: 48 | M193: 5.533333333
A194: 2023-02-19T15:39:00 | C194: 0.65 | E194: LW | F194: 2025-02-20T22:23:00 | G194: 2023-02-19T17:14:00 | I194: 1.02 | K194: 95 | M194: 6.95
A195: 2023-02-19T21:59:00 | C195: 5.58 | E195: HW | F195: 2025-02-21T04:12:00 | G195: 2023-02-19T22:46:00 | I195: 9.17 | K195: =(G195-A195)*24*60 -> 47 | M195: 5.533333333
A196: 2023-02-20T03:59:00 | C196: 0.75 | E196: LW | F196: 2025-02-21T10:52:00 | G196: 2023-02-20T05:35:00 | I196: 1.07 | K196: 96 | M196: =(G196-G195)*24 -> 6.816666667
A197: 2023-02-20T10:14:00 | C197: 5.97 | E197: HW | F197: 2025-02-21T16:44:00 | G197: 2023-02-20T11:03:00 | I197: 9.68 | K197: 49 | M197: 5.466666667
A198: 2023-02-20T16:25:00 | C198: 0.32 | E198: LW | F198: 2025-02-21T23:22:00 | G198: 2023-02-20T18:02:00 | I198: 0.46 | K198: 96.99999999 | M198: 6.983333333
A199: 2023-02-20T22:43:00 | C199: 5.75 | E199: HW | F199: 2025-02-22T05:19:00 | G199: 2023-02-20T23:31:00 | I199: 9.51 | K199: 48 | M199: 5.483333333
A200: 2023-02-21T04:43:00 | C200: 0.52 | E200: LW | F200: 2025-02-22T12:05:00 | G200: 2023-02-21T06:20:00 | I200: 0.66 | K200: 97 | M200: 6.816666667
... 1211 more rows
